Workbook

Sheet District Summary
A1: Wyoming Block Grant - School District Resource Summary
A3: 9999999 | B3: =VLOOKUP($A$3,'Base Sheet'!$A$10:$X$58,2) -> State Total | C3: =VLOOKUP($A$3,'Base Sheet'!$A$10:$X$58,3) -> 93965.859 | E3: Wyoming Funding Model Version 2(d) 04-06-17 & FY 2018 Payment Model
A4: Enter 7-digit district ID | C4: ADM | G4: District Level-Model FTE's | H4: =SUM(C13:C14,C21:C23) -> 2211.079833
A5: For state totals enter 9999999 | G5: School Level-Model FTE's | H5: =SUM(C44:C65) -> 10621.22138
H6: =SUM(H4:H5) -> 12832.30121
H7: Total of all FTEs
A8: District Level Resources: | H8: =G31+G10 -> 563888102.7
A10: Sub-Total District Level Model Resources: | G10: =E12+E20+E26+E27+E29 -> 229115765.7
C11: FTE | D11: Funding
A12: Central Office & Library: | E12: =SUM(D13:D18) -> 93189492.05
B13: Professional | C13: =VLOOKUP($A$3,'Central Office'!$A$6:$K$54,4) -> 285.2569479 | D13: =VLOOKUP($A$3,'Central Office'!$A$6:$K$54,7) -> 39469503.96
B14: Clerical | C14: =VLOOKUP($A$3,'Central Office'!$A$6:$K$54,5) -> 325.0022626 | D14: =VLOOKUP($A$3,'Central Office'!$A$6:$K$54,8) -> 19341638.92
B15: Librarians - If using Consultant Recommendation | C15: =VLOOKUP($A$3,'Librarian, Clerk, Comp Tech.'!$A$6:$T$54,11) -> 0 | D15: =VLOOKUP($A$3,'Librarian, Clerk, Comp Tech.'!$A$6:$T$54,17) -> 0
B16: Librarian Clerks - If using Consultant Recommendation | C16: =VLOOKUP($A$3,'Librarian, Clerk, Comp Tech.'!$A$6:$T$54,14) -> 0 | D16: =VLOOKUP($A$3,'Librarian, Clerk, Comp Tech.'!$A$6:$T$54,18) -> 0
B17: Computer Technicians - If using Consultant Recommendation | C17: =VLOOKUP($A$3,'Librarian, Clerk, Comp Tech.'!$A$6:$T$54,15) -> 0 | D17: =VLOOKUP($A$3,'Librarian, Clerk, Comp Tech.'!$A$6:$T$54,19) -> 0
B18: Non-Personnel | D18: =VLOOKUP($A$3,'Central Office'!$A$6:$K$54,10) -> 34378349.17
A20: Operations & Maintenance: | E20: =SUM(D21:D24) -> 103571023
B21: Custodians | C21: =VLOOKUP($A$3,'O&M Base Sheet'!$A$7:$N$55,5) -> 800.4399378 | D21: =VLOOKUP($A$3,'O&M Base Sheet'!$A$7:$N$55,8) -> 42034833.61
B22: Maintenance Workers | C22: =VLOOKUP($A$3,'O&M Base Sheet'!$A$7:$N$55,6) -> 336.0315647 | D22: =VLOOKUP($A$3,'O&M Base Sheet'!$A$7:$N$55,9) -> 20106223.51
B23: Groundskeepers | C23: =VLOOKUP($A$3,'O&M Base Sheet'!$A$7:$N$55,7) -> 464.3491204 | D23: =VLOOKUP($A$3,'O&M Base Sheet'!$A$7:$N$55,10) -> 27805082.89
B24: Supplies | D24: =VLOOKUP($A$3,'O&M Base Sheet'!$A$7:$N$55,13) -> 13624882.96
A26: Activities - If using Consultant Recommendation | E26: =VLOOKUP($A$3,'Base Sheet'!$A$10:$Z$58,8) -> 0
A27: Utilities | E27: =VLOOKUP($A$3,'Base Sheet'!$A$10:$Z$58,9) -> 32355250.72
A29: First Year Charter School Adjustment | E29: =VLOOKUP($A$3,'Base Sheet'!$A$10:$X$58,16) -> 0
A31: Sub-Total District Level Reimbursables: | G31: =SUM(E32:E34) -> 334772337
A32: Special Education | E32: =VLOOKUP($A$3,'Base Sheet'!$A$10:$X$58,18) -> 238640441.8
A33: Transportation | E33: =VLOOKUP($A$3,'Base Sheet'!$A$10:$X$58,17) -> 78533117.26
A34: Other Reimbursables | E34: =VLOOKUP($A$3,'Base Sheet'!$A$10:$Z$58,15) -> 17598777.9
A39: School Level Resources: (see school resource summary sheets) | H39: =G41+G67 -> 904258135.9
A41: Sub-Total Staffing Costs: | G41: =SUM(D44:D65) -> 811829619.9
C42: FTE | D42: Funding
A44: * | B44: Reg Classroom/Core Teachers | C44: =VLOOKUP($A$3,'School Res-Dist Rollup'!$A$6:$ES$54,23) -> 5090.399806 | D44: =VLOOKUP($A$3,'School Res-Dist Rollup'!$A$6:$ES$54,87) -> 401012471.5
A45: * | B45: Specialist Teachers | C45: =VLOOKUP($A$3,'School Res-Dist Rollup'!$A$6:$ES$54,28) -> 1512.642836 | D45: =VLOOKUP($A$3,'School Res-Dist Rollup'!$A$6:$ES$54,92) -> 118698470.6
A46: * | B46: Alternative Teachers | C46: =VLOOKUP($A$3,'School Res-Dist Rollup'!$A$6:$ES$54,29) -> 173.3160476 | D46: =VLOOKUP($A$3,'School Res-Dist Rollup'!$A$6:$ES$54,93) -> 13753391.04
A47: * | B47: Small School Teachers-ADM 49 or less | C47: =VLOOKUP($A$3,'School Res-Dist Rollup'!$A$6:$ES$54,30) -> 138.8833333 | D47: =VLOOKUP($A$3,'School Res-Dist Rollup'!$A$6:$ES$54,94) -> 10883056.8
B48: Additional Small District Teachers - Dist. ADM 243 or less | C48: =VLOOKUP($A$3,'School Res-Dist Rollup'!$A$6:$ES$54,31) -> 8.358714286 | D48: =VLOOKUP($A$3,'School Res-Dist Rollup'!$A$6:$ES$54,95) -> 627999.223
A49: * | B49: Additional Voc Ed Teachers | C49: =VLOOKUP($A$3,'School Res-Dist Rollup'!$A$6:$ES$54,32) -> 41.62908571 | D49: =VLOOKUP($A$3,'School Res-Dist Rollup'!$A$6:$ES$54,96) -> 3286155.153
A50: * | B50: Instructional Facilitators | C50: =VLOOKUP($A$3,'School Res-Dist Rollup'!$A$6:$ES$54,36) -> 247.2487539 | D50: =VLOOKUP($A$3,'School Res-Dist Rollup'!$A$6:$ES$54,100) -> 19477895.67
A51: * | B51: Tutors | C51: =VLOOKUP($A$3,'School Res-Dist Rollup'!$A$6:$ES$54,41) -> 390.4636212 | D51: =VLOOKUP($A$3,'School Res-Dist Rollup'!$A$6:$ES$54,105) -> 30746992.09
A52: * | B52: Ell Teachers | C52: =VLOOKUP($A$3,'School Res-Dist Rollup'!$A$6:$ES$54,42) -> 34.62 | D52: =VLOOKUP($A$3,'School Res-Dist Rollup'!$A$6:$ES$54,106) -> 2802717.066
A53: * | B53: Summer School/Extended Day Teachers† | C53: =VLOOKUP($A$3,'School Res-Dist Rollup'!$A$6:$ES$54,43)+VLOOKUP($A$3,'School Res-Dist Rollup'!$A$6:$ES$54,44) -> 184.8763632 | D53: =VLOOKUP($A$3,'School Res-Dist Rollup'!$A$6:$ES$54,107)+VLOOKUP($A$3,'School Res-Dist Rollup'!$A$6:$ES$54,108) -> 14548458.77
A54: * | B54: Librarians | C54: =VLOOKUP($A$3,'School Res-Dist Rollup'!$A$6:$ES$54,48) -> 288.8434397 | D54: =VLOOKUP($A$3,'School Res-Dist Rollup'!$A$6:$ES$54,112) -> 22645166.37
B55: Substitute Teachers† | D55: =VLOOKUP($A$3,'School Res-Dist Rollup'!$A$6:$ES$54,116)+VLOOKUP($A$3,'School Res-Dist Rollup'!$A$6:$ES$54,117) -> 7312686.096
B56: Media Technicians | C56: =VLOOKUP($A$3,'School Res-Dist Rollup'!$A$6:$ES$54,51) -> 138.3236815 | D56: =VLOOKUP($A$3,'School Res-Dist Rollup'!$A$6:$ES$54,115) -> 10037910.94
A57: * | B57: Pupil Support | C57: =VLOOKUP($A$3,'School Res-Dist Rollup'!$A$6:$ES$54,54) -> 390.4636212 | D57: =VLOOKUP($A$3,'School Res-Dist Rollup'!$A$6:$ES$54,120) -> 30746992.09
A58: * | B58: Secondary Guidance Counselors | C58: =VLOOKUP($A$3,'School Res-Dist Rollup'!$A$6:$ES$54,55) -> 174.2878387 | D58: =VLOOKUP($A$3,'School Res-Dist Rollup'!$A$6:$ES$54,121) -> 13720380.76
B59: Supervisory Aides | C59: =VLOOKUP($A$3,'School Res-Dist Rollup'!$A$6:$ES$54,56) -> 651.2188361 | D59: =VLOOKUP($A$3,'School Res-Dist Rollup'!$A$6:$ES$54,122) -> 25387268.41
B61: Principals | C61: =VLOOKUP($A$3,'School Res-Dist Rollup'!$A$6:$ES$54,60) -> 275.8922991 | D61: =VLOOKUP($A$3,'School Res-Dist Rollup'!$A$6:$ES$54,126) -> 32586155.15
B62: Asst Principals | C62: =VLOOKUP($A$3,'School Res-Dist Rollup'!$A$6:$ES$54,65) -> 84.92723237 | D62: =VLOOKUP($A$3,'School Res-Dist Rollup'!$A$6:$ES$54,131) -> 9035732.41
B63: Small/ALT Asst Principals | C63: =VLOOKUP($A$3,'School Res-Dist Rollup'!$A$6:$ES$54,61) -> 75 | D63: =VLOOKUP($A$3,'School Res-Dist Rollup'!$A$6:$ES$54,127) -> 7556963.809
B64: Secretarial | C64: =VLOOKUP($A$3,'School Res-Dist Rollup'!$A$6:$ES$54,69) -> 333.1243188 | D64: =VLOOKUP($A$3,'School Res-Dist Rollup'!$A$6:$ES$54,135) -> 18796525.58
B65: Clerical | C65: =VLOOKUP($A$3,'School Res-Dist Rollup'!$A$6:$ES$54,73) -> 386.7015466 | D65: =VLOOKUP($A$3,'School Res-Dist Rollup'!$A$6:$ES$54,139) -> 18166230.39
A67: Sub-Total Non-Staff Costs: | G67: =SUM(D68:D74) -> 92428516.05
B68: Supplies & Materials | D68: =VLOOKUP($A$3,'School Res-Dist Rollup'!$A$6:$ES$54,141) -> 17982246.44
B69: Equipment & Technology | D69: =VLOOKUP($A$3,'School Res-Dist Rollup'!$A$6:$ES$54,142) -> 23491464.75
B70: Additional Voc Ed Supplies & Equip | D70: =VLOOKUP($A$3,'School Res-Dist Rollup'!$A$6:$ES$54,143) -> 2969496.824
B71: Gifted & Talented | D71: =VLOOKUP($A$3,'School Res-Dist Rollup'!$A$6:$ES$54,144) -> 3785884.459
B72: Professional Development | D72: =VLOOKUP($A$3,'School Res-Dist Rollup'!$A$6:$ES$54,145) -> 11830301.65
B73: Assessment | D73: =VLOOKUP($A$3,'School Res-Dist Rollup'!$A$6:$ES$54,146) -> 2349146.475
B74: Activities- If using School Level Alternate Option | D74: =VLOOKUP($A$3,'School Res-Dist Rollup'!$A$6:$ES$54,147) -> 30019975.45 | G74: Sum of resources above: | H74: =H39+H8 -> 1468146239
A76: Total Estimated Guarantee: from Base sheet | H76: =VLOOKUP($A$3,'Base Sheet'!$A$10:$Z$58,19) -> 1468146239
B77: Plus Hold Harmless | H77: =VLOOKUP($A$3,'Base Sheet'!$A$10:$Z$58,21) -> 0
B78: Revised Total | H78: =VLOOKUP($A$3,'Base Sheet'!$A$10:$Z$58,22) -> 1468146239
A80: * Categories Above are Included In "Teacher" Totals | C80: "Teacher FTEs" | D80: "Teacher Funding"
C81: =SUM(C44:C54,C57:C58) -> 8676.033461 | D81: =SUM(D44:D54,D57:D58) -> 682950147.1
A83: † Totals include minimum FTE adjustments for Summer School/Extended Day. See "Summer Schl-Ext Day Min Adj" worksheet.

Sheet School Summary-FTEs
A1: School Level Resource Summary-Wyoming Cost Based Block Grant Model-Full Time Equivalents (FTEs)
A2: District Full-Time Equivalents (FTEs) Generated at each School Level
B3: =SUM('District Summary'!C44:C65) -> 10621.22138
C4: Total District FTEs generated at School Level-from District Summary Sheet | V4: ='District Summary'!E3 -> Wyoming Funding Model Version 2(d) 04-06-17 & FY 2018 Payment Model
B7: ='District Summary'!B3 -> State Total
B9: School Name | C9: ADM | D9: Grades | E9: Small? | F9: ALT? | G9: Core (Regular) | H9: Specialist | I9: Alternative | J9: Small Schl | K9: Small Dist | L9: Voc Ed | M9: IF | N9: Tutor | O9: ELL | P9: *Summer School/ Ext Day | Q9: Librarian | R9: Media Technician | S9: Pupil Support | T9: Guidance Counselors | U9: Supervisory Aides | V9: Principal | W9: Assistant Principal | X9: Small/Alt AP | Y9: Secretarial | Z9: Clerical | AA9: Total School FTEs
A10: 1 | B10: =VLOOKUP('District Summary'!$A$3,'School Resource Matrices'!$B$6:$FD$53,4) -> Upton Elementary | C10: =VLOOKUP('District Summary'!$A$3,'School Resource Matrices'!$B$6:$FD$53,9) -> 126.017 | D10: =VLOOKUP('District Summary'!$A$3,'School Resource Matrices'!$B$6:$FD$53,5) -> K-5 | E10: =VLOOKUP('District Summary'!$A$3,'School Resource Matrices'!$B$6:$FD$53,11) -> F | F10: =VLOOKUP('District Summary'!$A$3,'School Resource Matrices'!$B$6:$FD$53,10) -> F | G10: =VLOOKUP('District Summary'!$A$3,'School Resource Matrices'!$B$6:$FD$53,33) -> 7.8760625 | H10: =VLOOKUP('District Summary'!$A$3,'School Resource Matrices'!$B$6:$FD$53,38) -> 1.5752125 | I10: =VLOOKUP('District Summary'!$A$3,'School Resource Matrices'!$B$6:$FD$53,39) -> 0 | J10: =VLOOKUP('District Summary'!$A$3,'School Resource Matrices'!$B$6:$FD$53,40) -> 0 | K10: =VLOOKUP('District Summary'!$A$3,'School Resource Matrices'!$B$6:$FD$53,41) -> 0 | L10: =VLOOKUP('District Summary'!$A$3,'School Resource Matrices'!$B$6:$FD$53,42) -> 0 | M10: =VLOOKUP('District Summary'!$A$3,'School Resource Matrices'!$B$6:$FD$53,46) -> 0.3544228125 | N10: =VLOOKUP('District Summary'!$A$3,'School Resource Matrices'!$B$6:$FD$53,51) -> 0.53 | O10: =VLOOKUP('District Summary'!$A$3,'School Resource Matrices'!$B$6:$FD$53,52) -> 0 | P10: =VLOOKUP('District Summary'!$A$3,'School Resource Matrices'!$B$6:$FD$53,53) -> 0.265 | Q10: =VLOOKUP('District Summary'!$A$3,'School Resource Matrices'!$B$6:$FD$53,57) -> 0.4375590278 | R10: =VLOOKUP('District Summary'!$A$3,'School Resource Matrices'!$B$6:$FD$53,60) -> 0 | S10: =VLOOKUP('District Summary'!$A$3,'School Resource Matrices'!$B$6:$FD$53,63) -> 0.53 | T10: =VLOOKUP('District Summary'!$A$3,'School Resource Matrices'!$B$6:$FD$53,64) -> 0 | U10: =VLOOKUP('District Summary'!$A$3,'School Resource Matrices'!$B$6:$FD$53,65) -> 0.8751180556 | V10: =VLOOKUP('District Summary'!$A$3,'School Resource Matrices'!$B$6:$FD$53,70) -> 1 | W10: =VLOOKUP('District Summary'!$A$3,'School Resource Matrices'!$B$6:$FD$53,75) -> 0 | X10: =VLOOKUP('District Summary'!$A$3,'School Resource Matrices'!$B$6:$FD$53,71) -> 0 | Y10: =VLOOKUP('District Summary'!$A$3,'School Resource Matrices'!$B$6:$FD$53,79) -> 1 | Z10: =VLOOKUP('District Summary'!$A$3,'School Resource Matrices'!$B$6:$FD$53,83) -> 0.4375590278 | AA10: =SUM(G10:Z10) -> 14.88093392
A11: 2 | B11: =VLOOKUP('District Summary'!$A$3,'School Resource Matrices'!$B$55:$FD$102,4) -> Upton Middle School | C11: =VLOOKUP('District Summary'!$A$3,'School Resource Matrices'!$B$55:$FD$102,9) -> 55.30966667 | D11: =VLOOKUP('District Summary'!$A$3,'School Resource Matrices'!$B$55:$FD$102,5) -> 6-8 | E11: =VLOOKUP('District Summary'!$A$3,'School Resource Matrices'!$B$55:$FD$102,11) -> F | F11: =VLOOKUP('District Summary'!$A$3,'School Resource Matrices'!$B$55:$FD$102,10) -> F | G11: =VLOOKUP('District Summary'!$A$3,'School Resource Matrices'!$B$55:$FD$102,33) -> 2.633793651 | H11: =VLOOKUP('District Summary'!$A$3,'School Resource Matrices'!$B$55:$FD$102,38) -> 5.366206349 | I11: =VLOOKUP('District Summary'!$A$3,'School Resource Matrices'!$B$55:$FD$102,39) -> 0 | J11: =VLOOKUP('District Summary'!$A$3,'School Resource Matrices'!$B$55:$FD$102,40) -> 0 | K11: =VLOOKUP('District Summary'!$A$3,'School Resource Matrices'!$B$55:$FD$102,41) -> 0 | L11: =VLOOKUP('District Summary'!$A$3,'School Resource Matrices'!$B$55:$FD$102,42) -> 0 | M11: =VLOOKUP('District Summary'!$A$3,'School Resource Matrices'!$B$55:$FD$102,46) -> 0.1422248571 | N11: =VLOOKUP('District Summary'!$A$3,'School Resource Matrices'!$B$55:$FD$102,51) -> 0.2 | O11: =VLOOKUP('District Summary'!$A$3,'School Resource Matrices'!$B$55:$FD$102,52) -> 0 | P11: =VLOOKUP('District Summary'!$A$3,'School Resource Matrices'!$B$55:$FD$102,53) -> 0.1 | Q11: =VLOOKUP('District Summary'!$A$3,'School Resource Matrices'!$B$55:$FD$102,57) -> 0.5267587302 | R11: =VLOOKUP('District Summary'!$A$3,'School Resource Matrices'!$B$55:$FD$102,60) -> 0.1755862434 | S11: =VLOOKUP('District Summary'!$A$3,'School Resource Matrices'!$B$55:$FD$102,63) -> 0.2 | T11: =VLOOKUP('District Summary'!$A$3,'School Resource Matrices'!$B$55:$FD$102,64) -> 0.2212386667 | U11: =VLOOKUP('District Summary'!$A$3,'School Resource Matrices'!$B$55:$FD$102,65) -> 0.3511724868 | V11: =VLOOKUP('District Summary'!$A$3,'School Resource Matrices'!$B$55:$FD$102,70) -> 0.5267587302 | W11: =VLOOKUP('District Summary'!$A$3,'School Resource Matrices'!$B$55:$FD$102,75) -> 0 | X11: =VLOOKUP('District Summary'!$A$3,'School Resource Matrices'!$B$55:$FD$102,71) -> 0 | Y11: =VLOOKUP('District Summary'!$A$3,'School Resource Matrices'!$B$55:$FD$102,79) -> 0.5267587302 | Z11: =VLOOKUP('District Summary'!$A$3,'School Resource Matrices'!$B$55:$FD$102,83) -> 0.1755862434 | AA11: 11.14608469
A12: 3 | B12: =VLOOKUP('District Summary'!$A$3,'School Resource Matrices'!$B$104:$FD$151,4) -> Upton High School | C12: =VLOOKUP('District Summary'!$A$3,'School Resource Matrices'!$B$104:$FD$151,9) -> 82.844 | D12: =VLOOKUP('District Summary'!$A$3,'School Resource Matrices'!$B$104:$FD$151,5) -> 9-12 | E12: =VLOOKUP('District Summary'!$A$3,'School Resource Matrices'!$B$104:$FD$151,11) -> F | F12: =VLOOKUP('District Summary'!$A$3,'School Resource Matrices'!$B$104:$FD$151,10) -> F | G12: =VLOOKUP('District Summary'!$A$3,'School Resource Matrices'!$B$104:$FD$151,33) -> 3.944952381 | H12: =VLOOKUP('District Summary'!$A$3,'School Resource Matrices'!$B$104:$FD$151,38) -> 5.895961905 | I12: =VLOOKUP('District Summary'!$A$3,'School Resource Matrices'!$B$104:$FD$151,39) -> 0 | J12: =VLOOKUP('District Summary'!$A$3,'School Resource Matrices'!$B$104:$FD$151,40) -> 0 | K12: =VLOOKUP('District Summary'!$A$3,'School Resource Matrices'!$B$104:$FD$151,41) -> 0 | L12: =VLOOKUP('District Summary'!$A$3,'School Resource Matrices'!$B$104:$FD$151,42) -> 0.1590857143 | M12: =VLOOKUP('District Summary'!$A$3,'School Resource Matrices'!$B$104:$FD$151,46) -> 0.2130274286 | N12: =VLOOKUP('District Summary'!$A$3,'School Resource Matrices'!$B$104:$FD$151,51) -> 0.2629968254 | O12: =VLOOKUP('District Summary'!$A$3,'School Resource Matrices'!$B$104:$FD$152,52) -> 0 | P12: =VLOOKUP('District Summary'!$A$3,'School Resource Matrices'!$B$104:$FD$151,53) -> 0.12 | Q12: =VLOOKUP('District Summary'!$A$3,'School Resource Matrices'!$B$104:$FD$151,57) -> 0.7889904762 | R12: =VLOOKUP('District Summary'!$A$3,'School Resource Matrices'!$B$104:$FD$151,60) -> 0.2629968254 | S12: =VLOOKUP('District Summary'!$A$3,'School Resource Matrices'!$B$104:$FD$151,63) -> 0.2629968254 | T12: =VLOOKUP('District Summary'!$A$3,'School Resource Matrices'!$B$104:$FD$151,64) -> 0.331376 | U12: =VLOOKUP('District Summary'!$A$3,'School Resource Matrices'!$B$104:$FD$151,65) -> 0.6574920635 | V12: =VLOOKUP('District Summary'!$A$3,'School Resource Matrices'!$B$104:$FD$151,70) -> 0.7889904762 | W12: =VLOOKUP('District Summary'!$A$3,'School Resource Matrices'!$B$104:$FD$151,75) -> 0 | X12: =VLOOKUP('District Summary'!$A$3,'School Resource Matrices'!$B$104:$FD$151,71) -> 0 | Y12: =VLOOKUP('District Summary'!$A$3,'School Resource Matrices'!$B$104:$FD$151,79) -> 0.7889904762 | Z12: =VLOOKUP('District Summary'!$A$3,'School Resource Matrices'!$B$104:$FD$151,83) -> 0.5259936508 | AA12: 15.00385105
A13: 4 | B13: =VLOOKUP('District Summary'!$A$3,'School Resource Matrices'!$B$153:$FD$200,4) -> 0 | C13: =VLOOKUP('District Summary'!$A$3,'School Resource Matrices'!$B$153:$FD$200,9) -> 0 | D13: =VLOOKUP('District Summary'!$A$3,'School Resource Matrices'!$B$153:$FD$200,5) -> 0 | E13: =VLOOKUP('District Summary'!$A$3,'School Resource Matrices'!$B$153:$FD$200,11) -> 0 | F13: =VLOOKUP('District Summary'!$A$3,'School Resource Matrices'!$B$153:$FD$200,10) -> 0 | G13: =VLOOKUP('District Summary'!$A$3,'School Resource Matrices'!$B$153:$FD$200,33) -> 0 | H13: =VLOOKUP('District Summary'!$A$3,'School Resource Matrices'!$B$153:$FD$200,38) -> 0 | I13: =VLOOKUP('District Summary'!$A$3,'School Resource Matrices'!$B$153:$FD$200,39) -> 0 | J13: =VLOOKUP('District Summary'!$A$3,'School Resource Matrices'!$B$153:$FD$200,40) -> 0 | K13: =VLOOKUP('District Summary'!$A$3,'School Resource Matrices'!$B$153:$FD$200,41) -> 0 | L13: =VLOOKUP('District Summary'!$A$3,'School Resource Matrices'!$B$153:$FD$200,42) -> 0 | M13: =VLOOKUP('District Summary'!$A$3,'School Resource Matrices'!$B$153:$FD$200,46) -> 0 | N13: =VLOOKUP('District Summary'!$A$3,'School Resource Matrices'!$B$153:$FD$200,51) -> 0 | O13: =VLOOKUP('District Summary'!$A$3,'School Resource Matrices'!$B$153:$FD$200,52) -> 0 | P13: =VLOOKUP('District Summary'!$A$3,'School Resource Matrices'!$B$153:$FD$200,53) -> 0 | Q13: =VLOOKUP('District Summary'!$A$3,'School Resource Matrices'!$B$153:$FD$200,57) -> 0 | R13: =VLOOKUP('District Summary'!$A$3,'School Resource Matrices'!$B$153:$FD$200,60) -> 0 | S13: =VLOOKUP('District Summary'!$A$3,'School Resource Matrices'!$B$153:$FD$200,63) -> 0 | T13: =VLOOKUP('District Summary'!$A$3,'School Resource Matrices'!$B$153:$FD$200,64) -> 0 | U13: =VLOOKUP('District Summary'!$A$3,'School Resource Matrices'!$B$153:$FD$200,65) -> 0 | V13: =VLOOKUP('District Summary'!$A$3,'School Resource Matrices'!$B$153:$FD$200,70) -> 0 | W13: =VLOOKUP('District Summary'!$A$3,'School Resource Matrices'!$B$153:$FD$200,75) -> 0 | X13: =VLOOKUP('District Summary'!$A$3,'School Resource Matrices'!$B$153:$FD$200,71) -> 0 | Y13: =VLOOKUP('District Summary'!$A$3,'School Resource Matrices'!$B$153:$FD$200,79) -> 0 | Z13: =VLOOKUP('District Summary'!$A$3,'School Resource Matrices'!$B$153:$FD$200,83) -> 0 | AA13: 0
A14: 5 | B14: =VLOOKUP('District Summary'!$A$3,'School Resource Matrices'!$B$202:$FD$249,4) -> 0 | C14: =VLOOKUP('District Summary'!$A$3,'School Resource Matrices'!$B$202:$FD$249,9) -> 0 | D14: =VLOOKUP('District Summary'!$A$3,'School Resource Matrices'!$B$202:$FD$249,5) -> 0 | E14: =VLOOKUP('District Summary'!$A$3,'School Resource Matrices'!$B$202:$FD$249,11) -> 0 | F14: =VLOOKUP('District Summary'!$A$3,'School Resource Matrices'!$B$202:$FD$249,10) -> 0 | G14: =VLOOKUP('District Summary'!$A$3,'School Resource Matrices'!$B$202:$FD$249,33) -> 0 | H14: =VLOOKUP('District Summary'!$A$3,'School Resource Matrices'!$B$202:$FD$249,38) -> 0 | I14: =VLOOKUP('District Summary'!$A$3,'School Resource Matrices'!$B$202:$FD$249,39) -> 0 | J14: =VLOOKUP('District Summary'!$A$3,'School Resource Matrices'!$B$202:$FD$249,40) -> 0 | K14: =VLOOKUP('District Summary'!$A$3,'School Resource Matrices'!$B$202:$FD$249,41) -> 0 | L14: =VLOOKUP('District Summary'!$A$3,'School Resource Matrices'!$B$202:$FD$249,42) -> 0 | M14: =VLOOKUP('District Summary'!$A$3,'School Resource Matrices'!$B$202:$FD$249,46) -> 0 | N14: =VLOOKUP('District Summary'!$A$3,'School Resource Matrices'!$B$202:$FD$249,51) -> 0 | O14: =VLOOKUP('District Summary'!$A$3,'School Resource Matrices'!$B$202:$FD$249,52) -> 0 | P14: =VLOOKUP('District Summary'!$A$3,'School Resource Matrices'!$B$202:$FD$249,53) -> 0 | Q14: =VLOOKUP('District Summary'!$A$3,'School Resource Matrices'!$B$202:$FD$249,57) -> 0 | R14: =VLOOKUP('District Summary'!$A$3,'School Resource Matrices'!$B$202:$FD$249,60) -> 0 | S14: =VLOOKUP('District Summary'!$A$3,'School Resource Matrices'!$B$202:$FD$249,63) -> 0 | T14: =VLOOKUP('District Summary'!$A$3,'School Resource Matrices'!$B$202:$FD$249,64) -> 0 | U14: =VLOOKUP('District Summary'!$A$3,'School Resource Matrices'!$B$202:$FD$249,65) -> 0 | V14: =VLOOKUP('District Summary'!$A$3,'School Resource Matrices'!$B$202:$FD$249,70) -> 0 | W14: =VLOOKUP('District Summary'!$A$3,'School Resource Matrices'!$B$202:$FD$249,75) -> 0 | X14: =VLOOKUP('District Summary'!$A$3,'School Resource Matrices'!$B$202:$FD$249,71) -> 0 | Y14: =VLOOKUP('District Summary'!$A$3,'School Resource Matrices'!$B$202:$FD$249,79) -> 0 | Z14: =VLOOKUP('District Summary'!$A$3,'School Resource Matrices'!$B$202:$FD$249,83) -> 0 | AA14: 0
A15: 6 | B15: =VLOOKUP('District Summary'!$A$3,'School Resource Matrices'!$B$251:$FD$298,4) -> 0 | C15: =VLOOKUP('District Summary'!$A$3,'School Resource Matrices'!$B$251:$FD$298,9) -> 0 | D15: =VLOOKUP('District Summary'!$A$3,'School Resource Matrices'!$B$251:$FD$298,5) -> 0 | E15: =VLOOKUP('District Summary'!$A$3,'School Resource Matrices'!$B$251:$FD$298,11) -> 0 | F15: =VLOOKUP('District Summary'!$A$3,'School Resource Matrices'!$B$251:$FD$298,10) -> 0 | G15: =VLOOKUP('District Summary'!$A$3,'School Resource Matrices'!$B$251:$FD$298,33) -> 0 | H15: =VLOOKUP('District Summary'!$A$3,'School Resource Matrices'!$B$251:$FD$298,38) -> 0 | I15: =VLOOKUP('District Summary'!$A$3,'School Resource Matrices'!$B$251:$FD$298,39) -> 0 | J15: =VLOOKUP('District Summary'!$A$3,'School Resource Matrices'!$B$251:$FD$298,40) -> 0 | K15: =VLOOKUP('District Summary'!$A$3,'School Resource Matrices'!$B$251:$FD$298,41) -> 0 | L15: =VLOOKUP('District Summary'!$A$3,'School Resource Matrices'!$B$251:$FD$298,42) -> 0 | M15: =VLOOKUP('District Summary'!$A$3,'School Resource Matrices'!$B$251:$FD$298,46) -> 0 | N15: =VLOOKUP('District Summary'!$A$3,'School Resource Matrices'!$B$251:$FD$298,51) -> 0 | O15: =VLOOKUP('District Summary'!$A$3,'School Resource Matrices'!$B$251:$FD$298,52) -> 0 | P15: =VLOOKUP('District Summary'!$A$3,'School Resource Matrices'!$B$251:$FD$298,53) -> 0 | Q15: =VLOOKUP('District Summary'!$A$3,'School Resource Matrices'!$B$251:$FD$298,57) -> 0 | R15: =VLOOKUP('District Summary'!$A$3,'School Resource Matrices'!$B$251:$FD$298,60) -> 0 | S15: =VLOOKUP('District Summary'!$A$3,'School Resource Matrices'!$B$251:$FD$298,63) -> 0 | T15: =VLOOKUP('District Summary'!$A$3,'School Resource Matrices'!$B$251:$FD$298,64) -> 0 | U15: =VLOOKUP('District Summary'!$A$3,'School Resource Matrices'!$B$251:$FD$298,65) -> 0 | V15: =VLOOKUP('District Summary'!$A$3,'School Resource Matrices'!$B$251:$FD$298,70) -> 0 | W15: =VLOOKUP('District Summary'!$A$3,'School Resource Matrices'!$B$251:$FD$298,75) -> 0 | X15: =VLOOKUP('District Summary'!$A$3,'School Resource Matrices'!$B$251:$FD$298,71) -> 0 | Y15: =VLOOKUP('District Summary'!$A$3,'School Resource Matrices'!$B$251:$FD$298,79) -> 0 | Z15: =VLOOKUP('District Summary'!$A$3,'School Resource Matrices'!$B$251:$FD$298,83) -> 0 | AA15: 0
A16: 7 | B16: =VLOOKUP('District Summary'!$A$3,'School Resource Matrices'!$B$300:$FD$347,4) -> 0 | C16: =VLOOKUP('District Summary'!$A$3,'School Resource Matrices'!$B$300:$FD$347,9) -> 0 | D16: =VLOOKUP('District Summary'!$A$3,'School Resource Matrices'!$B$300:$FD$347,5) -> 0 | E16: =VLOOKUP('District Summary'!$A$3,'School Resource Matrices'!$B$300:$FD$347,11) -> 0 | F16: =VLOOKUP('District Summary'!$A$3,'School Resource Matrices'!$B$300:$FD$347,10) -> 0 | G16: =VLOOKUP('District Summary'!$A$3,'School Resource Matrices'!$B$300:$FD$347,33) -> 0 | H16: =VLOOKUP('District Summary'!$A$3,'School Resource Matrices'!$B$300:$FD$347,38) -> 0 | I16: =VLOOKUP('District Summary'!$A$3,'School Resource Matrices'!$B$300:$FD$347,39) -> 0 | J16: =VLOOKUP('District Summary'!$A$3,'School Resource Matrices'!$B$300:$FD$347,40) -> 0 | K16: =VLOOKUP('District Summary'!$A$3,'School Resource Matrices'!$B$300:$FD$347,41) -> 0 | L16: =VLOOKUP('District Summary'!$A$3,'School Resource Matrices'!$B$300:$FD$347,42) -> 0 | M16: =VLOOKUP('District Summary'!$A$3,'School Resource Matrices'!$B$300:$FD$347,46) -> 0 | N16: =VLOOKUP('District Summary'!$A$3,'School Resource Matrices'!$B$300:$FD$347,51) -> 0 | O16: =VLOOKUP('District Summary'!$A$3,'School Resource Matrices'!$B$300:$FD$347,52) -> 0 | P16: =VLOOKUP('District Summary'!$A$3,'School Resource Matrices'!$B$300:$FD$347,53) -> 0 | Q16: =VLOOKUP('District Summary'!$A$3,'School Resource Matrices'!$B$300:$FD$347,57) -> 0 | R16: =VLOOKUP('District Summary'!$A$3,'School Resource Matrices'!$B$300:$FD$347,60) -> 0 | S16: =VLOOKUP('District Summary'!$A$3,'School Resource Matrices'!$B$300:$FD$347,63) -> 0 | T16: =VLOOKUP('District Summary'!$A$3,'School Resource Matrices'!$B$300:$FD$347,64) -> 0 | U16: =VLOOKUP('District Summary'!$A$3,'School Resource Matrices'!$B$300:$FD$347,65) -> 0 | V16: =VLOOKUP('District Summary'!$A$3,'School Resource Matrices'!$B$300:$FD$347,70) -> 0 | W16: =VLOOKUP('District Summary'!$A$3,'School Resource Matrices'!$B$300:$FD$347,75) -> 0 | X16: =VLOOKUP('District Summary'!$A$3,'School Resource Matrices'!$B$300:$FD$347,71) -> 0 | Y16: =VLOOKUP('District Summary'!$A$3,'School Resource Matrices'!$B$300:$FD$347,79) -> 0 | Z16: =VLOOKUP('District Summary'!$A$3,'School Resource Matrices'!$B$300:$FD$347,83) -> 0 | AA16: 0
A17: 8 | B17: =VLOOKUP('District Summary'!$A$3,'School Resource Matrices'!$B$349:$FD$396,4) -> 0 | C17: =VLOOKUP('District Summary'!$A$3,'School Resource Matrices'!$B$349:$FD$396,9) -> 0 | D17: =VLOOKUP('District Summary'!$A$3,'School Resource Matrices'!$B$349:$FD$396,5) -> 0 | E17: =VLOOKUP('District Summary'!$A$3,'School Resource Matrices'!$B$349:$FD$396,11) -> 0 | F17: =VLOOKUP('District Summary'!$A$3,'School Resource Matrices'!$B$349:$FD$396,10) -> 0 | G17: =VLOOKUP('District Summary'!$A$3,'School Resource Matrices'!$B$349:$FD$396,33) -> 0 | H17: =VLOOKUP('District Summary'!$A$3,'School Resource Matrices'!$B$349:$FD$396,38) -> 0 | I17: =VLOOKUP('District Summary'!$A$3,'School Resource Matrices'!$B$349:$FD$396,39) -> 0 | J17: =VLOOKUP('District Summary'!$A$3,'School Resource Matrices'!$B$349:$FD$396,40) -> 0 | K17: =VLOOKUP('District Summary'!$A$3,'School Resource Matrices'!$B$349:$FD$396,41) -> 0 | L17: =VLOOKUP('District Summary'!$A$3,'School Resource Matrices'!$B$349:$FD$396,42) -> 0 | M17: =VLOOKUP('District Summary'!$A$3,'School Resource Matrices'!$B$349:$FD$396,46) -> 0 | N17: =VLOOKUP('District Summary'!$A$3,'School Resource Matrices'!$B$349:$FD$396,51) -> 0 | O17: =VLOOKUP('District Summary'!$A$3,'School Resource Matrices'!$B$349:$FD$396,52) -> 0 | P17: =VLOOKUP('District Summary'!$A$3,'School Resource Matrices'!$B$349:$FD$396,53) -> 0 | Q17: =VLOOKUP('District Summary'!$A$3,'School Resource Matrices'!$B$349:$FD$396,57) -> 0 | R17: =VLOOKUP('District Summary'!$A$3,'School Resource Matrices'!$B$349:$FD$396,60) -> 0 | S17: =VLOOKUP('District Summary'!$A$3,'School Resource Matrices'!$B$349:$FD$396,63) -> 0 | T17: =VLOOKUP('District Summary'!$A$3,'School Resource Matrices'!$B$349:$FD$396,64) -> 0 | U17: =VLOOKUP('District Summary'!$A$3,'School Resource Matrices'!$B$349:$FD$396,65) -> 0 | V17: =VLOOKUP('District Summary'!$A$3,'School Resource Matrices'!$B$349:$FD$396,70) -> 0 | W17: =VLOOKUP('District Summary'!$A$3,'School Resource Matrices'!$B$349:$FD$396,75) -> 0 | X17: =VLOOKUP('District Summary'!$A$3,'School Resource Matrices'!$B$349:$FD$396,71) -> 0 | Y17: =VLOOKUP('District Summary'!$A$3,'School Resource Matrices'!$B$349:$FD$396,79) -> 0 | Z17: =VLOOKUP('District Summary'!$A$3,'School Resource Matrices'!$B$349:$FD$396,83) -> 0 | AA17: 0
A18: 9 | B18: =VLOOKUP('District Summary'!$A$3,'School Resource Matrices'!$B$398:$FD$445,4) -> 0 | C18: =VLOOKUP('District Summary'!$A$3,'School Resource Matrices'!$B$398:$FD$445,9) -> 0 | D18: =VLOOKUP('District Summary'!$A$3,'School Resource Matrices'!$B$398:$FD$445,5) -> 0 | E18: =VLOOKUP('District Summary'!$A$3,'School Resource Matrices'!$B$398:$FD$445,11) -> 0 | F18: =VLOOKUP('District Summary'!$A$3,'School Resource Matrices'!$B$398:$FD$445,10) -> 0 | G18: =VLOOKUP('District Summary'!$A$3,'School Resource Matrices'!$B$398:$FD$445,33) -> 0 | H18: =VLOOKUP('District Summary'!$A$3,'School Resource Matrices'!$B$398:$FD$445,38) -> 0 | I18: =VLOOKUP('District Summary'!$A$3,'School Resource Matrices'!$B$398:$FD$445,39) -> 0 | J18: =VLOOKUP('District Summary'!$A$3,'School Resource Matrices'!$B$398:$FD$445,40) -> 0 | K18: =VLOOKUP('District Summary'!$A$3,'School Resource Matrices'!$B$398:$FD$445,41) -> 0 | L18: =VLOOKUP('District Summary'!$A$3,'School Resource Matrices'!$B$398:$FD$445,42) -> 0 | M18: =VLOOKUP('District Summary'!$A$3,'School Resource Matrices'!$B$398:$FD$446,46) -> 0 | N18: =VLOOKUP('District Summary'!$A$3,'School Resource Matrices'!$B$398:$FD$445,51) -> 0 | O18: =VLOOKUP('District Summary'!$A$3,'School Resource Matrices'!$B$398:$FD$445,52) -> 0 | P18: =VLOOKUP('District Summary'!$A$3,'School Resource Matrices'!$B$398:$FD$445,53) -> 0 | Q18: =VLOOKUP('District Summary'!$A$3,'School Resource Matrices'!$B$398:$FD$445,57) -> 0 | R18: =VLOOKUP('District Summary'!$A$3,'School Resource Matrices'!$B$398:$FD$445,60) -> 0 | S18: =VLOOKUP('District Summary'!$A$3,'School Resource Matrices'!$B$398:$FD$445,63) -> 0 | T18: =VLOOKUP('District Summary'!$A$3,'School Resource Matrices'!$B$398:$FD$445,64) -> 0 | U18: =VLOOKUP('District Summary'!$A$3,'School Resource Matrices'!$B$398:$FD$445,65) -> 0 | V18: =VLOOKUP('District Summary'!$A$3,'School Resource Matrices'!$B$398:$FD$445,70) -> 0 | W18: =VLOOKUP('District Summary'!$A$3,'School Resource Matrices'!$B$398:$FD$445,75) -> 0 | X18: =VLOOKUP('District Summary'!$A$3,'School Resource Matrices'!$B$398:$FD$445,71) -> 0 | Y18: =VLOOKUP('District Summary'!$A$3,'School Resource Matrices'!$B$398:$FD$445,79) -> 0 | Z18: =VLOOKUP('District Summary'!$A$3,'School Resource Matrices'!$B$398:$FD$445,83) -> 0 | AA18: 0
A19: 10 | B19: =VLOOKUP('District Summary'!$A$3,'School Resource Matrices'!$B$447:$FD$494,4) -> 0 | C19: =VLOOKUP('District Summary'!$A$3,'School Resource Matrices'!$B$447:$FD$494,9) -> 0 | D19: =VLOOKUP('District Summary'!$A$3,'School Resource Matrices'!$B$447:$FD$494,5) -> 0 | E19: =VLOOKUP('District Summary'!$A$3,'School Resource Matrices'!$B$447:$FD$494,11) -> 0 | F19: =VLOOKUP('District Summary'!$A$3,'School Resource Matrices'!$B$447:$FD$494,10) -> 0 | G19: =VLOOKUP('District Summary'!$A$3,'School Resource Matrices'!$B$447:$FD$494,33) -> 0 | H19: =VLOOKUP('District Summary'!$A$3,'School Resource Matrices'!$B$447:$FD$494,38) -> 0 | I19: =VLOOKUP('District Summary'!$A$3,'School Resource Matrices'!$B$447:$FD$494,39) -> 0 | J19: =VLOOKUP('District Summary'!$A$3,'School Resource Matrices'!$B$447:$FD$494,40) -> 0 | K19: =VLOOKUP('District Summary'!$A$3,'School Resource Matrices'!$B$447:$FD$494,41) -> 0 | L19: =VLOOKUP('District Summary'!$A$3,'School Resource Matrices'!$B$447:$FD$494,42) -> 0 | M19: =VLOOKUP('District Summary'!$A$3,'School Resource Matrices'!$B$447:$FD$494,46) -> 0 | N19: =VLOOKUP('District Summary'!$A$3,'School Resource Matrices'!$B$447:$FD$494,51) -> 0 | O19: =VLOOKUP('District Summary'!$A$3,'School Resource Matrices'!$B$447:$FD$494,52) -> 0 | P19: =VLOOKUP('District Summary'!$A$3,'School Resource Matrices'!$B$447:$FD$494,53) -> 0 | Q19: =VLOOKUP('District Summary'!$A$3,'School Resource Matrices'!$B$447:$FD$494,57) -> 0 | R19: =VLOOKUP('District Summary'!$A$3,'School Resource Matrices'!$B$447:$FD$494,60) -> 0 | S19: =VLOOKUP('District Summary'!$A$3,'School Resource Matrices'!$B$447:$FD$494,63) -> 0 | T19: =VLOOKUP('District Summary'!$A$3,'School Resource Matrices'!$B$447:$FD$494,64) -> 0 | U19: =VLOOKUP('District Summary'!$A$3,'School Resource Matrices'!$B$447:$FD$494,65) -> 0 | V19: =VLOOKUP('District Summary'!$A$3,'School Resource Matrices'!$B$447:$FD$494,70) -> 0 | W19: =VLOOKUP('District Summary'!$A$3,'School Resource Matrices'!$B$447:$FD$494,75) -> 0 | X19: =VLOOKUP('District Summary'!$A$3,'School Resource Matrices'!$B$447:$FD$494,71) -> 0 | Y19: =VLOOKUP('District Summary'!$A$3,'School Resource Matrices'!$B$447:$FD$494,79) -> 0 | Z19: =VLOOKUP('District Summary'!$A$3,'School Resource Matrices'!$B$447:$FD$494,83) -> 0 | AA19: 0
A20: 11 | B20: =VLOOKUP('District Summary'!$A$3,'School Resource Matrices'!$B$496:$FD$543,4) -> 0 | C20: =VLOOKUP('District Summary'!$A$3,'School Resource Matrices'!$B$496:$FD$543,9) -> 0 | D20: =VLOOKUP('District Summary'!$A$3,'School Resource Matrices'!$B$496:$FD$543,5) -> 0 | E20: =VLOOKUP('District Summary'!$A$3,'School Resource Matrices'!$B$496:$FD$543,11) -> 0 | F20: =VLOOKUP('District Summary'!$A$3,'School Resource Matrices'!$B$496:$FD$543,10) -> 0 | G20: =VLOOKUP('District Summary'!$A$3,'School Resource Matrices'!$B$496:$FD$543,33) -> 0 | H20: =VLOOKUP('District Summary'!$A$3,'School Resource Matrices'!$B$496:$FD$543,38) -> 0 | I20: =VLOOKUP('District Summary'!$A$3,'School Resource Matrices'!$B$496:$FD$543,39) -> 0 | J20: =VLOOKUP('District Summary'!$A$3,'School Resource Matrices'!$B$496:$FD$543,40) -> 0 | K20: =VLOOKUP('District Summary'!$A$3,'School Resource Matrices'!$B$496:$FD$543,41) -> 0 | L20: =VLOOKUP('District Summary'!$A$3,'School Resource Matrices'!$B$496:$FD$543,42) -> 0 | M20: =VLOOKUP('District Summary'!$A$3,'School Resource Matrices'!$B$496:$FD$543,46) -> 0 | N20: =VLOOKUP('District Summary'!$A$3,'School Resource Matrices'!$B$496:$FD$543,51) -> 0 | O20: =VLOOKUP('District Summary'!$A$3,'School Resource Matrices'!$B$496:$FD$543,52) -> 0 | P20: =VLOOKUP('District Summary'!$A$3,'School Resource Matrices'!$B$496:$FD$543,53) -> 0 | Q20: =VLOOKUP('District Summary'!$A$3,'School Resource Matrices'!$B$496:$FD$543,57) -> 0 | R20: =VLOOKUP('District Summary'!$A$3,'School Resource Matrices'!$B$496:$FD$543,60) -> 0 | S20: =VLOOKUP('District Summary'!$A$3,'School Resource Matrices'!$B$496:$FD$543,63) -> 0 | T20: =VLOOKUP('District Summary'!$A$3,'School Resource Matrices'!$B$496:$FD$543,64) -> 0 | U20: =VLOOKUP('District Summary'!$A$3,'School Resource Matrices'!$B$496:$FD$543,65) -> 0 | V20: =VLOOKUP('District Summary'!$A$3,'School Resource Matrices'!$B$496:$FD$543,70) -> 0 | W20: =VLOOKUP('District Summary'!$A$3,'School Resource Matrices'!$B$496:$FD$543,75) -> 0 | X20: =VLOOKUP('District Summary'!$A$3,'School Resource Matrices'!$B$496:$FD$543,71) -> 0 | Y20: =VLOOKUP('District Summary'!$A$3,'School Resource Matrices'!$B$496:$FD$543,79) -> 0 | Z20: =VLOOKUP('District Summary'!$A$3,'School Resource Matrices'!$B$496:$FD$543,83) -> 0 | AA20: 0
A21: 12 | B21: =VLOOKUP('District Summary'!$A$3,'School Resource Matrices'!$B$545:$FD$592,4) -> 0 | C21: =VLOOKUP('District Summary'!$A$3,'School Resource Matrices'!$B$545:$FD$592,9) -> 0 | D21: =VLOOKUP('District Summary'!$A$3,'School Resource Matrices'!$B$545:$FD$592,5) -> 0 | E21: =VLOOKUP('District Summary'!$A$3,'School Resource Matrices'!$B$545:$FD$592,11) -> 0 | F21: =VLOOKUP('District Summary'!$A$3,'School Resource Matrices'!$B$545:$FD$592,10) -> 0 | G21: =VLOOKUP('District Summary'!$A$3,'School Resource Matrices'!$B$545:$FD$592,33) -> 0 | H21: =VLOOKUP('District Summary'!$A$3,'School Resource Matrices'!$B$545:$FD$592,38) -> 0 | I21: =VLOOKUP('District Summary'!$A$3,'School Resource Matrices'!$B$545:$FD$592,39) -> 0 | J21: =VLOOKUP('District Summary'!$A$3,'School Resource Matrices'!$B$545:$FD$592,40) -> 0 | K21: =VLOOKUP('District Summary'!$A$3,'School Resource Matrices'!$B$545:$FD$592,41) -> 0 | L21: =VLOOKUP('District Summary'!$A$3,'School Resource Matrices'!$B$545:$FD$592,42) -> 0 | M21: =VLOOKUP('District Summary'!$A$3,'School Resource Matrices'!$B$545:$FD$592,46) -> 0 | N21: =VLOOKUP('District Summary'!$A$3,'School Resource Matrices'!$B$545:$FD$592,51) -> 0 | O21: =VLOOKUP('District Summary'!$A$3,'School Resource Matrices'!$B$545:$FD$592,52) -> 0 | P21: =VLOOKUP('District Summary'!$A$3,'School Resource Matrices'!$B$545:$FD$592,53) -> 0 | Q21: =VLOOKUP('District Summary'!$A$3,'School Resource Matrices'!$B$545:$FD$592,57) -> 0 | R21: =VLOOKUP('District Summary'!$A$3,'School Resource Matrices'!$B$545:$FD$592,60) -> 0 | S21: =VLOOKUP('District Summary'!$A$3,'School Resource Matrices'!$B$545:$FD$592,63) -> 0 | T21: =VLOOKUP('District Summary'!$A$3,'School Resource Matrices'!$B$545:$FD$592,64) -> 0 | U21: =VLOOKUP('District Summary'!$A$3,'School Resource Matrices'!$B$545:$FD$592,65) -> 0 | V21: =VLOOKUP('District Summary'!$A$3,'School Resource Matrices'!$B$545:$FD$592,70) -> 0 | W21: =VLOOKUP('District Summary'!$A$3,'School Resource Matrices'!$B$545:$FD$592,75) -> 0 | X21: =VLOOKUP('District Summary'!$A$3,'School Resource Matrices'!$B$545:$FD$592,71) -> 0 | Y21: =VLOOKUP('District Summary'!$A$3,'School Resource Matrices'!$B$545:$FD$592,79) -> 0 | Z21: =VLOOKUP('District Summary'!$A$3,'School Resource Matrices'!$B$545:$FD$592,83) -> 0 | AA21: 0
A22: 13 | B22: =VLOOKUP('District Summary'!$A$3,'School Resource Matrices'!$B$594:$FD$641,4) -> 0 | C22: =VLOOKUP('District Summary'!$A$3,'School Resource Matrices'!$B$594:$FD$641,9) -> 0 | D22: =VLOOKUP('District Summary'!$A$3,'School Resource Matrices'!$B$594:$FD$641,5) -> 0 | E22: =VLOOKUP('District Summary'!$A$3,'School Resource Matrices'!$B$594:$FD$641,11) -> 0 | F22: =VLOOKUP('District Summary'!$A$3,'School Resource Matrices'!$B$594:$FD$641,10) -> 0 | G22: =VLOOKUP('District Summary'!$A$3,'School Resource Matrices'!$B$594:$FD$641,33) -> 0 | H22: =VLOOKUP('District Summary'!$A$3,'School Resource Matrices'!$B$594:$FD$641,38) -> 0 | I22: =VLOOKUP('District Summary'!$A$3,'School Resource Matrices'!$B$594:$FD$641,39) -> 0 | J22: =VLOOKUP('District Summary'!$A$3,'School Resource Matrices'!$B$594:$FD$641,40) -> 0 | K22: =VLOOKUP('District Summary'!$A$3,'School Resource Matrices'!$B$594:$FD$641,41) -> 0 | L22: =VLOOKUP('District Summary'!$A$3,'School Resource Matrices'!$B$594:$FD$641,42) -> 0 | M22: =VLOOKUP('District Summary'!$A$3,'School Resource Matrices'!$B$594:$FD$641,46) -> 0 | N22: =VLOOKUP('District Summary'!$A$3,'School Resource Matrices'!$B$594:$FD$641,51) -> 0 | O22: =VLOOKUP('District Summary'!$A$3,'School Resource Matrices'!$B$594:$FD$641,52) -> 0 | P22: =VLOOKUP('District Summary'!$A$3,'School Resource Matrices'!$B$594:$FD$641,53) -> 0 | Q22: =VLOOKUP('District Summary'!$A$3,'School Resource Matrices'!$B$594:$FD$641,57) -> 0 | R22: =VLOOKUP('District Summary'!$A$3,'School Resource Matrices'!$B$594:$FD$641,60) -> 0 | S22: =VLOOKUP('District Summary'!$A$3,'School Resource Matrices'!$B$594:$FD$641,63) -> 0 | T22: =VLOOKUP('District Summary'!$A$3,'School Resource Matrices'!$B$594:$FD$651,64) -> 0 | U22: =VLOOKUP('District Summary'!$A$3,'School Resource Matrices'!$B$594:$FD$641,65) -> 0 | V22: =VLOOKUP('District Summary'!$A$3,'School Resource Matrices'!$B$594:$FD$641,70) -> 0 | W22: =VLOOKUP('District Summary'!$A$3,'School Resource Matrices'!$B$594:$FD$641,75) -> 0 | X22: =VLOOKUP('District Summary'!$A$3,'School Resource Matrices'!$B$594:$FD$641,71) -> 0 | Y22: =VLOOKUP('District Summary'!$A$3,'School Resource Matrices'!$B$594:$FD$641,79) -> 0 | Z22: =VLOOKUP('District Summary'!$A$3,'School Resource Matrices'!$B$594:$FD$641,83) -> 0 | AA22: 0
A23: 14 | B23: =VLOOKUP('District Summary'!$A$3,'School Resource Matrices'!$B$643:$FD$690,4) -> 0 | C23: =VLOOKUP('District Summary'!$A$3,'School Resource Matrices'!$B$643:$FD$690,9) -> 0 | D23: =VLOOKUP('District Summary'!$A$3,'School Resource Matrices'!$B$643:$FD$690,5) -> 0 | E23: =VLOOKUP('District Summary'!$A$3,'School Resource Matrices'!$B$643:$FD$690,11) -> 0 | F23: =VLOOKUP('District Summary'!$A$3,'School Resource Matrices'!$B$643:$FD$690,10) -> 0 | G23: =VLOOKUP('District Summary'!$A$3,'School Resource Matrices'!$B$643:$FD$690,33) -> 0 | H23: =VLOOKUP('District Summary'!$A$3,'School Resource Matrices'!$B$643:$FD$690,38) -> 0 | I23: =VLOOKUP('District Summary'!$A$3,'School Resource Matrices'!$B$643:$FD$690,39) -> 0 | J23: =VLOOKUP('District Summary'!$A$3,'School Resource Matrices'!$B$643:$FD$690,40) -> 0 | K23: =VLOOKUP('District Summary'!$A$3,'School Resource Matrices'!$B$643:$FD$690,41) -> 0 | L23: =VLOOKUP('District Summary'!$A$3,'School Resource Matrices'!$B$643:$FD$690,42) -> 0 | M23: =VLOOKUP('District Summary'!$A$3,'School Resource Matrices'!$B$643:$FD$690,46) -> 0 | N23: =VLOOKUP('District Summary'!$A$3,'School Resource Matrices'!$B$643:$FD$690,51) -> 0 | O23: =VLOOKUP('District Summary'!$A$3,'School Resource Matrices'!$B$643:$FD$690,52) -> 0 | P23: =VLOOKUP('District Summary'!$A$3,'School Resource Matrices'!$B$643:$FD$690,53) -> 0 | Q23: =VLOOKUP('District Summary'!$A$3,'School Resource Matrices'!$B$643:$FD$690,57) -> 0 | R23: =VLOOKUP('District Summary'!$A$3,'School Resource Matrices'!$B$643:$FD$690,60) -> 0 | S23: =VLOOKUP('District Summary'!$A$3,'School Resource Matrices'!$B$643:$FD$690,63) -> 0 | T23: =VLOOKUP('District Summary'!$A$3,'School Resource Matrices'!$B$643:$FD$690,64) -> 0 | U23: =VLOOKUP('District Summary'!$A$3,'School Resource Matrices'!$B$643:$FD$690,65) -> 0 | V23: =VLOOKUP('District Summary'!$A$3,'School Resource Matrices'!$B$643:$FD$690,70) -> 0 | W23: =VLOOKUP('District Summary'!$A$3,'School Resource Matrices'!$B$643:$FD$690,75) -> 0 | X23: =VLOOKUP('District Summary'!$A$3,'School Resource Matrices'!$B$643:$FD$690,71) -> 0 | Y23: =VLOOKUP('District Summary'!$A$3,'School Resource Matrices'!$B$643:$FD$690,79) -> 0 | Z23: =VLOOKUP('District Summary'!$A$3,'School Resource Matrices'!$B$643:$FD$690,83) -> 0 | AA23: 0
A24: 15 | B24: =VLOOKUP('District Summary'!$A$3,'School Resource Matrices'!$B$692:$FD$739,4) -> 0 | C24: =VLOOKUP('District Summary'!$A$3,'School Resource Matrices'!$B$692:$FD$739,9) -> 0 | D24: =VLOOKUP('District Summary'!$A$3,'School Resource Matrices'!$B$692:$FD$739,5) -> 0 | E24: =VLOOKUP('District Summary'!$A$3,'School Resource Matrices'!$B$692:$FD$739,11) -> 0 | F24: =VLOOKUP('District Summary'!$A$3,'School Resource Matrices'!$B$692:$FD$739,10) -> 0 | G24: =VLOOKUP('District Summary'!$A$3,'School Resource Matrices'!$B$692:$FD$739,33) -> 0 | H24: =VLOOKUP('District Summary'!$A$3,'School Resource Matrices'!$B$692:$FD$739,38) -> 0 | I24: =VLOOKUP('District Summary'!$A$3,'School Resource Matrices'!$B$692:$FD$739,39) -> 0 | J24: =VLOOKUP('District Summary'!$A$3,'School Resource Matrices'!$B$692:$FD$739,40) -> 0 | K24: =VLOOKUP('District Summary'!$A$3,'School Resource Matrices'!$B$692:$FD$739,41) -> 0 | L24: =VLOOKUP('District Summary'!$A$3,'School Resource Matrices'!$B$692:$FD$739,42) -> 0 | M24: =VLOOKUP('District Summary'!$A$3,'School Resource Matrices'!$B$692:$FD$739,46) -> 0 | N24: =VLOOKUP('District Summary'!$A$3,'School Resource Matrices'!$B$692:$FD$739,51) -> 0 | O24: =VLOOKUP('District Summary'!$A$3,'School Resource Matrices'!$B$692:$FD$739,52) -> 0 | P24: =VLOOKUP('District Summary'!$A$3,'School Resource Matrices'!$B$692:$FD$739,53) -> 0 | Q24: =VLOOKUP('District Summary'!$A$3,'School Resource Matrices'!$B$692:$FD$739,57) -> 0 | R24: =VLOOKUP('District Summary'!$A$3,'School Resource Matrices'!$B$692:$FD$739,60) -> 0 | S24: =VLOOKUP('District Summary'!$A$3,'School Resource Matrices'!$B$692:$FD$739,63) -> 0 | T24: =VLOOKUP('District Summary'!$A$3,'School Resource Matrices'!$B$692:$FD$739,64) -> 0 | U24: =VLOOKUP('District Summary'!$A$3,'School Resource Matrices'!$B$692:$FD$739,65) -> 0 | V24: =VLOOKUP('District Summary'!$A$3,'School Resource Matrices'!$B$692:$FD$739,70) -> 0 | W24: =VLOOKUP('District Summary'!$A$3,'School Resource Matrices'!$B$692:$FD$739,75) -> 0 | X24: =VLOOKUP('District Summary'!$A$3,'School Resource Matrices'!$B$692:$FD$739,71) -> 0 | Y24: =VLOOKUP('District Summary'!$A$3,'School Resource Matrices'!$B$692:$FD$739,79) -> 0 | Z24: =VLOOKUP('District Summary'!$A$3,'School Resource Matrices'!$B$692:$FD$739,83) -> 0 | AA24: 0
A25: 16 | B25: =VLOOKUP('District Summary'!$A$3,'School Resource Matrices'!$B$741:$FD$788,4) -> 0 | C25: =VLOOKUP('District Summary'!$A$3,'School Resource Matrices'!$B$741:$FD$788,9) -> 0 | D25: =VLOOKUP('District Summary'!$A$3,'School Resource Matrices'!$B$741:$FD$788,5) -> 0 | E25: =VLOOKUP('District Summary'!$A$3,'School Resource Matrices'!$B$741:$FD$788,11) -> 0 | F25: =VLOOKUP('District Summary'!$A$3,'School Resource Matrices'!$B$741:$FD$788,10) -> 0 | G25: =VLOOKUP('District Summary'!$A$3,'School Resource Matrices'!$B$741:$FD$788,33) -> 0 | H25: =VLOOKUP('District Summary'!$A$3,'School Resource Matrices'!$B$741:$FD$788,38) -> 0 | I25: =VLOOKUP('District Summary'!$A$3,'School Resource Matrices'!$B$741:$FD$788,39) -> 0 | J25: =VLOOKUP('District Summary'!$A$3,'School Resource Matrices'!$B$741:$FD$788,40) -> 0 | K25: =VLOOKUP('District Summary'!$A$3,'School Resource Matrices'!$B$741:$FD$788,41) -> 0 | L25: =VLOOKUP('District Summary'!$A$3,'School Resource Matrices'!$B$741:$FD$788,42) -> 0 | M25: =VLOOKUP('District Summary'!$A$3,'School Resource Matrices'!$B$741:$FD$788,46) -> 0 | N25: =VLOOKUP('District Summary'!$A$3,'School Resource Matrices'!$B$741:$FD$788,51) -> 0 | O25: =VLOOKUP('District Summary'!$A$3,'School Resource Matrices'!$B$741:$FD$788,52) -> 0 | P25: =VLOOKUP('District Summary'!$A$3,'School Resource Matrices'!$B$741:$FD$788,53) -> 0 | Q25: =VLOOKUP('District Summary'!$A$3,'School Resource Matrices'!$B$741:$FD$788,57) -> 0 | R25: =VLOOKUP('District Summary'!$A$3,'School Resource Matrices'!$B$741:$FD$788,60) -> 0 | S25: =VLOOKUP('District Summary'!$A$3,'School Resource Matrices'!$B$741:$FD$788,63) -> 0 | T25: =VLOOKUP('District Summary'!$A$3,'School Resource Matrices'!$B$741:$FD$788,64) -> 0 | U25: =VLOOKUP('District Summary'!$A$3,'School Resource Matrices'!$B$741:$FD$788,65) -> 0 | V25: =VLOOKUP('District Summary'!$A$3,'School Resource Matrices'!$B$741:$FD$788,70) -> 0 | W25: =VLOOKUP('District Summary'!$A$3,'School Resource Matrices'!$B$741:$FD$788,75) -> 0 | X25: =VLOOKUP('District Summary'!$A$3,'School Resource Matrices'!$B$741:$FD$788,71) -> 0 | Y25: =VLOOKUP('District Summary'!$A$3,'School Resource Matrices'!$B$741:$FD$788,79) -> 0 | Z25: =VLOOKUP('District Summary'!$A$3,'School Resource Matrices'!$B$741:$FD$788,83) -> 0 | AA25: 0
A26: 17 | B26: =VLOOKUP('District Summary'!$A$3,'School Resource Matrices'!$B$790:$FD$837,4) -> 0 | C26: =VLOOKUP('District Summary'!$A$3,'School Resource Matrices'!$B$790:$FD$837,9) -> 0 | D26: =VLOOKUP('District Summary'!$A$3,'School Resource Matrices'!$B$790:$FD$837,5) -> 0 | E26: =VLOOKUP('District Summary'!$A$3,'School Resource Matrices'!$B$790:$FD$837,11) -> 0 | F26: =VLOOKUP('District Summary'!$A$3,'School Resource Matrices'!$B$790:$FD$837,10) -> 0 | G26: =VLOOKUP('District Summary'!$A$3,'School Resource Matrices'!$B$790:$FD$837,33) -> 0 | H26: =VLOOKUP('District Summary'!$A$3,'School Resource Matrices'!$B$790:$FD$837,38) -> 0 | I26: =VLOOKUP('District Summary'!$A$3,'School Resource Matrices'!$B$790:$FD$837,39) -> 0 | J26: =VLOOKUP('District Summary'!$A$3,'School Resource Matrices'!$B$790:$FD$837,40) -> 0 | K26: =VLOOKUP('District Summary'!$A$3,'School Resource Matrices'!$B$790:$FD$837,41) -> 0 | L26: =VLOOKUP('District Summary'!$A$3,'School Resource Matrices'!$B$790:$FD$837,42) -> 0 | M26: =VLOOKUP('District Summary'!$A$3,'School Resource Matrices'!$B$790:$FD$837,46) -> 0 | N26: =VLOOKUP('District Summary'!$A$3,'School Resource Matrices'!$B$790:$FD$837,51) -> 0 | O26: =VLOOKUP('District Summary'!$A$3,'School Resource Matrices'!$B$790:$FD$837,52) -> 0 | P26: =VLOOKUP('District Summary'!$A$3,'School Resource Matrices'!$B$790:$FD$837,53) -> 0 | Q26: =VLOOKUP('District Summary'!$A$3,'School Resource Matrices'!$B$790:$FD$837,57) -> 0 | R26: =VLOOKUP('District Summary'!$A$3,'School Resource Matrices'!$B$790:$FD$837,60) -> 0 | S26: =VLOOKUP('District Summary'!$A$3,'School Resource Matrices'!$B$790:$FD$837,63) -> 0 | T26: =VLOOKUP('District Summary'!$A$3,'School Resource Matrices'!$B$790:$FD$837,64) -> 0 | U26: =VLOOKUP('District Summary'!$A$3,'School Resource Matrices'!$B$790:$FD$837,65) -> 0 | V26: =VLOOKUP('District Summary'!$A$3,'School Resource Matrices'!$B$790:$FD$837,70) -> 0 | W26: =VLOOKUP('District Summary'!$A$3,'School Resource Matrices'!$B$790:$FD$837,75) -> 0 | X26: =VLOOKUP('District Summary'!$A$3,'School Resource Matrices'!$B$790:$FD$837,71) -> 0 | Y26: =VLOOKUP('District Summary'!$A$3,'School Resource Matrices'!$B$790:$FD$837,79) -> 0 | Z26: =VLOOKUP('District Summary'!$A$3,'School Resource Matrices'!$B$790:$FD$847,83) -> 0 | AA26: 0
A27: 18 | B27: =VLOOKUP('District Summary'!$A$3,'School Resource Matrices'!$B$839:$FD$886,4) -> 0 | C27: =VLOOKUP('District Summary'!$A$3,'School Resource Matrices'!$B$839:$FD$886,9) -> 0 | D27: =VLOOKUP('District Summary'!$A$3,'School Resource Matrices'!$B$839:$FD$886,5) -> 0 | E27: =VLOOKUP('District Summary'!$A$3,'School Resource Matrices'!$B$839:$FD$886,11) -> 0 | F27: =VLOOKUP('District Summary'!$A$3,'School Resource Matrices'!$B$839:$FD$886,10) -> 0 | G27: =VLOOKUP('District Summary'!$A$3,'School Resource Matrices'!$B$839:$FD$886,33) -> 0 | H27: =VLOOKUP('District Summary'!$A$3,'School Resource Matrices'!$B$839:$FD$886,38) -> 0 | I27: =VLOOKUP('District Summary'!$A$3,'School Resource Matrices'!$B$839:$FD$886,39) -> 0 | J27: =VLOOKUP('District Summary'!$A$3,'School Resource Matrices'!$B$839:$FD$886,40) -> 0 | K27: =VLOOKUP('District Summary'!$A$3,'School Resource Matrices'!$B$839:$FD$886,41) -> 0 | L27: =VLOOKUP('District Summary'!$A$3,'School Resource Matrices'!$B$839:$FD$886,42) -> 0 | M27: =VLOOKUP('District Summary'!$A$3,'School Resource Matrices'!$B$839:$FD$886,46) -> 0 | N27: =VLOOKUP('District Summary'!$A$3,'School Resource Matrices'!$B$839:$FD$886,51) -> 0 | O27: =VLOOKUP('District Summary'!$A$3,'School Resource Matrices'!$B$839:$FD$886,52) -> 0 | P27: =VLOOKUP('District Summary'!$A$3,'School Resource Matrices'!$B$839:$FD$886,53) -> 0 | Q27: =VLOOKUP('District Summary'!$A$3,'School Resource Matrices'!$B$839:$FD$886,57) -> 0 | R27: =VLOOKUP('District Summary'!$A$3,'School Resource Matrices'!$B$839:$FD$886,60) -> 0 | S27: =VLOOKUP('District Summary'!$A$3,'School Resource Matrices'!$B$839:$FD$886,63) -> 0 | T27: =VLOOKUP('District Summary'!$A$3,'School Resource Matrices'!$B$839:$FD$886,64) -> 0 | U27: =VLOOKUP('District Summary'!$A$3,'School Resource Matrices'!$B$839:$FD$886,65) -> 0 | V27: =VLOOKUP('District Summary'!$A$3,'School Resource Matrices'!$B$839:$FD$886,70) -> 0 | W27: =VLOOKUP('District Summary'!$A$3,'School Resource Matrices'!$B$839:$FD$886,75) -> 0 | X27: =VLOOKUP('District Summary'!$A$3,'School Resource Matrices'!$B$839:$FD$886,71) -> 0 | Y27: =VLOOKUP('District Summary'!$A$3,'School Resource Matrices'!$B$839:$FD$886,79) -> 0 | Z27: =VLOOKUP('District Summary'!$A$3,'School Resource Matrices'!$B$839:$FD$886,83) -> 0 | AA27: 0
A28: 19 | B28: =VLOOKUP('District Summary'!$A$3,'School Resource Matrices'!$B$888:$FD$935,4) -> 0 | C28: =VLOOKUP('District Summary'!$A$3,'School Resource Matrices'!$B$888:$FD$935,9) -> 0 | D28: =VLOOKUP('District Summary'!$A$3,'School Resource Matrices'!$B$888:$FD$935,5) -> 0 | E28: =VLOOKUP('District Summary'!$A$3,'School Resource Matrices'!$B$888:$FD$935,11) -> 0 | F28: =VLOOKUP('District Summary'!$A$3,'School Resource Matrices'!$B$888:$FD$935,10) -> 0 | G28: =VLOOKUP('District Summary'!$A$3,'School Resource Matrices'!$B$888:$FD$935,33) -> 0 | H28: =VLOOKUP('District Summary'!$A$3,'School Resource Matrices'!$B$888:$FD$935,38) -> 0 | I28: =VLOOKUP('District Summary'!$A$3,'School Resource Matrices'!$B$888:$FD$935,39) -> 0 | J28: =VLOOKUP('District Summary'!$A$3,'School Resource Matrices'!$B$888:$FD$935,40) -> 0 | K28: =VLOOKUP('District Summary'!$A$3,'School Resource Matrices'!$B$888:$FD$935,41) -> 0 | L28: =VLOOKUP('District Summary'!$A$3,'School Resource Matrices'!$B$888:$FD$935,42) -> 0 | M28: =VLOOKUP('District Summary'!$A$3,'School Resource Matrices'!$B$888:$FD$935,46) -> 0 | N28: =VLOOKUP('District Summary'!$A$3,'School Resource Matrices'!$B$888:$FD$935,51) -> 0 | O28: =VLOOKUP('District Summary'!$A$3,'School Resource Matrices'!$B$888:$FD$935,52) -> 0 | P28: =VLOOKUP('District Summary'!$A$3,'School Resource Matrices'!$B$888:$FD$935,53) -> 0 | Q28: =VLOOKUP('District Summary'!$A$3,'School Resource Matrices'!$B$888:$FD$935,57) -> 0 | R28: =VLOOKUP('District Summary'!$A$3,'School Resource Matrices'!$B$888:$FD$935,60) -> 0 | S28: =VLOOKUP('District Summary'!$A$3,'School Resource Matrices'!$B$888:$FD$935,63) -> 0 | T28: =VLOOKUP('District Summary'!$A$3,'School Resource Matrices'!$B$888:$FD$935,64) -> 0 | U28: =VLOOKUP('District Summary'!$A$3,'School Resource Matrices'!$B$888:$FD$935,65) -> 0 | V28: =VLOOKUP('District Summary'!$A$3,'School Resource Matrices'!$B$888:$FD$935,70) -> 0 | W28: =VLOOKUP('District Summary'!$A$3,'School Resource Matrices'!$B$888:$FD$935,75) -> 0 | X28: =VLOOKUP('District Summary'!$A$3,'School Resource Matrices'!$B$888:$FD$935,71) -> 0 | Y28: =VLOOKUP('District Summary'!$A$3,'School Resource Matrices'!$B$888:$FD$935,79) -> 0 | Z28: =VLOOKUP('District Summary'!$A$3,'School Resource Matrices'!$B$888:$FD$935,83) -> 0 | AA28: 0
A29: 20 | B29: =VLOOKUP('District Summary'!$A$3,'School Resource Matrices'!$B$937:$FD$984,4) -> 0 | C29: =VLOOKUP('District Summary'!$A$3,'School Resource Matrices'!$B$937:$FD$984,9) -> 0 | D29: =VLOOKUP('District Summary'!$A$3,'School Resource Matrices'!$B$937:$FD$984,5) -> 0 | E29: =VLOOKUP('District Summary'!$A$3,'School Resource Matrices'!$B$937:$FD$984,11) -> 0 | F29: =VLOOKUP('District Summary'!$A$3,'School Resource Matrices'!$B$937:$FD$984,10) -> 0 | G29: =VLOOKUP('District Summary'!$A$3,'School Resource Matrices'!$B$937:$FD$984,33) -> 0 | H29: =VLOOKUP('District Summary'!$A$3,'School Resource Matrices'!$B$937:$FD$984,38) -> 0 | I29: =VLOOKUP('District Summary'!$A$3,'School Resource Matrices'!$B$937:$FD$984,39) -> 0 | J29: =VLOOKUP('District Summary'!$A$3,'School Resource Matrices'!$B$937:$FD$984,40) -> 0 | K29: =VLOOKUP('District Summary'!$A$3,'School Resource Matrices'!$B$937:$FD$984,41) -> 0 | L29: =VLOOKUP('District Summary'!$A$3,'School Resource Matrices'!$B$937:$FD$984,42) -> 0 | M29: =VLOOKUP('District Summary'!$A$3,'School Resource Matrices'!$B$937:$FD$984,46) -> 0 | N29: =VLOOKUP('District Summary'!$A$3,'School Resource Matrices'!$B$937:$FD$984,51) -> 0 | O29: =VLOOKUP('District Summary'!$A$3,'School Resource Matrices'!$B$937:$FD$984,52) -> 0 | P29: =VLOOKUP('District Summary'!$A$3,'School Resource Matrices'!$B$937:$FD$984,53) -> 0 | Q29: =VLOOKUP('District Summary'!$A$3,'School Resource Matrices'!$B$937:$FD$984,57) -> 0 | R29: =VLOOKUP('District Summary'!$A$3,'School Resource Matrices'!$B$937:$FD$984,60) -> 0 | S29: =VLOOKUP('District Summary'!$A$3,'School Resource Matrices'!$B$937:$FD$984,63) -> 0 | T29: =VLOOKUP('District Summary'!$A$3,'School Resource Matrices'!$B$937:$FD$984,64) -> 0 | U29: =VLOOKUP('District Summary'!$A$3,'School Resource Matrices'!$B$937:$FD$984,65) -> 0 | V29: =VLOOKUP('District Summary'!$A$3,'School Resource Matrices'!$B$937:$FD$984,70) -> 0 | W29: =VLOOKUP('District Summary'!$A$3,'School Resource Matrices'!$B$937:$FD$984,75) -> 0 | X29: =VLOOKUP('District Summary'!$A$3,'School Resource Matrices'!$B$937:$FD$984,71) -> 0 | Y29: =VLOOKUP('District Summary'!$A$3,'School Resource Matrices'!$B$937:$FD$984,79) -> 0 | Z29: =VLOOKUP('District Summary'!$A$3,'School Resource Matrices'!$B$937:$FD$984,83) -> 0 | AA29: 0
A30: 21 | B30: =VLOOKUP('District Summary'!$A$3,'School Resource Matrices'!$B$986:$FD$1033,4) -> 0 | C30: =VLOOKUP('District Summary'!$A$3,'School Resource Matrices'!$B$986:$FD$1033,9) -> 0 | D30: =VLOOKUP('District Summary'!$A$3,'School Resource Matrices'!$B$986:$FD$1033,5) -> 0 | E30: =VLOOKUP('District Summary'!$A$3,'School Resource Matrices'!$B$986:$FD$1033,11) -> 0 | F30: =VLOOKUP('District Summary'!$A$3,'School Resource Matrices'!$B$986:$FD$1033,10) -> 0 | G30: =VLOOKUP('District Summary'!$A$3,'School Resource Matrices'!$B$986:$FD$1033,33) -> 0 | H30: =VLOOKUP('District Summary'!$A$3,'School Resource Matrices'!$B$986:$FD$1033,38) -> 0 | I30: =VLOOKUP('District Summary'!$A$3,'School Resource Matrices'!$B$986:$FD$1033,39) -> 0 | J30: =VLOOKUP('District Summary'!$A$3,'School Resource Matrices'!$B$986:$FD$1033,40) -> 0 | K30: =VLOOKUP('District Summary'!$A$3,'School Resource Matrices'!$B$986:$FD$1033,41) -> 0 | L30: =VLOOKUP('District Summary'!$A$3,'School Resource Matrices'!$B$986:$FD$1033,42) -> 0 | M30: =VLOOKUP('District Summary'!$A$3,'School Resource Matrices'!$B$986:$FD$1033,46) -> 0 | N30: =VLOOKUP('District Summary'!$A$3,'School Resource Matrices'!$B$986:$FD$1033,51) -> 0 | O30: =VLOOKUP('District Summary'!$A$3,'School Resource Matrices'!$B$986:$FD$1033,52) -> 0 | P30: =VLOOKUP('District Summary'!$A$3,'School Resource Matrices'!$B$986:$FD$1033,53) -> 0 | Q30: =VLOOKUP('District Summary'!$A$3,'School Resource Matrices'!$B$986:$FD$1033,57) -> 0 | R30: =VLOOKUP('District Summary'!$A$3,'School Resource Matrices'!$B$986:$FD$1033,60) -> 0 | S30: =VLOOKUP('District Summary'!$A$3,'School Resource Matrices'!$B$986:$FD$1033,63) -> 0 | T30: =VLOOKUP('District Summary'!$A$3,'School Resource Matrices'!$B$986:$FD$1033,64) -> 0 | U30: =VLOOKUP('District Summary'!$A$3,'School Resource Matrices'!$B$986:$FD$1033,65) -> 0 | V30: =VLOOKUP('District Summary'!$A$3,'School Resource Matrices'!$B$986:$FD$1033,70) -> 0 | W30: =VLOOKUP('District Summary'!$A$3,'School Resource Matrices'!$B$986:$FD$1033,75) -> 0 | X30: =VLOOKUP('District Summary'!$A$3,'School Resource Matrices'!$B$986:$FD$1033,71) -> 0 | Y30: =VLOOKUP('District Summary'!$A$3,'School Resource Matrices'!$B$986:$FD$1033,79) -> 0 | Z30: =VLOOKUP('District Summary'!$A$3,'School Resource Matrices'!$B$986:$FD$1033,83) -> 0 | AA30: 0
A31: 22 | B31: =VLOOKUP('District Summary'!$A$3,'School Resource Matrices'!$B$1035:$FD$1082,4) -> 0 | C31: =VLOOKUP('District Summary'!$A$3,'School Resource Matrices'!$B$1035:$FD$1082,9) -> 0 | D31: =VLOOKUP('District Summary'!$A$3,'School Resource Matrices'!$B$1035:$FD$1082,5) -> 0 | E31: =VLOOKUP('District Summary'!$A$3,'School Resource Matrices'!$B$1035:$FD$1082,11) -> 0 | F31: =VLOOKUP('District Summary'!$A$3,'School Resource Matrices'!$B$1035:$FD$1082,10) -> 0 | G31: =VLOOKUP('District Summary'!$A$3,'School Resource Matrices'!$B$1035:$FD$1082,33) -> 0 | H31: =VLOOKUP('District Summary'!$A$3,'School Resource Matrices'!$B$1035:$FD$1082,38) -> 0 | I31: =VLOOKUP('District Summary'!$A$3,'School Resource Matrices'!$B$1035:$FD$1082,39) -> 0 | J31: =VLOOKUP('District Summary'!$A$3,'School Resource Matrices'!$B$1035:$FD$1082,40) -> 0 | K31: =VLOOKUP('District Summary'!$A$3,'School Resource Matrices'!$B$1035:$FD$1082,41) -> 0 | L31: =VLOOKUP('District Summary'!$A$3,'School Resource Matrices'!$B$1035:$FD$1082,42) -> 0 | M31: =VLOOKUP('District Summary'!$A$3,'School Resource Matrices'!$B$1035:$FD$1082,46) -> 0 | N31: =VLOOKUP('District Summary'!$A$3,'School Resource Matrices'!$B$1035:$FD$1082,51) -> 0 | O31: =VLOOKUP('District Summary'!$A$3,'School Resource Matrices'!$B$1035:$FD$1082,52) -> 0 | P31: =VLOOKUP('District Summary'!$A$3,'School Resource Matrices'!$B$1035:$FD$1082,53) -> 0 | Q31: =VLOOKUP('District Summary'!$A$3,'School Resource Matrices'!$B$1035:$FD$1082,57) -> 0 | R31: =VLOOKUP('District Summary'!$A$3,'School Resource Matrices'!$B$1035:$FD$1082,60) -> 0 | S31: =VLOOKUP('District Summary'!$A$3,'School Resource Matrices'!$B$1035:$FD$1082,63) -> 0 | T31: =VLOOKUP('District Summary'!$A$3,'School Resource Matrices'!$B$1035:$FD$1082,64) -> 0 | U31: =VLOOKUP('District Summary'!$A$3,'School Resource Matrices'!$B$1035:$FD$1082,65) -> 0 | V31: =VLOOKUP('District Summary'!$A$3,'School Resource Matrices'!$B$1035:$FD$1082,70) -> 0 | W31: =VLOOKUP('District Summary'!$A$3,'School Resource Matrices'!$B$1035:$FD$1082,75) -> 0 | X31: =VLOOKUP('District Summary'!$A$3,'School Resource Matrices'!$B$1035:$FD$1082,71) -> 0 | Y31: =VLOOKUP('District Summary'!$A$3,'School Resource Matrices'!$B$1035:$FD$1082,79) -> 0 | Z31: =VLOOKUP('District Summary'!$A$3,'School Resource Matrices'!$B$1035:$FD$1082,83) -> 0 | AA31: 0
A32: 23 | B32: =VLOOKUP('District Summary'!$A$3,'School Resource Matrices'!$B$1084:$FD$1131,4) -> 0 | C32: =VLOOKUP('District Summary'!$A$3,'School Resource Matrices'!$B$1084:$FD$1131,9) -> 0 | D32: =VLOOKUP('District Summary'!$A$3,'School Resource Matrices'!$B$1084:$FD$1131,5) -> 0 | E32: =VLOOKUP('District Summary'!$A$3,'School Resource Matrices'!$B$1084:$FD$1131,11) -> 0 | F32: =VLOOKUP('District Summary'!$A$3,'School Resource Matrices'!$B$1084:$FD$1131,10) -> 0 | G32: =VLOOKUP('District Summary'!$A$3,'School Resource Matrices'!$B$1084:$FD$1131,33) -> 0 | H32: =VLOOKUP('District Summary'!$A$3,'School Resource Matrices'!$B$1084:$FD$1131,38) -> 0 | I32: =VLOOKUP('District Summary'!$A$3,'School Resource Matrices'!$B$1084:$FD$1131,39) -> 0 | J32: =VLOOKUP('District Summary'!$A$3,'School Resource Matrices'!$B$1084:$FD$1131,40) -> 0 | K32: =VLOOKUP('District Summary'!$A$3,'School Resource Matrices'!$B$1084:$FD$1131,41) -> 0 | L32: =VLOOKUP('District Summary'!$A$3,'School Resource Matrices'!$B$1084:$FD$1131,42) -> 0 | M32: =VLOOKUP('District Summary'!$A$3,'School Resource Matrices'!$B$1084:$FD$1131,46) -> 0 | N32: =VLOOKUP('District Summary'!$A$3,'School Resource Matrices'!$B$1084:$FD$1131,51) -> 0 | O32: =VLOOKUP('District Summary'!$A$3,'School Resource Matrices'!$B$1084:$FD$1131,52) -> 0 | P32: =VLOOKUP('District Summary'!$A$3,'School Resource Matrices'!$B$1084:$FD$1131,53) -> 0 | Q32: =VLOOKUP('District Summary'!$A$3,'School Resource Matrices'!$B$1084:$FD$1131,57) -> 0 | R32: =VLOOKUP('District Summary'!$A$3,'School Resource Matrices'!$B$1084:$FD$1131,60) -> 0 | S32: =VLOOKUP('District Summary'!$A$3,'School Resource Matrices'!$B$1084:$FD$1131,63) -> 0 | T32: =VLOOKUP('District Summary'!$A$3,'School Resource Matrices'!$B$1084:$FD$1131,64) -> 0 | U32: =VLOOKUP('District Summary'!$A$3,'School Resource Matrices'!$B$1084:$FD$1131,65) -> 0 | V32: =VLOOKUP('District Summary'!$A$3,'School Resource Matrices'!$B$1084:$FD$1131,70) -> 0 | W32: =VLOOKUP('District Summary'!$A$3,'School Resource Matrices'!$B$1084:$FD$1131,75) -> 0 | X32: =VLOOKUP('District Summary'!$A$3,'School Resource Matrices'!$B$1084:$FD$1131,71) -> 0 | Y32: =VLOOKUP('District Summary'!$A$3,'School Resource Matrices'!$B$1084:$FD$1131,79) -> 0 | Z32: =VLOOKUP('District Summary'!$A$3,'School Resource Matrices'!$B$1084:$FD$1131,83) -> 0 | AA32: 0
A33: 24 | B33: =VLOOKUP('District Summary'!$A$3,'School Resource Matrices'!$B$1133:$FD$1180,4) -> 0 | C33: =VLOOKUP('District Summary'!$A$3,'School Resource Matrices'!$B$1133:$FD$1180,9) -> 0 | D33: =VLOOKUP('District Summary'!$A$3,'School Resource Matrices'!$B$1133:$FD$1180,5) -> 0 | E33: =VLOOKUP('District Summary'!$A$3,'School Resource Matrices'!$B$1133:$FD$1180,11) -> 0 | F33: =VLOOKUP('District Summary'!$A$3,'School Resource Matrices'!$B$1133:$FD$1180,10) -> 0 | G33: =VLOOKUP('District Summary'!$A$3,'School Resource Matrices'!$B$1133:$FD$1180,33) -> 0 | H33: =VLOOKUP('District Summary'!$A$3,'School Resource Matrices'!$B$1133:$FD$1180,38) -> 0 | I33: =VLOOKUP('District Summary'!$A$3,'School Resource Matrices'!$B$1133:$FD$1180,39) -> 0 | J33: =VLOOKUP('District Summary'!$A$3,'School Resource Matrices'!$B$1133:$FD$1180,40) -> 0 | K33: =VLOOKUP('District Summary'!$A$3,'School Resource Matrices'!$B$1133:$FD$1180,41) -> 0 | L33: =VLOOKUP('District Summary'!$A$3,'School Resource Matrices'!$B$1133:$FD$1180,42) -> 0 | M33: =VLOOKUP('District Summary'!$A$3,'School Resource Matrices'!$B$1133:$FD$1180,46) -> 0 | N33: =VLOOKUP('District Summary'!$A$3,'School Resource Matrices'!$B$1133:$FD$1180,51) -> 0 | O33: =VLOOKUP('District Summary'!$A$3,'School Resource Matrices'!$B$1133:$FD$1180,52) -> 0 | P33: =VLOOKUP('District Summary'!$A$3,'School Resource Matrices'!$B$1133:$FD$1180,53) -> 0 | Q33: =VLOOKUP('District Summary'!$A$3,'School Resource Matrices'!$B$1133:$FD$1180,57) -> 0 | R33: =VLOOKUP('District Summary'!$A$3,'School Resource Matrices'!$B$1133:$FD$1180,60) -> 0 | S33: =VLOOKUP('District Summary'!$A$3,'School Resource Matrices'!$B$1133:$FD$1180,63) -> 0 | T33: =VLOOKUP('District Summary'!$A$3,'School Resource Matrices'!$B$1133:$FD$1180,64) -> 0 | U33: =VLOOKUP('District Summary'!$A$3,'School Resource Matrices'!$B$1133:$FD$1180,65) -> 0 | V33: =VLOOKUP('District Summary'!$A$3,'School Resource Matrices'!$B$1133:$FD$1180,70) -> 0 | W33: =VLOOKUP('District Summary'!$A$3,'School Resource Matrices'!$B$1133:$FD$1180,75) -> 0 | X33: =VLOOKUP('District Summary'!$A$3,'School Resource Matrices'!$B$1133:$FD$1180,71) -> 0 | Y33: =VLOOKUP('District Summary'!$A$3,'School Resource Matrices'!$B$1133:$FD$1180,79) -> 0 | Z33: =VLOOKUP('District Summary'!$A$3,'School Resource Matrices'!$B$1133:$FD$1180,83) -> 0 | AA33: 0
A34: 25 | B34: =VLOOKUP('District Summary'!$A$3,'School Resource Matrices'!$B$1182:$FD$1229,4) -> 0 | C34: =VLOOKUP('District Summary'!$A$3,'School Resource Matrices'!$B$1182:$FD$1229,9) -> 0 | D34: =VLOOKUP('District Summary'!$A$3,'School Resource Matrices'!$B$1182:$FD$1229,5) -> 0 | E34: =VLOOKUP('District Summary'!$A$3,'School Resource Matrices'!$B$1182:$FD$1229,11) -> 0 | F34: =VLOOKUP('District Summary'!$A$3,'School Resource Matrices'!$B$1182:$FD$1229,10) -> 0 | G34: =VLOOKUP('District Summary'!$A$3,'School Resource Matrices'!$B$1182:$FD$1229,33) -> 0 | H34: =VLOOKUP('District Summary'!$A$3,'School Resource Matrices'!$B$1182:$FD$1229,38) -> 0 | I34: =VLOOKUP('District Summary'!$A$3,'School Resource Matrices'!$B$1182:$FD$1229,39) -> 0 | J34: =VLOOKUP('District Summary'!$A$3,'School Resource Matrices'!$B$1182:$FD$1229,40) -> 0 | K34: =VLOOKUP('District Summary'!$A$3,'School Resource Matrices'!$B$1182:$FD$1229,41) -> 0 | L34: =VLOOKUP('District Summary'!$A$3,'School Resource Matrices'!$B$1182:$FD$1229,42) -> 0 | M34: =VLOOKUP('District Summary'!$A$3,'School Resource Matrices'!$B$1182:$FD$1229,46) -> 0 | N34: =VLOOKUP('District Summary'!$A$3,'School Resource Matrices'!$B$1182:$FD$1229,51) -> 0 | O34: =VLOOKUP('District Summary'!$A$3,'School Resource Matrices'!$B$1182:$FD$1229,52) -> 0 | P34: =VLOOKUP('District Summary'!$A$3,'School Resource Matrices'!$B$1182:$FD$1229,53) -> 0 | Q34: =VLOOKUP('District Summary'!$A$3,'School Resource Matrices'!$B$1182:$FD$1229,57) -> 0 | R34: =VLOOKUP('District Summary'!$A$3,'School Resource Matrices'!$B$1182:$FD$1229,60) -> 0 | S34: =VLOOKUP('District Summary'!$A$3,'School Resource Matrices'!$B$1182:$FD$1229,63) -> 0 | T34: =VLOOKUP('District Summary'!$A$3,'School Resource Matrices'!$B$1182:$FD$1229,64) -> 0 | U34: =VLOOKUP('District Summary'!$A$3,'School Resource Matrices'!$B$1182:$FD$1229,65) -> 0 | V34: =VLOOKUP('District Summary'!$A$3,'School Resource Matrices'!$B$1182:$FD$1229,70) -> 0 | W34: =VLOOKUP('District Summary'!$A$3,'School Resource Matrices'!$B$1182:$FD$1229,75) -> 0 | X34: =VLOOKUP('District Summary'!$A$3,'School Resource Matrices'!$B$1182:$FD$1229,71) -> 0 | Y34: =VLOOKUP('District Summary'!$A$3,'School Resource Matrices'!$B$1182:$FD$1229,79) -> 0 | Z34: =VLOOKUP('District Summary'!$A$3,'School Resource Matrices'!$B$1182:$FD$1229,83) -> 0 | AA34: 0
A35: 26 | B35: =VLOOKUP('District Summary'!$A$3,'School Resource Matrices'!$B$1231:$FD$1278,4) -> 0 | C35: =VLOOKUP('District Summary'!$A$3,'School Resource Matrices'!$B$1231:$FD$1278,9) -> 0 | D35: =VLOOKUP('District Summary'!$A$3,'School Resource Matrices'!$B$1231:$FD$1278,5) -> 0 | E35: =VLOOKUP('District Summary'!$A$3,'School Resource Matrices'!$B$1231:$FD$1278,11) -> 0 | F35: =VLOOKUP('District Summary'!$A$3,'School Resource Matrices'!$B$1231:$FD$1278,10) -> 0 | G35: =VLOOKUP('District Summary'!$A$3,'School Resource Matrices'!$B$1231:$FD$1278,33) -> 0 | H35: =VLOOKUP('District Summary'!$A$3,'School Resource Matrices'!$B$1231:$FD$1278,38) -> 0 | I35: =VLOOKUP('District Summary'!$A$3,'School Resource Matrices'!$B$1231:$FD$1278,39) -> 0 | J35: =VLOOKUP('District Summary'!$A$3,'School Resource Matrices'!$B$1231:$FD$1278,40) -> 0 | K35: =VLOOKUP('District Summary'!$A$3,'School Resource Matrices'!$B$1231:$FD$1278,41) -> 0 | L35: =VLOOKUP('District Summary'!$A$3,'School Resource Matrices'!$B$1231:$FD$1278,42) -> 0 | M35: =VLOOKUP('District Summary'!$A$3,'School Resource Matrices'!$B$1231:$FD$1278,46) -> 0 | N35: =VLOOKUP('District Summary'!$A$3,'School Resource Matrices'!$B$1231:$FD$1278,51) -> 0 | O35: =VLOOKUP('District Summary'!$A$3,'School Resource Matrices'!$B$1231:$FD$1278,52) -> 0 | P35: =VLOOKUP('District Summary'!$A$3,'School Resource Matrices'!$B$1231:$FD$1278,53) -> 0 | Q35: =VLOOKUP('District Summary'!$A$3,'School Resource Matrices'!$B$1231:$FD$1278,57) -> 0 | R35: =VLOOKUP('District Summary'!$A$3,'School Resource Matrices'!$B$1231:$FD$1278,60) -> 0 | S35: =VLOOKUP('District Summary'!$A$3,'School Resource Matrices'!$B$1231:$FD$1278,63) -> 0 | T35: =VLOOKUP('District Summary'!$A$3,'School Resource Matrices'!$B$1231:$FD$1278,64) -> 0 | U35: =VLOOKUP('District Summary'!$A$3,'School Resource Matrices'!$B$1231:$FD$1278,65) -> 0 | V35: =VLOOKUP('District Summary'!$A$3,'School Resource Matrices'!$B$1231:$FD$1278,70) -> 0 | W35: =VLOOKUP('District Summary'!$A$3,'School Resource Matrices'!$B$1231:$FD$1278,75) -> 0 | X35: =VLOOKUP('District Summary'!$A$3,'School Resource Matrices'!$B$1231:$FD$1278,71) -> 0 | Y35: =VLOOKUP('District Summary'!$A$3,'School Resource Matrices'!$B$1231:$FD$1278,79) -> 0 | Z35: =VLOOKUP('District Summary'!$A$3,'School Resource Matrices'!$B$1231:$FD$1278,83) -> 0 | AA35: 0
A36: 27 | B36: =VLOOKUP('District Summary'!$A$3,'School Resource Matrices'!$B$1280:$FD$1327,4) -> 0 | C36: =VLOOKUP('District Summary'!$A$3,'School Resource Matrices'!$B$1280:$FD$1327,9) -> 0 | D36: =VLOOKUP('District Summary'!$A$3,'School Resource Matrices'!$B$1280:$FD$1327,5) -> 0 | E36: =VLOOKUP('District Summary'!$A$3,'School Resource Matrices'!$B$1280:$FD$1327,11) -> 0 | F36: =VLOOKUP('District Summary'!$A$3,'School Resource Matrices'!$B$1280:$FD$1327,10) -> 0 | G36: =VLOOKUP('District Summary'!$A$3,'School Resource Matrices'!$B$1280:$FD$1327,33) -> 0 | H36: =VLOOKUP('District Summary'!$A$3,'School Resource Matrices'!$B$1280:$FD$1327,38) -> 0 | I36: =VLOOKUP('District Summary'!$A$3,'School Resource Matrices'!$B$1280:$FD$1327,39) -> 0 | J36: =VLOOKUP('District Summary'!$A$3,'School Resource Matrices'!$B$1280:$FD$1327,40) -> 0 | K36: =VLOOKUP('District Summary'!$A$3,'School Resource Matrices'!$B$1280:$FD$1327,41) -> 0 | L36: =VLOOKUP('District Summary'!$A$3,'School Resource Matrices'!$B$1280:$FD$1327,42) -> 0 | M36: =VLOOKUP('District Summary'!$A$3,'School Resource Matrices'!$B$1280:$FD$1327,46) -> 0 | N36: =VLOOKUP('District Summary'!$A$3,'School Resource Matrices'!$B$1280:$FD$1327,51) -> 0 | O36: =VLOOKUP('District Summary'!$A$3,'School Resource Matrices'!$B$1280:$FD$1327,52) -> 0 | P36: =VLOOKUP('District Summary'!$A$3,'School Resource Matrices'!$B$1280:$FD$1327,53) -> 0 | Q36: =VLOOKUP('District Summary'!$A$3,'School Resource Matrices'!$B$1280:$FD$1327,57) -> 0 | R36: =VLOOKUP('District Summary'!$A$3,'School Resource Matrices'!$B$1280:$FD$1327,60) -> 0 | S36: =VLOOKUP('District Summary'!$A$3,'School Resource Matrices'!$B$1280:$FD$1327,63) -> 0 | T36: =VLOOKUP('District Summary'!$A$3,'School Resource Matrices'!$B$1280:$FD$1327,64) -> 0 | U36: =VLOOKUP('District Summary'!$A$3,'School Resource Matrices'!$B$1280:$FD$1327,65) -> 0 | V36: =VLOOKUP('District Summary'!$A$3,'School Resource Matrices'!$B$1280:$FD$1327,70) -> 0 | W36: =VLOOKUP('District Summary'!$A$3,'School Resource Matrices'!$B$1280:$FD$1327,75) -> 0 | X36: =VLOOKUP('District Summary'!$A$3,'School Resource Matrices'!$B$1280:$FD$1327,71) -> 0 | Y36: =VLOOKUP('District Summary'!$A$3,'School Resource Matrices'!$B$1280:$FD$1327,79) -> 0 | Z36: =VLOOKUP('District Summary'!$A$3,'School Resource Matrices'!$B$1280:$FD$1327,83) -> 0 | AA36: 0
A37: 28 | B37: =VLOOKUP('District Summary'!$A$3,'School Resource Matrices'!$B$1329:$FD$1376,4) -> 0 | C37: =VLOOKUP('District Summary'!$A$3,'School Resource Matrices'!$B$1329:$FD$1376,9) -> 0 | D37: =VLOOKUP('District Summary'!$A$3,'School Resource Matrices'!$B$1329:$FD$1376,5) -> 0 | E37: =VLOOKUP('District Summary'!$A$3,'School Resource Matrices'!$B$1329:$FD$1376,11) -> 0 | F37: =VLOOKUP('District Summary'!$A$3,'School Resource Matrices'!$B$1329:$FD$1376,10) -> 0 | G37: =VLOOKUP('District Summary'!$A$3,'School Resource Matrices'!$B$1329:$FD$1376,33) -> 0 | H37: =VLOOKUP('District Summary'!$A$3,'School Resource Matrices'!$B$1329:$FD$1376,38) -> 0 | I37: =VLOOKUP('District Summary'!$A$3,'School Resource Matrices'!$B$1329:$FD$1376,39) -> 0 | J37: =VLOOKUP('District Summary'!$A$3,'School Resource Matrices'!$B$1329:$FD$1376,40) -> 0 | K37: =VLOOKUP('District Summary'!$A$3,'School Resource Matrices'!$B$1329:$FD$1376,41) -> 0 | L37: =VLOOKUP('District Summary'!$A$3,'School Resource Matrices'!$B$1329:$FD$1376,42) -> 0 | M37: =VLOOKUP('District Summary'!$A$3,'School Resource Matrices'!$B$1329:$FD$1376,46) -> 0 | N37: =VLOOKUP('District Summary'!$A$3,'School Resource Matrices'!$B$1329:$FD$1376,51) -> 0 | O37: =VLOOKUP('District Summary'!$A$3,'School Resource Matrices'!$B$1329:$FD$1376,52) -> 0 | P37: =VLOOKUP('District Summary'!$A$3,'School Resource Matrices'!$B$1329:$FD$1376,53) -> 0 | Q37: =VLOOKUP('District Summary'!$A$3,'School Resource Matrices'!$B$1329:$FD$1376,57) -> 0 | R37: =VLOOKUP('District Summary'!$A$3,'School Resource Matrices'!$B$1329:$FD$1376,60) -> 0 | S37: =VLOOKUP('District Summary'!$A$3,'School Resource Matrices'!$B$1329:$FD$1376,63) -> 0 | T37: =VLOOKUP('District Summary'!$A$3,'School Resource Matrices'!$B$1329:$FD$1376,64) -> 0 | U37: =VLOOKUP('District Summary'!$A$3,'School Resource Matrices'!$B$1329:$FD$1376,65) -> 0 | V37: =VLOOKUP('District Summary'!$A$3,'School Resource Matrices'!$B$1329:$FD$1376,70) -> 0 | W37: =VLOOKUP('District Summary'!$A$3,'School Resource Matrices'!$B$1329:$FD$1376,75) -> 0 | X37: =VLOOKUP('District Summary'!$A$3,'School Resource Matrices'!$B$1329:$FD$1376,71) -> 0 | Y37: =VLOOKUP('District Summary'!$A$3,'School Resource Matrices'!$B$1329:$FD$1376,79) -> 0 | Z37: =VLOOKUP('District Summary'!$A$3,'School Resource Matrices'!$B$1329:$FD$1376,83) -> 0 | AA37: 0
A38: 29 | B38: =VLOOKUP('District Summary'!$A$3,'School Resource Matrices'!$B$1378:$FD$1425,4) -> 0 | C38: =VLOOKUP('District Summary'!$A$3,'School Resource Matrices'!$B$1378:$FD$1425,9) -> 0 | D38: =VLOOKUP('District Summary'!$A$3,'School Resource Matrices'!$B$1378:$FD$1425,5) -> 0 | E38: =VLOOKUP('District Summary'!$A$3,'School Resource Matrices'!$B$1378:$FD$1425,11) -> 0 | F38: =VLOOKUP('District Summary'!$A$3,'School Resource Matrices'!$B$1378:$FD$1425,10) -> 0 | G38: =VLOOKUP('District Summary'!$A$3,'School Resource Matrices'!$B$1378:$FD$1425,33) -> 0 | H38: =VLOOKUP('District Summary'!$A$3,'School Resource Matrices'!$B$1378:$FD$1425,38) -> 0 | I38: =VLOOKUP('District Summary'!$A$3,'School Resource Matrices'!$B$1378:$FD$1425,39) -> 0 | J38: =VLOOKUP('District Summary'!$A$3,'School Resource Matrices'!$B$1378:$FD$1425,40) -> 0 | K38: =VLOOKUP('District Summary'!$A$3,'School Resource Matrices'!$B$1378:$FD$1425,41) -> 0 | L38: =VLOOKUP('District Summary'!$A$3,'School Resource Matrices'!$B$1378:$FD$1425,42) -> 0 | M38: =VLOOKUP('District Summary'!$A$3,'School Resource Matrices'!$B$1378:$FD$1425,46) -> 0 | N38: =VLOOKUP('District Summary'!$A$3,'School Resource Matrices'!$B$1378:$FD$1425,51) -> 0 | O38: =VLOOKUP('District Summary'!$A$3,'School Resource Matrices'!$B$1378:$FD$1425,52) -> 0 | P38: =VLOOKUP('District Summary'!$A$3,'School Resource Matrices'!$B$1378:$FD$1425,53) -> 0 | Q38: =VLOOKUP('District Summary'!$A$3,'School Resource Matrices'!$B$1378:$FD$1425,57) -> 0 | R38: =VLOOKUP('District Summary'!$A$3,'School Resource Matrices'!$B$1378:$FD$1425,60) -> 0 | S38: =VLOOKUP('District Summary'!$A$3,'School Resource Matrices'!$B$1378:$FD$1425,63) -> 0 | T38: =VLOOKUP('District Summary'!$A$3,'School Resource Matrices'!$B$1378:$FD$1425,64) -> 0 | U38: =VLOOKUP('District Summary'!$A$3,'School Resource Matrices'!$B$1378:$FD$1425,65) -> 0 | V38: =VLOOKUP('District Summary'!$A$3,'School Resource Matrices'!$B$1378:$FD$1425,70) -> 0 | W38: =VLOOKUP('District Summary'!$A$3,'School Resource Matrices'!$B$1378:$FD$1425,75) -> 0 | X38: =VLOOKUP('District Summary'!$A$3,'School Resource Matrices'!$B$1378:$FD$1425,71) -> 0 | Y38: =VLOOKUP('District Summary'!$A$3,'School Resource Matrices'!$B$1378:$FD$1425,79) -> 0 | Z38: =VLOOKUP('District Summary'!$A$3,'School Resource Matrices'!$B$1378:$FD$1425,83) -> 0 | AA38: 0
A39: 30 | B39: =VLOOKUP('District Summary'!$A$3,'School Resource Matrices'!$B$1427:$FD$1474,4) -> 0 | C39: =VLOOKUP('District Summary'!$A$3,'School Resource Matrices'!$B$1427:$FD$1474,9) -> 0 | D39: =VLOOKUP('District Summary'!$A$3,'School Resource Matrices'!$B$1427:$FD$1474,5) -> 0 | E39: =VLOOKUP('District Summary'!$A$3,'School Resource Matrices'!$B$1427:$FD$1474,11) -> 0 | F39: =VLOOKUP('District Summary'!$A$3,'School Resource Matrices'!$B$1427:$FD$1474,10) -> 0 | G39: =VLOOKUP('District Summary'!$A$3,'School Resource Matrices'!$B$1427:$FD$1474,33) -> 0 | H39: =VLOOKUP('District Summary'!$A$3,'School Resource Matrices'!$B$1427:$FD$1474,38) -> 0 | I39: =VLOOKUP('District Summary'!$A$3,'School Resource Matrices'!$B$1427:$FD$1474,39) -> 0 | J39: =VLOOKUP('District Summary'!$A$3,'School Resource Matrices'!$B$1427:$FD$1474,40) -> 0 | K39: =VLOOKUP('District Summary'!$A$3,'School Resource Matrices'!$B$1427:$FD$1474,41) -> 0 | L39: =VLOOKUP('District Summary'!$A$3,'School Resource Matrices'!$B$1427:$FD$1474,42) -> 0 | M39: =VLOOKUP('District Summary'!$A$3,'School Resource Matrices'!$B$1427:$FD$1474,46) -> 0 | N39: =VLOOKUP('District Summary'!$A$3,'School Resource Matrices'!$B$1427:$FD$1474,51) -> 0 | O39: =VLOOKUP('District Summary'!$A$3,'School Resource Matrices'!$B$1427:$FD$1474,52) -> 0 | P39: =VLOOKUP('District Summary'!$A$3,'School Resource Matrices'!$B$1427:$FD$1474,53) -> 0 | Q39: =VLOOKUP('District Summary'!$A$3,'School Resource Matrices'!$B$1427:$FD$1474,57) -> 0 | R39: =VLOOKUP('District Summary'!$A$3,'School Resource Matrices'!$B$1427:$FD$1474,60) -> 0 | S39: =VLOOKUP('District Summary'!$A$3,'School Resource Matrices'!$B$1427:$FD$1474,63) -> 0 | T39: =VLOOKUP('District Summary'!$A$3,'School Resource Matrices'!$B$1427:$FD$1474,64) -> 0 | U39: =VLOOKUP('District Summary'!$A$3,'School Resource Matrices'!$B$1427:$FD$1474,65) -> 0 | V39: =VLOOKUP('District Summary'!$A$3,'School Resource Matrices'!$B$1427:$FD$1474,70) -> 0 | W39: =VLOOKUP('District Summary'!$A$3,'School Resource Matrices'!$B$1427:$FD$1474,75) -> 0 | X39: =VLOOKUP('District Summary'!$A$3,'School Resource Matrices'!$B$1427:$FD$1474,71) -> 0 | Y39: =VLOOKUP('District Summary'!$A$3,'School Resource Matrices'!$B$1427:$FD$1474,79) -> 0 | Z39: =VLOOKUP('District Summary'!$A$3,'School Resource Matrices'!$B$1427:$FD$1474,83) -> 0 | AA39: 0
A40: 31 | B40: =VLOOKUP('District Summary'!$A$3,'School Resource Matrices'!$B$1476:$FD$1523,4) -> 0 | C40: =VLOOKUP('District Summary'!$A$3,'School Resource Matrices'!$B$1476:$FD$1523,9) -> 0 | D40: =VLOOKUP('District Summary'!$A$3,'School Resource Matrices'!$B$1476:$FD$1523,5) -> 0 | E40: =VLOOKUP('District Summary'!$A$3,'School Resource Matrices'!$B$1476:$FD$1523,11) -> 0 | F40: =VLOOKUP('District Summary'!$A$3,'School Resource Matrices'!$B$1476:$FD$1523,10) -> 0 | G40: =VLOOKUP('District Summary'!$A$3,'School Resource Matrices'!$B$1476:$FD$1523,33) -> 0 | H40: =VLOOKUP('District Summary'!$A$3,'School Resource Matrices'!$B$1476:$FD$1523,38) -> 0 | I40: =VLOOKUP('District Summary'!$A$3,'School Resource Matrices'!$B$1476:$FD$1523,39) -> 0 | J40: =VLOOKUP('District Summary'!$A$3,'School Resource Matrices'!$B$1476:$FD$1523,40) -> 0 | K40: =VLOOKUP('District Summary'!$A$3,'School Resource Matrices'!$B$1476:$FD$1523,41) -> 0 | L40: =VLOOKUP('District Summary'!$A$3,'School Resource Matrices'!$B$1476:$FD$1523,42) -> 0 | M40: =VLOOKUP('District Summary'!$A$3,'School Resource Matrices'!$B$1476:$FD$1523,46) -> 0 | N40: =VLOOKUP('District Summary'!$A$3,'School Resource Matrices'!$B$1476:$FD$1523,51) -> 0 | O40: =VLOOKUP('District Summary'!$A$3,'School Resource Matrices'!$B$1476:$FD$1523,52) -> 0 | P40: =VLOOKUP('District Summary'!$A$3,'School Resource Matrices'!$B$1476:$FD$1533,53) -> 0 | Q40: =VLOOKUP('District Summary'!$A$3,'School Resource Matrices'!$B$1476:$FD$1523,57) -> 0 | R40: =VLOOKUP('District Summary'!$A$3,'School Resource Matrices'!$B$1476:$FD$1523,60) -> 0 | S40: =VLOOKUP('District Summary'!$A$3,'School Resource Matrices'!$B$1476:$FD$1523,63) -> 0 | T40: =VLOOKUP('District Summary'!$A$3,'School Resource Matrices'!$B$1476:$FD$1523,64) -> 0 | U40: =VLOOKUP('District Summary'!$A$3,'School Resource Matrices'!$B$1476:$FD$1523,65) -> 0 | V40: =VLOOKUP('District Summary'!$A$3,'School Resource Matrices'!$B$1476:$FD$1523,70) -> 0 | W40: =VLOOKUP('District Summary'!$A$3,'School Resource Matrices'!$B$1476:$FD$1523,75) -> 0 | X40: =VLOOKUP('District Summary'!$A$3,'School Resource Matrices'!$B$1476:$FD$1523,71) -> 0 | Y40: =VLOOKUP('District Summary'!$A$3,'School Resource Matrices'!$B$1476:$FD$1523,79) -> 0 | Z40: =VLOOKUP('District Summary'!$A$3,'School Resource Matrices'!$B$1476:$FD$1523,83) -> 0 | AA40: 0
A41: 32 | B41: =VLOOKUP('District Summary'!$A$3,'School Resource Matrices'!$B$1525:$FD$1572,4) -> 0 | C41: =VLOOKUP('District Summary'!$A$3,'School Resource Matrices'!$B$1525:$FD$1572,9) -> 0 | D41: =VLOOKUP('District Summary'!$A$3,'School Resource Matrices'!$B$1525:$FD$1572,5) -> 0 | E41: =VLOOKUP('District Summary'!$A$3,'School Resource Matrices'!$B$1525:$FD$1572,11) -> 0 | F41: =VLOOKUP('District Summary'!$A$3,'School Resource Matrices'!$B$1525:$FD$1572,10) -> 0 | G41: =VLOOKUP('District Summary'!$A$3,'School Resource Matrices'!$B$1525:$FD$1572,33) -> 0 | H41: =VLOOKUP('District Summary'!$A$3,'School Resource Matrices'!$B$1525:$FD$1572,38) -> 0 | I41: =VLOOKUP('District Summary'!$A$3,'School Resource Matrices'!$B$1525:$FD$1572,39) -> 0 | J41: =VLOOKUP('District Summary'!$A$3,'School Resource Matrices'!$B$1525:$FD$1572,40) -> 0 | K41: =VLOOKUP('District Summary'!$A$3,'School Resource Matrices'!$B$1525:$FD$1572,41) -> 0 | L41: =VLOOKUP('District Summary'!$A$3,'School Resource Matrices'!$B$1525:$FD$1572,42) -> 0 | M41: =VLOOKUP('District Summary'!$A$3,'School Resource Matrices'!$B$1525:$FD$1572,46) -> 0 | N41: =VLOOKUP('District Summary'!$A$3,'School Resource Matrices'!$B$1525:$FD$1572,51) -> 0 | O41: =VLOOKUP('District Summary'!$A$3,'School Resource Matrices'!$B$1525:$FD$1572,52) -> 0 | P41: =VLOOKUP('District Summary'!$A$3,'School Resource Matrices'!$B$1525:$FD$1572,53) -> 0 | Q41: =VLOOKUP('District Summary'!$A$3,'School Resource Matrices'!$B$1525:$FD$1572,57) -> 0 | R41: =VLOOKUP('District Summary'!$A$3,'School Resource Matrices'!$B$1525:$FD$1572,60) -> 0 | S41: =VLOOKUP('District Summary'!$A$3,'School Resource Matrices'!$B$1525:$FD$1572,63) -> 0 | T41: =VLOOKUP('District Summary'!$A$3,'School Resource Matrices'!$B$1525:$FD$1572,64) -> 0 | U41: =VLOOKUP('District Summary'!$A$3,'School Resource Matrices'!$B$1525:$FD$1572,65) -> 0 | V41: =VLOOKUP('District Summary'!$A$3,'School Resource Matrices'!$B$1525:$FD$1572,70) -> 0 | W41: =VLOOKUP('District Summary'!$A$3,'School Resource Matrices'!$B$1525:$FD$1572,75) -> 0 | X41: =VLOOKUP('District Summary'!$A$3,'School Resource Matrices'!$B$1525:$FD$1572,71) -> 0 | Y41: =VLOOKUP('District Summary'!$A$3,'School Resource Matrices'!$B$1525:$FD$1572,79) -> 0 | Z41: =VLOOKUP('District Summary'!$A$3,'School Resource Matrices'!$B$1525:$FD$1572,83) -> 0 | AA41: 0
A42: 33 | B42: =VLOOKUP('District Summary'!$A$3,'School Resource Matrices'!$B$1574:$FD$1621,4) -> 0 | C42: =VLOOKUP('District Summary'!$A$3,'School Resource Matrices'!$B$1574:$FD$1621,9) -> 0 | D42: =VLOOKUP('District Summary'!$A$3,'School Resource Matrices'!$B$1574:$FD$1621,5) -> 0 | E42: =VLOOKUP('District Summary'!$A$3,'School Resource Matrices'!$B$1574:$FD$1621,11) -> 0 | F42: =VLOOKUP('District Summary'!$A$3,'School Resource Matrices'!$B$1574:$FD$1621,10) -> 0 | G42: =VLOOKUP('District Summary'!$A$3,'School Resource Matrices'!$B$1574:$FD$1621,33) -> 0 | H42: =VLOOKUP('District Summary'!$A$3,'School Resource Matrices'!$B$1574:$FD$1621,38) -> 0 | I42: =VLOOKUP('District Summary'!$A$3,'School Resource Matrices'!$B$1574:$FD$1621,39) -> 0 | J42: =VLOOKUP('District Summary'!$A$3,'School Resource Matrices'!$B$1574:$FD$1621,40) -> 0 | K42: =VLOOKUP('District Summary'!$A$3,'School Resource Matrices'!$B$1574:$FD$1621,41) -> 0 | L42: =VLOOKUP('District Summary'!$A$3,'School Resource Matrices'!$B$1574:$FD$1621,42) -> 0 | M42: =VLOOKUP('District Summary'!$A$3,'School Resource Matrices'!$B$1574:$FD$1621,46) -> 0 | N42: =VLOOKUP('District Summary'!$A$3,'School Resource Matrices'!$B$1574:$FD$1621,51) -> 0 | O42: =VLOOKUP('District Summary'!$A$3,'School Resource Matrices'!$B$1574:$FD$1621,52) -> 0 | P42: =VLOOKUP('District Summary'!$A$3,'School Resource Matrices'!$B$1574:$FD$1621,53) -> 0 | Q42: =VLOOKUP('District Summary'!$A$3,'School Resource Matrices'!$B$1574:$FD$1621,57) -> 0 | R42: =VLOOKUP('District Summary'!$A$3,'School Resource Matrices'!$B$1574:$FD$1621,60) -> 0 | S42: =VLOOKUP('District Summary'!$A$3,'School Resource Matrices'!$B$1574:$FD$1621,63) -> 0 | T42: =VLOOKUP('District Summary'!$A$3,'School Resource Matrices'!$B$1574:$FD$1621,64) -> 0 | U42: =VLOOKUP('District Summary'!$A$3,'School Resource Matrices'!$B$1574:$FD$1621,65) -> 0 | V42: =VLOOKUP('District Summary'!$A$3,'School Resource Matrices'!$B$1574:$FD$1621,70) -> 0 | W42: =VLOOKUP('District Summary'!$A$3,'School Resource Matrices'!$B$1574:$FD$1621,75) -> 0 | X42: =VLOOKUP('District Summary'!$A$3,'School Resource Matrices'!$B$1574:$FD$1621,71) -> 0 | Y42: =VLOOKUP('District Summary'!$A$3,'School Resource Matrices'!$B$1574:$FD$1621,79) -> 0 | Z42: =VLOOKUP('District Summary'!$A$3,'School Resource Matrices'!$B$1574:$FD$1621,83) -> 0 | AA42: 0
A43: 34 | B43: =VLOOKUP('District Summary'!$A$3,'School Resource Matrices'!$B$1623:$FD$1670,4) -> 0 | C43: =VLOOKUP('District Summary'!$A$3,'School Resource Matrices'!$B$1623:$FD$1670,9) -> 0 | D43: =VLOOKUP('District Summary'!$A$3,'School Resource Matrices'!$B$1623:$FD$1670,5) -> 0 | E43: =VLOOKUP('District Summary'!$A$3,'School Resource Matrices'!$B$1623:$FD$1670,11) -> 0 | F43: =VLOOKUP('District Summary'!$A$3,'School Resource Matrices'!$B$1623:$FD$1670,10) -> 0 | G43: =VLOOKUP('District Summary'!$A$3,'School Resource Matrices'!$B$1623:$FD$1670,33) -> 0 | H43: =VLOOKUP('District Summary'!$A$3,'School Resource Matrices'!$B$1623:$FD$1670,38) -> 0 | I43: =VLOOKUP('District Summary'!$A$3,'School Resource Matrices'!$B$1623:$FD$1670,39) -> 0 | J43: =VLOOKUP('District Summary'!$A$3,'School Resource Matrices'!$B$1623:$FD$1670,40) -> 0 | K43: =VLOOKUP('District Summary'!$A$3,'School Resource Matrices'!$B$1623:$FD$1670,41) -> 0 | L43: =VLOOKUP('District Summary'!$A$3,'School Resource Matrices'!$B$1623:$FD$1670,42) -> 0 | M43: =VLOOKUP('District Summary'!$A$3,'School Resource Matrices'!$B$1623:$FD$1670,46) -> 0 | N43: =VLOOKUP('District Summary'!$A$3,'School Resource Matrices'!$B$1623:$FD$1670,51) -> 0 | O43: =VLOOKUP('District Summary'!$A$3,'School Resource Matrices'!$B$1623:$FD$1670,52) -> 0 | P43: =VLOOKUP('District Summary'!$A$3,'School Resource Matrices'!$B$1623:$FD$1670,53) -> 0 | Q43: =VLOOKUP('District Summary'!$A$3,'School Resource Matrices'!$B$1623:$FD$1670,57) -> 0 | R43: =VLOOKUP('District Summary'!$A$3,'School Resource Matrices'!$B$1623:$FD$1670,60) -> 0 | S43: =VLOOKUP('District Summary'!$A$3,'School Resource Matrices'!$B$1623:$FD$1670,63) -> 0 | T43: =VLOOKUP('District Summary'!$A$3,'School Resource Matrices'!$B$1623:$FD$1670,64) -> 0 | U43: =VLOOKUP('District Summary'!$A$3,'School Resource Matrices'!$B$1623:$FD$1670,65) -> 0 | V43: =VLOOKUP('District Summary'!$A$3,'School Resource Matrices'!$B$1623:$FD$1671,70) -> 0 | W43: =VLOOKUP('District Summary'!$A$3,'School Resource Matrices'!$B$1623:$FD$1670,75) -> 0 | X43: =VLOOKUP('District Summary'!$A$3,'School Resource Matrices'!$B$1623:$FD$1670,71) -> 0 | Y43: =VLOOKUP('District Summary'!$A$3,'School Resource Matrices'!$B$1623:$FD$1670,79) -> 0 | Z43: =VLOOKUP('District Summary'!$A$3,'School Resource Matrices'!$B$1623:$FD$1670,83) -> 0 | AA43: 0
A44: 35 | B44: =VLOOKUP('District Summary'!$A$3,'School Resource Matrices'!$B$1672:$FD$1719,4) -> 0 | C44: =VLOOKUP('District Summary'!$A$3,'School Resource Matrices'!$B$1672:$FD$1719,9) -> 0 | D44: =VLOOKUP('District Summary'!$A$3,'School Resource Matrices'!$B$1672:$FD$1719,5) -> 0 | E44: =VLOOKUP('District Summary'!$A$3,'School Resource Matrices'!$B$1672:$FD$1719,11) -> 0 | F44: =VLOOKUP('District Summary'!$A$3,'School Resource Matrices'!$B$1672:$FD$1719,10) -> 0 | G44: =VLOOKUP('District Summary'!$A$3,'School Resource Matrices'!$B$1672:$FD$1719,33) -> 0 | H44: =VLOOKUP('District Summary'!$A$3,'School Resource Matrices'!$B$1672:$FD$1719,38) -> 0 | I44: =VLOOKUP('District Summary'!$A$3,'School Resource Matrices'!$B$1672:$FD$1719,39) -> 0 | J44: =VLOOKUP('District Summary'!$A$3,'School Resource Matrices'!$B$1672:$FD$1719,40) -> 0 | K44: =VLOOKUP('District Summary'!$A$3,'School Resource Matrices'!$B$1672:$FD$1719,41) -> 0 | L44: =VLOOKUP('District Summary'!$A$3,'School Resource Matrices'!$B$1672:$FD$1719,42) -> 0 | M44: =VLOOKUP('District Summary'!$A$3,'School Resource Matrices'!$B$1672:$FD$1719,46) -> 0 | N44: =VLOOKUP('District Summary'!$A$3,'School Resource Matrices'!$B$1672:$FD$1719,51) -> 0 | O44: =VLOOKUP('District Summary'!$A$3,'School Resource Matrices'!$B$1672:$FD$1719,52) -> 0 | P44: =VLOOKUP('District Summary'!$A$3,'School Resource Matrices'!$B$1672:$FD$1719,53) -> 0 | Q44: =VLOOKUP('District Summary'!$A$3,'School Resource Matrices'!$B$1672:$FD$1719,57) -> 0 | R44: =VLOOKUP('District Summary'!$A$3,'School Resource Matrices'!$B$1672:$FD$1719,60) -> 0 | S44: =VLOOKUP('District Summary'!$A$3,'School Resource Matrices'!$B$1672:$FD$1719,63) -> 0 | T44: =VLOOKUP('District Summary'!$A$3,'School Resource Matrices'!$B$1672:$FD$1719,64) -> 0 | U44: =VLOOKUP('District Summary'!$A$3,'School Resource Matrices'!$B$1672:$FD$1719,65) -> 0 | V44: =VLOOKUP('District Summary'!$A$3,'School Resource Matrices'!$B$1672:$FD$1719,70) -> 0 | W44: =VLOOKUP('District Summary'!$A$3,'School Resource Matrices'!$B$1672:$FD$1719,75) -> 0 | X44: =VLOOKUP('District Summary'!$A$3,'School Resource Matrices'!$B$1672:$FD$1974,71) -> 0 | Y44: =VLOOKUP('District Summary'!$A$3,'School Resource Matrices'!$B$1672:$FD$1719,79) -> 0 | Z44: =VLOOKUP('District Summary'!$A$3,'School Resource Matrices'!$B$1672:$FD$1719,83) -> 0 | AA44: 0
A45: 36 | B45: =VLOOKUP('District Summary'!$A$3,'School Resource Matrices'!$B$1721:$FD$1768,4) -> 0 | C45: =VLOOKUP('District Summary'!$A$3,'School Resource Matrices'!$B$1721:$FD$1768,9) -> 0 | D45: =VLOOKUP('District Summary'!$A$3,'School Resource Matrices'!$B$1721:$FD$1768,5) -> 0 | E45: =VLOOKUP('District Summary'!$A$3,'School Resource Matrices'!$B$1721:$FD$1768,11) -> 0 | F45: =VLOOKUP('District Summary'!$A$3,'School Resource Matrices'!$B$1721:$FD$1768,10) -> 0 | G45: =VLOOKUP('District Summary'!$A$3,'School Resource Matrices'!$B$1721:$FD$1768,33) -> 0 | H45: =VLOOKUP('District Summary'!$A$3,'School Resource Matrices'!$B$1721:$FD$1768,38) -> 0 | I45: =VLOOKUP('District Summary'!$A$3,'School Resource Matrices'!$B$1721:$FD$1768,39) -> 0 | J45: =VLOOKUP('District Summary'!$A$3,'School Resource Matrices'!$B$1721:$FD$1768,40) -> 0 | K45: =VLOOKUP('District Summary'!$A$3,'School Resource Matrices'!$B$1721:$FD$1768,41) -> 0 | L45: =VLOOKUP('District Summary'!$A$3,'School Resource Matrices'!$B$1721:$FD$1768,42) -> 0 | M45: =VLOOKUP('District Summary'!$A$3,'School Resource Matrices'!$B$1721:$FD$1768,46) -> 0 | N45: =VLOOKUP('District Summary'!$A$3,'School Resource Matrices'!$B$1721:$FD$1768,51) -> 0 | O45: =VLOOKUP('District Summary'!$A$3,'School Resource Matrices'!$B$1721:$FD$1768,52) -> 0 | P45: =VLOOKUP('District Summary'!$A$3,'School Resource Matrices'!$B$1721:$FD$1768,53) -> 0 | Q45: =VLOOKUP('District Summary'!$A$3,'School Resource Matrices'!$B$1721:$FD$1768,57) -> 0 | R45: =VLOOKUP('District Summary'!$A$3,'School Resource Matrices'!$B$1721:$FD$1768,60) -> 0 | S45: =VLOOKUP('District Summary'!$A$3,'School Resource Matrices'!$B$1721:$FD$1768,63) -> 0 | T45: =VLOOKUP('District Summary'!$A$3,'School Resource Matrices'!$B$1721:$FD$1768,64) -> 0 | U45: =VLOOKUP('District Summary'!$A$3,'School Resource Matrices'!$B$1721:$FD$1768,65) -> 0 | V45: =VLOOKUP('District Summary'!$A$3,'School Resource Matrices'!$B$1721:$FD$1768,70) -> 0 | W45: =VLOOKUP('District Summary'!$A$3,'School Resource Matrices'!$B$1721:$FD$1768,75) -> 0 | X45: =VLOOKUP('District Summary'!$A$3,'School Resource Matrices'!$B$1721:$FD$1768,71) -> 0 | Y45: =VLOOKUP('District Summary'!$A$3,'School Resource Matrices'!$B$1721:$FD$1768,79) -> 0 | Z45: =VLOOKUP('District Summary'!$A$3,'School Resource Matrices'!$B$1721:$FD$1768,83) -> 0 | AA45: 0
A46: 37 | B46: =VLOOKUP('District Summary'!$A$3,'School Resource Matrices'!$B$1770:$FD$1817,4) -> 0 | C46: =VLOOKUP('District Summary'!$A$3,'School Resource Matrices'!$B$1770:$FD$1817,9) -> 0 | D46: =VLOOKUP('District Summary'!$A$3,'School Resource Matrices'!$B$1770:$FD$1817,5) -> 0 | E46: =VLOOKUP('District Summary'!$A$3,'School Resource Matrices'!$B$1770:$FD$1817,11) -> 0 | F46: =VLOOKUP('District Summary'!$A$3,'School Resource Matrices'!$B$1770:$FD$1817,10) -> 0 | G46: =VLOOKUP('District Summary'!$A$3,'School Resource Matrices'!$B$1770:$FD$1817,33) -> 0 | H46: =VLOOKUP('District Summary'!$A$3,'School Resource Matrices'!$B$1770:$FD$1817,38) -> 0 | I46: =VLOOKUP('District Summary'!$A$3,'School Resource Matrices'!$B$1770:$FD$1817,39) -> 0 | J46: =VLOOKUP('District Summary'!$A$3,'School Resource Matrices'!$B$1770:$FD$1817,40) -> 0 | K46: =VLOOKUP('District Summary'!$A$3,'School Resource Matrices'!$B$1770:$FD$1817,41) -> 0 | L46: =VLOOKUP('District Summary'!$A$3,'School Resource Matrices'!$B$1770:$FD$1817,42) -> 0 | M46: =VLOOKUP('District Summary'!$A$3,'School Resource Matrices'!$B$1770:$FD$1817,46) -> 0 | N46: =VLOOKUP('District Summary'!$A$3,'School Resource Matrices'!$B$1770:$FD$1817,51) -> 0 | O46: =VLOOKUP('District Summary'!$A$3,'School Resource Matrices'!$B$1770:$FD$1817,52) -> 0 | P46: =VLOOKUP('District Summary'!$A$3,'School Resource Matrices'!$B$1770:$FD$1817,53) -> 0 | Q46: =VLOOKUP('District Summary'!$A$3,'School Resource Matrices'!$B$1770:$FD$1817,57) -> 0 | R46: =VLOOKUP('District Summary'!$A$3,'School Resource Matrices'!$B$1770:$FD$1817,60) -> 0 | S46: =VLOOKUP('District Summary'!$A$3,'School Resource Matrices'!$B$1770:$FD$1817,63) -> 0 | T46: =VLOOKUP('District Summary'!$A$3,'School Resource Matrices'!$B$1770:$FD$1817,64) -> 0 | U46: =VLOOKUP('District Summary'!$A$3,'School Resource Matrices'!$B$1770:$FD$1817,65) -> 0 | V46: =VLOOKUP('District Summary'!$A$3,'School Resource Matrices'!$B$1770:$FD$1817,70) -> 0 | W46: =VLOOKUP('District Summary'!$A$3,'School Resource Matrices'!$B$1770:$FD$1817,75) -> 0 | X46: =VLOOKUP('District Summary'!$A$3,'School Resource Matrices'!$B$1770:$FD$1817,71) -> 0 | Y46: =VLOOKUP('District Summary'!$A$3,'School Resource Matrices'!$B$1770:$FD$1817,79) -> 0 | Z46: =VLOOKUP('District Summary'!$A$3,'School Resource Matrices'!$B$1770:$FD$1817,83) -> 0 | AA46: 0
A47: 38 | B47: =VLOOKUP('District Summary'!$A$3,'School Resource Matrices'!$B$1819:$FD$1866,4) -> 0 | C47: =VLOOKUP('District Summary'!$A$3,'School Resource Matrices'!$B$1819:$FD$1866,9) -> 0 | D47: =VLOOKUP('District Summary'!$A$3,'School Resource Matrices'!$B$1819:$FD$1866,5) -> 0 | E47: =VLOOKUP('District Summary'!$A$3,'School Resource Matrices'!$B$1819:$FD$1866,11) -> 0 | F47: =VLOOKUP('District Summary'!$A$3,'School Resource Matrices'!$B$1819:$FD$1866,10) -> 0 | G47: =VLOOKUP('District Summary'!$A$3,'School Resource Matrices'!$B$1819:$FD$1866,33) -> 0 | H47: =VLOOKUP('District Summary'!$A$3,'School Resource Matrices'!$B$1819:$FD$1866,38) -> 0 | I47: =VLOOKUP('District Summary'!$A$3,'School Resource Matrices'!$B$1819:$FD$1866,39) -> 0 | J47: =VLOOKUP('District Summary'!$A$3,'School Resource Matrices'!$B$1819:$FD$1866,40) -> 0 | K47: =VLOOKUP('District Summary'!$A$3,'School Resource Matrices'!$B$1819:$FD$1866,41) -> 0 | L47: =VLOOKUP('District Summary'!$A$3,'School Resource Matrices'!$B$1819:$FD$1866,42) -> 0 | M47: =VLOOKUP('District Summary'!$A$3,'School Resource Matrices'!$B$1819:$FD$1866,46) -> 0 | N47: =VLOOKUP('District Summary'!$A$3,'School Resource Matrices'!$B$1819:$FD$1866,51) -> 0 | O47: =VLOOKUP('District Summary'!$A$3,'School Resource Matrices'!$B$1819:$FD$1866,52) -> 0 | P47: =VLOOKUP('District Summary'!$A$3,'School Resource Matrices'!$B$1819:$FD$1866,53) -> 0 | Q47: =VLOOKUP('District Summary'!$A$3,'School Resource Matrices'!$B$1819:$FD$1866,57) -> 0 | R47: =VLOOKUP('District Summary'!$A$3,'School Resource Matrices'!$B$1819:$FD$1866,60) -> 0 | S47: =VLOOKUP('District Summary'!$A$3,'School Resource Matrices'!$B$1819:$FD$1866,63) -> 0 | T47: =VLOOKUP('District Summary'!$A$3,'School Resource Matrices'!$B$1819:$FD$1866,64) -> 0 | U47: =VLOOKUP('District Summary'!$A$3,'School Resource Matrices'!$B$1819:$FD$1866,65) -> 0 | V47: =VLOOKUP('District Summary'!$A$3,'School Resource Matrices'!$B$1819:$FD$1866,70) -> 0 | W47: =VLOOKUP('District Summary'!$A$3,'School Resource Matrices'!$B$1819:$FD$1866,75) -> 0 | X47: =VLOOKUP('District Summary'!$A$3,'School Resource Matrices'!$B$1819:$FD$1866,71) -> 0 | Y47: =VLOOKUP('District Summary'!$A$3,'School Resource Matrices'!$B$1819:$FD$1866,79) -> 0 | Z47: =VLOOKUP('District Summary'!$A$3,'School Resource Matrices'!$B$1819:$FD$1866,83) -> 0 | AA47: 0
A48: 39 | B48: =VLOOKUP('District Summary'!$A$3,'School Resource Matrices'!$B$1868:$FD$1915,4) -> 0 | C48: =VLOOKUP('District Summary'!$A$3,'School Resource Matrices'!$B$1868:$FD$1915,9) -> 0 | D48: =VLOOKUP('District Summary'!$A$3,'School Resource Matrices'!$B$1868:$FD$1915,5) -> 0 | E48: =VLOOKUP('District Summary'!$A$3,'School Resource Matrices'!$B$1868:$FD$1915,11) -> 0 | F48: =VLOOKUP('District Summary'!$A$3,'School Resource Matrices'!$B$1868:$FD$1915,10) -> 0 | G48: =VLOOKUP('District Summary'!$A$3,'School Resource Matrices'!$B$1868:$FD$1915,33) -> 0 | H48: =VLOOKUP('District Summary'!$A$3,'School Resource Matrices'!$B$1868:$FD$1915,38) -> 0 | I48: =VLOOKUP('District Summary'!$A$3,'School Resource Matrices'!$B$1868:$FD$1915,39) -> 0 | J48: =VLOOKUP('District Summary'!$A$3,'School Resource Matrices'!$B$1868:$FD$1915,40) -> 0 | K48: =VLOOKUP('District Summary'!$A$3,'School Resource Matrices'!$B$1868:$FD$1915,41) -> 0 | L48: =VLOOKUP('District Summary'!$A$3,'School Resource Matrices'!$B$1868:$FD$1915,42) -> 0 | M48: =VLOOKUP('District Summary'!$A$3,'School Resource Matrices'!$B$1868:$FD$1915,46) -> 0 | N48: =VLOOKUP('District Summary'!$A$3,'School Resource Matrices'!$B$1868:$FD$1915,51) -> 0 | O48: =VLOOKUP('District Summary'!$A$3,'School Resource Matrices'!$B$1868:$FD$1915,52) -> 0 | P48: =VLOOKUP('District Summary'!$A$3,'School Resource Matrices'!$B$1868:$FD$1915,53) -> 0 | Q48: =VLOOKUP('District Summary'!$A$3,'School Resource Matrices'!$B$1868:$FD$1915,57) -> 0 | R48: =VLOOKUP('District Summary'!$A$3,'School Resource Matrices'!$B$1868:$FD$1915,60) -> 0 | S48: =VLOOKUP('District Summary'!$A$3,'School Resource Matrices'!$B$1868:$FD$1915,63) -> 0 | T48: =VLOOKUP('District Summary'!$A$3,'School Resource Matrices'!$B$1868:$FD$1915,64) -> 0 | U48: =VLOOKUP('District Summary'!$A$3,'School Resource Matrices'!$B$1868:$FD$1915,65) -> 0 | V48: =VLOOKUP('District Summary'!$A$3,'School Resource Matrices'!$B$1868:$FD$1915,70) -> 0 | W48: =VLOOKUP('District Summary'!$A$3,'School Resource Matrices'!$B$1868:$FD$1915,75) -> 0 | X48: =VLOOKUP('District Summary'!$A$3,'School Resource Matrices'!$B$1868:$FD$1915,71) -> 0 | Y48: =VLOOKUP('District Summary'!$A$3,'School Resource Matrices'!$B$1868:$FD$1915,79) -> 0 | Z48: =VLOOKUP('District Summary'!$A$3,'School Resource Matrices'!$B$1868:$FD$1915,83) -> 0 | AA48: 0
A49: 40 | B49: =VLOOKUP('District Summary'!$A$3,'School Resource Matrices'!$B$1917:$FD$1964,4) -> 0 | C49: =VLOOKUP('District Summary'!$A$3,'School Resource Matrices'!$B$1917:$FD$1964,9) -> 0 | D49: =VLOOKUP('District Summary'!$A$3,'School Resource Matrices'!$B$1917:$FD$1964,5) -> 0 | E49: =VLOOKUP('District Summary'!$A$3,'School Resource Matrices'!$B$1917:$FD$1964,11) -> 0 | F49: =VLOOKUP('District Summary'!$A$3,'School Resource Matrices'!$B$1917:$FD$1964,10) -> 0 | G49: =VLOOKUP('District Summary'!$A$3,'School Resource Matrices'!$B$1917:$FD$1964,33) -> 0 | H49: =VLOOKUP('District Summary'!$A$3,'School Resource Matrices'!$B$1917:$FD$1964,38) -> 0 | I49: =VLOOKUP('District Summary'!$A$3,'School Resource Matrices'!$B$1917:$FD$1964,39) -> 0 | J49: =VLOOKUP('District Summary'!$A$3,'School Resource Matrices'!$B$1917:$FD$1964,40) -> 0 | K49: =VLOOKUP('District Summary'!$A$3,'School Resource Matrices'!$B$1917:$FD$1964,41) -> 0 | L49: =VLOOKUP('District Summary'!$A$3,'School Resource Matrices'!$B$1917:$FD$1964,42) -> 0 | M49: =VLOOKUP('District Summary'!$A$3,'School Resource Matrices'!$B$1917:$FD$1964,46) -> 0 | N49: =VLOOKUP('District Summary'!$A$3,'School Resource Matrices'!$B$1917:$FD$1964,51) -> 0 | O49: =VLOOKUP('District Summary'!$A$3,'School Resource Matrices'!$B$1917:$FD$1964,52) -> 0 | P49: =VLOOKUP('District Summary'!$A$3,'School Resource Matrices'!$B$1917:$FD$1964,53) -> 0 | Q49: =VLOOKUP('District Summary'!$A$3,'School Resource Matrices'!$B$1917:$FD$1964,57) -> 0 | R49: =VLOOKUP('District Summary'!$A$3,'School Resource Matrices'!$B$1917:$FD$1964,60) -> 0 | S49: =VLOOKUP('District Summary'!$A$3,'School Resource Matrices'!$B$1917:$FD$1964,63) -> 0 | T49: =VLOOKUP('District Summary'!$A$3,'School Resource Matrices'!$B$1917:$FD$1964,64) -> 0 | U49: =VLOOKUP('District Summary'!$A$3,'School Resource Matrices'!$B$1917:$FD$1964,65) -> 0 | V49: =VLOOKUP('District Summary'!$A$3,'School Resource Matrices'!$B$1917:$FD$1964,70) -> 0 | W49: =VLOOKUP('District Summary'!$A$3,'School Resource Matrices'!$B$1917:$FD$1964,75) -> 0 | X49: =VLOOKUP('District Summary'!$A$3,'School Resource Matrices'!$B$1917:$FD$1964,71) -> 0 | Y49: =VLOOKUP('District Summary'!$A$3,'School Resource Matrices'!$B$1917:$FD$1964,79) -> 0 | Z49: =VLOOKUP('District Summary'!$A$3,'School Resource Matrices'!$B$1917:$FD$1964,83) -> 0 | AA49: 0
AA50: =SUM(AA10:AA49) -> 41.03086966
B51: District School Level FTEs | G51: =SUM(G10:G49) -> 14.45480853 | H51: 12.83738075 | I51: 0 | J51: 0 | K51: 0 | L51: 0.1590857143 | M51: 0.7096750982 | N51: 0.9929968254 | O51: 0 | P51: =SUM(P10:P49) -> 0.485 | Q51: =SUM(Q10:Q49) -> 1.753308234 | R51: 0.4385830688 | S51: 0.9929968254 | T51: 0.5526146667 | U51: 1.883782606 | V51: 2.315749206 | W51: 0 | X51: 0 | Y51: 2.315749206 | Z51: 1.139138922 | AA51: =SUM(G51:Z51) -> 41.03086966
B53: Total "Teacher" FTEs = | D53: =SUM(D55:D66) -> 32.93786665
B54: The following are included:
B55: Reg CORE | D55: =G51 -> 14.45480853
B56: Specialist | D56: =H51 -> 12.83738075
B57: Alternative | D57: =I51 -> 0
B58: Small | D58: =J51+K51 -> 0
B59: Voc Ed | D59: =L51 -> 0.1590857143
B60: Instructional Facilitator | D60: =M51 -> 0.7096750982
B61: Tutor | D61: =N51 -> 0.9929968254
B62: ELL | D62: =O51 -> 0
B63: *Summer School/Extended Day | D63: =P51 -> 0.485
B64: Librarian | D64: =Q51 -> 1.753308234
B65: Pupil Support | D65: =S51 -> 0.9929968254
B66: Secondary Guidance Counselor | D66: =T51 -> 0.5526146667
A69: * See "Summer Schl-Ext Day Min Adj" worksheet for minimum Summer School/Extended Day adjustments.

Sheet School Summary-Dollars
A1: School Level Resource Summary - Wyoming Cost Based Block Grant Model - Dollars
A2: District Funding Generated at School Level
B3: =SUM('District Summary'!D44:D74) -> 904258135.9
C4: Total District Funding generated at School Level-from District Summary Sheet | N4: ='District Summary'!E3 -> Wyoming Funding Model Version 2(d) 04-06-17 & FY 2018 Payment Model
B7: ='District Summary'!B3 -> State Total
B10: School Name | C10: "Teacher" * | D10: Media Technician | E10: Supervisory Aides | F10: Substitute Teacher * | G10: Principal | H10: Assistant Principal | I10: Secretary | J10: Clerical | K10: Supplies & Materials | L10: Equipment & Technology | M10: VocEd Supplies & Equipment | N10: Gifted & Talented | O10: Professional Development | P10: Assessment | Q10: Activities (Alt Option) | R10: Total
A11: 1 | B11: =VLOOKUP('District Summary'!$A$3,'School Resource Matrices'!$B$6:$FD$53,4) -> Upton Elementary | C11: =VLOOKUP('District Summary'!$A$3,'School Resource Matrices'!$B$6:$FD$53,131) -> 899246.7269 | D11: =VLOOKUP('District Summary'!$A$3,'School Resource Matrices'!$B$6:$FD$53,124) -> 0 | E11: =VLOOKUP('District Summary'!$A$3,'School Resource Matrices'!$B$6:$FD$53,130) -> 33522.6786 | F11: =VLOOKUP('District Summary'!$A$3,'School Resource Matrices'!$B$6:$FD$53,125) -> 9909.898927 | G11: =VLOOKUP('District Summary'!$A$3,'School Resource Matrices'!$B$6:$FD$53,135) -> 107534.0988 | H11: =VLOOKUP('District Summary'!$A$3,'School Resource Matrices'!$B$6:$FD$53,150) -> 0 | I11: =VLOOKUP('District Summary'!$A$3,'School Resource Matrices'!$B$6:$FD$53,144) -> 56038.27073 | J11: =VLOOKUP('District Summary'!$A$3,'School Resource Matrices'!$B$6:$FD$53,148) -> 20386.08244 | K11: =VLOOKUP('District Summary'!$A$3,'School Resource Matrices'!$B$6:$FD$53,151) -> 24115.87329 | L11: =VLOOKUP('District Summary'!$A$3,'School Resource Matrices'!$B$6:$FD$53,152) -> 31504.25 | M11: =VLOOKUP('District Summary'!$A$3,'School Resource Matrices'!$B$6:$FD$53,153) -> 0 | N11: =VLOOKUP('District Summary'!$A$3,'School Resource Matrices'!$B$6:$FD$53,154) -> 5077.22493 | O11: =VLOOKUP('District Summary'!$A$3,'School Resource Matrices'!$B$6:$FD$53,155) -> 15865.5403 | P11: =VLOOKUP('District Summary'!$A$3,'School Resource Matrices'!$B$6:$FD$53,156) -> 3150.425 | Q11: =VLOOKUP('District Summary'!$A$3,'School Resource Matrices'!$B$6:$FD$53,157) -> 2997.94443 | R11: =SUM(C11:Q11) -> 1209349.014
A12: 2 | B12: =VLOOKUP('District Summary'!$A$3,'School Resource Matrices'!$B$55:$FD$102,4) -> Upton Middle School | C12: =VLOOKUP('District Summary'!$A$3,'School Resource Matrices'!$B$55:$FD$102,131) -> 729939.4146 | D12: =VLOOKUP('District Summary'!$A$3,'School Resource Matrices'!$B$55:$FD$102,124) -> 10824.31563 | E12: =VLOOKUP('District Summary'!$A$3,'School Resource Matrices'!$B$55:$FD$102,130) -> 13452.17635 | F12: =VLOOKUP('District Summary'!$A$3,'School Resource Matrices'!$B$55:$FD$102,125) -> 7892.08376 | G12: =VLOOKUP('District Summary'!$A$3,'School Resource Matrices'!$B$55:$FD$102,135) -> 56644.52533 | H12: =VLOOKUP('District Summary'!$A$3,'School Resource Matrices'!$B$55:$FD$102,150) -> 0 | I12: =VLOOKUP('District Summary'!$A$3,'School Resource Matrices'!$B$55:$FD$102,144) -> 29518.64833 | J12: =VLOOKUP('District Summary'!$A$3,'School Resource Matrices'!$B$55:$FD$102,148) -> 8180.646282 | K12: =VLOOKUP('District Summary'!$A$3,'School Resource Matrices'!$B$55:$FD$102,151) -> 10584.61091 | L12: =VLOOKUP('District Summary'!$A$3,'School Resource Matrices'!$B$55:$FD$102,152) -> 13827.41667 | M12: =VLOOKUP('District Summary'!$A$3,'School Resource Matrices'!$B$55:$FD$102,153) -> 0 | N12: =VLOOKUP('District Summary'!$A$3,'School Resource Matrices'!$B$55:$FD$102,154) -> 2228.42647 | O12: =VLOOKUP('District Summary'!$A$3,'School Resource Matrices'!$B$55:$FD$102,155) -> 6963.487033 | P12: =VLOOKUP('District Summary'!$A$3,'School Resource Matrices'!$B$55:$FD$102,156) -> 1382.741667 | Q12: =VLOOKUP('District Summary'!$A$3,'School Resource Matrices'!$B$55:$FD$102,157) -> 35975.5 | R12: 927413.9931
A13: 3 | B13: =VLOOKUP('District Summary'!$A$3,'School Resource Matrices'!$B$104:$FD$151,4) -> Upton High School | C13: =VLOOKUP('District Summary'!$A$3,'School Resource Matrices'!$B$104:$FD$151,131) -> 931205.5565 | D13: =VLOOKUP('District Summary'!$A$3,'School Resource Matrices'!$B$104:$FD$151,124) -> 16212.89114 | E13: =VLOOKUP('District Summary'!$A$3,'School Resource Matrices'!$B$104:$FD$151,130) -> 25186.19629 | F13: =VLOOKUP('District Summary'!$A$3,'School Resource Matrices'!$B$104:$FD$151,125) -> 9905.529923 | G13: =VLOOKUP('District Summary'!$A$3,'School Resource Matrices'!$B$104:$FD$151,135) -> 84843.37981 | H13: =VLOOKUP('District Summary'!$A$3,'School Resource Matrices'!$B$104:$FD$151,150) -> 0 | I13: =VLOOKUP('District Summary'!$A$3,'School Resource Matrices'!$B$104:$FD$151,144) -> 44213.66191 | J13: =VLOOKUP('District Summary'!$A$3,'School Resource Matrices'!$B$104:$FD$151,148) -> 24506.29343 | K13: =VLOOKUP('District Summary'!$A$3,'School Resource Matrices'!$B$104:$FD$151,151) -> 15853.85628 | L13: =VLOOKUP('District Summary'!$A$3,'School Resource Matrices'!$B$104:$FD$151,152) -> 20711 | M13: =VLOOKUP('District Summary'!$A$3,'School Resource Matrices'!$B$104:$FD$151,153) -> 24231.9389 | N13: =VLOOKUP('District Summary'!$A$3,'School Resource Matrices'!$B$104:$FD$151,154) -> 3337.78476 | O13: =VLOOKUP('District Summary'!$A$3,'School Resource Matrices'!$B$104:$FD$151,155) -> 10430.0596 | P13: =VLOOKUP('District Summary'!$A$3,'School Resource Matrices'!$B$104:$FD$151,156) -> 2071.1 | Q13: =VLOOKUP('District Summary'!$A$3,'School Resource Matrices'!$B$104:$FD$151,157) -> 135320.5 | R13: 1348029.749
A14: 4 | B14: =VLOOKUP('District Summary'!$A$3,'School Resource Matrices'!$B$153:$FD$200,4) -> 0 | C14: =VLOOKUP('District Summary'!$A$3,'School Resource Matrices'!$B$153:$FD$200,131) -> 0 | D14: =VLOOKUP('District Summary'!$A$3,'School Resource Matrices'!$B$153:$FD$200,124) -> 0 | E14: =VLOOKUP('District Summary'!$A$3,'School Resource Matrices'!$B$153:$FD$200,130) -> 0 | F14: =VLOOKUP('District Summary'!$A$3,'School Resource Matrices'!$B$153:$FD$200,125) -> 0 | G14: =VLOOKUP('District Summary'!$A$3,'School Resource Matrices'!$B$153:$FD$200,135) -> 0 | H14: =VLOOKUP('District Summary'!$A$3,'School Resource Matrices'!$B$153:$FD$200,150) -> 0 | I14: =VLOOKUP('District Summary'!$A$3,'School Resource Matrices'!$B$153:$FD$200,144) -> 0 | J14: =VLOOKUP('District Summary'!$A$3,'School Resource Matrices'!$B$153:$FD$200,148) -> 0 | K14: =VLOOKUP('District Summary'!$A$3,'School Resource Matrices'!$B$153:$FD$200,151) -> 0 | L14: =VLOOKUP('District Summary'!$A$3,'School Resource Matrices'!$B$153:$FD$200,152) -> 0 | M14: =VLOOKUP('District Summary'!$A$3,'School Resource Matrices'!$B$153:$FD$200,153) -> 0 | N14: =VLOOKUP('District Summary'!$A$3,'School Resource Matrices'!$B$153:$FD$200,154) -> 0 | O14: =VLOOKUP('District Summary'!$A$3,'School Resource Matrices'!$B$153:$FD$200,155) -> 0 | P14: =VLOOKUP('District Summary'!$A$3,'School Resource Matrices'!$B$153:$FD$200,156) -> 0 | Q14: =VLOOKUP('District Summary'!$A$3,'School Resource Matrices'!$B$153:$FD$200,157) -> 0 | R14: 0
A15: 5 | B15: =VLOOKUP('District Summary'!$A$3,'School Resource Matrices'!$B$202:$FD$249,4) -> 0 | C15: =VLOOKUP('District Summary'!$A$3,'School Resource Matrices'!$B$202:$FD$249,131) -> 0 | D15: =VLOOKUP('District Summary'!$A$3,'School Resource Matrices'!$B$202:$FD$249,124) -> 0 | E15: =VLOOKUP('District Summary'!$A$3,'School Resource Matrices'!$B$202:$FD$249,130) -> 0 | F15: =VLOOKUP('District Summary'!$A$3,'School Resource Matrices'!$B$202:$FD$249,125) -> 0 | G15: =VLOOKUP('District Summary'!$A$3,'School Resource Matrices'!$B$202:$FD$249,135) -> 0 | H15: =VLOOKUP('District Summary'!$A$3,'School Resource Matrices'!$B$202:$FD$249,150) -> 0 | I15: =VLOOKUP('District Summary'!$A$3,'School Resource Matrices'!$B$202:$FD$249,144) -> 0 | J15: =VLOOKUP('District Summary'!$A$3,'School Resource Matrices'!$B$202:$FD$249,148) -> 0 | K15: =VLOOKUP('District Summary'!$A$3,'School Resource Matrices'!$B$202:$FD$249,151) -> 0 | L15: =VLOOKUP('District Summary'!$A$3,'School Resource Matrices'!$B$202:$FD$249,152) -> 0 | M15: =VLOOKUP('District Summary'!$A$3,'School Resource Matrices'!$B$202:$FD$249,153) -> 0 | N15: =VLOOKUP('District Summary'!$A$3,'School Resource Matrices'!$B$202:$FD$249,154) -> 0 | O15: =VLOOKUP('District Summary'!$A$3,'School Resource Matrices'!$B$202:$FD$249,155) -> 0 | P15: =VLOOKUP('District Summary'!$A$3,'School Resource Matrices'!$B$202:$FD$249,156) -> 0 | Q15: =VLOOKUP('District Summary'!$A$3,'School Resource Matrices'!$B$202:$FD$249,157) -> 0 | R15: 0
A16: 6 | B16: =VLOOKUP('District Summary'!$A$3,'School Resource Matrices'!$B$251:$FD$298,4) -> 0 | C16: =VLOOKUP('District Summary'!$A$3,'School Resource Matrices'!$B$251:$FD$298,131) -> 0 | D16: =VLOOKUP('District Summary'!$A$3,'School Resource Matrices'!$B$251:$FD$298,124) -> 0 | E16: =VLOOKUP('District Summary'!$A$3,'School Resource Matrices'!$B$251:$FD$298,130) -> 0 | F16: =VLOOKUP('District Summary'!$A$3,'School Resource Matrices'!$B$251:$FD$298,125) -> 0 | G16: =VLOOKUP('District Summary'!$A$3,'School Resource Matrices'!$B$251:$FD$298,135) -> 0 | H16: =VLOOKUP('District Summary'!$A$3,'School Resource Matrices'!$B$251:$FD$298,150) -> 0 | I16: =VLOOKUP('District Summary'!$A$3,'School Resource Matrices'!$B$251:$FD$298,144) -> 0 | J16: =VLOOKUP('District Summary'!$A$3,'School Resource Matrices'!$B$251:$FD$298,148) -> 0 | K16: =VLOOKUP('District Summary'!$A$3,'School Resource Matrices'!$B$251:$FD$298,151) -> 0 | L16: =VLOOKUP('District Summary'!$A$3,'School Resource Matrices'!$B$251:$FD$298,152) -> 0 | M16: =VLOOKUP('District Summary'!$A$3,'School Resource Matrices'!$B$251:$FD$298,153) -> 0 | N16: =VLOOKUP('District Summary'!$A$3,'School Resource Matrices'!$B$251:$FD$298,154) -> 0 | O16: =VLOOKUP('District Summary'!$A$3,'School Resource Matrices'!$B$251:$FD$298,155) -> 0 | P16: =VLOOKUP('District Summary'!$A$3,'School Resource Matrices'!$B$251:$FD$298,156) -> 0 | Q16: =VLOOKUP('District Summary'!$A$3,'School Resource Matrices'!$B$251:$FD$298,157) -> 0 | R16: 0
A17: 7 | B17: =VLOOKUP('District Summary'!$A$3,'School Resource Matrices'!$B$300:$FD$347,4) -> 0 | C17: =VLOOKUP('District Summary'!$A$3,'School Resource Matrices'!$B$300:$FD$347,131) -> 0 | D17: =VLOOKUP('District Summary'!$A$3,'School Resource Matrices'!$B$300:$FD$347,124) -> 0 | E17: =VLOOKUP('District Summary'!$A$3,'School Resource Matrices'!$B$300:$FD$347,130) -> 0 | F17: =VLOOKUP('District Summary'!$A$3,'School Resource Matrices'!$B$300:$FD$347,125) -> 0 | G17: =VLOOKUP('District Summary'!$A$3,'School Resource Matrices'!$B$300:$FD$347,135) -> 0 | H17: =VLOOKUP('District Summary'!$A$3,'School Resource Matrices'!$B$300:$FD$347,150) -> 0 | I17: =VLOOKUP('District Summary'!$A$3,'School Resource Matrices'!$B$300:$FD$347,144) -> 0 | J17: =VLOOKUP('District Summary'!$A$3,'School Resource Matrices'!$B$300:$FD$347,148) -> 0 | K17: =VLOOKUP('District Summary'!$A$3,'School Resource Matrices'!$B$300:$FD$347,151) -> 0 | L17: =VLOOKUP('District Summary'!$A$3,'School Resource Matrices'!$B$300:$FD$347,152) -> 0 | M17: =VLOOKUP('District Summary'!$A$3,'School Resource Matrices'!$B$300:$FD$347,153) -> 0 | N17: =VLOOKUP('District Summary'!$A$3,'School Resource Matrices'!$B$300:$FD$347,154) -> 0 | O17: =VLOOKUP('District Summary'!$A$3,'School Resource Matrices'!$B$300:$FD$347,155) -> 0 | P17: =VLOOKUP('District Summary'!$A$3,'School Resource Matrices'!$B$300:$FD$347,156) -> 0 | Q17: =VLOOKUP('District Summary'!$A$3,'School Resource Matrices'!$B$300:$FD$347,157) -> 0 | R17: 0
A18: 8 | B18: =VLOOKUP('District Summary'!$A$3,'School Resource Matrices'!$B$349:$FD$396,4) -> 0 | C18: =VLOOKUP('District Summary'!$A$3,'School Resource Matrices'!$B$349:$FD$396,131) -> 0 | D18: =VLOOKUP('District Summary'!$A$3,'School Resource Matrices'!$B$349:$FD$396,124) -> 0 | E18: =VLOOKUP('District Summary'!$A$3,'School Resource Matrices'!$B$349:$FD$396,130) -> 0 | F18: =VLOOKUP('District Summary'!$A$3,'School Resource Matrices'!$B$349:$FD$396,125) -> 0 | G18: =VLOOKUP('District Summary'!$A$3,'School Resource Matrices'!$B$349:$FD$396,135) -> 0 | H18: =VLOOKUP('District Summary'!$A$3,'School Resource Matrices'!$B$349:$FD$396,150) -> 0 | I18: =VLOOKUP('District Summary'!$A$3,'School Resource Matrices'!$B$349:$FD$396,144) -> 0 | J18: =VLOOKUP('District Summary'!$A$3,'School Resource Matrices'!$B$349:$FD$396,148) -> 0 | K18: =VLOOKUP('District Summary'!$A$3,'School Resource Matrices'!$B$349:$FD$396,151) -> 0 | L18: =VLOOKUP('District Summary'!$A$3,'School Resource Matrices'!$B$349:$FD$396,152) -> 0 | M18: =VLOOKUP('District Summary'!$A$3,'School Resource Matrices'!$B$349:$FD$396,153) -> 0 | N18: =VLOOKUP('District Summary'!$A$3,'School Resource Matrices'!$B$349:$FD$396,154) -> 0 | O18: =VLOOKUP('District Summary'!$A$3,'School Resource Matrices'!$B$349:$FD$396,155) -> 0 | P18: =VLOOKUP('District Summary'!$A$3,'School Resource Matrices'!$B$349:$FD$396,156) -> 0 | Q18: =VLOOKUP('District Summary'!$A$3,'School Resource Matrices'!$B$349:$FD$396,157) -> 0 | R18: 0
A19: 9 | B19: =VLOOKUP('District Summary'!$A$3,'School Resource Matrices'!$B$398:$FD$445,4) -> 0 | C19: =VLOOKUP('District Summary'!$A$3,'School Resource Matrices'!$B$398:$FD$445,131) -> 0 | D19: =VLOOKUP('District Summary'!$A$3,'School Resource Matrices'!$B$398:$FD$445,124) -> 0 | E19: =VLOOKUP('District Summary'!$A$3,'School Resource Matrices'!$B$398:$FD$445,130) -> 0 | F19: =VLOOKUP('District Summary'!$A$3,'School Resource Matrices'!$B$398:$FD$445,125) -> 0 | G19: =VLOOKUP('District Summary'!$A$3,'School Resource Matrices'!$B$398:$FD$445,135) -> 0 | H19: =VLOOKUP('District Summary'!$A$3,'School Resource Matrices'!$B$398:$FD$445,150) -> 0 | I19: =VLOOKUP('District Summary'!$A$3,'School Resource Matrices'!$B$398:$FD$445,144) -> 0 | J19: =VLOOKUP('District Summary'!$A$3,'School Resource Matrices'!$B$398:$FD$445,148) -> 0 | K19: =VLOOKUP('District Summary'!$A$3,'School Resource Matrices'!$B$398:$FD$445,151) -> 0 | L19: =VLOOKUP('District Summary'!$A$3,'School Resource Matrices'!$B$398:$FD$445,152) -> 0 | M19: =VLOOKUP('District Summary'!$A$3,'School Resource Matrices'!$B$398:$FD$445,153) -> 0 | N19: =VLOOKUP('District Summary'!$A$3,'School Resource Matrices'!$B$398:$FD$445,154) -> 0 | O19: =VLOOKUP('District Summary'!$A$3,'School Resource Matrices'!$B$398:$FD$445,155) -> 0 | P19: =VLOOKUP('District Summary'!$A$3,'School Resource Matrices'!$B$398:$FD$445,156) -> 0 | Q19: =VLOOKUP('District Summary'!$A$3,'School Resource Matrices'!$B$398:$FD$445,157) -> 0 | R19: 0
A20: 10 | B20: =VLOOKUP('District Summary'!$A$3,'School Resource Matrices'!$B$447:$FD$494,4) -> 0 | C20: =VLOOKUP('District Summary'!$A$3,'School Resource Matrices'!$B$447:$FD$494,131) -> 0 | D20: =VLOOKUP('District Summary'!$A$3,'School Resource Matrices'!$B$447:$FD$494,124) -> 0 | E20: =VLOOKUP('District Summary'!$A$3,'School Resource Matrices'!$B$447:$FD$494,130) -> 0 | F20: =VLOOKUP('District Summary'!$A$3,'School Resource Matrices'!$B$447:$FD$494,125) -> 0 | G20: =VLOOKUP('District Summary'!$A$3,'School Resource Matrices'!$B$447:$FD$494,135) -> 0 | H20: =VLOOKUP('District Summary'!$A$3,'School Resource Matrices'!$B$447:$FD$494,150) -> 0 | I20: =VLOOKUP('District Summary'!$A$3,'School Resource Matrices'!$B$447:$FD$494,144) -> 0 | J20: =VLOOKUP('District Summary'!$A$3,'School Resource Matrices'!$B$447:$FD$494,148) -> 0 | K20: =VLOOKUP('District Summary'!$A$3,'School Resource Matrices'!$B$447:$FD$494,151) -> 0 | L20: =VLOOKUP('District Summary'!$A$3,'School Resource Matrices'!$B$447:$FD$494,152) -> 0 | M20: =VLOOKUP('District Summary'!$A$3,'School Resource Matrices'!$B$447:$FD$494,153) -> 0 | N20: =VLOOKUP('District Summary'!$A$3,'School Resource Matrices'!$B$447:$FD$494,154) -> 0 | O20: =VLOOKUP('District Summary'!$A$3,'School Resource Matrices'!$B$447:$FD$494,155) -> 0 | P20: =VLOOKUP('District Summary'!$A$3,'School Resource Matrices'!$B$447:$FD$494,156) -> 0 | Q20: =VLOOKUP('District Summary'!$A$3,'School Resource Matrices'!$B$447:$FD$494,157) -> 0 | R20: 0
A21: 11 | B21: =VLOOKUP('District Summary'!$A$3,'School Resource Matrices'!$B$496:$FD$543,4) -> 0 | C21: =VLOOKUP('District Summary'!$A$3,'School Resource Matrices'!$B$496:$FD$543,131) -> 0 | D21: =VLOOKUP('District Summary'!$A$3,'School Resource Matrices'!$B$496:$FD$543,124) -> 0 | E21: =VLOOKUP('District Summary'!$A$3,'School Resource Matrices'!$B$496:$FD$543,130) -> 0 | F21: =VLOOKUP('District Summary'!$A$3,'School Resource Matrices'!$B$496:$FD$543,125) -> 0 | G21: =VLOOKUP('District Summary'!$A$3,'School Resource Matrices'!$B$496:$FD$543,135) -> 0 | H21: =VLOOKUP('District Summary'!$A$3,'School Resource Matrices'!$B$496:$FD$543,150) -> 0 | I21: =VLOOKUP('District Summary'!$A$3,'School Resource Matrices'!$B$496:$FD$543,144) -> 0 | J21: =VLOOKUP('District Summary'!$A$3,'School Resource Matrices'!$B$496:$FD$543,148) -> 0 | K21: =VLOOKUP('District Summary'!$A$3,'School Resource Matrices'!$B$496:$FD$543,151) -> 0 | L21: =VLOOKUP('District Summary'!$A$3,'School Resource Matrices'!$B$496:$FD$543,152) -> 0 | M21: =VLOOKUP('District Summary'!$A$3,'School Resource Matrices'!$B$496:$FD$543,153) -> 0 | N21: =VLOOKUP('District Summary'!$A$3,'School Resource Matrices'!$B$496:$FD$543,154) -> 0 | O21: =VLOOKUP('District Summary'!$A$3,'School Resource Matrices'!$B$496:$FD$543,155) -> 0 | P21: =VLOOKUP('District Summary'!$A$3,'School Resource Matrices'!$B$496:$FD$543,156) -> 0 | Q21: =VLOOKUP('District Summary'!$A$3,'School Resource Matrices'!$B$496:$FD$543,157) -> 0 | R21: 0
A22: 12 | B22: =VLOOKUP('District Summary'!$A$3,'School Resource Matrices'!$B$545:$FD$592,4) -> 0 | C22: =VLOOKUP('District Summary'!$A$3,'School Resource Matrices'!$B$545:$FD$592,131) -> 0 | D22: =VLOOKUP('District Summary'!$A$3,'School Resource Matrices'!$B$545:$FD$592,124) -> 0 | E22: =VLOOKUP('District Summary'!$A$3,'School Resource Matrices'!$B$545:$FD$592,130) -> 0 | F22: =VLOOKUP('District Summary'!$A$3,'School Resource Matrices'!$B$545:$FD$592,125) -> 0 | G22: =VLOOKUP('District Summary'!$A$3,'School Resource Matrices'!$B$545:$FD$592,135) -> 0 | H22: =VLOOKUP('District Summary'!$A$3,'School Resource Matrices'!$B$545:$FD$592,150) -> 0 | I22: =VLOOKUP('District Summary'!$A$3,'School Resource Matrices'!$B$545:$FD$592,144) -> 0 | J22: =VLOOKUP('District Summary'!$A$3,'School Resource Matrices'!$B$545:$FD$592,148) -> 0 | K22: =VLOOKUP('District Summary'!$A$3,'School Resource Matrices'!$B$545:$FD$592,151) -> 0 | L22: =VLOOKUP('District Summary'!$A$3,'School Resource Matrices'!$B$545:$FD$592,152) -> 0 | M22: =VLOOKUP('District Summary'!$A$3,'School Resource Matrices'!$B$545:$FD$592,153) -> 0 | N22: =VLOOKUP('District Summary'!$A$3,'School Resource Matrices'!$B$545:$FD$592,154) -> 0 | O22: =VLOOKUP('District Summary'!$A$3,'School Resource Matrices'!$B$545:$FD$592,155) -> 0 | P22: =VLOOKUP('District Summary'!$A$3,'School Resource Matrices'!$B$545:$FD$592,156) -> 0 | Q22: =VLOOKUP('District Summary'!$A$3,'School Resource Matrices'!$B$545:$FD$592,157) -> 0 | R22: 0
A23: 13 | B23: =VLOOKUP('District Summary'!$A$3,'School Resource Matrices'!$B$594:$FD$641,4) -> 0 | C23: =VLOOKUP('District Summary'!$A$3,'School Resource Matrices'!$B$594:$FD$641,131) -> 0 | D23: =VLOOKUP('District Summary'!$A$3,'School Resource Matrices'!$B$594:$FD$641,124) -> 0 | E23: =VLOOKUP('District Summary'!$A$3,'School Resource Matrices'!$B$594:$FD$641,130) -> 0 | F23: =VLOOKUP('District Summary'!$A$3,'School Resource Matrices'!$B$594:$FD$641,125) -> 0 | G23: =VLOOKUP('District Summary'!$A$3,'School Resource Matrices'!$B$594:$FD$641,135) -> 0 | H23: =VLOOKUP('District Summary'!$A$3,'School Resource Matrices'!$B$594:$FD$641,150) -> 0 | I23: =VLOOKUP('District Summary'!$A$3,'School Resource Matrices'!$B$594:$FD$641,144) -> 0 | J23: =VLOOKUP('District Summary'!$A$3,'School Resource Matrices'!$B$594:$FD$641,148) -> 0 | K23: =VLOOKUP('District Summary'!$A$3,'School Resource Matrices'!$B$594:$FD$641,151) -> 0 | L23: =VLOOKUP('District Summary'!$A$3,'School Resource Matrices'!$B$594:$FD$641,152) -> 0 | M23: =VLOOKUP('District Summary'!$A$3,'School Resource Matrices'!$B$594:$FD$641,153) -> 0 | N23: =VLOOKUP('District Summary'!$A$3,'School Resource Matrices'!$B$594:$FD$641,154) -> 0 | O23: =VLOOKUP('District Summary'!$A$3,'School Resource Matrices'!$B$594:$FD$641,155) -> 0 | P23: =VLOOKUP('District Summary'!$A$3,'School Resource Matrices'!$B$594:$FD$641,156) -> 0 | Q23: =VLOOKUP('District Summary'!$A$3,'School Resource Matrices'!$B$594:$FD$641,157) -> 0 | R23: 0
A24: 14 | B24: =VLOOKUP('District Summary'!$A$3,'School Resource Matrices'!$B$643:$FD$690,4) -> 0 | C24: =VLOOKUP('District Summary'!$A$3,'School Resource Matrices'!$B$643:$FD$690,131) -> 0 | D24: =VLOOKUP('District Summary'!$A$3,'School Resource Matrices'!$B$643:$FD$690,124) -> 0 | E24: =VLOOKUP('District Summary'!$A$3,'School Resource Matrices'!$B$643:$FD$690,130) -> 0 | F24: =VLOOKUP('District Summary'!$A$3,'School Resource Matrices'!$B$643:$FD$690,125) -> 0 | G24: =VLOOKUP('District Summary'!$A$3,'School Resource Matrices'!$B$643:$FD$690,135) -> 0 | H24: =VLOOKUP('District Summary'!$A$3,'School Resource Matrices'!$B$643:$FD$690,150) -> 0 | I24: =VLOOKUP('District Summary'!$A$3,'School Resource Matrices'!$B$643:$FD$690,144) -> 0 | J24: =VLOOKUP('District Summary'!$A$3,'School Resource Matrices'!$B$643:$FD$690,148) -> 0 | K24: =VLOOKUP('District Summary'!$A$3,'School Resource Matrices'!$B$643:$FD$690,151) -> 0 | L24: =VLOOKUP('District Summary'!$A$3,'School Resource Matrices'!$B$643:$FD$690,152) -> 0 | M24: =VLOOKUP('District Summary'!$A$3,'School Resource Matrices'!$B$643:$FD$690,153) -> 0 | N24: =VLOOKUP('District Summary'!$A$3,'School Resource Matrices'!$B$643:$FD$690,154) -> 0 | O24: =VLOOKUP('District Summary'!$A$3,'School Resource Matrices'!$B$643:$FD$690,155) -> 0 | P24: =VLOOKUP('District Summary'!$A$3,'School Resource Matrices'!$B$643:$FD$690,156) -> 0 | Q24: =VLOOKUP('District Summary'!$A$3,'School Resource Matrices'!$B$643:$FD$690,157) -> 0 | R24: 0
A25: 15 | B25: =VLOOKUP('District Summary'!$A$3,'School Resource Matrices'!$B$692:$FD$739,4) -> 0 | C25: =VLOOKUP('District Summary'!$A$3,'School Resource Matrices'!$B$692:$FD$739,131) -> 0 | D25: =VLOOKUP('District Summary'!$A$3,'School Resource Matrices'!$B$692:$FD$739,124) -> 0 | E25: =VLOOKUP('District Summary'!$A$3,'School Resource Matrices'!$B$692:$FD$739,130) -> 0 | F25: =VLOOKUP('District Summary'!$A$3,'School Resource Matrices'!$B$692:$FD$739,125) -> 0 | G25: =VLOOKUP('District Summary'!$A$3,'School Resource Matrices'!$B$692:$FD$739,135) -> 0 | H25: =VLOOKUP('District Summary'!$A$3,'School Resource Matrices'!$B$692:$FD$739,150) -> 0 | I25: =VLOOKUP('District Summary'!$A$3,'School Resource Matrices'!$B$692:$FD$739,144) -> 0 | J25: =VLOOKUP('District Summary'!$A$3,'School Resource Matrices'!$B$692:$FD$739,148) -> 0 | K25: =VLOOKUP('District Summary'!$A$3,'School Resource Matrices'!$B$692:$FD$739,151) -> 0 | L25: =VLOOKUP('District Summary'!$A$3,'School Resource Matrices'!$B$692:$FD$739,152) -> 0 | M25: =VLOOKUP('District Summary'!$A$3,'School Resource Matrices'!$B$692:$FD$739,153) -> 0 | N25: =VLOOKUP('District Summary'!$A$3,'School Resource Matrices'!$B$692:$FD$739,154) -> 0 | O25: =VLOOKUP('District Summary'!$A$3,'School Resource Matrices'!$B$692:$FD$739,155) -> 0 | P25: =VLOOKUP('District Summary'!$A$3,'School Resource Matrices'!$B$692:$FD$739,156) -> 0 | Q25: =VLOOKUP('District Summary'!$A$3,'School Resource Matrices'!$B$692:$FD$739,157) -> 0 | R25: 0
A26: 16 | B26: =VLOOKUP('District Summary'!$A$3,'School Resource Matrices'!$B$741:$FD$788,4) -> 0 | C26: =VLOOKUP('District Summary'!$A$3,'School Resource Matrices'!$B$741:$FD$788,131) -> 0 | D26: =VLOOKUP('District Summary'!$A$3,'School Resource Matrices'!$B$741:$FD$788,124) -> 0 | E26: =VLOOKUP('District Summary'!$A$3,'School Resource Matrices'!$B$741:$FD$788,130) -> 0 | F26: =VLOOKUP('District Summary'!$A$3,'School Resource Matrices'!$B$741:$FD$788,125) -> 0 | G26: =VLOOKUP('District Summary'!$A$3,'School Resource Matrices'!$B$741:$FD$788,135) -> 0 | H26: =VLOOKUP('District Summary'!$A$3,'School Resource Matrices'!$B$741:$FD$788,150) -> 0 | I26: =VLOOKUP('District Summary'!$A$3,'School Resource Matrices'!$B$741:$FD$788,144) -> 0 | J26: =VLOOKUP('District Summary'!$A$3,'School Resource Matrices'!$B$741:$FD$788,148) -> 0 | K26: =VLOOKUP('District Summary'!$A$3,'School Resource Matrices'!$B$741:$FD$788,151) -> 0 | L26: =VLOOKUP('District Summary'!$A$3,'School Resource Matrices'!$B$741:$FD$788,152) -> 0 | M26: =VLOOKUP('District Summary'!$A$3,'School Resource Matrices'!$B$741:$FD$788,153) -> 0 | N26: =VLOOKUP('District Summary'!$A$3,'School Resource Matrices'!$B$741:$FD$788,154) -> 0 | O26: =VLOOKUP('District Summary'!$A$3,'School Resource Matrices'!$B$741:$FD$788,155) -> 0 | P26: =VLOOKUP('District Summary'!$A$3,'School Resource Matrices'!$B$741:$FD$788,156) -> 0 | Q26: =VLOOKUP('District Summary'!$A$3,'School Resource Matrices'!$B$741:$FD$788,157) -> 0 | R26: 0
A27: 17 | B27: =VLOOKUP('District Summary'!$A$3,'School Resource Matrices'!$B$790:$FD$837,4) -> 0 | C27: =VLOOKUP('District Summary'!$A$3,'School Resource Matrices'!$B$790:$FD$837,131) -> 0 | D27: =VLOOKUP('District Summary'!$A$3,'School Resource Matrices'!$B$790:$FD$837,124) -> 0 | E27: =VLOOKUP('District Summary'!$A$3,'School Resource Matrices'!$B$790:$FD$837,130) -> 0 | F27: =VLOOKUP('District Summary'!$A$3,'School Resource Matrices'!$B$790:$FD$837,125) -> 0 | G27: =VLOOKUP('District Summary'!$A$3,'School Resource Matrices'!$B$790:$FD$837,135) -> 0 | H27: =VLOOKUP('District Summary'!$A$3,'School Resource Matrices'!$B$790:$FD$837,150) -> 0 | I27: =VLOOKUP('District Summary'!$A$3,'School Resource Matrices'!$B$790:$FD$837,144) -> 0 | J27: =VLOOKUP('District Summary'!$A$3,'School Resource Matrices'!$B$790:$FD$837,148) -> 0 | K27: =VLOOKUP('District Summary'!$A$3,'School Resource Matrices'!$B$790:$FD$837,151) -> 0 | L27: =VLOOKUP('District Summary'!$A$3,'School Resource Matrices'!$B$790:$FD$837,152) -> 0 | M27: =VLOOKUP('District Summary'!$A$3,'School Resource Matrices'!$B$790:$FD$837,153) -> 0 | N27: =VLOOKUP('District Summary'!$A$3,'School Resource Matrices'!$B$790:$FD$837,154) -> 0 | O27: =VLOOKUP('District Summary'!$A$3,'School Resource Matrices'!$B$790:$FD$837,155) -> 0 | P27: =VLOOKUP('District Summary'!$A$3,'School Resource Matrices'!$B$790:$FD$837,156) -> 0 | Q27: =VLOOKUP('District Summary'!$A$3,'School Resource Matrices'!$B$790:$FD$837,157) -> 0 | R27: 0
A28: 18 | B28: =VLOOKUP('District Summary'!$A$3,'School Resource Matrices'!$B$839:$FD$886,4) -> 0 | C28: =VLOOKUP('District Summary'!$A$3,'School Resource Matrices'!$B$839:$FD$886,131) -> 0 | D28: =VLOOKUP('District Summary'!$A$3,'School Resource Matrices'!$B$839:$FD$886,124) -> 0 | E28: =VLOOKUP('District Summary'!$A$3,'School Resource Matrices'!$B$839:$FD$886,130) -> 0 | F28: =VLOOKUP('District Summary'!$A$3,'School Resource Matrices'!$B$839:$FD$886,125) -> 0 | G28: =VLOOKUP('District Summary'!$A$3,'School Resource Matrices'!$B$839:$FD$886,135) -> 0 | H28: =VLOOKUP('District Summary'!$A$3,'School Resource Matrices'!$B$839:$FD$886,150) -> 0 | I28: =VLOOKUP('District Summary'!$A$3,'School Resource Matrices'!$B$839:$FD$886,144) -> 0 | J28: =VLOOKUP('District Summary'!$A$3,'School Resource Matrices'!$B$839:$FD$886,148) -> 0 | K28: =VLOOKUP('District Summary'!$A$3,'School Resource Matrices'!$B$839:$FD$886,151) -> 0 | L28: =VLOOKUP('District Summary'!$A$3,'School Resource Matrices'!$B$839:$FD$886,152) -> 0 | M28: =VLOOKUP('District Summary'!$A$3,'School Resource Matrices'!$B$839:$FD$886,153) -> 0 | N28: =VLOOKUP('District Summary'!$A$3,'School Resource Matrices'!$B$839:$FD$886,154) -> 0 | O28: =VLOOKUP('District Summary'!$A$3,'School Resource Matrices'!$B$839:$FD$886,155) -> 0 | P28: =VLOOKUP('District Summary'!$A$3,'School Resource Matrices'!$B$839:$FD$886,156) -> 0 | Q28: =VLOOKUP('District Summary'!$A$3,'School Resource Matrices'!$B$839:$FD$886,157) -> 0 | R28: 0
A29: 19 | B29: =VLOOKUP('District Summary'!$A$3,'School Resource Matrices'!$B$888:$FD$935,4) -> 0 | C29: =VLOOKUP('District Summary'!$A$3,'School Resource Matrices'!$B$888:$FD$935,131) -> 0 | D29: =VLOOKUP('District Summary'!$A$3,'School Resource Matrices'!$B$888:$FD$935,124) -> 0 | E29: =VLOOKUP('District Summary'!$A$3,'School Resource Matrices'!$B$888:$FD$935,130) -> 0 | F29: =VLOOKUP('District Summary'!$A$3,'School Resource Matrices'!$B$888:$FD$935,125) -> 0 | G29: =VLOOKUP('District Summary'!$A$3,'School Resource Matrices'!$B$888:$FD$935,135) -> 0 | H29: =VLOOKUP('District Summary'!$A$3,'School Resource Matrices'!$B$888:$FD$935,150) -> 0 | I29: =VLOOKUP('District Summary'!$A$3,'School Resource Matrices'!$B$888:$FD$935,144) -> 0 | J29: =VLOOKUP('District Summary'!$A$3,'School Resource Matrices'!$B$888:$FD$935,148) -> 0 | K29: =VLOOKUP('District Summary'!$A$3,'School Resource Matrices'!$B$888:$FD$935,151) -> 0 | L29: =VLOOKUP('District Summary'!$A$3,'School Resource Matrices'!$B$888:$FD$935,152) -> 0 | M29: =VLOOKUP('District Summary'!$A$3,'School Resource Matrices'!$B$888:$FD$935,153) -> 0 | N29: =VLOOKUP('District Summary'!$A$3,'School Resource Matrices'!$B$888:$FD$935,154) -> 0 | O29: =VLOOKUP('District Summary'!$A$3,'School Resource Matrices'!$B$888:$FD$935,155) -> 0 | P29: =VLOOKUP('District Summary'!$A$3,'School Resource Matrices'!$B$888:$FD$935,156) -> 0 | Q29: =VLOOKUP('District Summary'!$A$3,'School Resource Matrices'!$B$888:$FD$935,157) -> 0 | R29: 0
A30: 20 | B30: =VLOOKUP('District Summary'!$A$3,'School Resource Matrices'!$B$937:$FD$984,4) -> 0 | C30: =VLOOKUP('District Summary'!$A$3,'School Resource Matrices'!$B$937:$FD$984,131) -> 0 | D30: =VLOOKUP('District Summary'!$A$3,'School Resource Matrices'!$B$937:$FD$984,124) -> 0 | E30: =VLOOKUP('District Summary'!$A$3,'School Resource Matrices'!$B$937:$FD$984,130) -> 0 | F30: =VLOOKUP('District Summary'!$A$3,'School Resource Matrices'!$B$937:$FD$984,125) -> 0 | G30: =VLOOKUP('District Summary'!$A$3,'School Resource Matrices'!$B$937:$FD$984,135) -> 0 | H30: =VLOOKUP('District Summary'!$A$3,'School Resource Matrices'!$B$937:$FD$984,150) -> 0 | I30: =VLOOKUP('District Summary'!$A$3,'School Resource Matrices'!$B$937:$FD$984,144) -> 0 | J30: =VLOOKUP('District Summary'!$A$3,'School Resource Matrices'!$B$937:$FD$984,148) -> 0 | K30: =VLOOKUP('District Summary'!$A$3,'School Resource Matrices'!$B$937:$FD$984,151) -> 0 | L30: =VLOOKUP('District Summary'!$A$3,'School Resource Matrices'!$B$937:$FD$984,152) -> 0 | M30: =VLOOKUP('District Summary'!$A$3,'School Resource Matrices'!$B$937:$FD$984,153) -> 0 | N30: =VLOOKUP('District Summary'!$A$3,'School Resource Matrices'!$B$937:$FD$984,154) -> 0 | O30: =VLOOKUP('District Summary'!$A$3,'School Resource Matrices'!$B$937:$FD$984,155) -> 0 | P30: =VLOOKUP('District Summary'!$A$3,'School Resource Matrices'!$B$937:$FD$984,156) -> 0 | Q30: =VLOOKUP('District Summary'!$A$3,'School Resource Matrices'!$B$937:$FD$984,157) -> 0 | R30: 0
A31: 21 | B31: =VLOOKUP('District Summary'!$A$3,'School Resource Matrices'!$B$986:$FD$1033,4) -> 0 | C31: =VLOOKUP('District Summary'!$A$3,'School Resource Matrices'!$B$986:$FD$1033,131) -> 0 | D31: =VLOOKUP('District Summary'!$A$3,'School Resource Matrices'!$B$986:$FD$1033,124) -> 0 | E31: =VLOOKUP('District Summary'!$A$3,'School Resource Matrices'!$B$986:$FD$1033,130) -> 0 | F31: =VLOOKUP('District Summary'!$A$3,'School Resource Matrices'!$B$986:$FD$1033,125) -> 0 | G31: =VLOOKUP('District Summary'!$A$3,'School Resource Matrices'!$B$986:$FD$1033,135) -> 0 | H31: =VLOOKUP('District Summary'!$A$3,'School Resource Matrices'!$B$986:$FD$1033,150) -> 0 | I31: =VLOOKUP('District Summary'!$A$3,'School Resource Matrices'!$B$986:$FD$1033,144) -> 0 | J31: =VLOOKUP('District Summary'!$A$3,'School Resource Matrices'!$B$986:$FD$1033,148) -> 0 | K31: =VLOOKUP('District Summary'!$A$3,'School Resource Matrices'!$B$986:$FD$1033,151) -> 0 | L31: =VLOOKUP('District Summary'!$A$3,'School Resource Matrices'!$B$986:$FD$1033,152) -> 0 | M31: =VLOOKUP('District Summary'!$A$3,'School Resource Matrices'!$B$986:$FD$1033,153) -> 0 | N31: =VLOOKUP('District Summary'!$A$3,'School Resource Matrices'!$B$986:$FD$1033,154) -> 0 | O31: =VLOOKUP('District Summary'!$A$3,'School Resource Matrices'!$B$986:$FD$1033,155) -> 0 | P31: =VLOOKUP('District Summary'!$A$3,'School Resource Matrices'!$B$986:$FD$1033,156) -> 0 | Q31: =VLOOKUP('District Summary'!$A$3,'School Resource Matrices'!$B$986:$FD$1033,157) -> 0 | R31: 0
A32: 22 | B32: =VLOOKUP('District Summary'!$A$3,'School Resource Matrices'!$B$1035:$FD$1082,4) -> 0 | C32: =VLOOKUP('District Summary'!$A$3,'School Resource Matrices'!$B$1035:$FD$1082,131) -> 0 | D32: =VLOOKUP('District Summary'!$A$3,'School Resource Matrices'!$B$1035:$FD$1082,124) -> 0 | E32: =VLOOKUP('District Summary'!$A$3,'School Resource Matrices'!$B$1035:$FD$1082,130) -> 0 | F32: =VLOOKUP('District Summary'!$A$3,'School Resource Matrices'!$B$1035:$FD$1082,125) -> 0 | G32: =VLOOKUP('District Summary'!$A$3,'School Resource Matrices'!$B$1035:$FD$1082,135) -> 0 | H32: =VLOOKUP('District Summary'!$A$3,'School Resource Matrices'!$B$1035:$FD$1082,150) -> 0 | I32: =VLOOKUP('District Summary'!$A$3,'School Resource Matrices'!$B$1035:$FD$1082,144) -> 0 | J32: =VLOOKUP('District Summary'!$A$3,'School Resource Matrices'!$B$1035:$FD$1082,148) -> 0 | K32: =VLOOKUP('District Summary'!$A$3,'School Resource Matrices'!$B$1035:$FD$1082,151) -> 0 | L32: =VLOOKUP('District Summary'!$A$3,'School Resource Matrices'!$B$1035:$FD$1082,152) -> 0 | M32: =VLOOKUP('District Summary'!$A$3,'School Resource Matrices'!$B$1035:$FD$1082,153) -> 0 | N32: =VLOOKUP('District Summary'!$A$3,'School Resource Matrices'!$B$1035:$FD$1082,154) -> 0 | O32: =VLOOKUP('District Summary'!$A$3,'School Resource Matrices'!$B$1035:$FD$1082,155) -> 0 | P32: =VLOOKUP('District Summary'!$A$3,'School Resource Matrices'!$B$1035:$FD$1082,156) -> 0 | Q32: =VLOOKUP('District Summary'!$A$3,'School Resource Matrices'!$B$1035:$FD$1082,157) -> 0 | R32: 0
A33: 23 | B33: =VLOOKUP('District Summary'!$A$3,'School Resource Matrices'!$B$1084:$FD$1131,4) -> 0 | C33: =VLOOKUP('District Summary'!$A$3,'School Resource Matrices'!$B$1084:$FD$1131,131) -> 0 | D33: =VLOOKUP('District Summary'!$A$3,'School Resource Matrices'!$B$1084:$FD$1131,124) -> 0 | E33: =VLOOKUP('District Summary'!$A$3,'School Resource Matrices'!$B$1084:$FD$1131,130) -> 0 | F33: =VLOOKUP('District Summary'!$A$3,'School Resource Matrices'!$B$1084:$FD$1131,125) -> 0 | G33: =VLOOKUP('District Summary'!$A$3,'School Resource Matrices'!$B$1084:$FD$1131,135) -> 0 | H33: =VLOOKUP('District Summary'!$A$3,'School Resource Matrices'!$B$1084:$FD$1131,150) -> 0 | I33: =VLOOKUP('District Summary'!$A$3,'School Resource Matrices'!$B$1084:$FD$1131,144) -> 0 | J33: =VLOOKUP('District Summary'!$A$3,'School Resource Matrices'!$B$1084:$FD$1131,148) -> 0 | K33: =VLOOKUP('District Summary'!$A$3,'School Resource Matrices'!$B$1084:$FD$1131,151) -> 0 | L33: =VLOOKUP('District Summary'!$A$3,'School Resource Matrices'!$B$1084:$FD$1131,152) -> 0 | M33: =VLOOKUP('District Summary'!$A$3,'School Resource Matrices'!$B$1084:$FD$1131,153) -> 0 | N33: =VLOOKUP('District Summary'!$A$3,'School Resource Matrices'!$B$1084:$FD$1131,154) -> 0 | O33: =VLOOKUP('District Summary'!$A$3,'School Resource Matrices'!$B$1084:$FD$1131,155) -> 0 | P33: =VLOOKUP('District Summary'!$A$3,'School Resource Matrices'!$B$1084:$FD$1131,156) -> 0 | Q33: =VLOOKUP('District Summary'!$A$3,'School Resource Matrices'!$B$1084:$FD$1131,157) -> 0 | R33: 0
A34: 24 | B34: =VLOOKUP('District Summary'!$A$3,'School Resource Matrices'!$B$1133:$FD$1180,4) -> 0 | C34: =VLOOKUP('District Summary'!$A$3,'School Resource Matrices'!$B$1133:$FD$1180,131) -> 0 | D34: =VLOOKUP('District Summary'!$A$3,'School Resource Matrices'!$B$1133:$FD$1180,124) -> 0 | E34: =VLOOKUP('District Summary'!$A$3,'School Resource Matrices'!$B$1133:$FD$1180,130) -> 0 | F34: =VLOOKUP('District Summary'!$A$3,'School Resource Matrices'!$B$1133:$FD$1180,125) -> 0 | G34: =VLOOKUP('District Summary'!$A$3,'School Resource Matrices'!$B$1133:$FD$1180,135) -> 0 | H34: =VLOOKUP('District Summary'!$A$3,'School Resource Matrices'!$B$1133:$FD$1180,150) -> 0 | I34: =VLOOKUP('District Summary'!$A$3,'School Resource Matrices'!$B$1133:$FD$1180,144) -> 0 | J34: =VLOOKUP('District Summary'!$A$3,'School Resource Matrices'!$B$1133:$FD$1180,148) -> 0 | K34: =VLOOKUP('District Summary'!$A$3,'School Resource Matrices'!$B$1133:$FD$1180,151) -> 0 | L34: =VLOOKUP('District Summary'!$A$3,'School Resource Matrices'!$B$1133:$FD$1180,152) -> 0 | M34: =VLOOKUP('District Summary'!$A$3,'School Resource Matrices'!$B$1133:$FD$1180,153) -> 0 | N34: =VLOOKUP('District Summary'!$A$3,'School Resource Matrices'!$B$1133:$FD$1180,154) -> 0 | O34: =VLOOKUP('District Summary'!$A$3,'School Resource Matrices'!$B$1133:$FD$1180,155) -> 0 | P34: =VLOOKUP('District Summary'!$A$3,'School Resource Matrices'!$B$1133:$FD$1180,156) -> 0 | Q34: =VLOOKUP('District Summary'!$A$3,'School Resource Matrices'!$B$1133:$FD$1180,157) -> 0 | R34: 0
A35: 25 | B35: =VLOOKUP('District Summary'!$A$3,'School Resource Matrices'!$B$1182:$FD$1229,4) -> 0 | C35: =VLOOKUP('District Summary'!$A$3,'School Resource Matrices'!$B$1182:$FD$1229,131) -> 0 | D35: =VLOOKUP('District Summary'!$A$3,'School Resource Matrices'!$B$1182:$FD$1229,124) -> 0 | E35: =VLOOKUP('District Summary'!$A$3,'School Resource Matrices'!$B$1182:$FD$1229,130) -> 0 | F35: =VLOOKUP('District Summary'!$A$3,'School Resource Matrices'!$B$1182:$FD$1229,125) -> 0 | G35: =VLOOKUP('District Summary'!$A$3,'School Resource Matrices'!$B$1182:$FD$1229,135) -> 0 | H35: =VLOOKUP('District Summary'!$A$3,'School Resource Matrices'!$B$1182:$FD$1229,150) -> 0 | I35: =VLOOKUP('District Summary'!$A$3,'School Resource Matrices'!$B$1182:$FD$1229,144) -> 0 | J35: =VLOOKUP('District Summary'!$A$3,'School Resource Matrices'!$B$1182:$FD$1229,148) -> 0 | K35: =VLOOKUP('District Summary'!$A$3,'School Resource Matrices'!$B$1182:$FD$1229,151) -> 0 | L35: =VLOOKUP('District Summary'!$A$3,'School Resource Matrices'!$B$1182:$FD$1229,152) -> 0 | M35: =VLOOKUP('District Summary'!$A$3,'School Resource Matrices'!$B$1182:$FD$1229,153) -> 0 | N35: =VLOOKUP('District Summary'!$A$3,'School Resource Matrices'!$B$1182:$FD$1229,154) -> 0 | O35: =VLOOKUP('District Summary'!$A$3,'School Resource Matrices'!$B$1182:$FD$1229,155) -> 0 | P35: =VLOOKUP('District Summary'!$A$3,'School Resource Matrices'!$B$1182:$FD$1229,156) -> 0 | Q35: =VLOOKUP('District Summary'!$A$3,'School Resource Matrices'!$B$1182:$FD$1229,157) -> 0 | R35: 0
A36: 26 | B36: =VLOOKUP('District Summary'!$A$3,'School Resource Matrices'!$B$1231:$FD$1278,4) -> 0 | C36: =VLOOKUP('District Summary'!$A$3,'School Resource Matrices'!$B$1231:$FD$1278,131) -> 0 | D36: =VLOOKUP('District Summary'!$A$3,'School Resource Matrices'!$B$1231:$FD$1278,124) -> 0 | E36: =VLOOKUP('District Summary'!$A$3,'School Resource Matrices'!$B$1231:$FD$1278,130) -> 0 | F36: =VLOOKUP('District Summary'!$A$3,'School Resource Matrices'!$B$1231:$FD$1278,125) -> 0 | G36: =VLOOKUP('District Summary'!$A$3,'School Resource Matrices'!$B$1231:$FD$1278,135) -> 0 | H36: =VLOOKUP('District Summary'!$A$3,'School Resource Matrices'!$B$1231:$FD$1278,150) -> 0 | I36: =VLOOKUP('District Summary'!$A$3,'School Resource Matrices'!$B$1231:$FD$1278,144) -> 0 | J36: =VLOOKUP('District Summary'!$A$3,'School Resource Matrices'!$B$1231:$FD$1278,148) -> 0 | K36: =VLOOKUP('District Summary'!$A$3,'School Resource Matrices'!$B$1231:$FD$1278,151) -> 0 | L36: =VLOOKUP('District Summary'!$A$3,'School Resource Matrices'!$B$1231:$FD$1278,152) -> 0 | M36: =VLOOKUP('District Summary'!$A$3,'School Resource Matrices'!$B$1231:$FD$1278,153) -> 0 | N36: =VLOOKUP('District Summary'!$A$3,'School Resource Matrices'!$B$1231:$FD$1278,154) -> 0 | O36: =VLOOKUP('District Summary'!$A$3,'School Resource Matrices'!$B$1231:$FD$1278,155) -> 0 | P36: =VLOOKUP('District Summary'!$A$3,'School Resource Matrices'!$B$1231:$FD$1278,156) -> 0 | Q36: =VLOOKUP('District Summary'!$A$3,'School Resource Matrices'!$B$1231:$FD$1278,157) -> 0 | R36: 0
A37: 27 | B37: =VLOOKUP('District Summary'!$A$3,'School Resource Matrices'!$B$1280:$FD$1327,4) -> 0 | C37: =VLOOKUP('District Summary'!$A$3,'School Resource Matrices'!$B$1280:$FD$1327,131) -> 0 | D37: =VLOOKUP('District Summary'!$A$3,'School Resource Matrices'!$B$1280:$FD$1327,124) -> 0 | E37: =VLOOKUP('District Summary'!$A$3,'School Resource Matrices'!$B$1280:$FD$1327,130) -> 0 | F37: =VLOOKUP('District Summary'!$A$3,'School Resource Matrices'!$B$1280:$FD$1327,125) -> 0 | G37: =VLOOKUP('District Summary'!$A$3,'School Resource Matrices'!$B$1280:$FD$1327,135) -> 0 | H37: =VLOOKUP('District Summary'!$A$3,'School Resource Matrices'!$B$1280:$FD$1327,150) -> 0 | I37: =VLOOKUP('District Summary'!$A$3,'School Resource Matrices'!$B$1280:$FD$1327,144) -> 0 | J37: =VLOOKUP('District Summary'!$A$3,'School Resource Matrices'!$B$1280:$FD$1327,148) -> 0 | K37: =VLOOKUP('District Summary'!$A$3,'School Resource Matrices'!$B$1280:$FD$1327,151) -> 0 | L37: =VLOOKUP('District Summary'!$A$3,'School Resource Matrices'!$B$1280:$FD$1327,152) -> 0 | M37: =VLOOKUP('District Summary'!$A$3,'School Resource Matrices'!$B$1280:$FD$1327,153) -> 0 | N37: =VLOOKUP('District Summary'!$A$3,'School Resource Matrices'!$B$1280:$FD$1327,154) -> 0 | O37: =VLOOKUP('District Summary'!$A$3,'School Resource Matrices'!$B$1280:$FD$1327,155) -> 0 | P37: =VLOOKUP('District Summary'!$A$3,'School Resource Matrices'!$B$1280:$FD$1327,156) -> 0 | Q37: =VLOOKUP('District Summary'!$A$3,'School Resource Matrices'!$B$1280:$FD$1327,157) -> 0 | R37: 0
A38: 28 | B38: =VLOOKUP('District Summary'!$A$3,'School Resource Matrices'!$B$1329:$FD$1376,4) -> 0 | C38: =VLOOKUP('District Summary'!$A$3,'School Resource Matrices'!$B$1329:$FD$1376,131) -> 0 | D38: =VLOOKUP('District Summary'!$A$3,'School Resource Matrices'!$B$1329:$FD$1376,124) -> 0 | E38: =VLOOKUP('District Summary'!$A$3,'School Resource Matrices'!$B$1329:$FD$1376,130) -> 0 | F38: =VLOOKUP('District Summary'!$A$3,'School Resource Matrices'!$B$1329:$FD$1376,125) -> 0 | G38: =VLOOKUP('District Summary'!$A$3,'School Resource Matrices'!$B$1329:$FD$1376,135) -> 0 | H38: =VLOOKUP('District Summary'!$A$3,'School Resource Matrices'!$B$1329:$FD$1376,150) -> 0 | I38: =VLOOKUP('District Summary'!$A$3,'School Resource Matrices'!$B$1329:$FD$1376,144) -> 0 | J38: =VLOOKUP('District Summary'!$A$3,'School Resource Matrices'!$B$1329:$FD$1376,148) -> 0 | K38: =VLOOKUP('District Summary'!$A$3,'School Resource Matrices'!$B$1329:$FD$1376,151) -> 0 | L38: =VLOOKUP('District Summary'!$A$3,'School Resource Matrices'!$B$1329:$FD$1376,152) -> 0 | M38: =VLOOKUP('District Summary'!$A$3,'School Resource Matrices'!$B$1329:$FD$1376,153) -> 0 | N38: =VLOOKUP('District Summary'!$A$3,'School Resource Matrices'!$B$1329:$FD$1376,154) -> 0 | O38: =VLOOKUP('District Summary'!$A$3,'School Resource Matrices'!$B$1329:$FD$1376,155) -> 0 | P38: =VLOOKUP('District Summary'!$A$3,'School Resource Matrices'!$B$1329:$FD$1376,156) -> 0 | Q38: =VLOOKUP('District Summary'!$A$3,'School Resource Matrices'!$B$1329:$FD$1376,157) -> 0 | R38: 0
A39: 29 | B39: =VLOOKUP('District Summary'!$A$3,'School Resource Matrices'!$B$1378:$FD$1425,4) -> 0 | C39: =VLOOKUP('District Summary'!$A$3,'School Resource Matrices'!$B$1378:$FD$1425,131) -> 0 | D39: =VLOOKUP('District Summary'!$A$3,'School Resource Matrices'!$B$1378:$FD$1425,124) -> 0 | E39: =VLOOKUP('District Summary'!$A$3,'School Resource Matrices'!$B$1378:$FD$1425,130) -> 0 | F39: =VLOOKUP('District Summary'!$A$3,'School Resource Matrices'!$B$1378:$FD$1425,125) -> 0 | G39: =VLOOKUP('District Summary'!$A$3,'School Resource Matrices'!$B$1378:$FD$1425,135) -> 0 | H39: =VLOOKUP('District Summary'!$A$3,'School Resource Matrices'!$B$1378:$FD$1425,150) -> 0 | I39: =VLOOKUP('District Summary'!$A$3,'School Resource Matrices'!$B$1378:$FD$1425,144) -> 0 | J39: =VLOOKUP('District Summary'!$A$3,'School Resource Matrices'!$B$1378:$FD$1425,148) -> 0 | K39: =VLOOKUP('District Summary'!$A$3,'School Resource Matrices'!$B$1378:$FD$1425,151) -> 0 | L39: =VLOOKUP('District Summary'!$A$3,'School Resource Matrices'!$B$1378:$FD$1425,152) -> 0 | M39: =VLOOKUP('District Summary'!$A$3,'School Resource Matrices'!$B$1378:$FD$1425,153) -> 0 | N39: =VLOOKUP('District Summary'!$A$3,'School Resource Matrices'!$B$1378:$FD$1425,154) -> 0 | O39: =VLOOKUP('District Summary'!$A$3,'School Resource Matrices'!$B$1378:$FD$1425,155) -> 0 | P39: =VLOOKUP('District Summary'!$A$3,'School Resource Matrices'!$B$1378:$FD$1425,156) -> 0 | Q39: =VLOOKUP('District Summary'!$A$3,'School Resource Matrices'!$B$1378:$FD$1425,157) -> 0 | R39: 0
A40: 30 | B40: =VLOOKUP('District Summary'!$A$3,'School Resource Matrices'!$B$1427:$FD$1474,4) -> 0 | C40: =VLOOKUP('District Summary'!$A$3,'School Resource Matrices'!$B$1427:$FD$1474,131) -> 0 | D40: =VLOOKUP('District Summary'!$A$3,'School Resource Matrices'!$B$1427:$FD$1474,124) -> 0 | E40: =VLOOKUP('District Summary'!$A$3,'School Resource Matrices'!$B$1427:$FD$1474,130) -> 0 | F40: =VLOOKUP('District Summary'!$A$3,'School Resource Matrices'!$B$1427:$FD$1474,125) -> 0 | G40: =VLOOKUP('District Summary'!$A$3,'School Resource Matrices'!$B$1427:$FD$1474,135) -> 0 | H40: =VLOOKUP('District Summary'!$A$3,'School Resource Matrices'!$B$1427:$FD$1474,150) -> 0 | I40: =VLOOKUP('District Summary'!$A$3,'School Resource Matrices'!$B$1427:$FD$1474,144) -> 0 | J40: =VLOOKUP('District Summary'!$A$3,'School Resource Matrices'!$B$1427:$FD$1474,148) -> 0 | K40: =VLOOKUP('District Summary'!$A$3,'School Resource Matrices'!$B$1427:$FD$1474,151) -> 0 | L40: =VLOOKUP('District Summary'!$A$3,'School Resource Matrices'!$B$1427:$FD$1474,152) -> 0 | M40: =VLOOKUP('District Summary'!$A$3,'School Resource Matrices'!$B$1427:$FD$1474,153) -> 0 | N40: =VLOOKUP('District Summary'!$A$3,'School Resource Matrices'!$B$1427:$FD$1474,154) -> 0 | O40: =VLOOKUP('District Summary'!$A$3,'School Resource Matrices'!$B$1427:$FD$1474,155) -> 0 | P40: =VLOOKUP('District Summary'!$A$3,'School Resource Matrices'!$B$1427:$FD$1474,156) -> 0 | Q40: =VLOOKUP('District Summary'!$A$3,'School Resource Matrices'!$B$1427:$FD$1474,157) -> 0 | R40: 0
A41: 31 | B41: =VLOOKUP('District Summary'!$A$3,'School Resource Matrices'!$B$1476:$FD$1523,4) -> 0 | C41: =VLOOKUP('District Summary'!$A$3,'School Resource Matrices'!$B$1476:$FD$1523,131) -> 0 | D41: =VLOOKUP('District Summary'!$A$3,'School Resource Matrices'!$B$1476:$FD$1523,124) -> 0 | E41: =VLOOKUP('District Summary'!$A$3,'School Resource Matrices'!$B$1476:$FD$1523,130) -> 0 | F41: =VLOOKUP('District Summary'!$A$3,'School Resource Matrices'!$B$1476:$FD$1523,125) -> 0 | G41: =VLOOKUP('District Summary'!$A$3,'School Resource Matrices'!$B$1476:$FD$1523,135) -> 0 | H41: =VLOOKUP('District Summary'!$A$3,'School Resource Matrices'!$B$1476:$FD$1523,150) -> 0 | I41: =VLOOKUP('District Summary'!$A$3,'School Resource Matrices'!$B$1476:$FD$1523,144) -> 0 | J41: =VLOOKUP('District Summary'!$A$3,'School Resource Matrices'!$B$1476:$FD$1523,148) -> 0 | K41: =VLOOKUP('District Summary'!$A$3,'School Resource Matrices'!$B$1476:$FD$1523,151) -> 0 | L41: =VLOOKUP('District Summary'!$A$3,'School Resource Matrices'!$B$1476:$FD$1523,152) -> 0 | M41: =VLOOKUP('District Summary'!$A$3,'School Resource Matrices'!$B$1476:$FD$1523,153) -> 0 | N41: =VLOOKUP('District Summary'!$A$3,'School Resource Matrices'!$B$1476:$FD$1523,154) -> 0 | O41: =VLOOKUP('District Summary'!$A$3,'School Resource Matrices'!$B$1476:$FD$1523,155) -> 0 | P41: =VLOOKUP('District Summary'!$A$3,'School Resource Matrices'!$B$1476:$FD$1523,156) -> 0 | Q41: =VLOOKUP('District Summary'!$A$3,'School Resource Matrices'!$B$1476:$FD$1523,157) -> 0 | R41: 0
A42: 32 | B42: =VLOOKUP('District Summary'!$A$3,'School Resource Matrices'!$B$1525:$FD$1572,4) -> 0 | C42: =VLOOKUP('District Summary'!$A$3,'School Resource Matrices'!$B$1525:$FD$1572,131) -> 0 | D42: =VLOOKUP('District Summary'!$A$3,'School Resource Matrices'!$B$1525:$FD$1572,124) -> 0 | E42: =VLOOKUP('District Summary'!$A$3,'School Resource Matrices'!$B$1525:$FD$1572,130) -> 0 | F42: =VLOOKUP('District Summary'!$A$3,'School Resource Matrices'!$B$1525:$FD$1572,125) -> 0 | G42: =VLOOKUP('District Summary'!$A$3,'School Resource Matrices'!$B$1525:$FD$1572,135) -> 0 | H42: =VLOOKUP('District Summary'!$A$3,'School Resource Matrices'!$B$1525:$FD$1572,150) -> 0 | I42: =VLOOKUP('District Summary'!$A$3,'School Resource Matrices'!$B$1525:$FD$1572,144) -> 0 | J42: =VLOOKUP('District Summary'!$A$3,'School Resource Matrices'!$B$1525:$FD$1572,148) -> 0 | K42: =VLOOKUP('District Summary'!$A$3,'School Resource Matrices'!$B$1525:$FD$1572,151) -> 0 | L42: =VLOOKUP('District Summary'!$A$3,'School Resource Matrices'!$B$1525:$FD$1572,152) -> 0 | M42: =VLOOKUP('District Summary'!$A$3,'School Resource Matrices'!$B$1525:$FD$1572,153) -> 0 | N42: =VLOOKUP('District Summary'!$A$3,'School Resource Matrices'!$B$1525:$FD$1572,154) -> 0 | O42: =VLOOKUP('District Summary'!$A$3,'School Resource Matrices'!$B$1525:$FD$1572,155) -> 0 | P42: =VLOOKUP('District Summary'!$A$3,'School Resource Matrices'!$B$1525:$FD$1572,156) -> 0 | Q42: =VLOOKUP('District Summary'!$A$3,'School Resource Matrices'!$B$1525:$FD$1572,157) -> 0 | R42: 0
A43: 33 | B43: =VLOOKUP('District Summary'!$A$3,'School Resource Matrices'!$B$1574:$FD$1621,4) -> 0 | C43: =VLOOKUP('District Summary'!$A$3,'School Resource Matrices'!$B$1574:$FD$1621,131) -> 0 | D43: =VLOOKUP('District Summary'!$A$3,'School Resource Matrices'!$B$1574:$FD$1621,124) -> 0 | E43: =VLOOKUP('District Summary'!$A$3,'School Resource Matrices'!$B$1574:$FD$1621,130) -> 0 | F43: =VLOOKUP('District Summary'!$A$3,'School Resource Matrices'!$B$1574:$FD$1621,125) -> 0 | G43: =VLOOKUP('District Summary'!$A$3,'School Resource Matrices'!$B$1574:$FD$1621,135) -> 0 | H43: =VLOOKUP('District Summary'!$A$3,'School Resource Matrices'!$B$1574:$FD$1621,150) -> 0 | I43: =VLOOKUP('District Summary'!$A$3,'School Resource Matrices'!$B$1574:$FD$1621,144) -> 0 | J43: =VLOOKUP('District Summary'!$A$3,'School Resource Matrices'!$B$1574:$FD$1621,148) -> 0 | K43: =VLOOKUP('District Summary'!$A$3,'School Resource Matrices'!$B$1574:$FD$1621,151) -> 0 | L43: =VLOOKUP('District Summary'!$A$3,'School Resource Matrices'!$B$1574:$FD$1621,152) -> 0 | M43: =VLOOKUP('District Summary'!$A$3,'School Resource Matrices'!$B$1574:$FD$1621,153) -> 0 | N43: =VLOOKUP('District Summary'!$A$3,'School Resource Matrices'!$B$1574:$FD$1621,154) -> 0 | O43: =VLOOKUP('District Summary'!$A$3,'School Resource Matrices'!$B$1574:$FD$1621,155) -> 0 | P43: =VLOOKUP('District Summary'!$A$3,'School Resource Matrices'!$B$1574:$FD$1621,156) -> 0 | Q43: =VLOOKUP('District Summary'!$A$3,'School Resource Matrices'!$B$1574:$FD$1621,157) -> 0 | R43: 0
A44: 34 | B44: =VLOOKUP('District Summary'!$A$3,'School Resource Matrices'!$B$1623:$FD$1670,4) -> 0 | C44: =VLOOKUP('District Summary'!$A$3,'School Resource Matrices'!$B$1623:$FD$1670,131) -> 0 | D44: =VLOOKUP('District Summary'!$A$3,'School Resource Matrices'!$B$1623:$FD$1670,124) -> 0 | E44: =VLOOKUP('District Summary'!$A$3,'School Resource Matrices'!$B$1623:$FD$1670,130) -> 0 | F44: =VLOOKUP('District Summary'!$A$3,'School Resource Matrices'!$B$1623:$FD$1670,125) -> 0 | G44: =VLOOKUP('District Summary'!$A$3,'School Resource Matrices'!$B$1623:$FD$1670,135) -> 0 | H44: =VLOOKUP('District Summary'!$A$3,'School Resource Matrices'!$B$1623:$FD$1670,150) -> 0 | I44: =VLOOKUP('District Summary'!$A$3,'School Resource Matrices'!$B$1623:$FD$1670,144) -> 0 | J44: =VLOOKUP('District Summary'!$A$3,'School Resource Matrices'!$B$1623:$FD$1670,148) -> 0 | K44: =VLOOKUP('District Summary'!$A$3,'School Resource Matrices'!$B$1623:$FD$1670,151) -> 0 | L44: =VLOOKUP('District Summary'!$A$3,'School Resource Matrices'!$B$1623:$FD$1670,152) -> 0 | M44: =VLOOKUP('District Summary'!$A$3,'School Resource Matrices'!$B$1623:$FD$1670,153) -> 0 | N44: =VLOOKUP('District Summary'!$A$3,'School Resource Matrices'!$B$1623:$FD$1670,154) -> 0 | O44: =VLOOKUP('District Summary'!$A$3,'School Resource Matrices'!$B$1623:$FD$1670,155) -> 0 | P44: =VLOOKUP('District Summary'!$A$3,'School Resource Matrices'!$B$1623:$FD$1670,156) -> 0 | Q44: =VLOOKUP('District Summary'!$A$3,'School Resource Matrices'!$B$1623:$FD$1670,157) -> 0 | R44: 0
A45: 35 | B45: =VLOOKUP('District Summary'!$A$3,'School Resource Matrices'!$B$1672:$FD$1719,4) -> 0 | C45: =VLOOKUP('District Summary'!$A$3,'School Resource Matrices'!$B$1672:$FD$1719,131) -> 0 | D45: =VLOOKUP('District Summary'!$A$3,'School Resource Matrices'!$B$1672:$FD$1719,124) -> 0 | E45: =VLOOKUP('District Summary'!$A$3,'School Resource Matrices'!$B$1672:$FD$1719,130) -> 0 | F45: =VLOOKUP('District Summary'!$A$3,'School Resource Matrices'!$B$1672:$FD$1719,125) -> 0 | G45: =VLOOKUP('District Summary'!$A$3,'School Resource Matrices'!$B$1672:$FD$1719,135) -> 0 | H45: =VLOOKUP('District Summary'!$A$3,'School Resource Matrices'!$B$1672:$FD$1719,150) -> 0 | I45: =VLOOKUP('District Summary'!$A$3,'School Resource Matrices'!$B$1672:$FD$1719,144) -> 0 | J45: =VLOOKUP('District Summary'!$A$3,'School Resource Matrices'!$B$1672:$FD$1719,148) -> 0 | K45: =VLOOKUP('District Summary'!$A$3,'School Resource Matrices'!$B$1672:$FD$1719,151) -> 0 | L45: =VLOOKUP('District Summary'!$A$3,'School Resource Matrices'!$B$1672:$FD$1719,152) -> 0 | M45: =VLOOKUP('District Summary'!$A$3,'School Resource Matrices'!$B$1672:$FD$1719,153) -> 0 | N45: =VLOOKUP('District Summary'!$A$3,'School Resource Matrices'!$B$1672:$FD$1719,154) -> 0 | O45: =VLOOKUP('District Summary'!$A$3,'School Resource Matrices'!$B$1672:$FD$1719,155) -> 0 | P45: =VLOOKUP('District Summary'!$A$3,'School Resource Matrices'!$B$1672:$FD$1719,156) -> 0 | Q45: =VLOOKUP('District Summary'!$A$3,'School Resource Matrices'!$B$1672:$FD$1719,157) -> 0 | R45: 0
A46: 36 | B46: =VLOOKUP('District Summary'!$A$3,'School Resource Matrices'!$B$1721:$FD$1768,4) -> 0 | C46: =VLOOKUP('District Summary'!$A$3,'School Resource Matrices'!$B$1721:$FD$1768,131) -> 0 | D46: =VLOOKUP('District Summary'!$A$3,'School Resource Matrices'!$B$1721:$FD$1768,124) -> 0 | E46: =VLOOKUP('District Summary'!$A$3,'School Resource Matrices'!$B$1721:$FD$1768,130) -> 0 | F46: =VLOOKUP('District Summary'!$A$3,'School Resource Matrices'!$B$1721:$FD$1768,125) -> 0 | G46: =VLOOKUP('District Summary'!$A$3,'School Resource Matrices'!$B$1721:$FD$1768,135) -> 0 | H46: =VLOOKUP('District Summary'!$A$3,'School Resource Matrices'!$B$1721:$FD$1768,150) -> 0 | I46: =VLOOKUP('District Summary'!$A$3,'School Resource Matrices'!$B$1721:$FD$1768,144) -> 0 | J46: =VLOOKUP('District Summary'!$A$3,'School Resource Matrices'!$B$1721:$FD$1768,148) -> 0 | K46: =VLOOKUP('District Summary'!$A$3,'School Resource Matrices'!$B$1721:$FD$1768,151) -> 0 | L46: =VLOOKUP('District Summary'!$A$3,'School Resource Matrices'!$B$1721:$FD$1768,152) -> 0 | M46: =VLOOKUP('District Summary'!$A$3,'School Resource Matrices'!$B$1721:$FD$1768,153) -> 0 | N46: =VLOOKUP('District Summary'!$A$3,'School Resource Matrices'!$B$1721:$FD$1768,154) -> 0 | O46: =VLOOKUP('District Summary'!$A$3,'School Resource Matrices'!$B$1721:$FD$1768,155) -> 0 | P46: =VLOOKUP('District Summary'!$A$3,'School Resource Matrices'!$B$1721:$FD$1768,156) -> 0 | Q46: =VLOOKUP('District Summary'!$A$3,'School Resource Matrices'!$B$1721:$FD$1768,157) -> 0 | R46: =SUM(C46:Q46) -> 0
A47: 37 | B47: =VLOOKUP('District Summary'!$A$3,'School Resource Matrices'!$B$1770:$FD$1817,4) -> 0 | C47: =VLOOKUP('District Summary'!$A$3,'School Resource Matrices'!$B$1770:$FD$1817,131) -> 0 | D47: =VLOOKUP('District Summary'!$A$3,'School Resource Matrices'!$B$1770:$FD$1817,124) -> 0 | E47: =VLOOKUP('District Summary'!$A$3,'School Resource Matrices'!$B$1770:$FD$1817,130) -> 0 | F47: =VLOOKUP('District Summary'!$A$3,'School Resource Matrices'!$B$1770:$FD$1817,125) -> 0 | G47: =VLOOKUP('District Summary'!$A$3,'School Resource Matrices'!$B$1770:$FD$1817,135) -> 0 | H47: =VLOOKUP('District Summary'!$A$3,'School Resource Matrices'!$B$1770:$FD$1817,150) -> 0 | I47: =VLOOKUP('District Summary'!$A$3,'School Resource Matrices'!$B$1770:$FD$1817,144) -> 0 | J47: =VLOOKUP('District Summary'!$A$3,'School Resource Matrices'!$B$1770:$FD$1817,148) -> 0 | K47: =VLOOKUP('District Summary'!$A$3,'School Resource Matrices'!$B$1770:$FD$1817,151) -> 0 | L47: =VLOOKUP('District Summary'!$A$3,'School Resource Matrices'!$B$1770:$FD$1817,152) -> 0 | M47: =VLOOKUP('District Summary'!$A$3,'School Resource Matrices'!$B$1770:$FD$1817,153) -> 0 | N47: =VLOOKUP('District Summary'!$A$3,'School Resource Matrices'!$B$1770:$FD$1817,154) -> 0 | O47: =VLOOKUP('District Summary'!$A$3,'School Resource Matrices'!$B$1770:$FD$1817,155) -> 0 | P47: =VLOOKUP('District Summary'!$A$3,'School Resource Matrices'!$B$1770:$FD$1817,156) -> 0 | Q47: =VLOOKUP('District Summary'!$A$3,'School Resource Matrices'!$B$1770:$FD$1817,157) -> 0 | R47: 0
A48: 38 | B48: =VLOOKUP('District Summary'!$A$3,'School Resource Matrices'!$B$1819:$FD$1866,4) -> 0 | C48: =VLOOKUP('District Summary'!$A$3,'School Resource Matrices'!$B$1819:$FD$1866,131) -> 0 | D48: =VLOOKUP('District Summary'!$A$3,'School Resource Matrices'!$B$1819:$FD$1866,124) -> 0 | E48: =VLOOKUP('District Summary'!$A$3,'School Resource Matrices'!$B$1819:$FD$1866,130) -> 0 | F48: =VLOOKUP('District Summary'!$A$3,'School Resource Matrices'!$B$1819:$FD$1866,125) -> 0 | G48: =VLOOKUP('District Summary'!$A$3,'School Resource Matrices'!$B$1819:$FD$1866,135) -> 0 | H48: =VLOOKUP('District Summary'!$A$3,'School Resource Matrices'!$B$1819:$FD$1866,150) -> 0 | I48: =VLOOKUP('District Summary'!$A$3,'School Resource Matrices'!$B$1819:$FD$1866,144) -> 0 | J48: =VLOOKUP('District Summary'!$A$3,'School Resource Matrices'!$B$1819:$FD$1866,148) -> 0 | K48: =VLOOKUP('District Summary'!$A$3,'School Resource Matrices'!$B$1819:$FD$1866,151) -> 0 | L48: =VLOOKUP('District Summary'!$A$3,'School Resource Matrices'!$B$1819:$FD$1866,152) -> 0 | M48: =VLOOKUP('District Summary'!$A$3,'School Resource Matrices'!$B$1819:$FD$1866,153) -> 0 | N48: =VLOOKUP('District Summary'!$A$3,'School Resource Matrices'!$B$1819:$FD$1866,154) -> 0 | O48: =VLOOKUP('District Summary'!$A$3,'School Resource Matrices'!$B$1819:$FD$1866,155) -> 0 | P48: =VLOOKUP('District Summary'!$A$3,'School Resource Matrices'!$B$1819:$FD$1866,156) -> 0 | Q48: =VLOOKUP('District Summary'!$A$3,'School Resource Matrices'!$B$1819:$FD$1866,157) -> 0 | R48: 0
A49: 39 | B49: =VLOOKUP('District Summary'!$A$3,'School Resource Matrices'!$B$1868:$FD$1915,4) -> 0 | C49: =VLOOKUP('District Summary'!$A$3,'School Resource Matrices'!$B$1868:$FD$1915,131) -> 0 | D49: =VLOOKUP('District Summary'!$A$3,'School Resource Matrices'!$B$1868:$FD$1915,124) -> 0 | E49: =VLOOKUP('District Summary'!$A$3,'School Resource Matrices'!$B$1868:$FD$1915,130) -> 0 | F49: =VLOOKUP('District Summary'!$A$3,'School Resource Matrices'!$B$1868:$FD$1915,125) -> 0 | G49: =VLOOKUP('District Summary'!$A$3,'School Resource Matrices'!$B$1868:$FD$1915,135) -> 0 | H49: =VLOOKUP('District Summary'!$A$3,'School Resource Matrices'!$B$1868:$FD$1915,150) -> 0 | I49: =VLOOKUP('District Summary'!$A$3,'School Resource Matrices'!$B$1868:$FD$1915,144) -> 0 | J49: =VLOOKUP('District Summary'!$A$3,'School Resource Matrices'!$B$1868:$FD$1915,148) -> 0 | K49: =VLOOKUP('District Summary'!$A$3,'School Resource Matrices'!$B$1868:$FD$1915,151) -> 0 | L49: =VLOOKUP('District Summary'!$A$3,'School Resource Matrices'!$B$1868:$FD$1915,152) -> 0 | M49: =VLOOKUP('District Summary'!$A$3,'School Resource Matrices'!$B$1868:$FD$1915,153) -> 0 | N49: =VLOOKUP('District Summary'!$A$3,'School Resource Matrices'!$B$1868:$FD$1915,154) -> 0 | O49: =VLOOKUP('District Summary'!$A$3,'School Resource Matrices'!$B$1868:$FD$1915,155) -> 0 | P49: =VLOOKUP('District Summary'!$A$3,'School Resource Matrices'!$B$1868:$FD$1915,156) -> 0 | Q49: =VLOOKUP('District Summary'!$A$3,'School Resource Matrices'!$B$1868:$FD$1915,157) -> 0 | R49: 0
A50: 40 | B50: =VLOOKUP('District Summary'!$A$3,'School Resource Matrices'!$B$1917:$FD$1964,4) -> 0 | C50: =VLOOKUP('District Summary'!$A$3,'School Resource Matrices'!$B$1917:$FD$1964,131) -> 0 | D50: =VLOOKUP('District Summary'!$A$3,'School Resource Matrices'!$B$1917:$FD$1964,124) -> 0 | E50: =VLOOKUP('District Summary'!$A$3,'School Resource Matrices'!$B$1917:$FD$1964,130) -> 0 | F50: =VLOOKUP('District Summary'!$A$3,'School Resource Matrices'!$B$1917:$FD$1964,125) -> 0 | G50: =VLOOKUP('District Summary'!$A$3,'School Resource Matrices'!$B$1917:$FD$1964,135) -> 0 | H50: =VLOOKUP('District Summary'!$A$3,'School Resource Matrices'!$B$1917:$FD$1964,150) -> 0 | I50: =VLOOKUP('District Summary'!$A$3,'School Resource Matrices'!$B$1917:$FD$1964,144) -> 0 | J50: =VLOOKUP('District Summary'!$A$3,'School Resource Matrices'!$B$1917:$FD$1964,148) -> 0 | K50: =VLOOKUP('District Summary'!$A$3,'School Resource Matrices'!$B$1917:$FD$1964,151) -> 0 | L50: =VLOOKUP('District Summary'!$A$3,'School Resource Matrices'!$B$1917:$FD$1964,152) -> 0 | M50: =VLOOKUP('District Summary'!$A$3,'School Resource Matrices'!$B$1917:$FD$1964,153) -> 0 | N50: =VLOOKUP('District Summary'!$A$3,'School Resource Matrices'!$B$1917:$FD$1964,154) -> 0 | O50: =VLOOKUP('District Summary'!$A$3,'School Resource Matrices'!$B$1917:$FD$1964,155) -> 0 | P50: =VLOOKUP('District Summary'!$A$3,'School Resource Matrices'!$B$1917:$FD$1964,156) -> 0 | Q50: =VLOOKUP('District Summary'!$A$3,'School Resource Matrices'!$B$1917:$FD$1964,157) -> 0 | R50: 0
R51: =SUM(R11:R50) -> 3484792.756
B52: District Total - School Level $ | C52: =SUM(C11:C50) -> 2560391.698 | D52: =SUM(D11:D50) -> 27037.20677 | E52: 72161.05124 | F52: 27707.51261 | G52: 249022.0039 | H52: 0 | I52: 129770.581 | J52: 53073.02216 | K52: 50554.34048 | L52: 66042.66667 | M52: 24231.9389 | N52: 10643.43616 | O52: 33259.08693 | P52: 6604.266667 | Q52: 174293.9444 | R52: =SUM(C52:Q52) -> 3484792.756
B56: School Level FTEs: | C56: ='School Summary-FTEs'!D53 -> 32.93786665 | D56: ='School Summary-FTEs'!R51 -> 0.4385830688 | E56: ='School Summary-FTEs'!U51 -> 1.883782606 | G56: ='School Summary-FTEs'!V51 -> 2.315749206 | H56: =SUM('School Summary-FTEs'!W51:X51) -> 0 | I56: ='School Summary-FTEs'!Y51 -> 2.315749206 | J56: ='School Summary-FTEs'!Z51 -> 1.139138922 | R56: =SUM(C56:J56) -> 41.03086966
B58: * See "Summer Schl-Ext Day Min Adj" worksheet for minimum Summer School/Extended Day adjustments.

Sheet Main Funding Sheet
A1: Version: Final FY 2018 Payment Model 7-05-17 | D1: Wyoming Department of Education | N1: FY2018 Statewide Payment Model
N2: Contact: Jed Cicarelli (307) 777-5808
N3: jed.cicarelli@wyo.gov
D4: Funding Year 2018 School Foundation Program Funding Worksheet
F6: District 7-Digit ID | H6: School District Name
A8: Enter Date Prepared -------------------->>>> | F8: 9999999 | H8: =VLOOKUP($F$8,'Base Sheet'!$A$10:$C$58,2) -> State Total | L8: Final FY 2018 Funding
F10: Enter 7-digit district ID
A11: A) ADM Calculation
B12: School ID | C12: School Name | D12: Grades | E12: School Year 2016-17 ADM | R12: Total 2016- | S12: Model ADM
D13: Served | E13: GK ADM | F13: G1 ADM | G13: G2 ADM | H13: G3 ADM | I13: G4 ADM | J13: G5 ADM | K13: G6 ADM | L13: G7 ADM | M13: G8 ADM | N13: G9 ADM | O13: G10 ADM | P13: G11 ADM | Q13: G12 ADM | R13: 2017 ADM | S13: Used in Calcs.
A14: 1 | B14: =VLOOKUP($F$8,'School Reference Sheet'!$A$5:$DR$52,3) -> 2307001 | C14: =VLOOKUP($F$8,'School Reference Sheet'!$A$5:$DR$52,4) -> Upton Elementary | D14: =VLOOKUP($F$8,'School Reference Sheet'!$A$5:$DR$52,5) -> K-5 | E14: =VLOOKUP($F$8,'"Main Funding" Schl Level Mtrix'!$B$8:$AA$55,14) -> 22.874 | F14: =VLOOKUP($F$8,'"Main Funding" Schl Level Mtrix'!$B$8:$AA$55,15) -> 19.509 | G14: =VLOOKUP($F$8,'"Main Funding" Schl Level Mtrix'!$B$8:$AA$55,16) -> 23.28 | H14: =VLOOKUP($F$8,'"Main Funding" Schl Level Mtrix'!$B$8:$AA$55,17) -> 22.423 | I14: =VLOOKUP($F$8,'"Main Funding" Schl Level Mtrix'!$B$8:$AA$55,18) -> 18.811 | J14: =VLOOKUP($F$8,'"Main Funding" Schl Level Mtrix'!$B$8:$AA$55,19) -> 19.12 | K14: =VLOOKUP($F$8,'"Main Funding" Schl Level Mtrix'!$B$8:$AA$55,20) -> 0 | L14: =VLOOKUP($F$8,'"Main Funding" Schl Level Mtrix'!$B$8:$AA$55,21) -> 0 | M14: =VLOOKUP($F$8,'"Main Funding" Schl Level Mtrix'!$B$8:$AA$55,22) -> 0 | N14: =VLOOKUP($F$8,'"Main Funding" Schl Level Mtrix'!$B$8:$AA$55,23) -> 0 | O14: =VLOOKUP($F$8,'"Main Funding" Schl Level Mtrix'!$B$8:$AA$55,24) -> 0 | P14: =VLOOKUP($F$8,'"Main Funding" Schl Level Mtrix'!$B$8:$AA$55,25) -> 0 | Q14: =VLOOKUP($F$8,'"Main Funding" Schl Level Mtrix'!$B$8:$AA$55,26) -> 0 | R14: =SUM(E14:Q14) -> 126.017 | S14: =VLOOKUP($F$8,'School Resource Matrices'!$B$6:$FD$53,9) -> 126.017
A15: 2 | B15: =VLOOKUP($F$8,'School Reference Sheet'!$A$5:$DR$52,6) -> 2307050 | C15: =VLOOKUP($F$8,'School Reference Sheet'!$A$5:$DR$52,7) -> Upton Middle School | D15: =VLOOKUP($F$8,'School Reference Sheet'!$A$5:$DR$52,8) -> 6-8 | E15: =VLOOKUP($F$8,'"Main Funding" Schl Level Mtrix'!$B$57:$AA$104,14) -> 0 | F15: =VLOOKUP($F$8,'"Main Funding" Schl Level Mtrix'!$B$57:$AA$104,15) -> 0 | G15: =VLOOKUP($F$8,'"Main Funding" Schl Level Mtrix'!$B$57:$AA$104,16) -> 0 | H15: =VLOOKUP($F$8,'"Main Funding" Schl Level Mtrix'!$B$57:$AA$104,17) -> 0 | I15: =VLOOKUP($F$8,'"Main Funding" Schl Level Mtrix'!$B$57:$AA$104,18) -> 0 | J15: =VLOOKUP($F$8,'"Main Funding" Schl Level Mtrix'!$B$57:$AA$104,19) -> 0 | K15: =VLOOKUP($F$8,'"Main Funding" Schl Level Mtrix'!$B$57:$AA$104,20) -> 12 | L15: =VLOOKUP($F$8,'"Main Funding" Schl Level Mtrix'!$B$57:$AA$104,21) -> 17.817 | M15: =VLOOKUP($F$8,'"Main Funding" Schl Level Mtrix'!$B$57:$AA$104,22) -> 18.743 | N15: =VLOOKUP($F$8,'"Main Funding" Schl Level Mtrix'!$B$57:$AA$104,23) -> 0 | O15: =VLOOKUP($F$8,'"Main Funding" Schl Level Mtrix'!$B$57:$AA$104,24) -> 0 | P15: =VLOOKUP($F$8,'"Main Funding" Schl Level Mtrix'!$B$57:$AA$104,25) -> 0 | Q15: =VLOOKUP($F$8,'"Main Funding" Schl Level Mtrix'!$B$57:$AA$104,26) -> 0 | R15: 48.56 | S15: =VLOOKUP($F$8,'School Resource Matrices'!$B$55:$FD$102,9) -> 55.30966667
A16: 3 | B16: =VLOOKUP($F$8,'School Reference Sheet'!$A$5:$DR$52,9) -> 2307055 | C16: =VLOOKUP($F$8,'School Reference Sheet'!$A$5:$DR$52,10) -> Upton High School | D16: =VLOOKUP($F$8,'School Reference Sheet'!$A$5:$DR$52,11) -> 9-12 | E16: =VLOOKUP($F$8,'"Main Funding" Schl Level Mtrix'!$B$106:$AA$153,14) -> 0 | F16: =VLOOKUP($F$8,'"Main Funding" Schl Level Mtrix'!$B$106:$AA$153,15) -> 0 | G16: =VLOOKUP($F$8,'"Main Funding" Schl Level Mtrix'!$B$106:$AA$153,16) -> 0 | H16: =VLOOKUP($F$8,'"Main Funding" Schl Level Mtrix'!$B$106:$AA$153,17) -> 0 | I16: =VLOOKUP($F$8,'"Main Funding" Schl Level Mtrix'!$B$106:$AA$153,18) -> 0 | J16: =VLOOKUP($F$8,'"Main Funding" Schl Level Mtrix'!$B$106:$AA$153,19) -> 0 | K16: =VLOOKUP($F$8,'"Main Funding" Schl Level Mtrix'!$B$106:$AA$153,20) -> 0 | L16: =VLOOKUP($F$8,'"Main Funding" Schl Level Mtrix'!$B$106:$AA$153,21) -> 0 | M16: =VLOOKUP($F$8,'"Main Funding" Schl Level Mtrix'!$B$106:$AA$153,22) -> 0 | N16: =VLOOKUP($F$8,'"Main Funding" Schl Level Mtrix'!$B$106:$AA$153,23) -> 17.246 | O16: =VLOOKUP($F$8,'"Main Funding" Schl Level Mtrix'!$B$106:$AA$153,24) -> 21.234 | P16: =VLOOKUP($F$8,'"Main Funding" Schl Level Mtrix'!$B$106:$AA$153,25) -> 21.789 | Q16: =VLOOKUP($F$8,'"Main Funding" Schl Level Mtrix'!$B$106:$AA$153,26) -> 16.149 | R16: 76.418 | S16: =VLOOKUP($F$8,'School Resource Matrices'!$B$104:$FD$151,9) -> 82.844
A17: 4 | B17: =VLOOKUP($F$8,'School Reference Sheet'!$A$5:$DR$52,12) -> N/A | C17: =VLOOKUP($F$8,'School Reference Sheet'!$A$5:$DR$52,13) -> N/A | D17: =VLOOKUP($F$8,'School Reference Sheet'!$A$5:$DR$52,14) -> N/A | E17: =VLOOKUP($F$8,'"Main Funding" Schl Level Mtrix'!$B$155:$AA$202,14) -> 0 | F17: =VLOOKUP($F$8,'"Main Funding" Schl Level Mtrix'!$B$155:$AA$202,15) -> 0 | G17: =VLOOKUP($F$8,'"Main Funding" Schl Level Mtrix'!$B$155:$AA$202,16) -> 0 | H17: =VLOOKUP($F$8,'"Main Funding" Schl Level Mtrix'!$B$155:$AA$202,17) -> 0 | I17: =VLOOKUP($F$8,'"Main Funding" Schl Level Mtrix'!$B$155:$AA$202,18) -> 0 | J17: =VLOOKUP($F$8,'"Main Funding" Schl Level Mtrix'!$B$155:$AA$202,19) -> 0 | K17: =VLOOKUP($F$8,'"Main Funding" Schl Level Mtrix'!$B$155:$AA$202,20) -> 0 | L17: =VLOOKUP($F$8,'"Main Funding" Schl Level Mtrix'!$B$155:$AA$202,21) -> 0 | M17: =VLOOKUP($F$8,'"Main Funding" Schl Level Mtrix'!$B$155:$AA$202,22) -> 0 | N17: =VLOOKUP($F$8,'"Main Funding" Schl Level Mtrix'!$B$155:$AA$202,23) -> 0 | O17: =VLOOKUP($F$8,'"Main Funding" Schl Level Mtrix'!$B$155:$AA$202,24) -> 0 | P17: =VLOOKUP($F$8,'"Main Funding" Schl Level Mtrix'!$B$155:$AA$202,25) -> 0 | Q17: =VLOOKUP($F$8,'"Main Funding" Schl Level Mtrix'!$B$155:$AA$202,26) -> 0 | R17: 0 | S17: =VLOOKUP($F$8,'School Resource Matrices'!$B$153:$FD$200,9) -> 0
A18: 5 | B18: =VLOOKUP($F$8,'School Reference Sheet'!$A$5:$DR$52,15) -> N/A | C18: =VLOOKUP($F$8,'School Reference Sheet'!$A$5:$DR$52,16) -> N/A | D18: =VLOOKUP($F$8,'School Reference Sheet'!$A$5:$DR$52,17) -> N/A | E18: =VLOOKUP($F$8,'"Main Funding" Schl Level Mtrix'!$B$204:$AA$251,14) -> 0 | F18: =VLOOKUP($F$8,'"Main Funding" Schl Level Mtrix'!$B$204:$AA$251,15) -> 0 | G18: =VLOOKUP($F$8,'"Main Funding" Schl Level Mtrix'!$B$204:$AA$251,16) -> 0 | H18: =VLOOKUP($F$8,'"Main Funding" Schl Level Mtrix'!$B$204:$AA$251,17) -> 0 | I18: =VLOOKUP($F$8,'"Main Funding" Schl Level Mtrix'!$B$204:$AA$251,18) -> 0 | J18: =VLOOKUP($F$8,'"Main Funding" Schl Level Mtrix'!$B$204:$AA$251,19) -> 0 | K18: =VLOOKUP($F$8,'"Main Funding" Schl Level Mtrix'!$B$204:$AA$251,20) -> 0 | L18: =VLOOKUP($F$8,'"Main Funding" Schl Level Mtrix'!$B$204:$AA$251,21) -> 0 | M18: =VLOOKUP($F$8,'"Main Funding" Schl Level Mtrix'!$B$204:$AA$251,22) -> 0 | N18: =VLOOKUP($F$8,'"Main Funding" Schl Level Mtrix'!$B$204:$AA$251,23) -> 0 | O18: =VLOOKUP($F$8,'"Main Funding" Schl Level Mtrix'!$B$204:$AA$251,24) -> 0 | P18: =VLOOKUP($F$8,'"Main Funding" Schl Level Mtrix'!$B$204:$AA$251,25) -> 0 | Q18: =VLOOKUP($F$8,'"Main Funding" Schl Level Mtrix'!$B$204:$AA$251,26) -> 0 | R18: 0 | S18: =VLOOKUP($F$8,'School Resource Matrices'!$B$202:$FD$249,9) -> 0
A19: 6 | B19: =VLOOKUP($F$8,'School Reference Sheet'!$A$5:$DR$52,18) -> N/A | C19: =VLOOKUP($F$8,'School Reference Sheet'!$A$5:$DR$52,19) -> N/A | D19: =VLOOKUP($F$8,'School Reference Sheet'!$A$5:$DR$52,20) -> N/A | E19: =VLOOKUP($F$8,'"Main Funding" Schl Level Mtrix'!$B$253:$AA$300,14) -> 0 | F19: =VLOOKUP($F$8,'"Main Funding" Schl Level Mtrix'!$B$253:$AA$300,15) -> 0 | G19: =VLOOKUP($F$8,'"Main Funding" Schl Level Mtrix'!$B$253:$AA$300,16) -> 0 | H19: =VLOOKUP($F$8,'"Main Funding" Schl Level Mtrix'!$B$253:$AA$300,17) -> 0 | I19: =VLOOKUP($F$8,'"Main Funding" Schl Level Mtrix'!$B$253:$AA$300,18) -> 0 | J19: =VLOOKUP($F$8,'"Main Funding" Schl Level Mtrix'!$B$253:$AA$300,19) -> 0 | K19: =VLOOKUP($F$8,'"Main Funding" Schl Level Mtrix'!$B$253:$AA$300,20) -> 0 | L19: =VLOOKUP($F$8,'"Main Funding" Schl Level Mtrix'!$B$253:$AA$300,21) -> 0 | M19: =VLOOKUP($F$8,'"Main Funding" Schl Level Mtrix'!$B$253:$AA$300,22) -> 0 | N19: =VLOOKUP($F$8,'"Main Funding" Schl Level Mtrix'!$B$253:$AA$300,23) -> 0 | O19: =VLOOKUP($F$8,'"Main Funding" Schl Level Mtrix'!$B$253:$AA$300,24) -> 0 | P19: =VLOOKUP($F$8,'"Main Funding" Schl Level Mtrix'!$B$253:$AA$300,25) -> 0 | Q19: =VLOOKUP($F$8,'"Main Funding" Schl Level Mtrix'!$B$253:$AA$300,26) -> 0 | R19: 0 | S19: =VLOOKUP($F$8,'School Resource Matrices'!$B$251:$FD$298,9) -> 0
A20: 7 | B20: =VLOOKUP($F$8,'School Reference Sheet'!$A$5:$DR$52,21) -> N/A | C20: =VLOOKUP($F$8,'School Reference Sheet'!$A$5:$DR$52,22) -> N/A | D20: =VLOOKUP($F$8,'School Reference Sheet'!$A$5:$DR$52,23) -> N/A | E20: =VLOOKUP($F$8,'"Main Funding" Schl Level Mtrix'!$B$302:$AA$349,14) -> 0 | F20: =VLOOKUP($F$8,'"Main Funding" Schl Level Mtrix'!$B$302:$AA$349,15) -> 0 | G20: =VLOOKUP($F$8,'"Main Funding" Schl Level Mtrix'!$B$302:$AA$349,16) -> 0 | H20: =VLOOKUP($F$8,'"Main Funding" Schl Level Mtrix'!$B$302:$AA$349,17) -> 0 | I20: =VLOOKUP($F$8,'"Main Funding" Schl Level Mtrix'!$B$302:$AA$349,18) -> 0 | J20: =VLOOKUP($F$8,'"Main Funding" Schl Level Mtrix'!$B$302:$AA$349,19) -> 0 | K20: =VLOOKUP($F$8,'"Main Funding" Schl Level Mtrix'!$B$302:$AA$349,20) -> 0 | L20: =VLOOKUP($F$8,'"Main Funding" Schl Level Mtrix'!$B$302:$AA$349,21) -> 0 | M20: =VLOOKUP($F$8,'"Main Funding" Schl Level Mtrix'!$B$302:$AA$349,22) -> 0 | N20: =VLOOKUP($F$8,'"Main Funding" Schl Level Mtrix'!$B$302:$AA$349,23) -> 0 | O20: =VLOOKUP($F$8,'"Main Funding" Schl Level Mtrix'!$B$302:$AA$349,24) -> 0 | P20: =VLOOKUP($F$8,'"Main Funding" Schl Level Mtrix'!$B$302:$AA$349,25) -> 0 | Q20: =VLOOKUP($F$8,'"Main Funding" Schl Level Mtrix'!$B$302:$AA$349,26) -> 0 | R20: 0 | S20: =VLOOKUP($F$8,'School Resource Matrices'!$B$300:$FD$347,9) -> 0
A21: 8 | B21: =VLOOKUP($F$8,'School Reference Sheet'!$A$5:$DR$52,24) -> N/A | C21: =VLOOKUP($F$8,'School Reference Sheet'!$A$5:$DR$52,25) -> N/A | D21: =VLOOKUP($F$8,'School Reference Sheet'!$A$5:$DR$52,26) -> N/A | E21: =VLOOKUP($F$8,'"Main Funding" Schl Level Mtrix'!$B$351:$AA$398,14) -> 0 | F21: =VLOOKUP($F$8,'"Main Funding" Schl Level Mtrix'!$B$351:$AA$398,15) -> 0 | G21: =VLOOKUP($F$8,'"Main Funding" Schl Level Mtrix'!$B$351:$AA$398,16) -> 0 | H21: =VLOOKUP($F$8,'"Main Funding" Schl Level Mtrix'!$B$351:$AA$398,17) -> 0 | I21: =VLOOKUP($F$8,'"Main Funding" Schl Level Mtrix'!$B$351:$AA$398,18) -> 0 | J21: =VLOOKUP($F$8,'"Main Funding" Schl Level Mtrix'!$B$351:$AA$398,19) -> 0 | K21: =VLOOKUP($F$8,'"Main Funding" Schl Level Mtrix'!$B$351:$AA$398,20) -> 0 | L21: =VLOOKUP($F$8,'"Main Funding" Schl Level Mtrix'!$B$351:$AA$398,21) -> 0 | M21: =VLOOKUP($F$8,'"Main Funding" Schl Level Mtrix'!$B$351:$AA$398,22) -> 0 | N21: =VLOOKUP($F$8,'"Main Funding" Schl Level Mtrix'!$B$351:$AA$398,23) -> 0 | O21: =VLOOKUP($F$8,'"Main Funding" Schl Level Mtrix'!$B$351:$AA$398,24) -> 0 | P21: =VLOOKUP($F$8,'"Main Funding" Schl Level Mtrix'!$B$351:$AA$398,25) -> 0 | Q21: =VLOOKUP($F$8,'"Main Funding" Schl Level Mtrix'!$B$351:$AA$398,26) -> 0 | R21: 0 | S21: =VLOOKUP($F$8,'School Resource Matrices'!$B$349:$FD$396,9) -> 0
A22: 9 | B22: =VLOOKUP($F$8,'School Reference Sheet'!$A$5:$DR$52,27) -> N/A | C22: =VLOOKUP($F$8,'School Reference Sheet'!$A$5:$DR$52,28) -> N/A | D22: =VLOOKUP($F$8,'School Reference Sheet'!$A$5:$DR$52,29) -> N/A | E22: =VLOOKUP($F$8,'"Main Funding" Schl Level Mtrix'!$B$400:$AA$447,14) -> 0 | F22: =VLOOKUP($F$8,'"Main Funding" Schl Level Mtrix'!$B$400:$AA$447,15) -> 0 | G22: =VLOOKUP($F$8,'"Main Funding" Schl Level Mtrix'!$B$400:$AA$447,16) -> 0 | H22: =VLOOKUP($F$8,'"Main Funding" Schl Level Mtrix'!$B$400:$AA$447,17) -> 0 | I22: =VLOOKUP($F$8,'"Main Funding" Schl Level Mtrix'!$B$400:$AA$447,18) -> 0 | J22: =VLOOKUP($F$8,'"Main Funding" Schl Level Mtrix'!$B$400:$AA$447,19) -> 0 | K22: =VLOOKUP($F$8,'"Main Funding" Schl Level Mtrix'!$B$400:$AA$447,20) -> 0 | L22: =VLOOKUP($F$8,'"Main Funding" Schl Level Mtrix'!$B$400:$AA$447,21) -> 0 | M22: =VLOOKUP($F$8,'"Main Funding" Schl Level Mtrix'!$B$400:$AA$447,22) -> 0 | N22: =VLOOKUP($F$8,'"Main Funding" Schl Level Mtrix'!$B$400:$AA$447,23) -> 0 | O22: =VLOOKUP($F$8,'"Main Funding" Schl Level Mtrix'!$B$400:$AA$447,24) -> 0 | P22: =VLOOKUP($F$8,'"Main Funding" Schl Level Mtrix'!$B$400:$AA$447,25) -> 0 | Q22: =VLOOKUP($F$8,'"Main Funding" Schl Level Mtrix'!$B$400:$AA$447,26) -> 0 | R22: 0 | S22: =VLOOKUP($F$8,'School Resource Matrices'!$B$398:$FD$445,9) -> 0
A23: 10 | B23: =VLOOKUP($F$8,'School Reference Sheet'!$A$5:$DR$52,30) -> N/A | C23: =VLOOKUP($F$8,'School Reference Sheet'!$A$5:$DR$52,31) -> N/A | D23: =VLOOKUP($F$8,'School Reference Sheet'!$A$5:$DR$52,32) -> N/A | E23: =VLOOKUP($F$8,'"Main Funding" Schl Level Mtrix'!$B$449:$AA$496,14) -> 0 | F23: =VLOOKUP($F$8,'"Main Funding" Schl Level Mtrix'!$B$449:$AA$496,15) -> 0 | G23: =VLOOKUP($F$8,'"Main Funding" Schl Level Mtrix'!$B$449:$AA$496,16) -> 0 | H23: =VLOOKUP($F$8,'"Main Funding" Schl Level Mtrix'!$B$449:$AA$496,17) -> 0 | I23: =VLOOKUP($F$8,'"Main Funding" Schl Level Mtrix'!$B$449:$AA$496,18) -> 0 | J23: =VLOOKUP($F$8,'"Main Funding" Schl Level Mtrix'!$B$449:$AA$496,19) -> 0 | K23: =VLOOKUP($F$8,'"Main Funding" Schl Level Mtrix'!$B$449:$AA$496,20) -> 0 | L23: =VLOOKUP($F$8,'"Main Funding" Schl Level Mtrix'!$B$449:$AA$496,21) -> 0 | M23: =VLOOKUP($F$8,'"Main Funding" Schl Level Mtrix'!$B$449:$AA$496,22) -> 0 | N23: =VLOOKUP($F$8,'"Main Funding" Schl Level Mtrix'!$B$449:$AA$496,23) -> 0 | O23: =VLOOKUP($F$8,'"Main Funding" Schl Level Mtrix'!$B$449:$AA$496,24) -> 0 | P23: =VLOOKUP($F$8,'"Main Funding" Schl Level Mtrix'!$B$449:$AA$496,25) -> 0 | Q23: =VLOOKUP($F$8,'"Main Funding" Schl Level Mtrix'!$B$449:$AA$496,26) -> 0 | R23: 0 | S23: =VLOOKUP($F$8,'School Resource Matrices'!$B$447:$FD$494,9) -> 0
A24: 11 | B24: =VLOOKUP($F$8,'School Reference Sheet'!$A$5:$DR$52,33) -> N/A | C24: =VLOOKUP($F$8,'School Reference Sheet'!$A$5:$DR$52,34) -> N/A | D24: =VLOOKUP($F$8,'School Reference Sheet'!$A$5:$DR$52,35) -> N/A | E24: =VLOOKUP($F$8,'"Main Funding" Schl Level Mtrix'!$B$498:$AA$545,14) -> 0 | F24: =VLOOKUP($F$8,'"Main Funding" Schl Level Mtrix'!$B$498:$AA$545,15) -> 0 | G24: =VLOOKUP($F$8,'"Main Funding" Schl Level Mtrix'!$B$498:$AA$545,16) -> 0 | H24: =VLOOKUP($F$8,'"Main Funding" Schl Level Mtrix'!$B$498:$AA$545,17) -> 0 | I24: =VLOOKUP($F$8,'"Main Funding" Schl Level Mtrix'!$B$498:$AA$545,18) -> 0 | J24: =VLOOKUP($F$8,'"Main Funding" Schl Level Mtrix'!$B$498:$AA$545,19) -> 0 | K24: =VLOOKUP($F$8,'"Main Funding" Schl Level Mtrix'!$B$498:$AA$545,20) -> 0 | L24: =VLOOKUP($F$8,'"Main Funding" Schl Level Mtrix'!$B$498:$AA$545,21) -> 0 | M24: =VLOOKUP($F$8,'"Main Funding" Schl Level Mtrix'!$B$498:$AA$545,22) -> 0 | N24: =VLOOKUP($F$8,'"Main Funding" Schl Level Mtrix'!$B$498:$AA$545,23) -> 0 | O24: =VLOOKUP($F$8,'"Main Funding" Schl Level Mtrix'!$B$498:$AA$545,24) -> 0 | P24: =VLOOKUP($F$8,'"Main Funding" Schl Level Mtrix'!$B$498:$AA$545,25) -> 0 | Q24: =VLOOKUP($F$8,'"Main Funding" Schl Level Mtrix'!$B$498:$AA$545,26) -> 0 | R24: 0 | S24: =VLOOKUP($F$8,'School Resource Matrices'!$B$496:$FD$543,9) -> 0
A25: 12 | B25: =VLOOKUP($F$8,'School Reference Sheet'!$A$5:$DR$52,36) -> N/A | C25: =VLOOKUP($F$8,'School Reference Sheet'!$A$5:$DR$52,37) -> N/A | D25: =VLOOKUP($F$8,'School Reference Sheet'!$A$5:$DR$52,38) -> N/A | E25: =VLOOKUP($F$8,'"Main Funding" Schl Level Mtrix'!$B$547:$AA$594,14) -> 0 | F25: =VLOOKUP($F$8,'"Main Funding" Schl Level Mtrix'!$B$547:$AA$594,15) -> 0 | G25: =VLOOKUP($F$8,'"Main Funding" Schl Level Mtrix'!$B$547:$AA$594,16) -> 0 | H25: =VLOOKUP($F$8,'"Main Funding" Schl Level Mtrix'!$B$547:$AA$594,17) -> 0 | I25: =VLOOKUP($F$8,'"Main Funding" Schl Level Mtrix'!$B$547:$AA$594,18) -> 0 | J25: =VLOOKUP($F$8,'"Main Funding" Schl Level Mtrix'!$B$547:$AA$594,19) -> 0 | K25: =VLOOKUP($F$8,'"Main Funding" Schl Level Mtrix'!$B$547:$AA$594,20) -> 0 | L25: =VLOOKUP($F$8,'"Main Funding" Schl Level Mtrix'!$B$547:$AA$594,21) -> 0 | M25: =VLOOKUP($F$8,'"Main Funding" Schl Level Mtrix'!$B$547:$AA$594,22) -> 0 | N25: =VLOOKUP($F$8,'"Main Funding" Schl Level Mtrix'!$B$547:$AA$594,23) -> 0 | O25: =VLOOKUP($F$8,'"Main Funding" Schl Level Mtrix'!$B$547:$AA$594,24) -> 0 | P25: =VLOOKUP($F$8,'"Main Funding" Schl Level Mtrix'!$B$547:$AA$594,25) -> 0 | Q25: =VLOOKUP($F$8,'"Main Funding" Schl Level Mtrix'!$B$547:$AA$594,26) -> 0 | R25: 0 | S25: =VLOOKUP($F$8,'School Resource Matrices'!$B$545:$FD$592,9) -> 0
A26: 13 | B26: =VLOOKUP($F$8,'School Reference Sheet'!$A$5:$DR$52,39) -> N/A | C26: =VLOOKUP($F$8,'School Reference Sheet'!$A$5:$DR$52,40) -> N/A | D26: =VLOOKUP($F$8,'School Reference Sheet'!$A$5:$DR$52,41) -> N/A | E26: =VLOOKUP($F$8,'"Main Funding" Schl Level Mtrix'!$B$596:$AA$643,14) -> 0 | F26: =VLOOKUP($F$8,'"Main Funding" Schl Level Mtrix'!$B$596:$AA$643,15) -> 0 | G26: =VLOOKUP($F$8,'"Main Funding" Schl Level Mtrix'!$B$596:$AA$643,16) -> 0 | H26: =VLOOKUP($F$8,'"Main Funding" Schl Level Mtrix'!$B$596:$AA$643,17) -> 0 | I26: =VLOOKUP($F$8,'"Main Funding" Schl Level Mtrix'!$B$596:$AA$643,18) -> 0 | J26: =VLOOKUP($F$8,'"Main Funding" Schl Level Mtrix'!$B$596:$AA$643,19) -> 0 | K26: =VLOOKUP($F$8,'"Main Funding" Schl Level Mtrix'!$B$596:$AA$643,20) -> 0 | L26: =VLOOKUP($F$8,'"Main Funding" Schl Level Mtrix'!$B$596:$AA$643,21) -> 0 | M26: =VLOOKUP($F$8,'"Main Funding" Schl Level Mtrix'!$B$596:$AA$643,22) -> 0 | N26: =VLOOKUP($F$8,'"Main Funding" Schl Level Mtrix'!$B$596:$AA$643,23) -> 0 | O26: =VLOOKUP($F$8,'"Main Funding" Schl Level Mtrix'!$B$596:$AA$643,24) -> 0 | P26: =VLOOKUP($F$8,'"Main Funding" Schl Level Mtrix'!$B$596:$AA$643,25) -> 0 | Q26: =VLOOKUP($F$8,'"Main Funding" Schl Level Mtrix'!$B$596:$AA$643,26) -> 0 | R26: 0 | S26: =VLOOKUP($F$8,'School Resource Matrices'!$B$594:$FD$641,9) -> 0
A27: 14 | B27: =VLOOKUP($F$8,'School Reference Sheet'!$A$5:$DR$52,42) -> N/A | C27: =VLOOKUP($F$8,'School Reference Sheet'!$A$5:$DR$52,43) -> N/A | D27: =VLOOKUP($F$8,'School Reference Sheet'!$A$5:$DR$52,44) -> N/A | E27: =VLOOKUP($F$8,'"Main Funding" Schl Level Mtrix'!$B$645:$AA$692,14) -> 0 | F27: =VLOOKUP($F$8,'"Main Funding" Schl Level Mtrix'!$B$645:$AA$692,15) -> 0 | G27: =VLOOKUP($F$8,'"Main Funding" Schl Level Mtrix'!$B$645:$AA$692,16) -> 0 | H27: =VLOOKUP($F$8,'"Main Funding" Schl Level Mtrix'!$B$645:$AA$692,17) -> 0 | I27: =VLOOKUP($F$8,'"Main Funding" Schl Level Mtrix'!$B$645:$AA$692,18) -> 0 | J27: =VLOOKUP($F$8,'"Main Funding" Schl Level Mtrix'!$B$645:$AA$692,19) -> 0 | K27: =VLOOKUP($F$8,'"Main Funding" Schl Level Mtrix'!$B$645:$AA$692,20) -> 0 | L27: =VLOOKUP($F$8,'"Main Funding" Schl Level Mtrix'!$B$645:$AA$692,21) -> 0 | M27: =VLOOKUP($F$8,'"Main Funding" Schl Level Mtrix'!$B$645:$AA$692,22) -> 0 | N27: =VLOOKUP($F$8,'"Main Funding" Schl Level Mtrix'!$B$645:$AA$692,23) -> 0 | O27: =VLOOKUP($F$8,'"Main Funding" Schl Level Mtrix'!$B$645:$AA$692,24) -> 0 | P27: =VLOOKUP($F$8,'"Main Funding" Schl Level Mtrix'!$B$645:$AA$692,25) -> 0 | Q27: =VLOOKUP($F$8,'"Main Funding" Schl Level Mtrix'!$B$645:$AA$692,26) -> 0 | R27: 0 | S27: =VLOOKUP($F$8,'School Resource Matrices'!$B$643:$FD$690,9) -> 0
A28: 15 | B28: =VLOOKUP($F$8,'School Reference Sheet'!$A$5:$DR$52,45) -> N/A | C28: =VLOOKUP($F$8,'School Reference Sheet'!$A$5:$DR$52,46) -> N/A | D28: =VLOOKUP($F$8,'School Reference Sheet'!$A$5:$DR$52,47) -> N/A | E28: =VLOOKUP($F$8,'"Main Funding" Schl Level Mtrix'!$B$694:$AA$741,14) -> 0 | F28: =VLOOKUP($F$8,'"Main Funding" Schl Level Mtrix'!$B$694:$AA$741,15) -> 0 | G28: =VLOOKUP($F$8,'"Main Funding" Schl Level Mtrix'!$B$694:$AA$741,16) -> 0 | H28: =VLOOKUP($F$8,'"Main Funding" Schl Level Mtrix'!$B$694:$AA$741,17) -> 0 | I28: =VLOOKUP($F$8,'"Main Funding" Schl Level Mtrix'!$B$694:$AA$741,18) -> 0 | J28: =VLOOKUP($F$8,'"Main Funding" Schl Level Mtrix'!$B$694:$AA$741,19) -> 0 | K28: =VLOOKUP($F$8,'"Main Funding" Schl Level Mtrix'!$B$694:$AA$741,20) -> 0 | L28: =VLOOKUP($F$8,'"Main Funding" Schl Level Mtrix'!$B$694:$AA$741,21) -> 0 | M28: =VLOOKUP($F$8,'"Main Funding" Schl Level Mtrix'!$B$694:$AA$741,22) -> 0 | N28: =VLOOKUP($F$8,'"Main Funding" Schl Level Mtrix'!$B$694:$AA$741,23) -> 0 | O28: =VLOOKUP($F$8,'"Main Funding" Schl Level Mtrix'!$B$694:$AA$741,24) -> 0 | P28: =VLOOKUP($F$8,'"Main Funding" Schl Level Mtrix'!$B$694:$AA$741,25) -> 0 | Q28: =VLOOKUP($F$8,'"Main Funding" Schl Level Mtrix'!$B$694:$AA$741,26) -> 0 | R28: 0 | S28: =VLOOKUP($F$8,'School Resource Matrices'!$B$692:$FD$739,9) -> 0
A29: 16 | B29: =VLOOKUP($F$8,'School Reference Sheet'!$A$5:$DR$52,48) -> N/A | C29: =VLOOKUP($F$8,'School Reference Sheet'!$A$5:$DR$52,49) -> N/A | D29: =VLOOKUP($F$8,'School Reference Sheet'!$A$5:$DR$52,50) -> N/A | E29: =VLOOKUP($F$8,'"Main Funding" Schl Level Mtrix'!$B$743:$AA$790,14) -> 0 | F29: =VLOOKUP($F$8,'"Main Funding" Schl Level Mtrix'!$B$743:$AA$790,15) -> 0 | G29: =VLOOKUP($F$8,'"Main Funding" Schl Level Mtrix'!$B$743:$AA$790,16) -> 0 | H29: =VLOOKUP($F$8,'"Main Funding" Schl Level Mtrix'!$B$743:$AA$790,17) -> 0 | I29: =VLOOKUP($F$8,'"Main Funding" Schl Level Mtrix'!$B$743:$AA$790,18) -> 0 | J29: =VLOOKUP($F$8,'"Main Funding" Schl Level Mtrix'!$B$743:$AA$790,19) -> 0 | K29: =VLOOKUP($F$8,'"Main Funding" Schl Level Mtrix'!$B$743:$AA$790,20) -> 0 | L29: =VLOOKUP($F$8,'"Main Funding" Schl Level Mtrix'!$B$743:$AA$790,21) -> 0 | M29: =VLOOKUP($F$8,'"Main Funding" Schl Level Mtrix'!$B$743:$AA$790,22) -> 0 | N29: =VLOOKUP($F$8,'"Main Funding" Schl Level Mtrix'!$B$743:$AA$790,23) -> 0 | O29: =VLOOKUP($F$8,'"Main Funding" Schl Level Mtrix'!$B$743:$AA$790,24) -> 0 | P29: =VLOOKUP($F$8,'"Main Funding" Schl Level Mtrix'!$B$743:$AA$790,25) -> 0 | Q29: =VLOOKUP($F$8,'"Main Funding" Schl Level Mtrix'!$B$743:$AA$790,26) -> 0 | R29: 0 | S29: =VLOOKUP($F$8,'School Resource Matrices'!$B$741:$FD$788,9) -> 0
A30: 17 | B30: =VLOOKUP($F$8,'School Reference Sheet'!$A$5:$DR$52,51) -> N/A | C30: =VLOOKUP($F$8,'School Reference Sheet'!$A$5:$DR$52,52) -> N/A | D30: =VLOOKUP($F$8,'School Reference Sheet'!$A$5:$DR$52,53) -> N/A | E30: =VLOOKUP($F$8,'"Main Funding" Schl Level Mtrix'!$B$792:$AA$839,14) -> 0 | F30: =VLOOKUP($F$8,'"Main Funding" Schl Level Mtrix'!$B$792:$AA$839,15) -> 0 | G30: =VLOOKUP($F$8,'"Main Funding" Schl Level Mtrix'!$B$792:$AA$839,16) -> 0 | H30: =VLOOKUP($F$8,'"Main Funding" Schl Level Mtrix'!$B$792:$AA$839,17) -> 0 | I30: =VLOOKUP($F$8,'"Main Funding" Schl Level Mtrix'!$B$792:$AA$839,18) -> 0 | J30: =VLOOKUP($F$8,'"Main Funding" Schl Level Mtrix'!$B$792:$AA$839,19) -> 0 | K30: =VLOOKUP($F$8,'"Main Funding" Schl Level Mtrix'!$B$792:$AA$839,20) -> 0 | L30: =VLOOKUP($F$8,'"Main Funding" Schl Level Mtrix'!$B$792:$AA$839,21) -> 0 | M30: =VLOOKUP($F$8,'"Main Funding" Schl Level Mtrix'!$B$792:$AA$839,22) -> 0 | N30: =VLOOKUP($F$8,'"Main Funding" Schl Level Mtrix'!$B$792:$AA$839,23) -> 0 | O30: =VLOOKUP($F$8,'"Main Funding" Schl Level Mtrix'!$B$792:$AA$839,24) -> 0 | P30: =VLOOKUP($F$8,'"Main Funding" Schl Level Mtrix'!$B$792:$AA$839,25) -> 0 | Q30: =VLOOKUP($F$8,'"Main Funding" Schl Level Mtrix'!$B$792:$AA$839,26) -> 0 | R30: 0 | S30: =VLOOKUP($F$8,'School Resource Matrices'!$B$790:$FD$837,9) -> 0
A31: 18 | B31: =VLOOKUP($F$8,'School Reference Sheet'!$A$5:$DR$52,54) -> N/A | C31: =VLOOKUP($F$8,'School Reference Sheet'!$A$5:$DR$52,55) -> N/A | D31: =VLOOKUP($F$8,'School Reference Sheet'!$A$5:$DR$52,56) -> N/A | E31: =VLOOKUP($F$8,'"Main Funding" Schl Level Mtrix'!$B$841:$AA$888,14) -> 0 | F31: =VLOOKUP($F$8,'"Main Funding" Schl Level Mtrix'!$B$841:$AA$888,15) -> 0 | G31: =VLOOKUP($F$8,'"Main Funding" Schl Level Mtrix'!$B$841:$AA$888,16) -> 0 | H31: =VLOOKUP($F$8,'"Main Funding" Schl Level Mtrix'!$B$841:$AA$888,17) -> 0 | I31: =VLOOKUP($F$8,'"Main Funding" Schl Level Mtrix'!$B$841:$AA$888,18) -> 0 | J31: =VLOOKUP($F$8,'"Main Funding" Schl Level Mtrix'!$B$841:$AA$888,19) -> 0 | K31: =VLOOKUP($F$8,'"Main Funding" Schl Level Mtrix'!$B$841:$AA$888,20) -> 0 | L31: =VLOOKUP($F$8,'"Main Funding" Schl Level Mtrix'!$B$841:$AA$888,21) -> 0 | M31: =VLOOKUP($F$8,'"Main Funding" Schl Level Mtrix'!$B$841:$AA$888,22) -> 0 | N31: =VLOOKUP($F$8,'"Main Funding" Schl Level Mtrix'!$B$841:$AA$888,23) -> 0 | O31: =VLOOKUP($F$8,'"Main Funding" Schl Level Mtrix'!$B$841:$AA$888,24) -> 0 | P31: =VLOOKUP($F$8,'"Main Funding" Schl Level Mtrix'!$B$841:$AA$888,25) -> 0 | Q31: =VLOOKUP($F$8,'"Main Funding" Schl Level Mtrix'!$B$841:$AA$888,26) -> 0 | R31: 0 | S31: =VLOOKUP($F$8,'School Resource Matrices'!$B$839:$FD$886,9) -> 0
A32: 19 | B32: =VLOOKUP($F$8,'School Reference Sheet'!$A$5:$DR$52,57) -> N/A | C32: =VLOOKUP($F$8,'School Reference Sheet'!$A$5:$DR$52,58) -> N/A | D32: =VLOOKUP($F$8,'School Reference Sheet'!$A$5:$DR$52,59) -> N/A | E32: =VLOOKUP($F$8,'"Main Funding" Schl Level Mtrix'!$B$890:$AA$937,14) -> 0 | F32: =VLOOKUP($F$8,'"Main Funding" Schl Level Mtrix'!$B$890:$AA$937,15) -> 0 | G32: =VLOOKUP($F$8,'"Main Funding" Schl Level Mtrix'!$B$890:$AA$937,16) -> 0 | H32: =VLOOKUP($F$8,'"Main Funding" Schl Level Mtrix'!$B$890:$AA$937,17) -> 0 | I32: =VLOOKUP($F$8,'"Main Funding" Schl Level Mtrix'!$B$890:$AA$937,18) -> 0 | J32: =VLOOKUP($F$8,'"Main Funding" Schl Level Mtrix'!$B$890:$AA$937,19) -> 0 | K32: =VLOOKUP($F$8,'"Main Funding" Schl Level Mtrix'!$B$890:$AA$937,20) -> 0 | L32: =VLOOKUP($F$8,'"Main Funding" Schl Level Mtrix'!$B$890:$AA$937,21) -> 0 | M32: =VLOOKUP($F$8,'"Main Funding" Schl Level Mtrix'!$B$890:$AA$937,22) -> 0 | N32: =VLOOKUP($F$8,'"Main Funding" Schl Level Mtrix'!$B$890:$AA$937,23) -> 0 | O32: =VLOOKUP($F$8,'"Main Funding" Schl Level Mtrix'!$B$890:$AA$937,24) -> 0 | P32: =VLOOKUP($F$8,'"Main Funding" Schl Level Mtrix'!$B$890:$AA$937,25) -> 0 | Q32: =VLOOKUP($F$8,'"Main Funding" Schl Level Mtrix'!$B$890:$AA$937,26) -> 0 | R32: 0 | S32: =VLOOKUP($F$8,'School Resource Matrices'!$B$888:$FD$935,9) -> 0
A33: 20 | B33: =VLOOKUP($F$8,'School Reference Sheet'!$A$5:$DR$52,60) -> N/A | C33: =VLOOKUP($F$8,'School Reference Sheet'!$A$5:$DR$52,61) -> N/A | D33: =VLOOKUP($F$8,'School Reference Sheet'!$A$5:$DR$52,62) -> N/A | E33: =VLOOKUP($F$8,'"Main Funding" Schl Level Mtrix'!$B$939:$AA$986,14) -> 0 | F33: =VLOOKUP($F$8,'"Main Funding" Schl Level Mtrix'!$B$939:$AA$986,15) -> 0 | G33: =VLOOKUP($F$8,'"Main Funding" Schl Level Mtrix'!$B$939:$AA$986,16) -> 0 | H33: =VLOOKUP($F$8,'"Main Funding" Schl Level Mtrix'!$B$939:$AA$986,17) -> 0 | I33: =VLOOKUP($F$8,'"Main Funding" Schl Level Mtrix'!$B$939:$AA$986,18) -> 0 | J33: =VLOOKUP($F$8,'"Main Funding" Schl Level Mtrix'!$B$939:$AA$986,19) -> 0 | K33: =VLOOKUP($F$8,'"Main Funding" Schl Level Mtrix'!$B$939:$AA$986,20) -> 0 | L33: =VLOOKUP($F$8,'"Main Funding" Schl Level Mtrix'!$B$939:$AA$986,21) -> 0 | M33: =VLOOKUP($F$8,'"Main Funding" Schl Level Mtrix'!$B$939:$AA$986,22) -> 0 | N33: =VLOOKUP($F$8,'"Main Funding" Schl Level Mtrix'!$B$939:$AA$986,23) -> 0 | O33: =VLOOKUP($F$8,'"Main Funding" Schl Level Mtrix'!$B$939:$AA$986,24) -> 0 | P33: =VLOOKUP($F$8,'"Main Funding" Schl Level Mtrix'!$B$939:$AA$986,25) -> 0 | Q33: =VLOOKUP($F$8,'"Main Funding" Schl Level Mtrix'!$B$939:$AA$986,26) -> 0 | R33: 0 | S33: =VLOOKUP($F$8,'School Resource Matrices'!$B$937:$FD$984,9) -> 0
A34: 21 | B34: =VLOOKUP($F$8,'School Reference Sheet'!$A$5:$DR$52,63) -> N/A | C34: =VLOOKUP($F$8,'School Reference Sheet'!$A$5:$DR$52,64) -> N/A | D34: =VLOOKUP($F$8,'School Reference Sheet'!$A$5:$DR$52,65) -> N/A | E34: =VLOOKUP($F$8,'"Main Funding" Schl Level Mtrix'!$B$988:$AA$1035,14) -> 0 | F34: =VLOOKUP($F$8,'"Main Funding" Schl Level Mtrix'!$B$988:$AA$1035,15) -> 0 | G34: =VLOOKUP($F$8,'"Main Funding" Schl Level Mtrix'!$B$988:$AA$1035,16) -> 0 | H34: =VLOOKUP($F$8,'"Main Funding" Schl Level Mtrix'!$B$988:$AA$1035,17) -> 0 | I34: =VLOOKUP($F$8,'"Main Funding" Schl Level Mtrix'!$B$988:$AA$1035,18) -> 0 | J34: =VLOOKUP($F$8,'"Main Funding" Schl Level Mtrix'!$B$988:$AA$1035,19) -> 0 | K34: =VLOOKUP($F$8,'"Main Funding" Schl Level Mtrix'!$B$988:$AA$1035,20) -> 0 | L34: =VLOOKUP($F$8,'"Main Funding" Schl Level Mtrix'!$B$988:$AA$1035,21) -> 0 | M34: =VLOOKUP($F$8,'"Main Funding" Schl Level Mtrix'!$B$988:$AA$1035,22) -> 0 | N34: =VLOOKUP($F$8,'"Main Funding" Schl Level Mtrix'!$B$988:$AA$1035,23) -> 0 | O34: =VLOOKUP($F$8,'"Main Funding" Schl Level Mtrix'!$B$988:$AA$1035,24) -> 0 | P34: =VLOOKUP($F$8,'"Main Funding" Schl Level Mtrix'!$B$988:$AA$1035,25) -> 0 | Q34: =VLOOKUP($F$8,'"Main Funding" Schl Level Mtrix'!$B$988:$AA$1035,26) -> 0 | R34: 0 | S34: =VLOOKUP($F$8,'School Resource Matrices'!$B$986:$FD$1033,9) -> 0
A35: 22 | B35: =VLOOKUP($F$8,'School Reference Sheet'!$A$5:$DR$52,66) -> N/A | C35: =VLOOKUP($F$8,'School Reference Sheet'!$A$5:$DR$52,67) -> N/A | D35: =VLOOKUP($F$8,'School Reference Sheet'!$A$5:$DR$52,68) -> N/A | E35: =VLOOKUP($F$8,'"Main Funding" Schl Level Mtrix'!$B$1037:$AA$1084,14) -> 0 | F35: =VLOOKUP($F$8,'"Main Funding" Schl Level Mtrix'!$B$1037:$AA$1084,15) -> 0 | G35: =VLOOKUP($F$8,'"Main Funding" Schl Level Mtrix'!$B$1037:$AA$1084,16) -> 0 | H35: =VLOOKUP($F$8,'"Main Funding" Schl Level Mtrix'!$B$1037:$AA$1084,17) -> 0 | I35: =VLOOKUP($F$8,'"Main Funding" Schl Level Mtrix'!$B$1037:$AA$1084,18) -> 0 | J35: =VLOOKUP($F$8,'"Main Funding" Schl Level Mtrix'!$B$1037:$AA$1084,19) -> 0 | K35: =VLOOKUP($F$8,'"Main Funding" Schl Level Mtrix'!$B$1037:$AA$1084,20) -> 0 | L35: =VLOOKUP($F$8,'"Main Funding" Schl Level Mtrix'!$B$1037:$AA$1084,21) -> 0 | M35: =VLOOKUP($F$8,'"Main Funding" Schl Level Mtrix'!$B$1037:$AA$1084,22) -> 0 | N35: =VLOOKUP($F$8,'"Main Funding" Schl Level Mtrix'!$B$1037:$AA$1084,23) -> 0 | O35: =VLOOKUP($F$8,'"Main Funding" Schl Level Mtrix'!$B$1037:$AA$1084,24) -> 0 | P35: =VLOOKUP($F$8,'"Main Funding" Schl Level Mtrix'!$B$1037:$AA$1084,25) -> 0 | Q35: =VLOOKUP($F$8,'"Main Funding" Schl Level Mtrix'!$B$1037:$AA$1084,26) -> 0 | R35: 0 | S35: =VLOOKUP($F$8,'School Resource Matrices'!$B$1035:$FD$1082,9) -> 0
A36: 23 | B36: =VLOOKUP($F$8,'School Reference Sheet'!$A$5:$DR$52,69) -> N/A | C36: =VLOOKUP($F$8,'School Reference Sheet'!$A$5:$DR$52,70) -> N/A | D36: =VLOOKUP($F$8,'School Reference Sheet'!$A$5:$DR$52,71) -> N/A | E36: =VLOOKUP($F$8,'"Main Funding" Schl Level Mtrix'!$B$1086:$AA$1133,14) -> 0 | F36: =VLOOKUP($F$8,'"Main Funding" Schl Level Mtrix'!$B$1086:$AA$1133,15) -> 0 | G36: =VLOOKUP($F$8,'"Main Funding" Schl Level Mtrix'!$B$1086:$AA$1133,16) -> 0 | H36: =VLOOKUP($F$8,'"Main Funding" Schl Level Mtrix'!$B$1086:$AA$1133,17) -> 0 | I36: =VLOOKUP($F$8,'"Main Funding" Schl Level Mtrix'!$B$1086:$AA$1133,18) -> 0 | J36: =VLOOKUP($F$8,'"Main Funding" Schl Level Mtrix'!$B$1086:$AA$1133,19) -> 0 | K36: =VLOOKUP($F$8,'"Main Funding" Schl Level Mtrix'!$B$1086:$AA$1133,20) -> 0 | L36: =VLOOKUP($F$8,'"Main Funding" Schl Level Mtrix'!$B$1086:$AA$1133,21) -> 0 | M36: =VLOOKUP($F$8,'"Main Funding" Schl Level Mtrix'!$B$1086:$AA$1133,22) -> 0 | N36: =VLOOKUP($F$8,'"Main Funding" Schl Level Mtrix'!$B$1086:$AA$1133,23) -> 0 | O36: =VLOOKUP($F$8,'"Main Funding" Schl Level Mtrix'!$B$1086:$AA$1133,24) -> 0 | P36: =VLOOKUP($F$8,'"Main Funding" Schl Level Mtrix'!$B$1086:$AA$1133,25) -> 0 | Q36: =VLOOKUP($F$8,'"Main Funding" Schl Level Mtrix'!$B$1086:$AA$1133,26) -> 0 | R36: 0 | S36: =VLOOKUP($F$8,'School Resource Matrices'!$B$1084:$FD$1131,9) -> 0
A37: 24 | B37: =VLOOKUP($F$8,'School Reference Sheet'!$A$5:$DR$52,72) -> N/A | C37: =VLOOKUP($F$8,'School Reference Sheet'!$A$5:$DR$52,73) -> N/A | D37: =VLOOKUP($F$8,'School Reference Sheet'!$A$5:$DR$52,74) -> N/A | E37: =VLOOKUP($F$8,'"Main Funding" Schl Level Mtrix'!$B$1135:$AA$1182,14) -> 0 | F37: =VLOOKUP($F$8,'"Main Funding" Schl Level Mtrix'!$B$1135:$AA$1182,15) -> 0 | G37: =VLOOKUP($F$8,'"Main Funding" Schl Level Mtrix'!$B$1135:$AA$1182,16) -> 0 | H37: =VLOOKUP($F$8,'"Main Funding" Schl Level Mtrix'!$B$1135:$AA$1182,17) -> 0 | I37: =VLOOKUP($F$8,'"Main Funding" Schl Level Mtrix'!$B$1135:$AA$1182,18) -> 0 | J37: =VLOOKUP($F$8,'"Main Funding" Schl Level Mtrix'!$B$1135:$AA$1182,19) -> 0 | K37: =VLOOKUP($F$8,'"Main Funding" Schl Level Mtrix'!$B$1135:$AA$1182,20) -> 0 | L37: =VLOOKUP($F$8,'"Main Funding" Schl Level Mtrix'!$B$1135:$AA$1182,21) -> 0 | M37: =VLOOKUP($F$8,'"Main Funding" Schl Level Mtrix'!$B$1135:$AA$1182,22) -> 0 | N37: =VLOOKUP($F$8,'"Main Funding" Schl Level Mtrix'!$B$1135:$AA$1182,23) -> 0 | O37: =VLOOKUP($F$8,'"Main Funding" Schl Level Mtrix'!$B$1135:$AA$1182,24) -> 0 | P37: =VLOOKUP($F$8,'"Main Funding" Schl Level Mtrix'!$B$1135:$AA$1182,25) -> 0 | Q37: =VLOOKUP($F$8,'"Main Funding" Schl Level Mtrix'!$B$1135:$AA$1182,26) -> 0 | R37: 0 | S37: =VLOOKUP($F$8,'School Resource Matrices'!$B$1133:$FD$1180,9) -> 0
A38: 25 | B38: =VLOOKUP($F$8,'School Reference Sheet'!$A$5:$DR$52,75) -> N/A | C38: =VLOOKUP($F$8,'School Reference Sheet'!$A$5:$DR$52,76) -> N/A | D38: =VLOOKUP($F$8,'School Reference Sheet'!$A$5:$DR$52,77) -> N/A | E38: =VLOOKUP($F$8,'"Main Funding" Schl Level Mtrix'!$B$1184:$AA$1231,14) -> 0 | F38: =VLOOKUP($F$8,'"Main Funding" Schl Level Mtrix'!$B$1184:$AA$1231,15) -> 0 | G38: =VLOOKUP($F$8,'"Main Funding" Schl Level Mtrix'!$B$1184:$AA$1231,16) -> 0 | H38: =VLOOKUP($F$8,'"Main Funding" Schl Level Mtrix'!$B$1184:$AA$1231,17) -> 0 | I38: =VLOOKUP($F$8,'"Main Funding" Schl Level Mtrix'!$B$1184:$AA$1231,18) -> 0 | J38: =VLOOKUP($F$8,'"Main Funding" Schl Level Mtrix'!$B$1184:$AA$1231,19) -> 0 | K38: =VLOOKUP($F$8,'"Main Funding" Schl Level Mtrix'!$B$1184:$AA$1231,20) -> 0 | L38: =VLOOKUP($F$8,'"Main Funding" Schl Level Mtrix'!$B$1184:$AA$1231,21) -> 0 | M38: =VLOOKUP($F$8,'"Main Funding" Schl Level Mtrix'!$B$1184:$AA$1231,22) -> 0 | N38: =VLOOKUP($F$8,'"Main Funding" Schl Level Mtrix'!$B$1184:$AA$1231,23) -> 0 | O38: =VLOOKUP($F$8,'"Main Funding" Schl Level Mtrix'!$B$1184:$AA$1231,24) -> 0 | P38: =VLOOKUP($F$8,'"Main Funding" Schl Level Mtrix'!$B$1184:$AA$1231,25) -> 0 | Q38: =VLOOKUP($F$8,'"Main Funding" Schl Level Mtrix'!$B$1184:$AA$1231,26) -> 0 | R38: 0 | S38: =VLOOKUP($F$8,'School Resource Matrices'!$B$1182:$FD$1229,9) -> 0
A39: 26 | B39: =VLOOKUP($F$8,'School Reference Sheet'!$A$5:$DR$52,78) -> N/A | C39: =VLOOKUP($F$8,'School Reference Sheet'!$A$5:$DR$52,79) -> N/A | D39: =VLOOKUP($F$8,'School Reference Sheet'!$A$5:$DR$52,80) -> N/A | E39: =VLOOKUP($F$8,'"Main Funding" Schl Level Mtrix'!$B$1233:$AA$1280,14) -> 0 | F39: =VLOOKUP($F$8,'"Main Funding" Schl Level Mtrix'!$B$1233:$AA$1280,15) -> 0 | G39: =VLOOKUP($F$8,'"Main Funding" Schl Level Mtrix'!$B$1233:$AA$1280,16) -> 0 | H39: =VLOOKUP($F$8,'"Main Funding" Schl Level Mtrix'!$B$1233:$AA$1280,17) -> 0 | I39: =VLOOKUP($F$8,'"Main Funding" Schl Level Mtrix'!$B$1233:$AA$1280,18) -> 0 | J39: =VLOOKUP($F$8,'"Main Funding" Schl Level Mtrix'!$B$1233:$AA$1280,19) -> 0 | K39: =VLOOKUP($F$8,'"Main Funding" Schl Level Mtrix'!$B$1233:$AA$1280,20) -> 0 | L39: =VLOOKUP($F$8,'"Main Funding" Schl Level Mtrix'!$B$1233:$AA$1280,21) -> 0 | M39: =VLOOKUP($F$8,'"Main Funding" Schl Level Mtrix'!$B$1233:$AA$1280,22) -> 0 | N39: =VLOOKUP($F$8,'"Main Funding" Schl Level Mtrix'!$B$1233:$AA$1280,23) -> 0 | O39: =VLOOKUP($F$8,'"Main Funding" Schl Level Mtrix'!$B$1233:$AA$1280,24) -> 0 | P39: =VLOOKUP($F$8,'"Main Funding" Schl Level Mtrix'!$B$1233:$AA$1280,25) -> 0 | Q39: =VLOOKUP($F$8,'"Main Funding" Schl Level Mtrix'!$B$1233:$AA$1280,26) -> 0 | R39: 0 | S39: =VLOOKUP($F$8,'School Resource Matrices'!$B$1231:$FD$1278,9) -> 0
A40: 27 | B40: =VLOOKUP($F$8,'School Reference Sheet'!$A$5:$DR$52,81) -> N/A | C40: =VLOOKUP($F$8,'School Reference Sheet'!$A$5:$DR$52,82) -> N/A | D40: =VLOOKUP($F$8,'School Reference Sheet'!$A$5:$DR$52,83) -> N/A | E40: =VLOOKUP($F$8,'"Main Funding" Schl Level Mtrix'!$B$1282:$AA$1329,14) -> 0 | F40: =VLOOKUP($F$8,'"Main Funding" Schl Level Mtrix'!$B$1282:$AA$1329,15) -> 0 | G40: =VLOOKUP($F$8,'"Main Funding" Schl Level Mtrix'!$B$1282:$AA$1329,16) -> 0 | H40: =VLOOKUP($F$8,'"Main Funding" Schl Level Mtrix'!$B$1282:$AA$1329,17) -> 0 | I40: =VLOOKUP($F$8,'"Main Funding" Schl Level Mtrix'!$B$1282:$AA$1329,18) -> 0 | J40: =VLOOKUP($F$8,'"Main Funding" Schl Level Mtrix'!$B$1282:$AA$1329,19) -> 0 | K40: =VLOOKUP($F$8,'"Main Funding" Schl Level Mtrix'!$B$1282:$AA$1329,20) -> 0 | L40: =VLOOKUP($F$8,'"Main Funding" Schl Level Mtrix'!$B$1282:$AA$1329,21) -> 0 | M40: =VLOOKUP($F$8,'"Main Funding" Schl Level Mtrix'!$B$1282:$AA$1329,22) -> 0 | N40: =VLOOKUP($F$8,'"Main Funding" Schl Level Mtrix'!$B$1282:$AA$1329,23) -> 0 | O40: =VLOOKUP($F$8,'"Main Funding" Schl Level Mtrix'!$B$1282:$AA$1329,24) -> 0 | P40: =VLOOKUP($F$8,'"Main Funding" Schl Level Mtrix'!$B$1282:$AA$1329,25) -> 0 | Q40: =VLOOKUP($F$8,'"Main Funding" Schl Level Mtrix'!$B$1282:$AA$1329,26) -> 0 | R40: 0 | S40: =VLOOKUP($F$8,'School Resource Matrices'!$B$1280:$FD$1327,9) -> 0
A41: 28 | B41: =VLOOKUP($F$8,'School Reference Sheet'!$A$5:$DR$52,84) -> N/A | C41: =VLOOKUP($F$8,'School Reference Sheet'!$A$5:$DR$52,85) -> N/A | D41: =VLOOKUP($F$8,'School Reference Sheet'!$A$5:$DR$52,86) -> N/A | E41: =VLOOKUP($F$8,'"Main Funding" Schl Level Mtrix'!$B$1331:$AA$1378,14) -> 0 | F41: =VLOOKUP($F$8,'"Main Funding" Schl Level Mtrix'!$B$1331:$AA$1378,15) -> 0 | G41: =VLOOKUP($F$8,'"Main Funding" Schl Level Mtrix'!$B$1331:$AA$1378,16) -> 0 | H41: =VLOOKUP($F$8,'"Main Funding" Schl Level Mtrix'!$B$1331:$AA$1378,17) -> 0 | I41: =VLOOKUP($F$8,'"Main Funding" Schl Level Mtrix'!$B$1331:$AA$1378,18) -> 0 | J41: =VLOOKUP($F$8,'"Main Funding" Schl Level Mtrix'!$B$1331:$AA$1378,19) -> 0 | K41: =VLOOKUP($F$8,'"Main Funding" Schl Level Mtrix'!$B$1331:$AA$1378,20) -> 0 | L41: =VLOOKUP($F$8,'"Main Funding" Schl Level Mtrix'!$B$1331:$AA$1378,21) -> 0 | M41: =VLOOKUP($F$8,'"Main Funding" Schl Level Mtrix'!$B$1331:$AA$1378,22) -> 0 | N41: =VLOOKUP($F$8,'"Main Funding" Schl Level Mtrix'!$B$1331:$AA$1378,23) -> 0 | O41: =VLOOKUP($F$8,'"Main Funding" Schl Level Mtrix'!$B$1331:$AA$1378,24) -> 0 | P41: =VLOOKUP($F$8,'"Main Funding" Schl Level Mtrix'!$B$1331:$AA$1378,25) -> 0 | Q41: =VLOOKUP($F$8,'"Main Funding" Schl Level Mtrix'!$B$1331:$AA$1378,26) -> 0 | R41: 0 | S41: =VLOOKUP($F$8,'School Resource Matrices'!$B$1329:$FD$1376,9) -> 0
A42: 29 | B42: =VLOOKUP($F$8,'School Reference Sheet'!$A$5:$DR$52,87) -> N/A | C42: =VLOOKUP($F$8,'School Reference Sheet'!$A$5:$DR$52,88) -> N/A | D42: =VLOOKUP($F$8,'School Reference Sheet'!$A$5:$DR$52,89) -> N/A | E42: =VLOOKUP($F$8,'"Main Funding" Schl Level Mtrix'!$B$1380:$AA$1427,14) -> 0 | F42: =VLOOKUP($F$8,'"Main Funding" Schl Level Mtrix'!$B$1380:$AA$1427,15) -> 0 | G42: =VLOOKUP($F$8,'"Main Funding" Schl Level Mtrix'!$B$1380:$AA$1427,16) -> 0 | H42: =VLOOKUP($F$8,'"Main Funding" Schl Level Mtrix'!$B$1380:$AA$1427,17) -> 0 | I42: =VLOOKUP($F$8,'"Main Funding" Schl Level Mtrix'!$B$1380:$AA$1427,18) -> 0 | J42: =VLOOKUP($F$8,'"Main Funding" Schl Level Mtrix'!$B$1380:$AA$1427,19) -> 0 | K42: =VLOOKUP($F$8,'"Main Funding" Schl Level Mtrix'!$B$1380:$AA$1427,20) -> 0 | L42: =VLOOKUP($F$8,'"Main Funding" Schl Level Mtrix'!$B$1380:$AA$1427,21) -> 0 | M42: =VLOOKUP($F$8,'"Main Funding" Schl Level Mtrix'!$B$1380:$AA$1427,22) -> 0 | N42: =VLOOKUP($F$8,'"Main Funding" Schl Level Mtrix'!$B$1380:$AA$1427,23) -> 0 | O42: =VLOOKUP($F$8,'"Main Funding" Schl Level Mtrix'!$B$1380:$AA$1427,24) -> 0 | P42: =VLOOKUP($F$8,'"Main Funding" Schl Level Mtrix'!$B$1380:$AA$1427,25) -> 0 | Q42: =VLOOKUP($F$8,'"Main Funding" Schl Level Mtrix'!$B$1380:$AA$1427,26) -> 0 | R42: 0 | S42: =VLOOKUP($F$8,'School Resource Matrices'!$B$1378:$FD$1425,9) -> 0
A43: 30 | B43: =VLOOKUP($F$8,'School Reference Sheet'!$A$5:$DR$52,90) -> N/A | C43: =VLOOKUP($F$8,'School Reference Sheet'!$A$5:$DR$52,91) -> N/A | D43: =VLOOKUP($F$8,'School Reference Sheet'!$A$5:$DR$52,92) -> N/A | E43: =VLOOKUP($F$8,'"Main Funding" Schl Level Mtrix'!$B$1429:$AA$1476,14) -> 0 | F43: =VLOOKUP($F$8,'"Main Funding" Schl Level Mtrix'!$B$1429:$AA$1476,15) -> 0 | G43: =VLOOKUP($F$8,'"Main Funding" Schl Level Mtrix'!$B$1429:$AA$1476,16) -> 0 | H43: =VLOOKUP($F$8,'"Main Funding" Schl Level Mtrix'!$B$1429:$AA$1476,17) -> 0 | I43: =VLOOKUP($F$8,'"Main Funding" Schl Level Mtrix'!$B$1429:$AA$1476,18) -> 0 | J43: =VLOOKUP($F$8,'"Main Funding" Schl Level Mtrix'!$B$1429:$AA$1476,19) -> 0 | K43: =VLOOKUP($F$8,'"Main Funding" Schl Level Mtrix'!$B$1429:$AA$1476,20) -> 0 | L43: =VLOOKUP($F$8,'"Main Funding" Schl Level Mtrix'!$B$1429:$AA$1476,21) -> 0 | M43: =VLOOKUP($F$8,'"Main Funding" Schl Level Mtrix'!$B$1429:$AA$1476,22) -> 0 | N43: =VLOOKUP($F$8,'"Main Funding" Schl Level Mtrix'!$B$1429:$AA$1476,23) -> 0 | O43: =VLOOKUP($F$8,'"Main Funding" Schl Level Mtrix'!$B$1429:$AA$1476,24) -> 0 | P43: =VLOOKUP($F$8,'"Main Funding" Schl Level Mtrix'!$B$1429:$AA$1476,25) -> 0 | Q43: =VLOOKUP($F$8,'"Main Funding" Schl Level Mtrix'!$B$1429:$AA$1476,26) -> 0 | R43: 0 | S43: =VLOOKUP($F$8,'School Resource Matrices'!$B$1427:$FD$1474,9) -> 0
A44: 31 | B44: =VLOOKUP($F$8,'School Reference Sheet'!$A$5:$DR$52,93) -> N/A | C44: =VLOOKUP($F$8,'School Reference Sheet'!$A$5:$DR$52,94) -> N/A | D44: =VLOOKUP($F$8,'School Reference Sheet'!$A$5:$DR$52,95) -> N/A | E44: =VLOOKUP($F$8,'"Main Funding" Schl Level Mtrix'!$B$1478:$AA$1524,14) -> 0 | F44: =VLOOKUP($F$8,'"Main Funding" Schl Level Mtrix'!$B$1478:$AA$1524,15) -> 0 | G44: =VLOOKUP($F$8,'"Main Funding" Schl Level Mtrix'!$B$1478:$AA$1524,16) -> 0 | H44: =VLOOKUP($F$8,'"Main Funding" Schl Level Mtrix'!$B$1478:$AA$1524,17) -> 0 | I44: =VLOOKUP($F$8,'"Main Funding" Schl Level Mtrix'!$B$1478:$AA$1524,18) -> 0 | J44: =VLOOKUP($F$8,'"Main Funding" Schl Level Mtrix'!$B$1478:$AA$1524,19) -> 0 | K44: =VLOOKUP($F$8,'"Main Funding" Schl Level Mtrix'!$B$1478:$AA$1524,20) -> 0 | L44: =VLOOKUP($F$8,'"Main Funding" Schl Level Mtrix'!$B$1478:$AA$1524,21) -> 0 | M44: =VLOOKUP($F$8,'"Main Funding" Schl Level Mtrix'!$B$1478:$AA$1524,22) -> 0 | N44: =VLOOKUP($F$8,'"Main Funding" Schl Level Mtrix'!$B$1478:$AA$1524,23) -> 0 | O44: =VLOOKUP($F$8,'"Main Funding" Schl Level Mtrix'!$B$1478:$AA$1524,24) -> 0 | P44: =VLOOKUP($F$8,'"Main Funding" Schl Level Mtrix'!$B$1478:$AA$1524,25) -> 0 | Q44: =VLOOKUP($F$8,'"Main Funding" Schl Level Mtrix'!$B$1478:$AA$1524,26) -> 0 | R44: 0 | S44: =VLOOKUP($F$8,'School Resource Matrices'!$B$1476:$FD$1523,9) -> 0
A45: 32 | B45: =VLOOKUP($F$8,'School Reference Sheet'!$A$5:$DR$52,96) -> N/A | C45: =VLOOKUP($F$8,'School Reference Sheet'!$A$5:$DR$52,97) -> N/A | D45: =VLOOKUP($F$8,'School Reference Sheet'!$A$5:$DR$52,98) -> N/A | E45: =VLOOKUP($F$8,'"Main Funding" Schl Level Mtrix'!$B$1527:$AA$1574,14) -> 0 | F45: =VLOOKUP($F$8,'"Main Funding" Schl Level Mtrix'!$B$1527:$AA$1574,15) -> 0 | G45: =VLOOKUP($F$8,'"Main Funding" Schl Level Mtrix'!$B$1527:$AA$1574,16) -> 0 | H45: =VLOOKUP($F$8,'"Main Funding" Schl Level Mtrix'!$B$1527:$AA$1574,17) -> 0 | I45: =VLOOKUP($F$8,'"Main Funding" Schl Level Mtrix'!$B$1527:$AA$1574,18) -> 0 | J45: =VLOOKUP($F$8,'"Main Funding" Schl Level Mtrix'!$B$1527:$AA$1574,19) -> 0 | K45: =VLOOKUP($F$8,'"Main Funding" Schl Level Mtrix'!$B$1527:$AA$1574,20) -> 0 | L45: =VLOOKUP($F$8,'"Main Funding" Schl Level Mtrix'!$B$1527:$AA$1574,21) -> 0 | M45: =VLOOKUP($F$8,'"Main Funding" Schl Level Mtrix'!$B$1527:$AA$1574,22) -> 0 | N45: =VLOOKUP($F$8,'"Main Funding" Schl Level Mtrix'!$B$1527:$AA$1574,23) -> 0 | O45: =VLOOKUP($F$8,'"Main Funding" Schl Level Mtrix'!$B$1527:$AA$1574,24) -> 0 | P45: =VLOOKUP($F$8,'"Main Funding" Schl Level Mtrix'!$B$1527:$AA$1574,25) -> 0 | Q45: =VLOOKUP($F$8,'"Main Funding" Schl Level Mtrix'!$B$1527:$AA$1574,26) -> 0 | R45: 0 | S45: =VLOOKUP($F$8,'School Resource Matrices'!$B$1525:$FD$1572,9) -> 0
A46: 33 | B46: =VLOOKUP($F$8,'School Reference Sheet'!$A$5:$DR$52,99) -> N/A | C46: =VLOOKUP($F$8,'School Reference Sheet'!$A$5:$DR$52,100) -> N/A | D46: =VLOOKUP($F$8,'School Reference Sheet'!$A$5:$DR$52,101) -> N/A | E46: =VLOOKUP($F$8,'"Main Funding" Schl Level Mtrix'!$B$1576:$AA$1623,14) -> 0 | F46: =VLOOKUP($F$8,'"Main Funding" Schl Level Mtrix'!$B$1576:$AA$1623,15) -> 0 | G46: =VLOOKUP($F$8,'"Main Funding" Schl Level Mtrix'!$B$1576:$AA$1623,16) -> 0 | H46: =VLOOKUP($F$8,'"Main Funding" Schl Level Mtrix'!$B$1576:$AA$1623,17) -> 0 | I46: =VLOOKUP($F$8,'"Main Funding" Schl Level Mtrix'!$B$1576:$AA$1623,18) -> 0 | J46: =VLOOKUP($F$8,'"Main Funding" Schl Level Mtrix'!$B$1576:$AA$1623,19) -> 0 | K46: =VLOOKUP($F$8,'"Main Funding" Schl Level Mtrix'!$B$1576:$AA$1623,20) -> 0 | L46: =VLOOKUP($F$8,'"Main Funding" Schl Level Mtrix'!$B$1576:$AA$1623,21) -> 0 | M46: =VLOOKUP($F$8,'"Main Funding" Schl Level Mtrix'!$B$1576:$AA$1623,22) -> 0 | N46: =VLOOKUP($F$8,'"Main Funding" Schl Level Mtrix'!$B$1576:$AA$1623,23) -> 0 | O46: =VLOOKUP($F$8,'"Main Funding" Schl Level Mtrix'!$B$1576:$AA$1623,24) -> 0 | P46: =VLOOKUP($F$8,'"Main Funding" Schl Level Mtrix'!$B$1576:$AA$1623,25) -> 0 | Q46: =VLOOKUP($F$8,'"Main Funding" Schl Level Mtrix'!$B$1576:$AA$1623,26) -> 0 | R46: 0 | S46: =VLOOKUP($F$8,'School Resource Matrices'!$B$1574:$FD$1621,9) -> 0
A47: 34 | B47: =VLOOKUP($F$8,'School Reference Sheet'!$A$5:$DR$52,102) -> N/A | C47: =VLOOKUP($F$8,'School Reference Sheet'!$A$5:$DR$52,103) -> N/A | D47: =VLOOKUP($F$8,'School Reference Sheet'!$A$5:$DR$52,104) -> N/A | E47: =VLOOKUP($F$8,'"Main Funding" Schl Level Mtrix'!$B$1625:$AA$1672,14) -> 0 | F47: =VLOOKUP($F$8,'"Main Funding" Schl Level Mtrix'!$B$1625:$AA$1672,15) -> 0 | G47: =VLOOKUP($F$8,'"Main Funding" Schl Level Mtrix'!$B$1625:$AA$1672,16) -> 0 | H47: =VLOOKUP($F$8,'"Main Funding" Schl Level Mtrix'!$B$1625:$AA$1672,17) -> 0 | I47: =VLOOKUP($F$8,'"Main Funding" Schl Level Mtrix'!$B$1625:$AA$1672,18) -> 0 | J47: =VLOOKUP($F$8,'"Main Funding" Schl Level Mtrix'!$B$1625:$AA$1672,19) -> 0 | K47: =VLOOKUP($F$8,'"Main Funding" Schl Level Mtrix'!$B$1625:$AA$1672,20) -> 0 | L47: =VLOOKUP($F$8,'"Main Funding" Schl Level Mtrix'!$B$1625:$AA$1672,21) -> 0 | M47: =VLOOKUP($F$8,'"Main Funding" Schl Level Mtrix'!$B$1625:$AA$1672,22) -> 0 | N47: =VLOOKUP($F$8,'"Main Funding" Schl Level Mtrix'!$B$1625:$AA$1672,23) -> 0 | O47: =VLOOKUP($F$8,'"Main Funding" Schl Level Mtrix'!$B$1625:$AA$1672,24) -> 0 | P47: =VLOOKUP($F$8,'"Main Funding" Schl Level Mtrix'!$B$1625:$AA$1672,25) -> 0 | Q47: =VLOOKUP($F$8,'"Main Funding" Schl Level Mtrix'!$B$1625:$AA$1672,26) -> 0 | R47: 0 | S47: =VLOOKUP($F$8,'School Resource Matrices'!$B$1623:$FD$1670,9) -> 0
A48: 35 | B48: =VLOOKUP($F$8,'School Reference Sheet'!$A$5:$DR$52,105) -> N/A | C48: =VLOOKUP($F$8,'School Reference Sheet'!$A$5:$DR$52,106) -> N/A | D48: =VLOOKUP($F$8,'School Reference Sheet'!$A$5:$DR$52,107) -> N/A | E48: =VLOOKUP($F$8,'"Main Funding" Schl Level Mtrix'!$B$1674:$AA$1721,14) -> 0 | F48: =VLOOKUP($F$8,'"Main Funding" Schl Level Mtrix'!$B$1674:$AA$1721,15) -> 0 | G48: =VLOOKUP($F$8,'"Main Funding" Schl Level Mtrix'!$B$1674:$AA$1721,16) -> 0 | H48: =VLOOKUP($F$8,'"Main Funding" Schl Level Mtrix'!$B$1674:$AA$1721,17) -> 0 | I48: =VLOOKUP($F$8,'"Main Funding" Schl Level Mtrix'!$B$1674:$AA$1721,18) -> 0 | J48: =VLOOKUP($F$8,'"Main Funding" Schl Level Mtrix'!$B$1674:$AA$1721,19) -> 0 | K48: =VLOOKUP($F$8,'"Main Funding" Schl Level Mtrix'!$B$1674:$AA$1721,20) -> 0 | L48: =VLOOKUP($F$8,'"Main Funding" Schl Level Mtrix'!$B$1674:$AA$1721,21) -> 0 | M48: =VLOOKUP($F$8,'"Main Funding" Schl Level Mtrix'!$B$1674:$AA$1721,22) -> 0 | N48: =VLOOKUP($F$8,'"Main Funding" Schl Level Mtrix'!$B$1674:$AA$1721,23) -> 0 | O48: =VLOOKUP($F$8,'"Main Funding" Schl Level Mtrix'!$B$1674:$AA$1721,24) -> 0 | P48: =VLOOKUP($F$8,'"Main Funding" Schl Level Mtrix'!$B$1674:$AA$1721,25) -> 0 | Q48: =VLOOKUP($F$8,'"Main Funding" Schl Level Mtrix'!$B$1674:$AA$1721,26) -> 0 | R48: 0 | S48: =VLOOKUP($F$8,'School Resource Matrices'!$B$1672:$FD$1719,9) -> 0
A49: 36 | B49: =VLOOKUP($F$8,'School Reference Sheet'!$A$5:$DR$52,108) -> N/A | C49: =VLOOKUP($F$8,'School Reference Sheet'!$A$5:$DR$52,109) -> N/A | D49: =VLOOKUP($F$8,'School Reference Sheet'!$A$5:$DR$52,110) -> N/A | E49: =VLOOKUP($F$8,'"Main Funding" Schl Level Mtrix'!$B$1723:$AA$1770,14) -> 0 | F49: =VLOOKUP($F$8,'"Main Funding" Schl Level Mtrix'!$B$1723:$AA$1770,15) -> 0 | G49: =VLOOKUP($F$8,'"Main Funding" Schl Level Mtrix'!$B$1723:$AA$1770,16) -> 0 | H49: =VLOOKUP($F$8,'"Main Funding" Schl Level Mtrix'!$B$1723:$AA$1770,17) -> 0 | I49: =VLOOKUP($F$8,'"Main Funding" Schl Level Mtrix'!$B$1723:$AA$1770,18) -> 0 | J49: =VLOOKUP($F$8,'"Main Funding" Schl Level Mtrix'!$B$1723:$AA$1770,19) -> 0 | K49: =VLOOKUP($F$8,'"Main Funding" Schl Level Mtrix'!$B$1723:$AA$1770,20) -> 0 | L49: =VLOOKUP($F$8,'"Main Funding" Schl Level Mtrix'!$B$1723:$AA$1770,21) -> 0 | M49: =VLOOKUP($F$8,'"Main Funding" Schl Level Mtrix'!$B$1723:$AA$1770,22) -> 0 | N49: =VLOOKUP($F$8,'"Main Funding" Schl Level Mtrix'!$B$1723:$AA$1770,23) -> 0 | O49: =VLOOKUP($F$8,'"Main Funding" Schl Level Mtrix'!$B$1723:$AA$1770,24) -> 0 | P49: =VLOOKUP($F$8,'"Main Funding" Schl Level Mtrix'!$B$1723:$AA$1770,25) -> 0 | Q49: =VLOOKUP($F$8,'"Main Funding" Schl Level Mtrix'!$B$1723:$AA$1770,26) -> 0 | R49: =SUM(E49:Q49) -> 0 | S49: =VLOOKUP($F$8,'School Resource Matrices'!$B$1721:$FD$1768,9) -> 0
A50: 37 | B50: =VLOOKUP($F$8,'School Reference Sheet'!$A$5:$DR$52,111) -> N/A | C50: =VLOOKUP($F$8,'School Reference Sheet'!$A$5:$DR$52,112) -> N/A | D50: =VLOOKUP($F$8,'School Reference Sheet'!$A$5:$DR$52,113) -> N/A | E50: =VLOOKUP($F$8,'"Main Funding" Schl Level Mtrix'!$B$1772:$AA$1819,14) -> 0 | F50: =VLOOKUP($F$8,'"Main Funding" Schl Level Mtrix'!$B$1772:$AA$1819,15) -> 0 | G50: =VLOOKUP($F$8,'"Main Funding" Schl Level Mtrix'!$B$1772:$AA$1819,16) -> 0 | H50: =VLOOKUP($F$8,'"Main Funding" Schl Level Mtrix'!$B$1772:$AA$1819,17) -> 0 | I50: =VLOOKUP($F$8,'"Main Funding" Schl Level Mtrix'!$B$1772:$AA$1819,18) -> 0 | J50: =VLOOKUP($F$8,'"Main Funding" Schl Level Mtrix'!$B$1772:$AA$1819,19) -> 0 | K50: =VLOOKUP($F$8,'"Main Funding" Schl Level Mtrix'!$B$1772:$AA$1819,20) -> 0 | L50: =VLOOKUP($F$8,'"Main Funding" Schl Level Mtrix'!$B$1772:$AA$1819,21) -> 0 | M50: =VLOOKUP($F$8,'"Main Funding" Schl Level Mtrix'!$B$1772:$AA$1819,22) -> 0 | N50: =VLOOKUP($F$8,'"Main Funding" Schl Level Mtrix'!$B$1772:$AA$1819,23) -> 0 | O50: =VLOOKUP($F$8,'"Main Funding" Schl Level Mtrix'!$B$1772:$AA$1819,24) -> 0 | P50: =VLOOKUP($F$8,'"Main Funding" Schl Level Mtrix'!$B$1772:$AA$1819,25) -> 0 | Q50: =VLOOKUP($F$8,'"Main Funding" Schl Level Mtrix'!$B$1772:$AA$1819,26) -> 0 | R50: 0 | S50: =VLOOKUP($F$8,'School Resource Matrices'!$B$1770:$FD$1817,9) -> 0
A51: 38 | B51: =VLOOKUP($F$8,'School Reference Sheet'!$A$5:$DR$52,114) -> N/A | C51: =VLOOKUP($F$8,'School Reference Sheet'!$A$5:$DR$52,115) -> N/A | D51: =VLOOKUP($F$8,'School Reference Sheet'!$A$5:$DR$52,116) -> N/A | E51: =VLOOKUP($F$8,'"Main Funding" Schl Level Mtrix'!$B$1821:$AA$1868,14) -> 0 | F51: =VLOOKUP($F$8,'"Main Funding" Schl Level Mtrix'!$B$1821:$AA$1868,15) -> 0 | G51: =VLOOKUP($F$8,'"Main Funding" Schl Level Mtrix'!$B$1821:$AA$1868,16) -> 0 | H51: =VLOOKUP($F$8,'"Main Funding" Schl Level Mtrix'!$B$1821:$AA$1868,17) -> 0 | I51: =VLOOKUP($F$8,'"Main Funding" Schl Level Mtrix'!$B$1821:$AA$1868,18) -> 0 | J51: =VLOOKUP($F$8,'"Main Funding" Schl Level Mtrix'!$B$1821:$AA$1868,19) -> 0 | K51: =VLOOKUP($F$8,'"Main Funding" Schl Level Mtrix'!$B$1821:$AA$1868,20) -> 0 | L51: =VLOOKUP($F$8,'"Main Funding" Schl Level Mtrix'!$B$1821:$AA$1868,21) -> 0 | M51: =VLOOKUP($F$8,'"Main Funding" Schl Level Mtrix'!$B$1821:$AA$1868,22) -> 0 | N51: =VLOOKUP($F$8,'"Main Funding" Schl Level Mtrix'!$B$1821:$AA$1868,23) -> 0 | O51: =VLOOKUP($F$8,'"Main Funding" Schl Level Mtrix'!$B$1821:$AA$1868,24) -> 0 | P51: =VLOOKUP($F$8,'"Main Funding" Schl Level Mtrix'!$B$1821:$AA$1868,25) -> 0 | Q51: =VLOOKUP($F$8,'"Main Funding" Schl Level Mtrix'!$B$1821:$AA$1868,26) -> 0 | R51: 0 | S51: =VLOOKUP($F$8,'School Resource Matrices'!$B$1819:$FD$1866,9) -> 0
A52: 39 | B52: =VLOOKUP($F$8,'School Reference Sheet'!$A$5:$DR$52,117) -> N/A | C52: =VLOOKUP($F$8,'School Reference Sheet'!$A$5:$DR$52,118) -> N/A | D52: =VLOOKUP($F$8,'School Reference Sheet'!$A$5:$DR$52,119) -> N/A | E52: =VLOOKUP($F$8,'"Main Funding" Schl Level Mtrix'!$B$1870:$AA$1917,14) -> 0 | F52: =VLOOKUP($F$8,'"Main Funding" Schl Level Mtrix'!$B$1870:$AA$1917,15) -> 0 | G52: =VLOOKUP($F$8,'"Main Funding" Schl Level Mtrix'!$B$1870:$AA$1917,16) -> 0 | H52: =VLOOKUP($F$8,'"Main Funding" Schl Level Mtrix'!$B$1870:$AA$1917,17) -> 0 | I52: =VLOOKUP($F$8,'"Main Funding" Schl Level Mtrix'!$B$1870:$AA$1917,18) -> 0 | J52: =VLOOKUP($F$8,'"Main Funding" Schl Level Mtrix'!$B$1870:$AA$1917,19) -> 0 | K52: =VLOOKUP($F$8,'"Main Funding" Schl Level Mtrix'!$B$1870:$AA$1917,20) -> 0 | L52: =VLOOKUP($F$8,'"Main Funding" Schl Level Mtrix'!$B$1870:$AA$1917,21) -> 0 | M52: =VLOOKUP($F$8,'"Main Funding" Schl Level Mtrix'!$B$1870:$AA$1917,22) -> 0 | N52: =VLOOKUP($F$8,'"Main Funding" Schl Level Mtrix'!$B$1870:$AA$1917,23) -> 0 | O52: =VLOOKUP($F$8,'"Main Funding" Schl Level Mtrix'!$B$1870:$AA$1917,24) -> 0 | P52: =VLOOKUP($F$8,'"Main Funding" Schl Level Mtrix'!$B$1870:$AA$1917,25) -> 0 | Q52: =VLOOKUP($F$8,'"Main Funding" Schl Level Mtrix'!$B$1870:$AA$1917,26) -> 0 | R52: 0 | S52: =VLOOKUP($F$8,'School Resource Matrices'!$B$1868:$FD$1915,9) -> 0
A53: 40 | B53: =VLOOKUP($F$8,'School Reference Sheet'!$A$5:$DR$52,120) -> N/A | C53: =VLOOKUP($F$8,'School Reference Sheet'!$A$5:$DR$52,121) -> N/A | D53: =VLOOKUP($F$8,'School Reference Sheet'!$A$5:$DR$52,122) -> N/A | E53: =VLOOKUP($F$8,'"Main Funding" Schl Level Mtrix'!$B$1919:$AA$1966,14) -> 0 | F53: =VLOOKUP($F$8,'"Main Funding" Schl Level Mtrix'!$B$1919:$AA$1966,15) -> 0 | G53: =VLOOKUP($F$8,'"Main Funding" Schl Level Mtrix'!$B$1919:$AA$1966,16) -> 0 | H53: =VLOOKUP($F$8,'"Main Funding" Schl Level Mtrix'!$B$1919:$AA$1966,17) -> 0 | I53: =VLOOKUP($F$8,'"Main Funding" Schl Level Mtrix'!$B$1919:$AA$1966,18) -> 0 | J53: =VLOOKUP($F$8,'"Main Funding" Schl Level Mtrix'!$B$1919:$AA$1966,19) -> 0 | K53: =VLOOKUP($F$8,'"Main Funding" Schl Level Mtrix'!$B$1919:$AA$1966,20) -> 0 | L53: =VLOOKUP($F$8,'"Main Funding" Schl Level Mtrix'!$B$1919:$AA$1966,21) -> 0 | M53: =VLOOKUP($F$8,'"Main Funding" Schl Level Mtrix'!$B$1919:$AA$1966,22) -> 0 | N53: =VLOOKUP($F$8,'"Main Funding" Schl Level Mtrix'!$B$1919:$AA$1966,23) -> 0 | O53: =VLOOKUP($F$8,'"Main Funding" Schl Level Mtrix'!$B$1919:$AA$1966,24) -> 0 | P53: =VLOOKUP($F$8,'"Main Funding" Schl Level Mtrix'!$B$1919:$AA$1966,25) -> 0 | Q53: =VLOOKUP($F$8,'"Main Funding" Schl Level Mtrix'!$B$1919:$AA$1966,26) -> 0 | R53: 0 | S53: =VLOOKUP($F$8,'School Resource Matrices'!$B$1917:$FD$1964,9) -> 0
B54: Total District ADM | E54: =SUM(E14:E53) -> 22.874 | F54: =SUM(F14:F53) -> 19.509 | G54: 23.28 | H54: 22.423 | I54: 18.811 | J54: 19.12 | K54: 12 | L54: 17.817 | M54: 18.743 | N54: 17.246 | O54: 21.234 | P54: 21.789 | Q54: =SUM(Q14:Q53) -> 16.149 | R54: =SUM(R14:R53) -> 250.995 | S54: =SUM(S14:S53) -> 264.1706667
A56: B) Vocational Education FTE's
B57: School | C57: School Name | D57: Student | E57: Teacher
B58: ID | D58: FTE | E58: FTE
A59: 1 | B59: =VLOOKUP($F$8,'Voc Ed'!$B$373:$I$420,3) -> 2307055 | C59: =VLOOKUP($F$8,'Voc Ed'!$B$373:$I$420,4) -> Upton High School | D59: =VLOOKUP($F$8,'Voc Ed'!$B$373:$I$420,7) -> 11.52 | E59: =VLOOKUP($F$8,'Voc Ed'!$B$373:$I$420,8) -> 2.57
A60: 2 | B60: =VLOOKUP($F$8,'Voc Ed'!$B$422:$I$469,3) -> N/A | C60: =VLOOKUP($F$8,'Voc Ed'!$B$422:$I$469,4) -> N/A | D60: =VLOOKUP($F$8,'Voc Ed'!$B$422:$I$469,7) -> N/A | E60: =VLOOKUP($F$8,'Voc Ed'!$B$422:$I$469,8) -> N/A
A61: 3 | B61: =VLOOKUP($F$8,'Voc Ed'!$B$471:$I$518,3) -> N/A | C61: =VLOOKUP($F$8,'Voc Ed'!$B$471:$I$518,4) -> N/A | D61: =VLOOKUP($F$8,'Voc Ed'!$B$471:$I$518,7) -> N/A | E61: =VLOOKUP($F$8,'Voc Ed'!$B$471:$I$518,8) -> N/A
A62: 4 | B62: =VLOOKUP($F$8,'Voc Ed'!$B$520:$I$567,3) -> N/A | C62: =VLOOKUP($F$8,'Voc Ed'!$B$520:$I$567,4) -> N/A | D62: =VLOOKUP($F$8,'Voc Ed'!$B$520:$I$567,7) -> N/A | E62: =VLOOKUP($F$8,'Voc Ed'!$B$520:$I$567,8) -> N/A
A63: 5 | B63: =VLOOKUP($F$8,'Voc Ed'!$B$569:$I$616,3) -> N/A | C63: =VLOOKUP($F$8,'Voc Ed'!$B$569:$I$616,4) -> N/A | D63: =VLOOKUP($F$8,'Voc Ed'!$B$569:$I$616,7) -> N/A | E63: =VLOOKUP($F$8,'Voc Ed'!$B$569:$I$616,8) -> N/A
A64: 6 | B64: =VLOOKUP($F$8,'Voc Ed'!$B$618:$I$665,3) -> N/A | C64: =VLOOKUP($F$8,'Voc Ed'!$B$618:$I$665,4) -> N/A | D64: =VLOOKUP($F$8,'Voc Ed'!$B$618:$I$665,7) -> N/A | E64: =VLOOKUP($F$8,'Voc Ed'!$B$618:$I$665,8) -> N/A
A65: 7 | B65: =VLOOKUP($F$8,'Voc Ed'!$B$667:$I$714,3) -> N/A | C65: =VLOOKUP($F$8,'Voc Ed'!$B$667:$I$714,4) -> N/A | D65: =VLOOKUP($F$8,'Voc Ed'!$B$667:$I$714,7) -> N/A | E65: =VLOOKUP($F$8,'Voc Ed'!$B$667:$I$714,8) -> N/A
A66: 8 | B66: =VLOOKUP($F$8,'Voc Ed'!$B$716:$I$763,3) -> N/A | C66: =VLOOKUP($F$8,'Voc Ed'!$B$716:$I$763,4) -> N/A | D66: =VLOOKUP($F$8,'Voc Ed'!$B$716:$I$763,7) -> N/A | E66: =VLOOKUP($F$8,'Voc Ed'!$B$716:$I$763,8) -> N/A
A67: 9 | B67: N/A | C67: N/A | D67: N/A | E67: N/A
A68: 10 | B68: N/A | C68: N/A | D68: N/A | E68: N/A
B69: District Totals | D69: =SUM(D59:D68) -> 11.52 | E69: =SUM(E59:E68) -> 2.57
A71: Additional VocEd Supplies & Equip. | D71: =VLOOKUP($F$8,'School Res-Dist Rollup'!$A$6:$ES$54,143) -> 2969496.824 | E71: Vlookup | F71: *Also included in School Resources
A73: C) District Level Resources | D73: FTE | E73: Funding
B74: 1. Operations and Maintenance Resources
B75: a.) Custodians | D75: =VLOOKUP($F$8,'O&M Base Sheet'!$A$7:$N$55,5) -> 800.4399378 | E75: =VLOOKUP($F$8,'O&M Base Sheet'!$A$7:$N$55,8) -> 42034833.61 | F75: Vlookup
B76: b.) Maintenance Workers | D76: =VLOOKUP($F$8,'O&M Base Sheet'!$A$7:$N$55,6) -> 336.0315647 | E76: =VLOOKUP($F$8,'O&M Base Sheet'!$A$7:$N$55,9) -> 20106223.51 | F76: Vlookup
B77: c.) Groundskeepers | D77: =VLOOKUP($F$8,'O&M Base Sheet'!$A$7:$N$55,7) -> 464.3491204 | E77: =VLOOKUP($F$8,'O&M Base Sheet'!$A$7:$N$55,10) -> 27805082.89 | F77: Vlookup
B78: e.) Supplies | E78: =VLOOKUP($F$8,'O&M Base Sheet'!$A$7:$N$55,13) -> 13624882.96 | F78: Vlookup
A79: Total O&M Costs | E79: =SUM(E75:F78) -> 103571023
B81: 2. Central Office Resources | D81: FTE | E81: Funding
B82: a.) Personnel Costs
B83: i. Professional: | D83: =VLOOKUP($F$8,'Central Office'!$A$6:$K$54,4) -> 285.2569479 | E83: =VLOOKUP($F$8,'Central Office'!$A$6:$K$54,7) -> 39469503.96
B84: ii. Clerical: | D84: =VLOOKUP($F$8,'Central Office'!$A$6:$K$54,5) -> 325.0022626 | E84: =VLOOKUP($F$8,'Central Office'!$A$6:$K$54,8) -> 19341638.92
B85: ii. Non Personnel: | E85: =VLOOKUP($F$8,'Central Office'!$A$6:$K$54,10) -> 34378349.17
A86: Total Central Office Costs: | E86: =SUM(E83:F85) -> 93189492.05
B88: 3. Utilities | E88: =VLOOKUP($F$8,'Base Sheet'!$A$10:$Z$57,9) -> 160295.3946
B90: Total District O&M Resources, Central Office Resources and Utilities
E91: =SUM(E79,E86,E88) -> 196920810.4
A93: D) Model Generated School Resources
E94: Reg. | G94: Specialist | I94: Add. Min. | K94: Other | M94: Teacher | O94: Admin. | Q94: Non- | R94: Total
D95: Grades | E95: Class | G95: Teacher | I95: Teacher | K95: Teacher | M95: Support | O95: Staff | Q95: Staff | R95: School
B96: School ID | C96: School Name | D96: Served | E96: Teacher | G96: Costs | I96: Costs | K96: Costs | M96: Costs* | O96: Costs | Q96: Costs | R96: Resources
A97: 1 | B97: =VLOOKUP($F$8,'School Reference Sheet'!$A$5:$DR$52,3) -> 2307001 | C97: =VLOOKUP($F$8,'School Reference Sheet'!$A$5:$DR$52,4) -> Upton Elementary | D97: =VLOOKUP($F$8,'School Reference Sheet'!$A$5:$DR$52,5) -> K-5 | E97: =VLOOKUP($F$8,'"Main Funding" Schl Level Mtrix'!$B$8:$N$55,6) -> 612237.74 | G97: =VLOOKUP($F$8,'"Main Funding" Schl Level Mtrix'!$B$8:$N$55,7) -> 122447.548 | I97: =VLOOKUP($F$8,'"Main Funding" Schl Level Mtrix'!$B$8:$N$55,8) -> 0 | K97: =VLOOKUP($F$8,'"Main Funding" Schl Level Mtrix'!$B$8:$N$55,9) -> 0 | M97: =VLOOKUP($F$8,'"Main Funding" Schl Level Mtrix'!$B$8:$N$55,10) -> 207994.0164 | O97: =VLOOKUP($F$8,'"Main Funding" Schl Level Mtrix'!$B$8:$N$55,11) -> 183958.452 | Q97: =VLOOKUP($F$8,'"Main Funding" Schl Level Mtrix'!$B$8:$N$55,12) -> 82711.25795 | R97: =VLOOKUP($F$8,'"Main Funding" Schl Level Mtrix'!$B$8:$N$55,13) -> 1209349.014
A98: 2 | B98: =VLOOKUP($F$8,'School Reference Sheet'!$A$5:$DR$52,6) -> 2307050 | C98: =VLOOKUP($F$8,'School Reference Sheet'!$A$5:$DR$52,7) -> Upton Middle School | D98: =VLOOKUP($F$8,'School Reference Sheet'!$A$5:$DR$52,8) -> 6-8 | E98: =VLOOKUP($F$8,'"Main Funding" Schl Level Mtrix'!$B$57:$N$104,6) -> 204735.2814 | G98: =VLOOKUP($F$8,'"Main Funding" Schl Level Mtrix'!$B$57:$N$104,7) -> 67562.64287 | I98: =VLOOKUP($F$8,'"Main Funding" Schl Level Mtrix'!$B$57:$N$104,8) -> 349573.9717 | K98: =VLOOKUP($F$8,'"Main Funding" Schl Level Mtrix'!$B$57:$N$104,9) -> 0 | M98: =VLOOKUP($F$8,'"Main Funding" Schl Level Mtrix'!$B$57:$N$104,10) -> 140236.0944 | O98: =VLOOKUP($F$8,'"Main Funding" Schl Level Mtrix'!$B$57:$N$104,11) -> 94343.81994 | Q98: =VLOOKUP($F$8,'"Main Funding" Schl Level Mtrix'!$B$57:$N$104,12) -> 70962.18275 | R98: =VLOOKUP($F$8,'"Main Funding" Schl Level Mtrix'!$B$57:$N$104,13) -> 927413.9931
A99: 3 | B99: =VLOOKUP($F$8,'School Reference Sheet'!$A$5:$DR$52,9) -> 2307055 | C99: =VLOOKUP($F$8,'School Reference Sheet'!$A$5:$DR$52,10) -> Upton High School | D99: =VLOOKUP($F$8,'School Reference Sheet'!$A$5:$DR$52,11) -> 9-12 | E99: =VLOOKUP($F$8,'"Main Funding" Schl Level Mtrix'!$B$106:$N$153,6) -> 306656.8771 | G99: =VLOOKUP($F$8,'"Main Funding" Schl Level Mtrix'!$B$106:$N$153,7) -> 113563.1363 | I99: =VLOOKUP($F$8,'"Main Funding" Schl Level Mtrix'!$B$106:$N$153,8) -> 357119.8566 | K99: =VLOOKUP($F$8,'"Main Funding" Schl Level Mtrix'!$B$106:$N$153,9) -> 0 | M99: =VLOOKUP($F$8,'"Main Funding" Schl Level Mtrix'!$B$106:$N$153,10) -> 205170.3039 | O99: =VLOOKUP($F$8,'"Main Funding" Schl Level Mtrix'!$B$106:$N$153,11) -> 153563.3352 | Q99: =VLOOKUP($F$8,'"Main Funding" Schl Level Mtrix'!$B$106:$N$153,12) -> 211956.2395 | R99: =VLOOKUP($F$8,'"Main Funding" Schl Level Mtrix'!$B$106:$N$153,13) -> 1348029.749
A100: 4 | B100: =VLOOKUP($F$8,'School Reference Sheet'!$A$5:$DR$52,12) -> N/A | C100: =VLOOKUP($F$8,'School Reference Sheet'!$A$5:$DR$52,13) -> N/A | D100: =VLOOKUP($F$8,'School Reference Sheet'!$A$5:$DR$52,14) -> N/A | E100: =VLOOKUP($F$8,'"Main Funding" Schl Level Mtrix'!$B$155:$N$202,6) -> 0 | G100: =VLOOKUP($F$8,'"Main Funding" Schl Level Mtrix'!$B$155:$N$202,7) -> 0 | I100: =VLOOKUP($F$8,'"Main Funding" Schl Level Mtrix'!$B$155:$N$202,8) -> 0 | K100: =VLOOKUP($F$8,'"Main Funding" Schl Level Mtrix'!$B$155:$N$202,9) -> 0 | M100: =VLOOKUP($F$8,'"Main Funding" Schl Level Mtrix'!$B$155:$N$202,10) -> 0 | O100: =VLOOKUP($F$8,'"Main Funding" Schl Level Mtrix'!$B$155:$N$202,11) -> 0 | Q100: =VLOOKUP($F$8,'"Main Funding" Schl Level Mtrix'!$B$155:$N$202,12) -> 0 | R100: =VLOOKUP($F$8,'"Main Funding" Schl Level Mtrix'!$B$155:$N$202,13) -> 0
A101: 5 | B101: =VLOOKUP($F$8,'School Reference Sheet'!$A$5:$DR$52,15) -> N/A | C101: =VLOOKUP($F$8,'School Reference Sheet'!$A$5:$DR$52,16) -> N/A | D101: =VLOOKUP($F$8,'School Reference Sheet'!$A$5:$DR$52,17) -> N/A | E101: =VLOOKUP($F$8,'"Main Funding" Schl Level Mtrix'!$B$204:$N$251,6) -> 0 | G101: =VLOOKUP($F$8,'"Main Funding" Schl Level Mtrix'!$B$204:$N$251,7) -> 0 | I101: =VLOOKUP($F$8,'"Main Funding" Schl Level Mtrix'!$B$204:$N$251,8) -> 0 | K101: =VLOOKUP($F$8,'"Main Funding" Schl Level Mtrix'!$B$204:$N$251,9) -> 0 | M101: =VLOOKUP($F$8,'"Main Funding" Schl Level Mtrix'!$B$204:$N$251,10) -> 0 | O101: =VLOOKUP($F$8,'"Main Funding" Schl Level Mtrix'!$B$204:$N$251,11) -> 0 | Q101: =VLOOKUP($F$8,'"Main Funding" Schl Level Mtrix'!$B$204:$N$251,12) -> 0 | R101: =VLOOKUP($F$8,'"Main Funding" Schl Level Mtrix'!$B$204:$N$251,13) -> 0
A102: 6 | B102: =VLOOKUP($F$8,'School Reference Sheet'!$A$5:$DR$52,18) -> N/A | C102: =VLOOKUP($F$8,'School Reference Sheet'!$A$5:$DR$52,19) -> N/A | D102: =VLOOKUP($F$8,'School Reference Sheet'!$A$5:$DR$52,20) -> N/A | E102: =VLOOKUP($F$8,'"Main Funding" Schl Level Mtrix'!$B$253:$N$300,6) -> 0 | G102: =VLOOKUP($F$8,'"Main Funding" Schl Level Mtrix'!$B$253:$N$300,7) -> 0 | I102: =VLOOKUP($F$8,'"Main Funding" Schl Level Mtrix'!$B$253:$N$300,8) -> 0 | K102: =VLOOKUP($F$8,'"Main Funding" Schl Level Mtrix'!$B$253:$N$300,9) -> 0 | M102: =VLOOKUP($F$8,'"Main Funding" Schl Level Mtrix'!$B$253:$N$300,10) -> 0 | O102: =VLOOKUP($F$8,'"Main Funding" Schl Level Mtrix'!$B$253:$N$300,11) -> 0 | Q102: =VLOOKUP($F$8,'"Main Funding" Schl Level Mtrix'!$B$253:$N$300,12) -> 0 | R102: =VLOOKUP($F$8,'"Main Funding" Schl Level Mtrix'!$B$253:$N$300,13) -> 0
A103: 7 | B103: =VLOOKUP($F$8,'School Reference Sheet'!$A$5:$DR$52,21) -> N/A | C103: =VLOOKUP($F$8,'School Reference Sheet'!$A$5:$DR$52,22) -> N/A | D103: =VLOOKUP($F$8,'School Reference Sheet'!$A$5:$DR$52,23) -> N/A | E103: =VLOOKUP($F$8,'"Main Funding" Schl Level Mtrix'!$B$302:$N$349,6) -> 0 | G103: =VLOOKUP($F$8,'"Main Funding" Schl Level Mtrix'!$B$302:$N$349,7) -> 0 | I103: =VLOOKUP($F$8,'"Main Funding" Schl Level Mtrix'!$B$302:$N$349,8) -> 0 | K103: =VLOOKUP($F$8,'"Main Funding" Schl Level Mtrix'!$B$302:$N$349,9) -> 0 | M103: =VLOOKUP($F$8,'"Main Funding" Schl Level Mtrix'!$B$302:$N$349,10) -> 0 | O103: =VLOOKUP($F$8,'"Main Funding" Schl Level Mtrix'!$B$302:$N$349,11) -> 0 | Q103: =VLOOKUP($F$8,'"Main Funding" Schl Level Mtrix'!$B$302:$N$349,12) -> 0 | R103: =VLOOKUP($F$8,'"Main Funding" Schl Level Mtrix'!$B$302:$N$349,13) -> 0
A104: 8 | B104: =VLOOKUP($F$8,'School Reference Sheet'!$A$5:$DR$52,24) -> N/A | C104: =VLOOKUP($F$8,'School Reference Sheet'!$A$5:$DR$52,25) -> N/A | D104: =VLOOKUP($F$8,'School Reference Sheet'!$A$5:$DR$52,26) -> N/A | E104: =VLOOKUP($F$8,'"Main Funding" Schl Level Mtrix'!$B$351:$N$398,6) -> 0 | G104: =VLOOKUP($F$8,'"Main Funding" Schl Level Mtrix'!$B$351:$N$398,7) -> 0 | I104: =VLOOKUP($F$8,'"Main Funding" Schl Level Mtrix'!$B$351:$N$398,8) -> 0 | K104: =VLOOKUP($F$8,'"Main Funding" Schl Level Mtrix'!$B$351:$N$398,9) -> 0 | M104: =VLOOKUP($F$8,'"Main Funding" Schl Level Mtrix'!$B$351:$N$398,10) -> 0 | O104: =VLOOKUP($F$8,'"Main Funding" Schl Level Mtrix'!$B$351:$N$398,11) -> 0 | Q104: =VLOOKUP($F$8,'"Main Funding" Schl Level Mtrix'!$B$351:$N$398,12) -> 0 | R104: =VLOOKUP($F$8,'"Main Funding" Schl Level Mtrix'!$B$351:$N$398,13) -> 0
A105: 9 | B105: =VLOOKUP($F$8,'School Reference Sheet'!$A$5:$DR$52,27) -> N/A | C105: =VLOOKUP($F$8,'School Reference Sheet'!$A$5:$DR$52,28) -> N/A | D105: =VLOOKUP($F$8,'School Reference Sheet'!$A$5:$DR$52,29) -> N/A | E105: =VLOOKUP($F$8,'"Main Funding" Schl Level Mtrix'!$B$400:$N$447,6) -> 0 | G105: =VLOOKUP($F$8,'"Main Funding" Schl Level Mtrix'!$B$400:$N$447,7) -> 0 | I105: =VLOOKUP($F$8,'"Main Funding" Schl Level Mtrix'!$B$400:$N$447,8) -> 0 | K105: =VLOOKUP($F$8,'"Main Funding" Schl Level Mtrix'!$B$400:$N$447,9) -> 0 | M105: =VLOOKUP($F$8,'"Main Funding" Schl Level Mtrix'!$B$400:$N$447,10) -> 0 | O105: =VLOOKUP($F$8,'"Main Funding" Schl Level Mtrix'!$B$400:$N$447,11) -> 0 | Q105: =VLOOKUP($F$8,'"Main Funding" Schl Level Mtrix'!$B$400:$N$447,12) -> 0 | R105: =VLOOKUP($F$8,'"Main Funding" Schl Level Mtrix'!$B$400:$N$447,13) -> 0
A106: 10 | B106: =VLOOKUP($F$8,'School Reference Sheet'!$A$5:$DR$52,30) -> N/A | C106: =VLOOKUP($F$8,'School Reference Sheet'!$A$5:$DR$52,31) -> N/A | D106: =VLOOKUP($F$8,'School Reference Sheet'!$A$5:$DR$52,32) -> N/A | E106: =VLOOKUP($F$8,'"Main Funding" Schl Level Mtrix'!$B$449:$N$496,6) -> 0 | G106: =VLOOKUP($F$8,'"Main Funding" Schl Level Mtrix'!$B$449:$N$496,7) -> 0 | I106: =VLOOKUP($F$8,'"Main Funding" Schl Level Mtrix'!$B$449:$N$496,8) -> 0 | K106: =VLOOKUP($F$8,'"Main Funding" Schl Level Mtrix'!$B$449:$N$496,9) -> 0 | M106: =VLOOKUP($F$8,'"Main Funding" Schl Level Mtrix'!$B$449:$N$496,10) -> 0 | O106: =VLOOKUP($F$8,'"Main Funding" Schl Level Mtrix'!$B$449:$N$496,11) -> 0 | Q106: =VLOOKUP($F$8,'"Main Funding" Schl Level Mtrix'!$B$449:$N$496,12) -> 0 | R106: =VLOOKUP($F$8,'"Main Funding" Schl Level Mtrix'!$B$449:$N$496,13) -> 0
A107: 11 | B107: =VLOOKUP($F$8,'School Reference Sheet'!$A$5:$DR$52,33) -> N/A | C107: =VLOOKUP($F$8,'School Reference Sheet'!$A$5:$DR$52,34) -> N/A | D107: =VLOOKUP($F$8,'School Reference Sheet'!$A$5:$DR$52,35) -> N/A | E107: =VLOOKUP($F$8,'"Main Funding" Schl Level Mtrix'!$B$498:$N$545,6) -> 0 | G107: =VLOOKUP($F$8,'"Main Funding" Schl Level Mtrix'!$B$498:$N$545,7) -> 0 | I107: =VLOOKUP($F$8,'"Main Funding" Schl Level Mtrix'!$B$498:$N$545,8) -> 0 | K107: =VLOOKUP($F$8,'"Main Funding" Schl Level Mtrix'!$B$498:$N$545,9) -> 0 | M107: =VLOOKUP($F$8,'"Main Funding" Schl Level Mtrix'!$B$498:$N$545,10) -> 0 | O107: =VLOOKUP($F$8,'"Main Funding" Schl Level Mtrix'!$B$498:$N$545,11) -> 0 | Q107: =VLOOKUP($F$8,'"Main Funding" Schl Level Mtrix'!$B$498:$N$545,12) -> 0 | R107: =VLOOKUP($F$8,'"Main Funding" Schl Level Mtrix'!$B$498:$N$545,13) -> 0
A108: 12 | B108: =VLOOKUP($F$8,'School Reference Sheet'!$A$5:$DR$52,36) -> N/A | C108: =VLOOKUP($F$8,'School Reference Sheet'!$A$5:$DR$52,37) -> N/A | D108: =VLOOKUP($F$8,'School Reference Sheet'!$A$5:$DR$52,38) -> N/A | E108: =VLOOKUP($F$8,'"Main Funding" Schl Level Mtrix'!$B$547:$N$594,6) -> 0 | G108: =VLOOKUP($F$8,'"Main Funding" Schl Level Mtrix'!$B$547:$N$594,7) -> 0 | I108: =VLOOKUP($F$8,'"Main Funding" Schl Level Mtrix'!$B$547:$N$594,8) -> 0 | K108: =VLOOKUP($F$8,'"Main Funding" Schl Level Mtrix'!$B$547:$N$594,9) -> 0 | M108: =VLOOKUP($F$8,'"Main Funding" Schl Level Mtrix'!$B$547:$N$594,10) -> 0 | O108: =VLOOKUP($F$8,'"Main Funding" Schl Level Mtrix'!$B$547:$N$594,11) -> 0 | Q108: =VLOOKUP($F$8,'"Main Funding" Schl Level Mtrix'!$B$547:$N$594,12) -> 0 | R108: =VLOOKUP($F$8,'"Main Funding" Schl Level Mtrix'!$B$547:$N$594,13) -> 0
A109: 13 | B109: =VLOOKUP($F$8,'School Reference Sheet'!$A$5:$DR$52,39) -> N/A | C109: =VLOOKUP($F$8,'School Reference Sheet'!$A$5:$DR$52,40) -> N/A | D109: =VLOOKUP($F$8,'School Reference Sheet'!$A$5:$DR$52,41) -> N/A | E109: =VLOOKUP($F$8,'"Main Funding" Schl Level Mtrix'!$B$596:$N$643,6) -> 0 | G109: =VLOOKUP($F$8,'"Main Funding" Schl Level Mtrix'!$B$596:$N$643,7) -> 0 | I109: =VLOOKUP($F$8,'"Main Funding" Schl Level Mtrix'!$B$596:$N$643,8) -> 0 | K109: =VLOOKUP($F$8,'"Main Funding" Schl Level Mtrix'!$B$596:$N$643,9) -> 0 | M109: =VLOOKUP($F$8,'"Main Funding" Schl Level Mtrix'!$B$596:$N$643,10) -> 0 | O109: =VLOOKUP($F$8,'"Main Funding" Schl Level Mtrix'!$B$596:$N$643,11) -> 0 | Q109: =VLOOKUP($F$8,'"Main Funding" Schl Level Mtrix'!$B$596:$N$643,12) -> 0 | R109: =VLOOKUP($F$8,'"Main Funding" Schl Level Mtrix'!$B$596:$N$643,13) -> 0
A110: 14 | B110: =VLOOKUP($F$8,'School Reference Sheet'!$A$5:$DR$52,42) -> N/A | C110: =VLOOKUP($F$8,'School Reference Sheet'!$A$5:$DR$52,43) -> N/A | D110: =VLOOKUP($F$8,'School Reference Sheet'!$A$5:$DR$52,44) -> N/A | E110: =VLOOKUP($F$8,'"Main Funding" Schl Level Mtrix'!$B$645:$N$692,6) -> 0 | G110: =VLOOKUP($F$8,'"Main Funding" Schl Level Mtrix'!$B$645:$N$692,7) -> 0 | I110: =VLOOKUP($F$8,'"Main Funding" Schl Level Mtrix'!$B$645:$N$692,8) -> 0 | K110: =VLOOKUP($F$8,'"Main Funding" Schl Level Mtrix'!$B$645:$N$692,9) -> 0 | M110: =VLOOKUP($F$8,'"Main Funding" Schl Level Mtrix'!$B$645:$N$692,10) -> 0 | O110: =VLOOKUP($F$8,'"Main Funding" Schl Level Mtrix'!$B$645:$N$692,11) -> 0 | Q110: =VLOOKUP($F$8,'"Main Funding" Schl Level Mtrix'!$B$645:$N$692,12) -> 0 | R110: =VLOOKUP($F$8,'"Main Funding" Schl Level Mtrix'!$B$645:$N$692,13) -> 0
A111: 15 | B111: =VLOOKUP($F$8,'School Reference Sheet'!$A$5:$DR$52,45) -> N/A | C111: =VLOOKUP($F$8,'School Reference Sheet'!$A$5:$DR$52,46) -> N/A | D111: =VLOOKUP($F$8,'School Reference Sheet'!$A$5:$DR$52,47) -> N/A | E111: =VLOOKUP($F$8,'"Main Funding" Schl Level Mtrix'!$B$694:$N$741,6) -> 0 | G111: =VLOOKUP($F$8,'"Main Funding" Schl Level Mtrix'!$B694:$N$741,7) -> 0 | I111: =VLOOKUP($F$8,'"Main Funding" Schl Level Mtrix'!$B$694:$N$741,8) -> 0 | K111: =VLOOKUP($F$8,'"Main Funding" Schl Level Mtrix'!$B$694:$N$741,9) -> 0 | M111: =VLOOKUP($F$8,'"Main Funding" Schl Level Mtrix'!$B$694:$N$741,10) -> 0 | O111: =VLOOKUP($F$8,'"Main Funding" Schl Level Mtrix'!$B$694:$N$741,11) -> 0 | Q111: =VLOOKUP($F$8,'"Main Funding" Schl Level Mtrix'!$B$694:$N$741,12) -> 0 | R111: =VLOOKUP($F$8,'"Main Funding" Schl Level Mtrix'!$B$694:$N$741,13) -> 0
A112: 16 | B112: =VLOOKUP($F$8,'School Reference Sheet'!$A$5:$DR$52,48) -> N/A | C112: =VLOOKUP($F$8,'School Reference Sheet'!$A$5:$DR$52,49) -> N/A | D112: =VLOOKUP($F$8,'School Reference Sheet'!$A$5:$DR$52,50) -> N/A | E112: =VLOOKUP($F$8,'"Main Funding" Schl Level Mtrix'!$B$743:$N$790,6) -> 0 | G112: =VLOOKUP($F$8,'"Main Funding" Schl Level Mtrix'!$B743:$N$790,7) -> 0 | I112: =VLOOKUP($F$8,'"Main Funding" Schl Level Mtrix'!$B$743:$N$790,8) -> 0 | K112: =VLOOKUP($F$8,'"Main Funding" Schl Level Mtrix'!$B$743:$N$790,9) -> 0 | M112: =VLOOKUP($F$8,'"Main Funding" Schl Level Mtrix'!$B$743:$N$790,10) -> 0 | O112: =VLOOKUP($F$8,'"Main Funding" Schl Level Mtrix'!$B$743:$N$790,11) -> 0 | Q112: =VLOOKUP($F$8,'"Main Funding" Schl Level Mtrix'!$B$743:$N$790,12) -> 0 | R112: =VLOOKUP($F$8,'"Main Funding" Schl Level Mtrix'!$B$743:$N$790,13) -> 0
A113: 17 | B113: =VLOOKUP($F$8,'School Reference Sheet'!$A$5:$DR$52,51) -> N/A | C113: =VLOOKUP($F$8,'School Reference Sheet'!$A$5:$DR$52,52) -> N/A | D113: =VLOOKUP($F$8,'School Reference Sheet'!$A$5:$DR$52,53) -> N/A | E113: =VLOOKUP($F$8,'"Main Funding" Schl Level Mtrix'!$B$792:$N$839,6) -> 0 | G113: =VLOOKUP($F$8,'"Main Funding" Schl Level Mtrix'!$B792:$N$839,7) -> 0 | I113: =VLOOKUP($F$8,'"Main Funding" Schl Level Mtrix'!$B$792:$N$839,8) -> 0 | K113: =VLOOKUP($F$8,'"Main Funding" Schl Level Mtrix'!$B$792:$N$839,9) -> 0 | M113: =VLOOKUP($F$8,'"Main Funding" Schl Level Mtrix'!$B$792:$N$839,10) -> 0 | O113: =VLOOKUP($F$8,'"Main Funding" Schl Level Mtrix'!$B$792:$N$839,11) -> 0 | Q113: =VLOOKUP($F$8,'"Main Funding" Schl Level Mtrix'!$B$792:$N$839,12) -> 0 | R113: =VLOOKUP($F$8,'"Main Funding" Schl Level Mtrix'!$B$792:$N$839,13) -> 0
A114: 18 | B114: =VLOOKUP($F$8,'School Reference Sheet'!$A$5:$DR$52,54) -> N/A | C114: =VLOOKUP($F$8,'School Reference Sheet'!$A$5:$DR$52,55) -> N/A | D114: =VLOOKUP($F$8,'School Reference Sheet'!$A$5:$DR$52,56) -> N/A | E114: =VLOOKUP($F$8,'"Main Funding" Schl Level Mtrix'!$B$841:$N$888,6) -> 0 | G114: =VLOOKUP($F$8,'"Main Funding" Schl Level Mtrix'!$B$841:$N$888,7) -> 0 | I114: =VLOOKUP($F$8,'"Main Funding" Schl Level Mtrix'!$B$841:$N$888,8) -> 0 | K114: =VLOOKUP($F$8,'"Main Funding" Schl Level Mtrix'!$B$841:$N$888,9) -> 0 | M114: =VLOOKUP($F$8,'"Main Funding" Schl Level Mtrix'!$B$841:$N$888,10) -> 0 | O114: =VLOOKUP($F$8,'"Main Funding" Schl Level Mtrix'!$B$841:$N$888,11) -> 0 | Q114: =VLOOKUP($F$8,'"Main Funding" Schl Level Mtrix'!$B$841:$N$888,12) -> 0 | R114: =VLOOKUP($F$8,'"Main Funding" Schl Level Mtrix'!$B$841:$N$888,13) -> 0
A115: 19 | B115: =VLOOKUP($F$8,'School Reference Sheet'!$A$5:$DR$52,57) -> N/A | C115: =VLOOKUP($F$8,'School Reference Sheet'!$A$5:$DR$52,58) -> N/A | D115: =VLOOKUP($F$8,'School Reference Sheet'!$A$5:$DR$52,59) -> N/A | E115: =VLOOKUP($F$8,'"Main Funding" Schl Level Mtrix'!$B$890:$N$937,6) -> 0 | G115: =VLOOKUP($F$8,'"Main Funding" Schl Level Mtrix'!$B$890:$N$937,7) -> 0 | I115: =VLOOKUP($F$8,'"Main Funding" Schl Level Mtrix'!$B$890:$N$937,8) -> 0 | K115: =VLOOKUP($F$8,'"Main Funding" Schl Level Mtrix'!$B$890:$N$937,9) -> 0 | M115: =VLOOKUP($F$8,'"Main Funding" Schl Level Mtrix'!$B$890:$N$937,10) -> 0 | O115: =VLOOKUP($F$8,'"Main Funding" Schl Level Mtrix'!$B$890:$N$937,11) -> 0 | Q115: =VLOOKUP($F$8,'"Main Funding" Schl Level Mtrix'!$B$890:$N$937,12) -> 0 | R115: =VLOOKUP($F$8,'"Main Funding" Schl Level Mtrix'!$B$890:$N$937,13) -> 0
A116: 20 | B116: =VLOOKUP($F$8,'School Reference Sheet'!$A$5:$DR$52,60) -> N/A | C116: =VLOOKUP($F$8,'School Reference Sheet'!$A$5:$DR$52,61) -> N/A | D116: =VLOOKUP($F$8,'School Reference Sheet'!$A$5:$DR$52,62) -> N/A | E116: =VLOOKUP($F$8,'"Main Funding" Schl Level Mtrix'!$B$939:$N$986,6) -> 0 | G116: =VLOOKUP($F$8,'"Main Funding" Schl Level Mtrix'!$B$939:$N$986,7) -> 0 | I116: =VLOOKUP($F$8,'"Main Funding" Schl Level Mtrix'!$B$939:$N$986,8) -> 0 | K116: =VLOOKUP($F$8,'"Main Funding" Schl Level Mtrix'!$B$939:$N$986,9) -> 0 | M116: =VLOOKUP($F$8,'"Main Funding" Schl Level Mtrix'!$B$939:$N$986,10) -> 0 | O116: =VLOOKUP($F$8,'"Main Funding" Schl Level Mtrix'!$B$939:$N$986,11) -> 0 | Q116: =VLOOKUP($F$8,'"Main Funding" Schl Level Mtrix'!$B$939:$N$986,12) -> 0 | R116: =VLOOKUP($F$8,'"Main Funding" Schl Level Mtrix'!$B$939:$N$986,13) -> 0
A117: 21 | B117: =VLOOKUP($F$8,'School Reference Sheet'!$A$5:$DR$52,63) -> N/A | C117: =VLOOKUP($F$8,'School Reference Sheet'!$A$5:$DR$52,64) -> N/A | D117: =VLOOKUP($F$8,'School Reference Sheet'!$A$5:$DR$52,65) -> N/A | E117: =VLOOKUP($F$8,'"Main Funding" Schl Level Mtrix'!$B$988:$N$1035,6) -> 0 | G117: =VLOOKUP($F$8,'"Main Funding" Schl Level Mtrix'!$B$988:$N$1035,7) -> 0 | I117: =VLOOKUP($F$8,'"Main Funding" Schl Level Mtrix'!$B$988:$N$1035,8) -> 0 | K117: =VLOOKUP($F$8,'"Main Funding" Schl Level Mtrix'!$B$988:$N$1035,9) -> 0 | M117: =VLOOKUP($F$8,'"Main Funding" Schl Level Mtrix'!$B$988:$N$1035,10) -> 0 | O117: =VLOOKUP($F$8,'"Main Funding" Schl Level Mtrix'!$B$988:$N$1035,11) -> 0 | Q117: =VLOOKUP($F$8,'"Main Funding" Schl Level Mtrix'!$B$988:$N$1035,12) -> 0 | R117: =VLOOKUP($F$8,'"Main Funding" Schl Level Mtrix'!$B$988:$N$1035,13) -> 0
A118: 22 | B118: =VLOOKUP($F$8,'School Reference Sheet'!$A$5:$DR$52,66) -> N/A | C118: =VLOOKUP($F$8,'School Reference Sheet'!$A$5:$DR$52,67) -> N/A | D118: =VLOOKUP($F$8,'School Reference Sheet'!$A$5:$DR$52,68) -> N/A | E118: =VLOOKUP($F$8,'"Main Funding" Schl Level Mtrix'!$B$1037:$N$1084,6) -> 0 | G118: =VLOOKUP($F$8,'"Main Funding" Schl Level Mtrix'!$B$1037:$N$1084,7) -> 0 | I118: =VLOOKUP($F$8,'"Main Funding" Schl Level Mtrix'!$B$1037:$N$1084,8) -> 0 | K118: =VLOOKUP($F$8,'"Main Funding" Schl Level Mtrix'!$B$1037:$N$1084,9) -> 0 | M118: =VLOOKUP($F$8,'"Main Funding" Schl Level Mtrix'!$B$1037:$N$1084,10) -> 0 | O118: =VLOOKUP($F$8,'"Main Funding" Schl Level Mtrix'!$B$1037:$N$1084,11) -> 0 | Q118: =VLOOKUP($F$8,'"Main Funding" Schl Level Mtrix'!$B$1037:$N$1084,12) -> 0 | R118: =VLOOKUP($F$8,'"Main Funding" Schl Level Mtrix'!$B$1037:$N$1084,13) -> 0
A119: 23 | B119: =VLOOKUP($F$8,'School Reference Sheet'!$A$5:$DR$52,69) -> N/A | C119: =VLOOKUP($F$8,'School Reference Sheet'!$A$5:$DR$52,70) -> N/A | D119: =VLOOKUP($F$8,'School Reference Sheet'!$A$5:$DR$52,71) -> N/A | E119: =VLOOKUP($F$8,'"Main Funding" Schl Level Mtrix'!$B$1086:$N$1133,6) -> 0 | G119: =VLOOKUP($F$8,'"Main Funding" Schl Level Mtrix'!$B$1086:$N$1133,7) -> 0 | I119: =VLOOKUP($F$8,'"Main Funding" Schl Level Mtrix'!$B$1086:$N$1133,8) -> 0 | K119: =VLOOKUP($F$8,'"Main Funding" Schl Level Mtrix'!$B$1086:$N$1133,9) -> 0 | M119: =VLOOKUP($F$8,'"Main Funding" Schl Level Mtrix'!$B$1086:$N$1133,10) -> 0 | O119: =VLOOKUP($F$8,'"Main Funding" Schl Level Mtrix'!$B$1086:$N$1133,11) -> 0 | Q119: =VLOOKUP($F$8,'"Main Funding" Schl Level Mtrix'!$B$1086:$N$1133,12) -> 0 | R119: =VLOOKUP($F$8,'"Main Funding" Schl Level Mtrix'!$B$1086:$N$1133,13) -> 0
A120: 24 | B120: =VLOOKUP($F$8,'School Reference Sheet'!$A$5:$DR$52,72) -> N/A | C120: =VLOOKUP($F$8,'School Reference Sheet'!$A$5:$DR$52,73) -> N/A | D120: =VLOOKUP($F$8,'School Reference Sheet'!$A$5:$DR$52,74) -> N/A | E120: =VLOOKUP($F$8,'"Main Funding" Schl Level Mtrix'!$B$1135:$N$1182,6) -> 0 | G120: =VLOOKUP($F$8,'"Main Funding" Schl Level Mtrix'!$B$1135:$N$1182,7) -> 0 | I120: =VLOOKUP($F$8,'"Main Funding" Schl Level Mtrix'!$B$1135:$N$1182,8) -> 0 | K120: =VLOOKUP($F$8,'"Main Funding" Schl Level Mtrix'!$B$1135:$N$1182,9) -> 0 | M120: =VLOOKUP($F$8,'"Main Funding" Schl Level Mtrix'!$B$1135:$N$1182,10) -> 0 | O120: =VLOOKUP($F$8,'"Main Funding" Schl Level Mtrix'!$B$1135:$N$1182,11) -> 0 | Q120: =VLOOKUP($F$8,'"Main Funding" Schl Level Mtrix'!$B$1135:$N$1182,12) -> 0 | R120: =VLOOKUP($F$8,'"Main Funding" Schl Level Mtrix'!$B$1135:$N$1182,13) -> 0
A121: 25 | B121: =VLOOKUP($F$8,'School Reference Sheet'!$A$5:$DR$52,75) -> N/A | C121: =VLOOKUP($F$8,'School Reference Sheet'!$A$5:$DR$52,76) -> N/A | D121: =VLOOKUP($F$8,'School Reference Sheet'!$A$5:$DR$52,77) -> N/A | E121: =VLOOKUP($F$8,'"Main Funding" Schl Level Mtrix'!$B$1184:$N$1231,6) -> 0 | G121: =VLOOKUP($F$8,'"Main Funding" Schl Level Mtrix'!$B$1184:$N$1231,7) -> 0 | I121: =VLOOKUP($F$8,'"Main Funding" Schl Level Mtrix'!$B$1184:$N$1231,8) -> 0 | K121: =VLOOKUP($F$8,'"Main Funding" Schl Level Mtrix'!$B$1184:$N$1231,9) -> 0 | M121: =VLOOKUP($F$8,'"Main Funding" Schl Level Mtrix'!$B$1184:$N$1231,10) -> 0 | O121: =VLOOKUP($F$8,'"Main Funding" Schl Level Mtrix'!$B$1184:$N$1231,11) -> 0 | Q121: =VLOOKUP($F$8,'"Main Funding" Schl Level Mtrix'!$B$1184:$N$1231,12) -> 0 | R121: =VLOOKUP($F$8,'"Main Funding" Schl Level Mtrix'!$B$1184:$N$1231,13) -> 0
A122: 26 | B122: =VLOOKUP($F$8,'School Reference Sheet'!$A$5:$DR$52,78) -> N/A | C122: =VLOOKUP($F$8,'School Reference Sheet'!$A$5:$DR$52,79) -> N/A | D122: =VLOOKUP($F$8,'School Reference Sheet'!$A$5:$DR$52,80) -> N/A | E122: =VLOOKUP($F$8,'"Main Funding" Schl Level Mtrix'!$B$1233:$N$1280,6) -> 0 | G122: =VLOOKUP($F$8,'"Main Funding" Schl Level Mtrix'!$B$1233:$N$1280,7) -> 0 | I122: =VLOOKUP($F$8,'"Main Funding" Schl Level Mtrix'!$B$1233:$N$1280,8) -> 0 | K122: =VLOOKUP($F$8,'"Main Funding" Schl Level Mtrix'!$B$1233:$N$1280,9) -> 0 | M122: =VLOOKUP($F$8,'"Main Funding" Schl Level Mtrix'!$B$1233:$N$1280,10) -> 0 | O122: =VLOOKUP($F$8,'"Main Funding" Schl Level Mtrix'!$B$1233:$N$1280,11) -> 0 | Q122: =VLOOKUP($F$8,'"Main Funding" Schl Level Mtrix'!$B$1233:$N$1280,12) -> 0 | R122: =VLOOKUP($F$8,'"Main Funding" Schl Level Mtrix'!$B$1233:$N$1280,13) -> 0
A123: 27 | B123: =VLOOKUP($F$8,'School Reference Sheet'!$A$5:$DR$52,81) -> N/A | C123: =VLOOKUP($F$8,'School Reference Sheet'!$A$5:$DR$52,82) -> N/A | D123: =VLOOKUP($F$8,'School Reference Sheet'!$A$5:$DR$52,83) -> N/A | E123: =VLOOKUP($F$8,'"Main Funding" Schl Level Mtrix'!$B$1282:$N$1329,6) -> 0 | G123: =VLOOKUP($F$8,'"Main Funding" Schl Level Mtrix'!$B$1282:$N$1329,7) -> 0 | I123: =VLOOKUP($F$8,'"Main Funding" Schl Level Mtrix'!$B$1282:$N$1329,8) -> 0 | K123: =VLOOKUP($F$8,'"Main Funding" Schl Level Mtrix'!$B$1282:$N$1329,9) -> 0 | M123: =VLOOKUP($F$8,'"Main Funding" Schl Level Mtrix'!$B$1282:$N$1329,10) -> 0 | O123: =VLOOKUP($F$8,'"Main Funding" Schl Level Mtrix'!$B$1282:$N$1329,11) -> 0 | Q123: =VLOOKUP($F$8,'"Main Funding" Schl Level Mtrix'!$B$1282:$N$1329,12) -> 0 | R123: =VLOOKUP($F$8,'"Main Funding" Schl Level Mtrix'!$B$1282:$N$1329,13) -> 0
A124: 28 | B124: =VLOOKUP($F$8,'School Reference Sheet'!$A$5:$DR$52,84) -> N/A | C124: =VLOOKUP($F$8,'School Reference Sheet'!$A$5:$DR$52,85) -> N/A | D124: =VLOOKUP($F$8,'School Reference Sheet'!$A$5:$DR$52,86) -> N/A | E124: =VLOOKUP($F$8,'"Main Funding" Schl Level Mtrix'!$B$1331:$N$1378,6) -> 0 | G124: =VLOOKUP($F$8,'"Main Funding" Schl Level Mtrix'!$B$1331:$N$1378,7) -> 0 | I124: =VLOOKUP($F$8,'"Main Funding" Schl Level Mtrix'!$B$1331:$N$1378,8) -> 0 | K124: =VLOOKUP($F$8,'"Main Funding" Schl Level Mtrix'!$B$1331:$N$1378,9) -> 0 | M124: =VLOOKUP($F$8,'"Main Funding" Schl Level Mtrix'!$B$1331:$N$1378,10) -> 0 | O124: =VLOOKUP($F$8,'"Main Funding" Schl Level Mtrix'!$B$1331:$N$1378,11) -> 0 | Q124: =VLOOKUP($F$8,'"Main Funding" Schl Level Mtrix'!$B$1331:$N$1378,12) -> 0 | R124: =VLOOKUP($F$8,'"Main Funding" Schl Level Mtrix'!$B$1331:$N$1378,13) -> 0
A125: 29 | B125: =VLOOKUP($F$8,'School Reference Sheet'!$A$5:$DR$52,87) -> N/A | C125: =VLOOKUP($F$8,'School Reference Sheet'!$A$5:$DR$52,88) -> N/A | D125: =VLOOKUP($F$8,'School Reference Sheet'!$A$5:$DR$52,89) -> N/A | E125: =VLOOKUP($F$8,'"Main Funding" Schl Level Mtrix'!$B$1380:$N$1427,6) -> 0 | G125: =VLOOKUP($F$8,'"Main Funding" Schl Level Mtrix'!$B$1380:$N$1427,7) -> 0 | I125: =VLOOKUP($F$8,'"Main Funding" Schl Level Mtrix'!$B$1380:$N$1427,8) -> 0 | K125: =VLOOKUP($F$8,'"Main Funding" Schl Level Mtrix'!$B$1380:$N$1427,9) -> 0 | M125: =VLOOKUP($F$8,'"Main Funding" Schl Level Mtrix'!$B$1380:$N$1427,10) -> 0 | O125: =VLOOKUP($F$8,'"Main Funding" Schl Level Mtrix'!$B$1380:$N$1427,11) -> 0 | Q125: =VLOOKUP($F$8,'"Main Funding" Schl Level Mtrix'!$B$1380:$N$1427,12) -> 0 | R125: =VLOOKUP($F$8,'"Main Funding" Schl Level Mtrix'!$B$1380:$N$1427,13) -> 0
A126: 30 | B126: =VLOOKUP($F$8,'School Reference Sheet'!$A$5:$DR$52,90) -> N/A | C126: =VLOOKUP($F$8,'School Reference Sheet'!$A$5:$DR$52,91) -> N/A | D126: =VLOOKUP($F$8,'School Reference Sheet'!$A$5:$DR$52,92) -> N/A | E126: =VLOOKUP($F$8,'"Main Funding" Schl Level Mtrix'!$B$1429:$N$1476,6) -> 0 | G126: =VLOOKUP($F$8,'"Main Funding" Schl Level Mtrix'!$B$1429:$N$1476,7) -> 0 | I126: =VLOOKUP($F$8,'"Main Funding" Schl Level Mtrix'!$B$1429:$N$1476,8) -> 0 | K126: =VLOOKUP($F$8,'"Main Funding" Schl Level Mtrix'!$B$1429:$N$1476,9) -> 0 | M126: =VLOOKUP($F$8,'"Main Funding" Schl Level Mtrix'!$B$1429:$N$1476,10) -> 0 | O126: =VLOOKUP($F$8,'"Main Funding" Schl Level Mtrix'!$B$1429:$N$1476,11) -> 0 | Q126: =VLOOKUP($F$8,'"Main Funding" Schl Level Mtrix'!$B$1429:$N$1476,12) -> 0 | R126: =VLOOKUP($F$8,'"Main Funding" Schl Level Mtrix'!$B$1429:$N$1476,13) -> 0
A127: 31 | B127: =VLOOKUP($F$8,'School Reference Sheet'!$A$5:$DR$52,93) -> N/A | C127: =VLOOKUP($F$8,'School Reference Sheet'!$A$5:$DR$52,94) -> N/A | D127: =VLOOKUP($F$8,'School Reference Sheet'!$A$5:$DR$52,95) -> N/A | E127: =VLOOKUP($F$8,'"Main Funding" Schl Level Mtrix'!$B$1478:$N$1524,6) -> 0 | G127: =VLOOKUP($F$8,'"Main Funding" Schl Level Mtrix'!$B$1478:$N$1524,7) -> 0 | I127: =VLOOKUP($F$8,'"Main Funding" Schl Level Mtrix'!$B$1478:$N$1524,8) -> 0 | K127: =VLOOKUP($F$8,'"Main Funding" Schl Level Mtrix'!$B$1478:$N$1524,9) -> 0 | M127: =VLOOKUP($F$8,'"Main Funding" Schl Level Mtrix'!$B$1478:$N$1524,10) -> 0 | O127: =VLOOKUP($F$8,'"Main Funding" Schl Level Mtrix'!$B$1478:$N$1524,11) -> 0 | Q127: =VLOOKUP($F$8,'"Main Funding" Schl Level Mtrix'!$B$1478:$N$1524,12) -> 0 | R127: =VLOOKUP($F$8,'"Main Funding" Schl Level Mtrix'!$B$1478:$N$1524,13) -> 0
A128: 32 | B128: =VLOOKUP($F$8,'School Reference Sheet'!$A$5:$DR$52,96) -> N/A | C128: =VLOOKUP($F$8,'School Reference Sheet'!$A$5:$DR$52,97) -> N/A | D128: =VLOOKUP($F$8,'School Reference Sheet'!$A$5:$DR$52,98) -> N/A | E128: =VLOOKUP($F$8,'"Main Funding" Schl Level Mtrix'!$B$1527:$N$1574,6) -> 0 | G128: =VLOOKUP($F$8,'"Main Funding" Schl Level Mtrix'!$B$1527:$N$1574,7) -> 0 | I128: =VLOOKUP($F$8,'"Main Funding" Schl Level Mtrix'!$B$1527:$N$1574,8) -> 0 | K128: =VLOOKUP($F$8,'"Main Funding" Schl Level Mtrix'!$B$1527:$N$1574,9) -> 0 | M128: =VLOOKUP($F$8,'"Main Funding" Schl Level Mtrix'!$B$1527:$N$1574,10) -> 0 | O128: =VLOOKUP($F$8,'"Main Funding" Schl Level Mtrix'!$B$1527:$N$1574,11) -> 0 | Q128: =VLOOKUP($F$8,'"Main Funding" Schl Level Mtrix'!$B$1527:$N$1574,12) -> 0 | R128: =VLOOKUP($F$8,'"Main Funding" Schl Level Mtrix'!$B$1527:$N$1574,13) -> 0
A129: 33 | B129: =VLOOKUP($F$8,'School Reference Sheet'!$A$5:$DR$52,99) -> N/A | C129: =VLOOKUP($F$8,'School Reference Sheet'!$A$5:$DR$52,100) -> N/A | D129: =VLOOKUP($F$8,'School Reference Sheet'!$A$5:$DR$52,101) -> N/A | E129: =VLOOKUP($F$8,'"Main Funding" Schl Level Mtrix'!$B$1576:$N$1623,6) -> 0 | G129: =VLOOKUP($F$8,'"Main Funding" Schl Level Mtrix'!$B$1576:$N$1623,7) -> 0 | I129: =VLOOKUP($F$8,'"Main Funding" Schl Level Mtrix'!$B$1576:$N$1623,8) -> 0 | K129: =VLOOKUP($F$8,'"Main Funding" Schl Level Mtrix'!$B$1576:$N$1623,9) -> 0 | M129: =VLOOKUP($F$8,'"Main Funding" Schl Level Mtrix'!$B$1576:$N$1623,10) -> 0 | O129: =VLOOKUP($F$8,'"Main Funding" Schl Level Mtrix'!$B$1576:$N$1623,11) -> 0 | Q129: =VLOOKUP($F$8,'"Main Funding" Schl Level Mtrix'!$B$1576:$N$1623,12) -> 0 | R129: =VLOOKUP($F$8,'"Main Funding" Schl Level Mtrix'!$B$1576:$N$1623,13) -> 0
A130: 34 | B130: =VLOOKUP($F$8,'School Reference Sheet'!$A$5:$DR$52,102) -> N/A | C130: =VLOOKUP($F$8,'School Reference Sheet'!$A$5:$DR$52,103) -> N/A | D130: =VLOOKUP($F$8,'School Reference Sheet'!$A$5:$DR$52,104) -> N/A | E130: =VLOOKUP($F$8,'"Main Funding" Schl Level Mtrix'!$B$1625:$N$1672,6) -> 0 | G130: =VLOOKUP($F$8,'"Main Funding" Schl Level Mtrix'!$B$1625:$N$1672,7) -> 0 | I130: =VLOOKUP($F$8,'"Main Funding" Schl Level Mtrix'!$B$1625:$N$1672,8) -> 0 | K130: =VLOOKUP($F$8,'"Main Funding" Schl Level Mtrix'!$B$1625:$N$1672,9) -> 0 | M130: =VLOOKUP($F$8,'"Main Funding" Schl Level Mtrix'!$B$1625:$N$1672,10) -> 0 | O130: =VLOOKUP($F$8,'"Main Funding" Schl Level Mtrix'!$B$1625:$N$1672,11) -> 0 | Q130: =VLOOKUP($F$8,'"Main Funding" Schl Level Mtrix'!$B$1625:$N$1672,12) -> 0 | R130: =VLOOKUP($F$8,'"Main Funding" Schl Level Mtrix'!$B$1625:$N$1672,13) -> 0
A131: 35 | B131: =VLOOKUP($F$8,'School Reference Sheet'!$A$5:$DR$52,105) -> N/A | C131: =VLOOKUP($F$8,'School Reference Sheet'!$A$5:$DR$52,106) -> N/A | D131: =VLOOKUP($F$8,'School Reference Sheet'!$A$5:$DR$52,107) -> N/A | E131: =VLOOKUP($F$8,'"Main Funding" Schl Level Mtrix'!$B$1674:$N$1721,6) -> 0 | G131: =VLOOKUP($F$8,'"Main Funding" Schl Level Mtrix'!$B$1674:$N$1721,7) -> 0 | I131: =VLOOKUP($F$8,'"Main Funding" Schl Level Mtrix'!$B$1674:$N$1721,8) -> 0 | K131: =VLOOKUP($F$8,'"Main Funding" Schl Level Mtrix'!$B$1674:$N$1721,9) -> 0 | M131: =VLOOKUP($F$8,'"Main Funding" Schl Level Mtrix'!$B$1674:$N$1721,10) -> 0 | O131: =VLOOKUP($F$8,'"Main Funding" Schl Level Mtrix'!$B$1674:$N$1721,11) -> 0 | Q131: =VLOOKUP($F$8,'"Main Funding" Schl Level Mtrix'!$B$1674:$N$1721,12) -> 0 | R131: =VLOOKUP($F$8,'"Main Funding" Schl Level Mtrix'!$B$1674:$N$1721,13) -> 0
A132: 36 | B132: =VLOOKUP($F$8,'School Reference Sheet'!$A$5:$DR$52,108) -> N/A | C132: =VLOOKUP($F$8,'School Reference Sheet'!$A$5:$DR$52,109) -> N/A | D132: =VLOOKUP($F$8,'School Reference Sheet'!$A$5:$DR$52,110) -> N/A | E132: =VLOOKUP($F$8,'"Main Funding" Schl Level Mtrix'!$B$1723:$N$1770,6) -> 0 | G132: =VLOOKUP($F$8,'"Main Funding" Schl Level Mtrix'!$B$1723:$N$1770,7) -> 0 | I132: =VLOOKUP($F$8,'"Main Funding" Schl Level Mtrix'!$B$1723:$N$1770,8) -> 0 | K132: =VLOOKUP($F$8,'"Main Funding" Schl Level Mtrix'!$B$1723:$N$1770,9) -> 0 | M132: =VLOOKUP($F$8,'"Main Funding" Schl Level Mtrix'!$B$1723:$N$1770,10) -> 0 | O132: =VLOOKUP($F$8,'"Main Funding" Schl Level Mtrix'!$B$1723:$N$1770,11) -> 0 | Q132: =VLOOKUP($F$8,'"Main Funding" Schl Level Mtrix'!$B$1723:$N$1770,12) -> 0 | R132: =VLOOKUP($F$8,'"Main Funding" Schl Level Mtrix'!$B$1723:$N$1770,13) -> 0
A133: 37 | B133: =VLOOKUP($F$8,'School Reference Sheet'!$A$5:$DR$52,111) -> N/A | C133: =VLOOKUP($F$8,'School Reference Sheet'!$A$5:$DR$52,112) -> N/A | D133: =VLOOKUP($F$8,'School Reference Sheet'!$A$5:$DR$52,113) -> N/A | E133: =VLOOKUP($F$8,'"Main Funding" Schl Level Mtrix'!$B$1772:$N$1819,6) -> 0 | G133: =VLOOKUP($F$8,'"Main Funding" Schl Level Mtrix'!$B$1772:$N$1819,7) -> 0 | I133: =VLOOKUP($F$8,'"Main Funding" Schl Level Mtrix'!$B$1772:$N$1819,8) -> 0 | K133: =VLOOKUP($F$8,'"Main Funding" Schl Level Mtrix'!$B$1772:$N$1819,9) -> 0 | M133: =VLOOKUP($F$8,'"Main Funding" Schl Level Mtrix'!$B$1772:$N$1819,10) -> 0 | O133: =VLOOKUP($F$8,'"Main Funding" Schl Level Mtrix'!$B$1772:$N$1819,11) -> 0 | Q133: =VLOOKUP($F$8,'"Main Funding" Schl Level Mtrix'!$B$1772:$N$1819,12) -> 0 | R133: =VLOOKUP($F$8,'"Main Funding" Schl Level Mtrix'!$B$1772:$N$1819,13) -> 0
A134: 38 | B134: =VLOOKUP($F$8,'School Reference Sheet'!$A$5:$DR$52,114) -> N/A | C134: =VLOOKUP($F$8,'School Reference Sheet'!$A$5:$DR$52,115) -> N/A | D134: =VLOOKUP($F$8,'School Reference Sheet'!$A$5:$DR$52,116) -> N/A | E134: =VLOOKUP($F$8,'"Main Funding" Schl Level Mtrix'!$B$1821:$N$1868,6) -> 0 | G134: =VLOOKUP($F$8,'"Main Funding" Schl Level Mtrix'!$B$1821:$N$1868,7) -> 0 | I134: =VLOOKUP($F$8,'"Main Funding" Schl Level Mtrix'!$B$1821:$N$1868,8) -> 0 | K134: =VLOOKUP($F$8,'"Main Funding" Schl Level Mtrix'!$B$1821:$N$1868,9) -> 0 | M134: =VLOOKUP($F$8,'"Main Funding" Schl Level Mtrix'!$B$1821:$N$1868,10) -> 0 | O134: =VLOOKUP($F$8,'"Main Funding" Schl Level Mtrix'!$B$1821:$N$1868,11) -> 0 | Q134: =VLOOKUP($F$8,'"Main Funding" Schl Level Mtrix'!$B$1821:$N$1868,12) -> 0 | R134: =VLOOKUP($F$8,'"Main Funding" Schl Level Mtrix'!$B$1821:$N$1868,13) -> 0
A135: 39 | B135: =VLOOKUP($F$8,'School Reference Sheet'!$A$5:$DR$52,117) -> N/A | C135: =VLOOKUP($F$8,'School Reference Sheet'!$A$5:$DR$52,118) -> N/A | D135: =VLOOKUP($F$8,'School Reference Sheet'!$A$5:$DR$52,119) -> N/A | E135: =VLOOKUP($F$8,'"Main Funding" Schl Level Mtrix'!$B$1870:$N$1917,6) -> 0 | G135: =VLOOKUP($F$8,'"Main Funding" Schl Level Mtrix'!$B$1870:$N$1917,7) -> 0 | I135: =VLOOKUP($F$8,'"Main Funding" Schl Level Mtrix'!$B$1870:$N$1917,8) -> 0 | K135: =VLOOKUP($F$8,'"Main Funding" Schl Level Mtrix'!$B$1870:$N$1917,9) -> 0 | M135: =VLOOKUP($F$8,'"Main Funding" Schl Level Mtrix'!$B$1870:$N$1917,10) -> 0 | O135: =VLOOKUP($F$8,'"Main Funding" Schl Level Mtrix'!$B$1870:$N$1917,11) -> 0 | Q135: =VLOOKUP($F$8,'"Main Funding" Schl Level Mtrix'!$B$1870:$N$1917,12) -> 0 | R135: =VLOOKUP($F$8,'"Main Funding" Schl Level Mtrix'!$B$1870:$N$1917,13) -> 0
A136: 40 | B136: =VLOOKUP($F$8,'School Reference Sheet'!$A$5:$DR$52,120) -> N/A | C136: =VLOOKUP($F$8,'School Reference Sheet'!$A$5:$DR$52,121) -> N/A | D136: =VLOOKUP($F$8,'School Reference Sheet'!$A$5:$DR$52,122) -> N/A | E136: =VLOOKUP($F$8,'"Main Funding" Schl Level Mtrix'!$B$1919:$N$1966,6) -> 0 | G136: =VLOOKUP($F$8,'"Main Funding" Schl Level Mtrix'!$B$1919:$N$1966,7) -> 0 | I136: =VLOOKUP($F$8,'"Main Funding" Schl Level Mtrix'!$B$1919:$N$1966,8) -> 0 | K136: =VLOOKUP($F$8,'"Main Funding" Schl Level Mtrix'!$B$1919:$N$1966,9) -> 0 | M136: =VLOOKUP($F$8,'"Main Funding" Schl Level Mtrix'!$B$1919:$N$1966,10) -> 0 | O136: =VLOOKUP($F$8,'"Main Funding" Schl Level Mtrix'!$B$1919:$N$1966,11) -> 0 | Q136: =VLOOKUP($F$8,'"Main Funding" Schl Level Mtrix'!$B$1919:$N$1966,12) -> 0 | R136: =VLOOKUP($F$8,'"Main Funding" Schl Level Mtrix'!$B$1919:$N$1966,13) -> 0
B137: Total School Resources | E137: =SUM(E97:F136) -> 1123629.899 | G137: =SUM(G97:H136) -> 303573.3272 | I137: =SUM(I97:J136) -> 706693.8284 | K137: =SUM(K97:L136) -> 0 | M137: =SUM(M97:N136) -> 553400.4146 | O137: =SUM(O97:P136) -> 431865.6071 | Q137: =SUM(Q97:Q136) -> 365629.6802 | R137: =SUM(R97:R136) -> 3484792.756
B138: * See "Summer Schl-Ext Day Min Adj" worksheet for minimum Summer School/Extended Day adjustments.
A140: E) First Year Charter School Adjustment (W.S. 21-3-301 through W.S. 21-3-314):
B141: First-year charter school funding is shown after completion of school and ADM information in highlighted cells below.
A143: STEP 1: | C143: Charter school initiated by the school district? (Yes/No) | F143: =VLOOKUP($F$8,'Charter School Adjustments'!$A$8:$I$55,4) -> 0
A145: STEP 2: | C145: Enter the March 1 intended enrollment | F145: =VLOOKUP($F$8,'Charter School Adjustments'!$A$8:$I$55,5) -> 0
A147: STEP 3: | C147: Enter the number of students included in the Model ADM for the district guarantee calculations (3-year average
C148: ADM for school years 2014-15, 2015-16 and 2016-17). | F148: =VLOOKUP($F$8,'Charter School Adjustments'!$A$8:$I$55,6) -> 0
B150: First Year Charter School Adjustment: | H150: =VLOOKUP($F$8,'Charter School Adjustments'!$A$8:$I$55,8) -> 0
A152: F) Transportation Maintenance and Operations Reimbursement (W.S. 21-13-309(m)(v)(E)(I)):
B153: 1) FY2017 transportation expenditures from WDE-601/103 | H153: =VLOOKUP($F$8,Transportation!$A$8:$D$55,3) -> 213472.49
A155: G) Special Education Reimbursement (W.S. 21-13-309(m)(v)(E)(II)):
B156: 1) FY2017 special education expenditures from WDE-601/401 | H156: =VLOOKUP($F$8,'Special Education'!$A$8:$D$55,3) -> 908209.34
A158: H) Bus Lease and Purchase Reimbursement (for buses ordered on or after 3/1/98) (W.S. 21-13-309(m)(v)(E)(I)):
B159: 1) Gross eligible bus purchases in FY2013 | H159: =VLOOKUP($F$8,'Other Add-In''s'!$A$13:$U$60,3) -> 0
B160: 2) Gross eligible bus purchases in FY2014 | H160: =VLOOKUP($F$8,'Other Add-In''s'!$A$13:$U$60,4) -> 0
B161: 3) Gross eligible bus purchases in FY2015 | H161: =VLOOKUP($F$8,'Other Add-In''s'!$A$13:$U$60,5) -> 0
B162: 4) Gross eligible bus purchases in FY2016 | H162: =VLOOKUP($F$8,'Other Add-In''s'!$A$13:$U$60,6) -> 0
B163: 5) Gross eligible bus purchases in FY2017 | H163: =VLOOKUP($F$8,'Other Add-In''s'!$A$13:$U$60,7) -> 0
B164: 6) Total eligible bus purchases | H164: =VLOOKUP($F$8,'Other Add-In''s'!$A$13:$U$60,8) -> 0
B165: 7) 20% reimbursement on purchases | H165: =VLOOKUP($F$8,'Other Add-In''s'!$A$13:$U$60,9) -> 0
B166: 8) Eligible lease payments | H166: =VLOOKUP($F$8,'Other Add-In''s'!$A$13:$U$60,10) -> 81185.58
B167: Total Reimbursement for Buses Ordered On or After 3/1/98 | H167: =VLOOKUP($F$8,'Other Add-In''s'!$A$13:$U$60,11) -> 81185.58
A169: I) Pupil Maintenance/Isolation Reimbursement (W.S. 21-13-309(m)(v)(E)(IV)):
B170: 1) Amount claimed for mileage | H170: =VLOOKUP($F$8,'Other Add-In''s'!$A$13:$U$60,12) -> 0
B171: 2) Amount claimed for maintenance | H171: =VLOOKUP($F$8,'Other Add-In''s'!$A$13:$U$60,13) -> 0
B172: Total Pupil Maintenance/Isolation Reimbursement | H172: =VLOOKUP($F$8,'Other Add-In''s'!$A$13:$U$60,14) -> 0
A174: J) Teacher Extra Compensation Reimbursement (W.S. 21-13-309(m)(v)(E)(III)):
B175: 1) Payroll payments to teachers: | E175: (( d ) is an optional field. District documentation is to be kept on file and is subject to audit.)
C176: a) Number of teachers affected
C177: b) Total salary dollars | F177: =VLOOKUP($F$8,'Other Add-In''s'!$A$13:$U$60,15) -> 0
C178: c) Total fringe dollars | F178: =VLOOKUP($F$8,'Other Add-In''s'!$A$13:$U$60,16) -> 0
C179: d) Program description:
B184: 2) Other payments to or for teachers (Not Including Rent Subsidies): | F184: (( c ) & ( d ) are optional fields. District documentation is to be kept on file and is subject to audit.)
C185: a) Number of teachers affected
C186: b) Total value of subsidies | F186: =VLOOKUP($F$8,'Other Add-In''s'!$A$13:$U$60,17) -> 0
C187: c) Amounts reported on W-2
C188: d) Program description:
B193: Total Teacher Extra Compensation Reimbursement | H193: =VLOOKUP($F$8,'Other Add-In''s'!$A$13:$U$60,18) -> 0
A195: K) Special Tuition and Maintenance Reimbursement:
A196: 1) Tuition paid by non-unified districts to unified districts (W.S. 21-13-309(m)(v)(E)(V)): | H196: =VLOOKUP($F$8,'Other Add-In''s'!$A$13:$U$60,19) -> 0
B197: Total Special Tuition Reimbursement | H197: =VLOOKUP($F$8,'Other Add-In''s'!$A$13:$U$60,20) -> 0
A199: L) Estimated Foundation Guarantee (before hold harmless) | H199: =VLOOKUP($F$8,'Base Sheet'!$A$10:$Z$58,19) -> 1468146239
A201: M) Hold Harmless Adjustment | H201: =VLOOKUP($F$8,'Base Sheet'!$A$10:$Z$58,21) -> 0
A203: N) Local Resources:
B204: 1) Total FY2017 General Fund (GF) Revenues from WDE-601 | F204: =VLOOKUP($F$8,'Local Resources'!$A$9:$BJ$56,3) -> 6242205.3
B205: 2) Less FY2017 GF Revenues Not Counted as Local Resources:
C206: Revenue from Federal Sources | H206: =VLOOKUP($F$8,'Local Resources'!$A$9:$BP$56,4) -> 0
C207: 81111 (Actually received 20/25-mill local district taxes) | H207: =VLOOKUP($F$8,'Local Resources'!$A$9:$BP$56,5) -> 835800.71
C208: 81112 (Actually received optional operations mill taxes) | H208: =VLOOKUP($F$8,'Local Resources'!$A$9:$BP$56,6) -> 0
C209: 81113 (Actually received operations mill taxes) | H209: =VLOOKUP($F$8,'Local Resources'!$A$9:$BP$56,7) -> 0
C210: 81115 (Actually received optional maintenance mill taxes) | H210: =VLOOKUP($F$8,'Local Resources'!$A$9:$BP$56,8) -> 0
C211: 81116 (Additional voter approved maintenance mill taxes) | H211: =VLOOKUP($F$8,'Local Resources'!$A$9:$BP$56,9) -> 0
C212: 81160 (Voc/Term & adult education taxes) | H212: =VLOOKUP($F$8,'Local Resources'!$A$9:$BP$56,10) -> 0
C213: 813xx (Dual and Concurrent Enrollment Tuition) | H213: =VLOOKUP($F$8,'Local Resources'!$A$9:$BP$56,11) -> 0
C214: 81320 (Regular Day School Tuition - In-State Districts) | H214: =VLOOKUP($F$8,'Local Resources'!$A$9:$BP$56,12) -> 0
C215: 81321 (Distance Education Tuition) | H215: =VLOOKUP($F$8,'Local Resources'!$A$9:$BP$56,13) -> 0
C216: 81322 (Juvenile Detention Facility Tuition) | H216: =VLOOKUP($F$8,'Local Resources'!$A$9:$BP$56,14) -> 0
C217: 81340 (Adult education tuition) | H217: =VLOOKUP($F$8,'Local Resources'!$A$9:$BP$56,15) -> 0
C218: 81350 (Summer school tuition) | H218: =VLOOKUP($F$8,'Local Resources'!$A$9:$BP$56,16) -> 0
C219: 81360 (Cooperative programs tuition) | H219: =VLOOKUP($F$8,'Local Resources'!$A$9:$BP$56,17) -> 10000
C220: 81410 (Transportation fees - Pupils) | H220: =VLOOKUP($F$8,'Local Resources'!$A$9:$BP$56,18) -> 0
C221: 81420 (Transportation fees - In-State Districts) | H221: =VLOOKUP($F$8,'Local Resources'!$A$9:$BP$56,19) -> 0
C222: 81430 (Transportation fees - Out-of-State Districts) | H222: =VLOOKUP($F$8,'Local Resources'!$A$9:$BP$56,20) -> 0
C223: 815xx (Interest and other earnings) | H223: =VLOOKUP($F$8,'Local Resources'!$A$9:$BP$56,21) -> 6495.12
C224: 81690 (Other food service income) | H224: =VLOOKUP($F$8,'Local Resources'!$A$9:$BP$56,22) -> 0
C225: 817xx (Student activities) | H225: =VLOOKUP($F$8,'Local Resources'!$A$9:$BP$56,23) -> 0
C226: 81800 (Foundation Recapture paid - enter negative number) | H226: =VLOOKUP($F$8,'Local Resources'!$A$9:$BP$56,24) -> 0
C227: 81850 (Indirect costs) | H227: =VLOOKUP($F$8,'Local Resources'!$A$9:$BP$56,25) -> 0
C228: 81910 (Rental, school facilities) | H228: =VLOOKUP($F$8,'Local Resources'!$A$9:$BP$56,26) -> 0
C229: 81920 (Contributions and donations from private sources) | H229: =VLOOKUP($F$8,'Local Resources'!$A$9:$BP$56,27) -> 0
C230: 81950 (Refund of prior year's expenditures) | H230: =VLOOKUP($F$8,'Local Resources'!$A$9:$BP$56,28) -> 0
C231: 81980 (Services provided to other local governments) | H231: =VLOOKUP($F$8,'Local Resources'!$A$9:$BP$56,29) -> 0
C232: 81981 (Transportation services provided to other local governments) | H232: =VLOOKUP($F$8,'Local Resources'!$A$9:$BP$56,30) -> 0
... 44 more rows

Sheet Base Sheet
A1: Base Sheet Worksheet
A3: 1 | B3: 2 | C3: 3 | D3: 4 | E3: 5 | F3: 6 | G3: 7 | H3: 8 | I3: 9 | J3: 10 | K3: 11 | L3: 12 | M3: 13 | N3: 14 | O3: 15 | P3: 16 | Q3: 17 | R3: 18 | S3: 19 | T3: 20 | U3: 21 | V3: 22 | W3: 23 | X3: 24 | Y3: 25 | Z3: 26
D4: Model Generated Resources | K4: Other Add In's | P4: Charter School | Q4: Transportation & Special Education | S4: FY2018 Guarantee and Local Resources | Y4: Entitlement and Recapture Calculations
E5: Librarians, | S5: FY2018 Model | T5: FY2018 | V5: FY2018 Model | W5: FY2018
E6: Library Clerks, and | H6: Activities | J6: Model | K6: Total | L6: Total | S6: Guarantee Total | T6: Guarantee | V6: Guarantee Total | W6: Guarantee
E7: Computer Techs. | H7: if using | J7: Generated | K7: Reimbursement | L7: Transportation | O7: Total of | P7: 1st Year | S7: to Districts with | T7: Per ADM | U7: Hold | V7: to Districts with | W7: Per ADM
E8: Consultant | H8: Consultant | J8: Resources | K8: for Buses on | L8: Isolation and Maint. | M8: Total Extra | O8: Reimbursables | P8: Charter School | S8: Reimbursements | T8: before | U8: Harmless | V8: Reimbursements | W8: after | Y8: FY2018 | Z8: FY2018
A9: District ID | B9: District Name | C9: ADM | D9: School Resources* | E9: Recommendation | F9: Central Office | G9: M&O | H9: Recommendation | I9: Utilities | J9: Per ADM | K9: or after 3/1/98 | L9: Reimbursements | M9: Compensation | N9: Special Tuition | O9: for Col. 11-14 | P9: Adjustments | Q9: Transportation | R9: Special Education | S9: before Hold Harmless | T9: Hold Harmless | U9: Adjustment | V9: after Hold Harmless | W9: Hold Harmless | X9: Local Resources | Y9: Entitlement | Z9: Recapture
A10: ='School Reference Sheet'!A5 -> 0101000 | B10: ='School Reference Sheet'!B5 -> Albany #1 | C10: =Inputs!T8 -> 3991.53 | D10: =Inputs!W8+'Summer Schl-Ext Day Min Adj'!H5 -> 35916821.75 | E10: ='Librarian, Clerk, Comp Tech.'!T6 -> 0 | F10: ='Central Office'!K6 -> 3311561.896 | G10: ='O&M Base Sheet'!N7 -> 3660480.693 | H10: =IF(Inputs!$D$100=1,C10*Inputs!$D$159,0) -> 0 | I10: =Utilities!AC6 -> 1252035.56 | J10: =SUM(D10:I10)/C10 -> 11058.64165 | K10: ='Other Add-In''s'!K13 -> 538574.58 | L10: ='Other Add-In''s'!N13 -> 26769.7 | M10: ='Other Add-In''s'!R13 -> 0 | N10: ='Other Add-In''s'!T13 -> 0 | O10: =SUM(K10:N10) -> 565344.28 | P10: ='Charter School Adjustments'!H8 -> 0 | Q10: =Transportation!C8 -> 3453753.06 | R10: ='Special Education'!C8 -> 11081792.96 | S10: =SUM(D10:I10,O10,P10:R10) -> 59241790.2 | T10: =S10/C10 -> 14841.87522 | U10: ='HH Calculation'!U8 -> 0 | V10: =SUM(S10,U10) -> 59241790.2 | W10: =V10/C10 -> 14841.87522 | X10: ='Local Resources'!BP9 -> 16598841.79 | Y10: =IF(V10-X10>0,V10-X10,0) -> 42642948.41 | Z10: =IF(V10-X10<0,ABS(V10-X10),0) -> 0
A11: ='School Reference Sheet'!A6 -> 0201000 | B11: ='School Reference Sheet'!B6 -> Big Horn #1 | C11: =Inputs!T9 -> 989.9256667 | D11: =Inputs!W9+'Summer Schl-Ext Day Min Adj'!H6 -> 10436662.3 | E11: ='Librarian, Clerk, Comp Tech.'!T7 -> 0 | F11: ='Central Office'!K7 -> 1078305.863 | G11: ='O&M Base Sheet'!N8 -> 1226509.207 | H11: =IF(Inputs!$D$100=1,C11*Inputs!$D$159,0) -> 0 | I11: =Utilities!AC7 -> 406891.016 | J11: 13282.17747 | K11: ='Other Add-In''s'!K14 -> 229915.96 | L11: ='Other Add-In''s'!N14 -> 0 | M11: ='Other Add-In''s'!R14 -> 0 | N11: ='Other Add-In''s'!T14 -> 0 | O11: =SUM(K11:N11) -> 229915.96 | P11: ='Charter School Adjustments'!H9 -> 0 | Q11: =Transportation!C9 -> 870053.08 | R11: ='Special Education'!C9 -> 2520494.64 | S11: =SUM(D11:I11,O11,P11:R11) -> 16768832.07 | T11: 16939.48609 | U11: ='HH Calculation'!U9 -> 0 | V11: 16768832.07 | W11: =V11/C11 -> 16939.48609 | X11: ='Local Resources'!BP10 -> 2278498.388 | Y11: =IF(V11-X11>0,V11-X11,0) -> 14490333.68 | Z11: =IF(V11-X11<0,ABS(V11-X11),0) -> 0
A12: ='School Reference Sheet'!A7 -> 0202000 | B12: ='School Reference Sheet'!B7 -> Big Horn #2 | C12: =Inputs!T10 -> 717.7423333 | D12: =Inputs!W10+'Summer Schl-Ext Day Min Adj'!H7 -> 6632960.468 | E12: ='Librarian, Clerk, Comp Tech.'!T8 -> 0 | F12: ='Central Office'!K8 -> 877846.6407 | G12: ='O&M Base Sheet'!N9 -> 1003492.308 | H12: =IF(Inputs!$D$100=1,C12*Inputs!$D$159,0) -> 0 | I12: =Utilities!AC8 -> 219488.3742 | J12: 12168.41669 | K12: ='Other Add-In''s'!K15 -> 122236.72 | L12: ='Other Add-In''s'!N15 -> 0 | M12: ='Other Add-In''s'!R15 -> 0 | N12: ='Other Add-In''s'!T15 -> 0 | O12: 122236.72 | P12: ='Charter School Adjustments'!H10 -> 0 | Q12: =Transportation!C10 -> 437115.8 | R12: ='Special Education'!C10 -> 1794847.77 | S12: 11087988.08 | T12: 15448.42427 | U12: ='HH Calculation'!U10 -> 0 | V12: 11087988.08 | W12: 15448.42427 | X12: ='Local Resources'!BP11 -> 1813934.153 | Y12: 9274053.928 | Z12: 0
A13: ='School Reference Sheet'!A8 -> 0203000 | B13: ='School Reference Sheet'!B8 -> Big Horn #3 | C13: =Inputs!T11 -> 519.2266667 | D13: =Inputs!W11+'Summer Schl-Ext Day Min Adj'!H8 -> 5152201.467 | E13: ='Librarian, Clerk, Comp Tech.'!T9 -> 0 | F13: ='Central Office'!K9 -> 738556.6772 | G13: ='O&M Base Sheet'!N10 -> 687971.8008 | H13: =IF(Inputs!$D$100=1,C13*Inputs!$D$159,0) -> 0 | I13: =Utilities!AC9 -> 240923.53 | J13: 13134.25121 | K13: ='Other Add-In''s'!K16 -> 156665.7 | L13: ='Other Add-In''s'!N16 -> 164.16 | M13: ='Other Add-In''s'!R16 -> 0 | N13: ='Other Add-In''s'!T16 -> 0 | O13: 156829.86 | P13: ='Charter School Adjustments'!H11 -> 0 | Q13: =Transportation!C11 -> 576329.63 | R13: ='Special Education'!C11 -> 1913346.61 | S13: 9466159.575 | T13: 18231.26619 | U13: ='HH Calculation'!U11 -> 0 | V13: 9466159.575 | W13: 18231.26619 | X13: ='Local Resources'!BP12 -> 2582157.314 | Y13: 6884002.262 | Z13: 0
A14: ='School Reference Sheet'!A9 -> 0204000 | B14: ='School Reference Sheet'!B9 -> Big Horn #4 | C14: =Inputs!T12 -> 293.1393333 | D14: =Inputs!W12+'Summer Schl-Ext Day Min Adj'!H9 -> 3765984.728 | E14: ='Librarian, Clerk, Comp Tech.'!T10 -> 0 | F14: ='Central Office'!K10 -> 633931.1357 | G14: ='O&M Base Sheet'!N11 -> 622145.47 | H14: =IF(Inputs!$D$100=1,C14*Inputs!$D$159,0) -> 0 | I14: =Utilities!AC10 -> 162000.5336 | J14: 17684.63416 | K14: ='Other Add-In''s'!K17 -> 76037.01 | L14: ='Other Add-In''s'!N17 -> 1932.6 | M14: ='Other Add-In''s'!R17 -> 0 | N14: ='Other Add-In''s'!T17 -> 0 | O14: 77969.61 | P14: ='Charter School Adjustments'!H12 -> 0 | Q14: =Transportation!C12 -> 443445.09 | R14: ='Special Education'!C12 -> 1428783.9 | S14: 7134260.467 | T14: 24337.4384 | U14: ='HH Calculation'!U12 -> 0 | V14: 7134260.467 | W14: 24337.4384 | X14: ='Local Resources'!BP13 -> 1291495.104 | Y14: 5842765.363 | Z14: 0
A15: ='School Reference Sheet'!A10 -> 0301000 | B15: ='School Reference Sheet'!B10 -> Campbell #1 | C15: =Inputs!T13 -> 8954.925333 | D15: =Inputs!W13+'Summer Schl-Ext Day Min Adj'!H10 -> 83257472.31 | E15: ='Librarian, Clerk, Comp Tech.'!T11 -> 0 | F15: ='Central Office'!K11 -> 8125475.786 | G15: ='O&M Base Sheet'!N12 -> 8214952.327 | H15: =IF(Inputs!$D$100=1,C15*Inputs!$D$159,0) -> 0 | I15: =Utilities!AC11 -> 2778069.067 | J15: 11432.36439 | K15: ='Other Add-In''s'!K18 -> 2924393.72 | L15: ='Other Add-In''s'!N18 -> 44119.99 | M15: ='Other Add-In''s'!R18 -> 37576.18 | N15: ='Other Add-In''s'!T18 -> 0 | O15: 3006089.89 | P15: ='Charter School Adjustments'!H13 -> 0 | Q15: =Transportation!C13 -> 9736779.5 | R15: ='Special Education'!C13 -> 21516999.24 | S15: 136635838.1 | T15: 15258.17726 | U15: ='HH Calculation'!U13 -> 0 | V15: 136635838.1 | W15: 15258.17726 | X15: ='Local Resources'!BP14 -> 137667128.2 | Y15: 0 | Z15: 1031290.094
A16: ='School Reference Sheet'!A11 -> 0401000 | B16: ='School Reference Sheet'!B11 -> Carbon #1 | C16: =Inputs!T14 -> 1837.757 | D16: =Inputs!W14+'Summer Schl-Ext Day Min Adj'!H11 -> 17072597.02 | E16: ='Librarian, Clerk, Comp Tech.'!T12 -> 0 | F16: ='Central Office'!K12 -> 1669947.558 | G16: ='O&M Base Sheet'!N13 -> 1942918.865 | H16: =IF(Inputs!$D$100=1,C16*Inputs!$D$159,0) -> 0 | I16: =Utilities!AC12 -> 928175.5293 | J16: 11760.87969 | K16: ='Other Add-In''s'!K19 -> 258247.26 | L16: ='Other Add-In''s'!N19 -> 24549.76 | M16: ='Other Add-In''s'!R19 -> 0 | N16: ='Other Add-In''s'!T19 -> 0 | O16: 282797.02 | P16: ='Charter School Adjustments'!H14 -> 0 | Q16: =Transportation!C14 -> 1667061.58 | R16: ='Special Education'!C14 -> 4128763.4 | S16: 27692260.97 | T16: 15068.51067 | U16: ='HH Calculation'!U14 -> 0 | V16: 27692260.97 | W16: 15068.51067 | X16: ='Local Resources'!BP15 -> 17256903.79 | Y16: 10435357.18 | Z16: 0
A17: ='School Reference Sheet'!A12 -> 0402000 | B17: ='School Reference Sheet'!B12 -> Carbon #2 | C17: =Inputs!T15 -> 639.2946667 | D17: =Inputs!W15+'Summer Schl-Ext Day Min Adj'!H12 -> 8727226.403 | E17: ='Librarian, Clerk, Comp Tech.'!T13 -> 0 | F17: ='Central Office'!K13 -> 823245.6855 | G17: ='O&M Base Sheet'!N14 -> 1744043.673 | H17: =IF(Inputs!$D$100=1,C17*Inputs!$D$159,0) -> 0 | I17: =Utilities!AC13 -> 557714.1887 | J17: 18539.54142 | K17: ='Other Add-In''s'!K20 -> 292868.75 | L17: ='Other Add-In''s'!N20 -> 5668.18 | M17: ='Other Add-In''s'!R20 -> 0 | N17: ='Other Add-In''s'!T20 -> 0 | O17: 298536.93 | P17: ='Charter School Adjustments'!H15 -> 0 | Q17: =Transportation!C15 -> 931376.62 | R17: ='Special Education'!C15 -> 2113339.06 | S17: 15195482.56 | T17: 23769.13707 | U17: ='HH Calculation'!U15 -> 0 | V17: 15195482.56 | W17: 23769.13707 | X17: ='Local Resources'!BP16 -> 4966843.818 | Y17: 10228638.74 | Z17: 0
A18: ='School Reference Sheet'!A13 -> 0501000 | B18: ='School Reference Sheet'!B13 -> Converse #1 | C18: =Inputs!T16 -> 1712.634333 | D18: =Inputs!W16+'Summer Schl-Ext Day Min Adj'!H13 -> 16075338.53 | E18: ='Librarian, Clerk, Comp Tech.'!T14 -> 0 | F18: ='Central Office'!K14 -> 1603506.117 | G18: ='O&M Base Sheet'!N15 -> 2233962.14 | H18: =IF(Inputs!$D$100=1,C18*Inputs!$D$159,0) -> 0 | I18: =Utilities!AC14 -> 773590.0383 | J18: 12078.70029 | K18: ='Other Add-In''s'!K21 -> 249142.22 | L18: ='Other Add-In''s'!N21 -> 48766.75 | M18: ='Other Add-In''s'!R21 -> 9000 | N18: ='Other Add-In''s'!T21 -> 0 | O18: 306908.97 | P18: ='Charter School Adjustments'!H16 -> 0 | Q18: =Transportation!C16 -> 1206240.18 | R18: ='Special Education'!C16 -> 8051794.69 | S18: 30251340.67 | T18: 17663.63086 | U18: ='HH Calculation'!U16 -> 0 | V18: 30251340.67 | W18: 17663.63086 | X18: ='Local Resources'!BP17 -> 27486708.21 | Y18: 2764632.456 | Z18: 0
A19: ='School Reference Sheet'!A14 -> 0502000 | B19: ='School Reference Sheet'!B14 -> Converse #2 | C19: =Inputs!T17 -> 645.0623333 | D19: =Inputs!W17+'Summer Schl-Ext Day Min Adj'!H14 -> 6522990.147 | E19: ='Librarian, Clerk, Comp Tech.'!T15 -> 0 | F19: ='Central Office'!K15 -> 833846.614 | G19: ='O&M Base Sheet'!N16 -> 921469.6084 | H19: =IF(Inputs!$D$100=1,C19*Inputs!$D$159,0) -> 0 | I19: =Utilities!AC15 -> 362782.6907 | J19: 13395.74273 | K19: ='Other Add-In''s'!K22 -> 102856.73 | L19: ='Other Add-In''s'!N22 -> 11251.7 | M19: ='Other Add-In''s'!R22 -> 4813.6 | N19: ='Other Add-In''s'!T22 -> 0 | O19: 118922.03 | P19: ='Charter School Adjustments'!H17 -> 0 | Q19: =Transportation!C17 -> 453903.11 | R19: ='Special Education'!C17 -> 1567509.87 | S19: 10781424.07 | T19: 16713.77092 | U19: ='HH Calculation'!U17 -> 0 | V19: 10781424.07 | W19: 16713.77092 | X19: ='Local Resources'!BP18 -> 9639432.916 | Y19: 1141991.154 | Z19: 0
A20: ='School Reference Sheet'!A15 -> 0601000 | B20: ='School Reference Sheet'!B15 -> Crook #1 | C20: =Inputs!T18 -> 1148.624333 | D20: =Inputs!W18+'Summer Schl-Ext Day Min Adj'!H15 -> 12431688.49 | E20: ='Librarian, Clerk, Comp Tech.'!T16 -> 0 | F20: ='Central Office'!K16 -> 1191460.214 | G20: ='O&M Base Sheet'!N17 -> 1887394.129 | H20: =IF(Inputs!$D$100=1,C20*Inputs!$D$159,0) -> 0 | I20: =Utilities!AC16 -> 334227.7725 | J20: 13794.56289 | K20: ='Other Add-In''s'!K23 -> 557276.5 | L20: ='Other Add-In''s'!N23 -> 98069.42 | M20: ='Other Add-In''s'!R23 -> 0 | N20: ='Other Add-In''s'!T23 -> 0 | O20: 655345.92 | P20: ='Charter School Adjustments'!H18 -> 0 | Q20: =Transportation!C18 -> 1306879.85 | R20: ='Special Education'!C18 -> 2858310 | S20: 20665306.37 | T20: 17991.35346 | U20: ='HH Calculation'!U18 -> 0 | V20: 20665306.37 | W20: 17991.35346 | X20: ='Local Resources'!BP19 -> 6919729.335 | Y20: 13745577.04 | Z20: 0
A21: ='School Reference Sheet'!A16 -> 0701000 | B21: ='School Reference Sheet'!B16 -> Fremont # 1 | C21: =Inputs!T19 -> 1761.464 | D21: =Inputs!W19+'Summer Schl-Ext Day Min Adj'!H16 -> 16152516.65 | E21: ='Librarian, Clerk, Comp Tech.'!T17 -> 0 | F21: ='Central Office'!K17 -> 1666057.711 | G21: ='O&M Base Sheet'!N18 -> 2396914.867 | H21: =IF(Inputs!$D$100=1,C21*Inputs!$D$159,0) -> 0 | I21: =Utilities!AC17 -> 749352.2247 | J21: 11901.94149 | K21: ='Other Add-In''s'!K24 -> 328808.58 | L21: ='Other Add-In''s'!N24 -> 0 | M21: ='Other Add-In''s'!R24 -> 3633 | N21: ='Other Add-In''s'!T24 -> 0 | O21: 332441.58 | P21: ='Charter School Adjustments'!H19 -> 0 | Q21: =Transportation!C19 -> 1398962.12 | R21: ='Special Education'!C19 -> 5450409.44 | S21: 28146654.6 | T21: 15979.12566 | U21: ='HH Calculation'!U19 -> 0 | V21: 28146654.6 | W21: 15979.12566 | X21: ='Local Resources'!BP20 -> 6757387.31 | Y21: 21389267.29 | Z21: 0
A22: ='School Reference Sheet'!A17 -> 0702000 | B22: ='School Reference Sheet'!B17 -> Fremont # 2 | C22: =Inputs!T20 -> 148.4016667 | D22: =Inputs!W20+'Summer Schl-Ext Day Min Adj'!H17 -> 2521549.974 | E22: ='Librarian, Clerk, Comp Tech.'!T18 -> 0 | F22: ='Central Office'!K18 -> 577379.2409 | G22: ='O&M Base Sheet'!N19 -> 438725.5898 | H22: =IF(Inputs!$D$100=1,C22*Inputs!$D$159,0) -> 0 | I22: =Utilities!AC18 -> 230466.2055 | J22: 25391.36585 | K22: ='Other Add-In''s'!K25 -> 92167.01 | L22: ='Other Add-In''s'!N25 -> 6385.86 | M22: ='Other Add-In''s'!R25 -> 0 | N22: ='Other Add-In''s'!T25 -> 0 | O22: 98552.87 | P22: ='Charter School Adjustments'!H20 -> 0 | Q22: =Transportation!C20 -> 243307.79 | R22: ='Special Education'!C20 -> 392953.72 | S22: 4502935.391 | T22: 30342.88962 | U22: ='HH Calculation'!U20 -> 0 | V22: 4502935.391 | W22: 30342.88962 | X22: ='Local Resources'!BP21 -> 1832512.282 | Y22: 2670423.108 | Z22: 0
A23: ='School Reference Sheet'!A18 -> 0706000 | B23: ='School Reference Sheet'!B18 -> Fremont # 6 | C23: =Inputs!T21 -> 385.5553333 | D23: =Inputs!W21+'Summer Schl-Ext Day Min Adj'!H18 -> 4521767.866 | E23: ='Librarian, Clerk, Comp Tech.'!T19 -> 0 | F23: ='Central Office'!K19 -> 680033.0138 | G23: ='O&M Base Sheet'!N20 -> 847989.6859 | H23: =IF(Inputs!$D$100=1,C23*Inputs!$D$159,0) -> 0 | I23: =Utilities!AC19 -> 190781.1886 | J23: 16185.93031 | K23: ='Other Add-In''s'!K26 -> 249746.396 | L23: ='Other Add-In''s'!N26 -> 13581.14 | M23: ='Other Add-In''s'!R26 -> 4370.4 | N23: ='Other Add-In''s'!T26 -> 0 | O23: 267697.936 | P23: ='Charter School Adjustments'!H21 -> 0 | Q23: =Transportation!C21 -> 593572.85 | R23: ='Special Education'!C21 -> 1197717.23 | S23: 8299559.77 | T23: 21526.24812 | U23: ='HH Calculation'!U21 -> 0 | V23: 8299559.77 | W23: 21526.24812 | X23: ='Local Resources'!BP22 -> 1725463.637 | Y23: 6574096.134 | Z23: 0
A24: ='School Reference Sheet'!A19 -> 0714000 | B24: ='School Reference Sheet'!B19 -> Fremont #14 | C24: =Inputs!T22 -> 619.0323333 | D24: =Inputs!W22+'Summer Schl-Ext Day Min Adj'!H19 -> 6349277.097 | E24: ='Librarian, Clerk, Comp Tech.'!T20 -> 0 | F24: ='Central Office'!K20 -> 833240.0879 | G24: ='O&M Base Sheet'!N21 -> 1550277.8 | H24: =IF(Inputs!$D$100=1,C24*Inputs!$D$159,0) -> 0 | I24: =Utilities!AC20 -> 371376.4149 | J24: 14707.10157 | K24: ='Other Add-In''s'!K27 -> 50828 | L24: ='Other Add-In''s'!N27 -> 0 | M24: ='Other Add-In''s'!R27 -> 0 | N24: ='Other Add-In''s'!T27 -> 0 | O24: 50828 | P24: ='Charter School Adjustments'!H22 -> 0 | Q24: =Transportation!C22 -> 751891.56 | R24: ='Special Education'!C22 -> 2562668.95 | S24: 12469559.91 | T24: 20143.63263 | U24: ='HH Calculation'!U22 -> 0 | V24: 12469559.91 | W24: 20143.63263 | X24: ='Local Resources'!BP23 -> 601428.5599 | Y24: 11868131.35 | Z24: 0
A25: ='School Reference Sheet'!A20 -> 0721000 | B25: ='School Reference Sheet'!B20 -> Fremont #21 | C25: =Inputs!T23 -> 496.9496667 | D25: =Inputs!W23+'Summer Schl-Ext Day Min Adj'!H20 -> 5335738.849 | E25: ='Librarian, Clerk, Comp Tech.'!T21 -> 0 | F25: ='Central Office'!K21 -> 744959.399 | G25: ='O&M Base Sheet'!N22 -> 660014.1825 | H25: =IF(Inputs!$D$100=1,C25*Inputs!$D$159,0) -> 0 | I25: =Utilities!AC21 -> 185098.5604 | J25: 13936.64481 | K25: ='Other Add-In''s'!K28 -> 54818.95 | L25: ='Other Add-In''s'!N28 -> 0 | M25: ='Other Add-In''s'!R28 -> 0 | N25: ='Other Add-In''s'!T28 -> 0 | O25: 54818.95 | P25: ='Charter School Adjustments'!H23 -> 0 | Q25: =Transportation!C23 -> 497103.28 | R25: ='Special Education'!C23 -> 1923197.31 | S25: 9400930.531 | T25: 18917.26901 | U25: ='HH Calculation'!U23 -> 0 | V25: 9400930.531 | W25: 18917.26901 | X25: ='Local Resources'!BP24 -> 610010.8214 | Y25: 8790919.709 | Z25: 0
A26: ='School Reference Sheet'!A21 -> 0724000 | B26: ='School Reference Sheet'!B21 -> Fremont #24 | C26: =Inputs!T24 -> 394.1706667 | D26: =Inputs!W24+'Summer Schl-Ext Day Min Adj'!H21 -> 4331292.999 | E26: ='Librarian, Clerk, Comp Tech.'!T22 -> 0 | F26: ='Central Office'!K22 -> 639598.1137 | G26: ='O&M Base Sheet'!N23 -> 657172.0876 | H26: =IF(Inputs!$D$100=1,C26*Inputs!$D$159,0) -> 0 | I26: =Utilities!AC22 -> 158953.1846 | J26: 14681.49935 | K26: ='Other Add-In''s'!K29 -> 138712.23 | L26: ='Other Add-In''s'!N29 -> 2720.53 | M26: ='Other Add-In''s'!R29 -> 0 | N26: ='Other Add-In''s'!T29 -> 0 | O26: 141432.76 | P26: ='Charter School Adjustments'!H24 -> 0 | Q26: =Transportation!C24 -> 586562.25 | R26: ='Special Education'!C24 -> 1353575.26 | S26: 7868586.655 | T26: 19962.38513 | U26: ='HH Calculation'!U24 -> 0 | V26: 7868586.655 | W26: 19962.38513 | X26: ='Local Resources'!BP25 -> 4422754.531 | Y26: 3445832.124 | Z26: 0
A27: ='School Reference Sheet'!A22 -> 0725000 | B27: ='School Reference Sheet'!B22 -> Fremont #25 | C27: =Inputs!T25 -> 2502.691333 | D27: =Inputs!W25+'Summer Schl-Ext Day Min Adj'!H22 -> 22570232.18 | E27: ='Librarian, Clerk, Comp Tech.'!T23 -> 0 | F27: ='Central Office'!K23 -> 2136961.883 | G27: ='O&M Base Sheet'!N24 -> 2555421.289 | H27: =IF(Inputs!$D$100=1,C27*Inputs!$D$159,0) -> 0 | I27: =Utilities!AC23 -> 979033.5505 | J27: 11284.51141 | K27: ='Other Add-In''s'!K30 -> 74375.89 | L27: ='Other Add-In''s'!N30 -> 0 | M27: ='Other Add-In''s'!R30 -> 0 | N27: ='Other Add-In''s'!T30 -> 0 | O27: 74375.89 | P27: ='Charter School Adjustments'!H25 -> 0 | Q27: =Transportation!C25 -> 1392288.6 | R27: ='Special Education'!C25 -> 8642060.87 | S27: 38350374.26 | T27: 15323.65328 | U27: ='HH Calculation'!U25 -> 0 | V27: 38350374.26 | W27: 15323.65328 | X27: ='Local Resources'!BP26 -> 7305994.09 | Y27: 31044380.17 | Z27: 0
A28: ='School Reference Sheet'!A23 -> 0738000 | B28: ='School Reference Sheet'!B23 -> Fremont #38 | C28: =Inputs!T26 -> 417.658 | D28: =Inputs!W26+'Summer Schl-Ext Day Min Adj'!H23 -> 4504102.553 | E28: ='Librarian, Clerk, Comp Tech.'!T24 -> 0 | F28: ='Central Office'!K24 -> 681347.5286 | G28: ='O&M Base Sheet'!N25 -> 866665.9682 | H28: =IF(Inputs!$D$100=1,C28*Inputs!$D$159,0) -> 0 | I28: =Utilities!AC24 -> 196015.8679 | J28: 14959.92395 | K28: ='Other Add-In''s'!K31 -> 228710.06 | L28: ='Other Add-In''s'!N31 -> 0 | M28: ='Other Add-In''s'!R31 -> 0 | N28: ='Other Add-In''s'!T31 -> 600505.71 | O28: 829215.77 | P28: ='Charter School Adjustments'!H26 -> 0 | Q28: =Transportation!C26 -> 1191347.62 | R28: ='Special Education'!C26 -> 2002202.05 | S28: 10270897.36 | T28: 24591.64522 | U28: ='HH Calculation'!U26 -> 0 | V28: 10270897.36 | W28: 24591.64522 | X28: ='Local Resources'!BP27 -> 458487.0737 | Y28: 9812410.284 | Z28: 0
A29: ='School Reference Sheet'!A24 -> 0801000 | B29: ='School Reference Sheet'!B24 -> Goshen #1 | C29: =Inputs!T27 -> 1740.88 | D29: =Inputs!W27+'Summer Schl-Ext Day Min Adj'!H24 -> 18501299.03 | E29: ='Librarian, Clerk, Comp Tech.'!T25 -> 0 | F29: ='Central Office'!K25 -> 1585039.902 | G29: ='O&M Base Sheet'!N26 -> 2227341.562 | H29: =IF(Inputs!$D$100=1,C29*Inputs!$D$159,0) -> 0 | I29: =Utilities!AC25 -> 861502.2296 | J29: 13312.33786 | K29: ='Other Add-In''s'!K32 -> 408634.78 | L29: ='Other Add-In''s'!N32 -> 0 | M29: ='Other Add-In''s'!R32 -> 0 | N29: ='Other Add-In''s'!T32 -> 0 | O29: 408634.78 | P29: ='Charter School Adjustments'!H27 -> 0 | Q29: =Transportation!C27 -> 1616777.89 | R29: ='Special Education'!C27 -> 5152745.15 | S29: 30353340.55 | T29: 17435.63057 | U29: ='HH Calculation'!U27 -> 0 | V29: 30353340.55 | W29: 17435.63057 | X29: ='Local Resources'!BP28 -> 7591598.749 | Y29: 22761741.8 | Z29: 0
A30: ='School Reference Sheet'!A25 -> 0901000 | B30: ='School Reference Sheet'!B25 -> Hot Springs #1 | C30: =Inputs!T28 -> 667.1493333 | D30: =Inputs!W28+'Summer Schl-Ext Day Min Adj'!H25 -> 6060813.795 | E30: ='Librarian, Clerk, Comp Tech.'!T26 -> 0 | F30: ='Central Office'!K26 -> 835060.8095 | G30: ='O&M Base Sheet'!N27 -> 932895.3374 | H30: =IF(Inputs!$D$100=1,C30*Inputs!$D$159,0) -> 0 | I30: =Utilities!AC26 -> 417892.8132 | J30: 12361.04474 | K30: ='Other Add-In''s'!K33 -> 123782.17 | L30: ='Other Add-In''s'!N33 -> 5074.14 | M30: ='Other Add-In''s'!R33 -> 0 | N30: ='Other Add-In''s'!T33 -> 0 | O30: 128856.31 | P30: ='Charter School Adjustments'!H28 -> 0 | Q30: =Transportation!C28 -> 943560.79 | R30: ='Special Education'!C28 -> 2166722.55 | S30: 11485802.41 | T30: 17216.23905 | U30: ='HH Calculation'!U28 -> 0 | V30: 11485802.41 | W30: 17216.23905 | X30: ='Local Resources'!BP29 -> 4638285.139 | Y30: 6847517.266 | Z30: 0
A31: ='School Reference Sheet'!A26 -> 1001000 | B31: ='School Reference Sheet'!B26 -> Johnson #1 | C31: =Inputs!T29 -> 1274.798333 | D31: =Inputs!W29+'Summer Schl-Ext Day Min Adj'!H26 -> 12623649.86 | E31: ='Librarian, Clerk, Comp Tech.'!T27 -> 0 | F31: ='Central Office'!K27 -> 1301159.09 | G31: ='O&M Base Sheet'!N28 -> 2557145.307 | H31: =IF(Inputs!$D$100=1,C31*Inputs!$D$159,0) -> 0 | I31: =Utilities!AC27 -> 399802.5757 | J31: 13242.68819 | K31: ='Other Add-In''s'!K34 -> 169964.52 | L31: ='Other Add-In''s'!N34 -> 13180.98 | M31: ='Other Add-In''s'!R34 -> 23683 | N31: ='Other Add-In''s'!T34 -> 0 | O31: 206828.5 | P31: ='Charter School Adjustments'!H29 -> 0 | Q31: =Transportation!C29 -> 1079036.74 | R31: ='Special Education'!C29 -> 2648847.09 | S31: 20816469.17 | T31: 16329.22528 | U31: ='HH Calculation'!U29 -> 0 | V31: 20816469.17 | W31: 16329.22528 | X31: ='Local Resources'!BP30 -> 14198981.95 | Y31: 6617487.213 | Z31: 0
A32: ='School Reference Sheet'!A27 -> 1101000 | B32: ='School Reference Sheet'!B27 -> Laramie #1 | C32: =Inputs!T30 -> 14141.21967 | D32: =Inputs!W30+'Summer Schl-Ext Day Min Adj'!H27 -> 134717605 | E32: ='Librarian, Clerk, Comp Tech.'!T28 -> 0 | F32: ='Central Office'!K28 -> 13517492.57 | G32: ='O&M Base Sheet'!N29 -> 13849659.59 | H32: =IF(Inputs!$D$100=1,C32*Inputs!$D$159,0) -> 0 | I32: =Utilities!AC28 -> 4314709.561 | J32: 11766.98125 | K32: ='Other Add-In''s'!K35 -> 1390314.24 | L32: ='Other Add-In''s'!N35 -> 0 | M32: ='Other Add-In''s'!R35 -> 61217.71 | N32: ='Other Add-In''s'!T35 -> 0 | O32: 1451531.95 | P32: ='Charter School Adjustments'!H30 -> 0 | Q32: =Transportation!C30 -> 9032991.69 | R32: ='Special Education'!C30 -> 30497166.86 | S32: 207381157.2 | T32: 14665.01208 | U32: ='HH Calculation'!U30 -> 0 | V32: 207381157.2 | W32: 14665.01208 | X32: ='Local Resources'!BP31 -> 50426075.46 | Y32: 156955081.8 | Z32: 0
A33: ='School Reference Sheet'!A28 -> 1102000 | B33: ='School Reference Sheet'!B28 -> Laramie #2 | C33: =Inputs!T31 -> 1012.476 | D33: =Inputs!W31+'Summer Schl-Ext Day Min Adj'!H28 -> 10443865.98 | E33: ='Librarian, Clerk, Comp Tech.'!T29 -> 0 | F33: ='Central Office'!K29 -> 1082817.362 | G33: ='O&M Base Sheet'!N30 -> 1369006.348 | H33: =IF(Inputs!$D$100=1,C33*Inputs!$D$159,0) -> 0 | I33: =Utilities!AC29 -> 462258.9414 | J33: 13193.34842 | K33: ='Other Add-In''s'!K36 -> 391339.27 | L33: ='Other Add-In''s'!N36 -> 0 | M33: ='Other Add-In''s'!R36 -> 0 | N33: ='Other Add-In''s'!T36 -> 0 | O33: 391339.27 | P33: ='Charter School Adjustments'!H31 -> 0 | Q33: =Transportation!C31 -> 1788967.37 | R33: ='Special Education'!C31 -> 2758752 | S33: 18297007.28 | T33: 18071.54666 | U33: ='HH Calculation'!U31 -> 0 | V33: 18297007.28 | W33: 18071.54666 | X33: ='Local Resources'!BP32 -> 5397278.839 | Y33: 12899728.44 | Z33: 0
A34: ='School Reference Sheet'!A29 -> 1201000 | B34: ='School Reference Sheet'!B29 -> Lincoln #1 | C34: =Inputs!T32 -> 611.907 | D34: =Inputs!W32+'Summer Schl-Ext Day Min Adj'!H29 -> 5799707.002 | E34: ='Librarian, Clerk, Comp Tech.'!T30 -> 0 | F34: ='Central Office'!K30 -> 793580.2423 | G34: ='O&M Base Sheet'!N31 -> 1143165.203 | H34: =IF(Inputs!$D$100=1,C34*Inputs!$D$159,0) -> 0 | I34: =Utilities!AC30 -> 408389.79 | J34: 13310.58844 | K34: ='Other Add-In''s'!K37 -> 99654.74 | L34: ='Other Add-In''s'!N37 -> 5392.29 | M34: ='Other Add-In''s'!R37 -> 0 | N34: ='Other Add-In''s'!T37 -> 0 | O34: 105047.03 | P34: ='Charter School Adjustments'!H32 -> 0 | Q34: =Transportation!C32 -> 559204.7 | R34: ='Special Education'!C32 -> 1830632.74 | S34: 10639726.71 | T34: 17387.81663 | U34: ='HH Calculation'!U32 -> 0 | V34: 10639726.71 | W34: 17387.81663 | X34: ='Local Resources'!BP33 -> 11661233.81 | Y34: 0 | Z34: 1021507.102
A35: ='School Reference Sheet'!A30 -> 1202000 | B35: ='School Reference Sheet'!B30 -> Lincoln #2 | C35: =Inputs!T33 -> 2851.785667 | D35: =Inputs!W33+'Summer Schl-Ext Day Min Adj'!H30 -> 25811729.47 | E35: ='Librarian, Clerk, Comp Tech.'!T31 -> 0 | F35: ='Central Office'!K31 -> 2411914.544 | G35: ='O&M Base Sheet'!N32 -> 3045586.872 | H35: =IF(Inputs!$D$100=1,C35*Inputs!$D$159,0) -> 0 | I35: =Utilities!AC31 -> 970048.4996 | J35: 11304.94475 | K35: ='Other Add-In''s'!K38 -> 477804.706 | L35: ='Other Add-In''s'!N38 -> 0 | M35: ='Other Add-In''s'!R38 -> 0 | N35: ='Other Add-In''s'!T38 -> 0 | O35: 477804.706 | P35: ='Charter School Adjustments'!H33 -> 0 | Q35: =Transportation!C33 -> 3465297.97 | R35: ='Special Education'!C33 -> 7159383.52 | S35: 43341765.58 | T35: 15198.11467 | U35: ='HH Calculation'!U33 -> 0 | V35: 43341765.58 | W35: 15198.11467 | X35: ='Local Resources'!BP34 -> 11464474.91 | Y35: 31877290.67 | Z35: 0
A36: ='School Reference Sheet'!A31 -> 1301000 | B36: ='School Reference Sheet'!B31 -> Natrona #1 | C36: =Inputs!T34 -> 12986.84067 | D36: =Inputs!W34+'Summer Schl-Ext Day Min Adj'!H31 -> 124287454.5 | E36: ='Librarian, Clerk, Comp Tech.'!T32 -> 0 | F36: ='Central Office'!K32 -> 11966103.12 | G36: ='O&M Base Sheet'!N33 -> 10565716.84 | H36: =IF(Inputs!$D$100=1,C36*Inputs!$D$159,0) -> 0 | I36: =Utilities!AC32 -> 3332492.772 | J36: 11561.83949 | K36: ='Other Add-In''s'!K39 -> 1197827.47 | L36: ='Other Add-In''s'!N39 -> 59636.92 | M36: ='Other Add-In''s'!R39 -> 41208.69 | N36: ='Other Add-In''s'!T39 -> 0 | O36: 1298673.08 | P36: ='Charter School Adjustments'!H34 -> 0 | Q36: =Transportation!C34 -> 9440880.91 | R36: ='Special Education'!C34 -> 30978457.05 | S36: 191869778.3 | T36: 14774.16896 | U36: ='HH Calculation'!U34 -> 0 | V36: 191869778.3 | W36: 14774.16896 | X36: ='Local Resources'!BP35 -> 47421691.07 | Y36: 144448087.2 | Z36: 0
A37: ='School Reference Sheet'!A32 -> 1401000 | B37: ='School Reference Sheet'!B32 -> Niobrara #1 | C37: =Inputs!T35 -> 867.212 | D37: =Inputs!W35+'Summer Schl-Ext Day Min Adj'!H32 -> 7729253.013 | E37: ='Librarian, Clerk, Comp Tech.'!T33 -> 0 | F37: ='Central Office'!K33 -> 974456.0428 | G37: ='O&M Base Sheet'!N34 -> 882493.8708 | H37: =IF(Inputs!$D$100=1,C37*Inputs!$D$159,0) -> 0 | I37: =Utilities!AC33 -> 194821.7869 | J37: 11278.70084 | K37: ='Other Add-In''s'!K40 -> 90501 | L37: ='Other Add-In''s'!N40 -> 30452.38 | M37: ='Other Add-In''s'!R40 -> 0 | N37: ='Other Add-In''s'!T40 -> 0 | O37: 120953.38 | P37: ='Charter School Adjustments'!H35 -> 0 | Q37: =Transportation!C35 -> 438479 | R37: ='Special Education'!C35 -> 1860653.8 | S37: 12201110.89 | T37: 14069.35201 | U37: ='HH Calculation'!U35 -> 0 | V37: 12201110.89 | W37: 14069.35201 | X37: ='Local Resources'!BP36 -> 3663515.528 | Y37: 8537595.366 | Z37: 0
A38: ='School Reference Sheet'!A33 -> 1501000 | B38: ='School Reference Sheet'!B33 -> Park # 1 | C38: =Inputs!T36 -> 1800.269667 | D38: =Inputs!W36+'Summer Schl-Ext Day Min Adj'!H33 -> 17046852.96 | E38: ='Librarian, Clerk, Comp Tech.'!T34 -> 0 | F38: ='Central Office'!K34 -> 1677000.674 | G38: ='O&M Base Sheet'!N35 -> 1724083.655 | H38: =IF(Inputs!$D$100=1,C38*Inputs!$D$159,0) -> 0 | I38: =Utilities!AC34 -> 539613.7399 | J38: 11658.00403 | K38: ='Other Add-In''s'!K41 -> 303481.51 | L38: ='Other Add-In''s'!N41 -> 10321.62 | M38: ='Other Add-In''s'!R41 -> 0 | N38: ='Other Add-In''s'!T41 -> 0 | O38: 313803.13 | P38: ='Charter School Adjustments'!H36 -> 0 | Q38: =Transportation!C36 -> 947918.03 | R38: ='Special Education'!C36 -> 4106239.95 | S38: 26355512.13 | T38: 14639.75793 | U38: ='HH Calculation'!U36 -> 0 | V38: 26355512.13 | W38: 14639.75793 | X38: ='Local Resources'!BP37 -> 8263419.765 | Y38: 18092092.37 | Z38: 0
A39: ='School Reference Sheet'!A34 -> 1506000 | B39: ='School Reference Sheet'!B34 -> Park # 6 | C39: =Inputs!T37 -> 2064.944667 | D39: =Inputs!W37+'Summer Schl-Ext Day Min Adj'!H34 -> 19264287.61 | E39: ='Librarian, Clerk, Comp Tech.'!T35 -> 0 | F39: ='Central Office'!K35 -> 1873592.364 | G39: ='O&M Base Sheet'!N36 -> 1962002.589 | H39: =IF(Inputs!$D$100=1,C39*Inputs!$D$159,0) -> 0 | I39: =Utilities!AC35 -> 515689.4717 | J39: 11436.41882 | K39: ='Other Add-In''s'!K42 -> 355834.58 | L39: ='Other Add-In''s'!N42 -> 11563.81 | M39: ='Other Add-In''s'!R42 -> 6050.85 | N39: ='Other Add-In''s'!T42 -> 0 | O39: 373449.24 | P39: ='Charter School Adjustments'!H37 -> 0 | Q39: =Transportation!C37 -> 1388115.85 | R39: ='Special Education'!C37 -> 5710706.58 | S39: 31087843.71 | T39: 15055.04928 | U39: ='HH Calculation'!U37 -> 0 | V39: 31087843.71 | W39: 15055.04928 | X39: ='Local Resources'!BP38 -> 12852332.87 | Y39: 18235510.83 | Z39: 0
A40: ='School Reference Sheet'!A35 -> 1516000 | B40: ='School Reference Sheet'!B35 -> Park #16 | C40: =Inputs!T38 -> 122.983 | D40: =Inputs!W38+'Summer Schl-Ext Day Min Adj'!H35 -> 1997620.77 | E40: ='Librarian, Clerk, Comp Tech.'!T36 -> 0 | F40: ='Central Office'!K36 -> 578217.5176 | G40: ='O&M Base Sheet'!N37 -> 302628.9928 | H40: =IF(Inputs!$D$100=1,C40*Inputs!$D$159,0) -> 0 | I40: =Utilities!AC36 -> 102656.4118 | J40: 24240.12825 | K40: ='Other Add-In''s'!K43 -> 108209.58 | L40: ='Other Add-In''s'!N43 -> 0 | M40: ='Other Add-In''s'!R43 -> 0 | N40: ='Other Add-In''s'!T43 -> 0 | O40: 108209.58 | P40: ='Charter School Adjustments'!H38 -> 0 | Q40: =Transportation!C38 -> 219921.09 | R40: ='Special Education'!C38 -> 316858.71 | S40: 3626113.072 | T40: 29484.6692 | U40: ='HH Calculation'!U38 -> 0 | V40: 3626113.072 | W40: 29484.6692 | X40: ='Local Resources'!BP39 -> 2477673.244 | Y40: 1148439.829 | Z40: 0
A41: ='School Reference Sheet'!A36 -> 1601000 | B41: ='School Reference Sheet'!B36 -> Platte #1 | C41: =Inputs!T39 -> 1016.366 | D41: =Inputs!W39+'Summer Schl-Ext Day Min Adj'!H36 -> 10338704.81 | E41: ='Librarian, Clerk, Comp Tech.'!T37 -> 0 | F41: ='Central Office'!K37 -> 1099680.397 | G41: ='O&M Base Sheet'!N38 -> 1391180.973 | H41: =IF(Inputs!$D$100=1,C41*Inputs!$D$159,0) -> 0 | I41: =Utilities!AC37 -> 538738.6925 | J41: 13153.04218 | K41: ='Other Add-In''s'!K44 -> 191583.85 | L41: ='Other Add-In''s'!N44 -> 9687.79 | M41: ='Other Add-In''s'!R44 -> 0 | N41: ='Other Add-In''s'!T44 -> 0 | O41: 201271.64 | P41: ='Charter School Adjustments'!H39 -> 0 | Q41: =Transportation!C39 -> 1186780.23 | R41: ='Special Education'!C39 -> 3347114.82 | S41: 18103471.56 | T41: 17811.96101 | U41: ='HH Calculation'!U39 -> 0 | V41: 18103471.56 | W41: 17811.96101 | X41: ='Local Resources'!BP40 -> 6691710.709 | Y41: 11411760.85 | Z41: 0
A42: ='School Reference Sheet'!A37 -> 1602000 | B42: ='School Reference Sheet'!B37 -> Platte #2 | C42: =Inputs!T40 -> 245.848 | D42: =Inputs!W40+'Summer Schl-Ext Day Min Adj'!H37 -> 3160781.175 | E42: ='Librarian, Clerk, Comp Tech.'!T38 -> 0 | F42: ='Central Office'!K38 -> 609046.7039 | G42: ='O&M Base Sheet'!N39 -> 500570.736 | H42: =IF(Inputs!$D$100=1,C42*Inputs!$D$159,0) -> 0 | I42: =Utilities!AC38 -> 135288.4491 | J42: 17920.36976 | K42: ='Other Add-In''s'!K45 -> 47127.51 | L42: ='Other Add-In''s'!N45 -> 0 | M42: ='Other Add-In''s'!R45 -> 0 | N42: ='Other Add-In''s'!T45 -> 0 | O42: 47127.51 | P42: ='Charter School Adjustments'!H40 -> 0 | Q42: =Transportation!C40 -> 133283.05 | R42: ='Special Education'!C40 -> 675427.01 | S42: 5261524.634 | T42: =S42/C42 -> 21401.53523 | U42: ='HH Calculation'!U40 -> 0 | V42: 5261524.634 | W42: 21401.53523 | X42: ='Local Resources'!BP41 -> 1537685.298 | Y42: 3723839.336 | Z42: 0
